Workbook

Sheet Summary of Funding (hidden)
A1: Date Issued: 25th March 2026 | H1: Last Amended: 20th March 2026
A2: COVENTRY CITY COUNCIL
A3: 2026-27 Funding Allocations for Special Schools & Alternative Provision | P3: 6
A4: Summary of Funding
A6: =_xlfn.XLOOKUP($P$3,Data!A4:A12,Data!B4:B12) -> Baginton Fields Special School
A9: =IF(P40=0,"","***ERROR - CALCULATED ADJUSTMENT DOES NOT EQUAL ACTUAL ***") -> 
A10: Coventry Budget Share Elements
A12: Place Led Funding - see 'Place Led Funding' tab | F12: ='Place Led Funding'!M27 -> 1260000 | P12: =_xlfn.XLOOKUP(P3,Data!A113:A122,Data!C113:C122)-F12 -> 0
A14: INDICATIVE Coventry Top-up Funding - see 'Top-up Funding' tabs | F14: ='Summer 2026 Top-up'!K29+'Autumn 2026 Top-up'!K29+'Spring 2027 Top-up'!K29 -> 1776662.771 | P14: =_xlfn.XLOOKUP(P3,Data!A113:A122,Data!D113:D122)-F14 -> 0
A16: Legacy Funding | F16: =_xlfn.XLOOKUP('Summary of Funding'!$P$3,Data!$A$4:$A$12,Data!AU$4:AU$12) -> 552304.3 | P16: =_xlfn.XLOOKUP(P3,Data!A4:A12,Data!AU4:AU12)-'Summary of Funding'!F16 -> 0
A18: Split Site Funding | F18: =_xlfn.XLOOKUP('Summary of Funding'!$P$3,Data!$A$4:$A$12,Data!AV$4:AV$12) -> 0
A20: INDICATIVE RPA Adjustment | F20: =_xlfn.XLOOKUP('Summary of Funding'!$P$3,Data!$A$4:$A$12,Data!AW$4:AW$12) -> 0
H23: =F12+F14+F16+F18+F20 -> 3588967.071 | P23: =P14+P12 -> 0
A25: Other LA Budget Share Elements
A27: INDICATIVE Other LA Top-up Funding - see 'Top-up Funding' tabs | F27: ='Summer 2026 Top-up'!K51+'Autumn 2026 Top-up'!K51+'Spring 2027 Top-up'!K51 -> 10103.06392 | P27: =_xlfn.XLOOKUP(P3,Data!A99:A107,Data!AS99:AS107)-F27 -> 0
H29: =F27 -> 10103.06392 | P29: =P27 -> 0
A31: INDICATIVE Total Budget Share 2026/27 | H31: =H23+H29 -> 3599070.135 | P31: =P29+P23 -> 0
A33: Other Funding Elements
A35: INDICATIVE Pupil Premium Grant 2026/27 | F35: =_xlfn.XLOOKUP('Summary of Funding'!$P$3,Data!$A$4:$A$12,Data!AT$4:AT$12) -> 0 | P35: =_xlfn.XLOOKUP(P3,Data!A4:A12,Data!AT4:AT12)-F35 -> 0
H37: =F35 -> 0
A39: INDICATIVE Total Revenue Resources | H39: =H31+H37 -> 3599070.135 | P39: =P37+P31 -> 0
A42: Notes
A44: This funding summary is intended to give you an overview of the indicative resources allocated to the school for the 2026/27 financial year.
A45: The actual budget that you will receive is based on the real-time movement of pupils and so will not be finalised until March 2027.
A47: Your level of top-up funding shown for the summer 2026, autumn 2026 and spring 2027 terms is indicative only. These top-up figures are
A48: based on the level of provision your school delivered in the same terms in the 2025-26 financial years. Where the number of places at your
A49: school has changed we have scaled the indicative level of provision up or down as appropriate to reflect the changing position at the school
A50: - but we have not allowed this to increase above your number of comissioned places.
A52: Legacy Funding includes 2025/26 core school budget grant, histoic teachers’ pay and pensions (employer contribution) funding, historic teachers’
A53: pension supplementary funding and other additional funding that local authorities were required to pass on to schools following the 2022 autumn
A54: statement. Further information can be found in Paul Hammond's email on 27th February 2026.
A56: Risk Protection Arrangement is based on the latest information from DfE. This may be subject to change.
A58: Pupil Premium Funding has been updated to reflect 25/26 eligibility data using 2026/27 funding rates which will be subject to change.

Sheet Place Led Funding (hidden)
A1: ='Summary of Funding'!A1 -> Date Issued: 25th March 2026 | M1: ='Summary of Funding'!H1 -> Last Amended: 20th March 2026
A2: ='Summary of Funding'!A2 -> COVENTRY CITY COUNCIL
A3: ='Summary of Funding'!A3 -> 2026-27 Funding Allocations for Special Schools & Alternative Provision | P3: ='Summary of Funding'!P3 -> 6
A4: Place Led Funding
A6: =_xlfn.XLOOKUP(P3,Data!A4:A12,Data!B4:B12) -> Baginton Fields Special School | P6: Checks
A10: Factors | C10: Factor Measurement | G10: Number of Units | I10: Funding Per Unit | K10: Pro Rata | M10: Funding Allocated
I11: £ | M11: £
A13: Pre-16 Funding | C13: No. Places comissioned (Apr 2026 - Jul 2026) | G13: =_xlfn.XLOOKUP($P$3,Data!A4:A12,Data!G4:G12) -> 88 | I13: 10000 | K13: =4/12 -> 0.3333333333 | M13: =G13*I13*K13 -> 293333.3333
C14: No. Places comissioned (Aug 2026) | G14: =_xlfn.XLOOKUP($P$3,Data!A4:A12,Data!H4:H12) -> 88 | I14: 10000 | K14: 0.08333333333 | M14: =G14*I14*K14 -> 73333.33333
C15: No. Places comissioned (Sep 2026 - Dec 2026) | G15: =_xlfn.XLOOKUP($P$3,Data!A4:A12,Data!I4:I12) -> 88 | I15: 10000 | K15: 0.3333333333 | M15: =G15*I15*K15 -> 293333.3333
C16: No. Places comissioned (Jan 2027 - Mar 2027) | G16: =_xlfn.XLOOKUP($P$3,Data!A4:A12,Data!J4:J12) -> 88 | I16: 10000 | K16: 0.25 | M16: =G16*I16*K16 -> 220000
M18: =SUM(M13:M16) -> 880000 | P18: =_xlfn.XLOOKUP(P3,Data!A4:A12,Data!R4:R12)+_xlfn.XLOOKUP(P3,Data!A4:A12,Data!S4:S12)+_xlfn.XLOOKUP(P3,Data!A4:A12,Data!T4:T12)+_xlfn.XLOOKUP(P3,Data!A4:A12,Data!U4:U12)-M18 -> 0
A20: Post-16 Funding | C20: No. Places comissioned (Apr 2026 - Jul 2026) | G20: =_xlfn.XLOOKUP($P$3,Data!A4:A12,Data!K4:K12) -> 38 | I20: 10000 | K20: =4/12 -> 0.3333333333 | M20: =G20*I20*K20 -> 126666.6667
C21: No. Places comissioned (Aug 2026) | G21: =_xlfn.XLOOKUP($P$3,Data!A4:A12,Data!K4:K12) -> 38 | I21: 10000 | K21: 0.08333333333 | M21: =G21*I21*K21 -> 31666.66667
C22: No. Places comissioned (Sep 2026 - Mar 2027) | G22: =_xlfn.XLOOKUP($P$3,Data!A4:A12,Data!L4:L12) -> 38 | I22: 10000 | K22: 0.5833333333 | M22: =G22*I22*K22 -> 221666.6667
M24: =SUM(M20:M22) -> 380000 | P24: =_xlfn.XLOOKUP(P3,Data!A4:A12,Data!V4:V12)+_xlfn.XLOOKUP(P3,Data!A4:A12,Data!W4:W12)+_xlfn.XLOOKUP(P3,Data!A4:A12,Data!X4:X12)-'Place Led Funding'!M24 -> 0
A27: Total Indicative Place Led Funding | M27: =M18+M24 -> 1260000 | P27: =P24+P18 -> 0

Sheet HN Framework Values (hidden)
A1: ='Summary of Funding'!A1 -> Date Issued: 25th March 2026 | K1: ='Summary of Funding'!H1 -> Last Amended: 20th March 2026
A2: ='Summary of Funding'!A2 -> COVENTRY CITY COUNCIL
A3: ='Summary of Funding'!A3 -> 2026-27 Funding Allocations for Special Schools & Alternative Provision | P3: ='Summary of Funding'!P3 -> 6
A4: High Needs Banded Framework Top-up Rates
A6: =_xlfn.XLOOKUP(P3,Data!A4:A12,Data!B4:B12) -> Baginton Fields Special School | P6: Checks
A11: High Needs Banded Framework
A12: Table 1 | D12: Cat 1 | E12: Cat 2 | F12: Cat 3 | G12: Cat 4 | H12: Cat 5 | I12: Cat 6
D13: Communication and Interaction | E13: Cognition and Learning | F13: SEMH | G13: Sensory &/or Physical | H13: Exceptional | I13: Personalised
C14: Level A | D14: Universal | I14: Early Support - only as agreed with Head of SS
C15: Level B | D15: Targeted
C16: Level C | D16: S&L Disorder | E16: Specific LD
C17: Level D | D17: Social Comm - Moderate | E17: MLD | F17: SEMH - Moderate | G17: HI/VI
C18: Level E | D18: Social Comm - High | E18: SLD | F18: SEMH - High | G18: PD - High | H18: OOC - only as agreed with Head of SS | I18: CC - only as agreed with Head of SS
C19: Level F | D19: Social Comm - Severe | E19: PMLD | F19: SEMH - Severe | G19: MSI
C21: Cov ELC | D21: ELC Band
A23: HN Framework Top-up Rates
A24: Table 2 | D24: Cat 1 | E24: Cat 2 | F24: Cat 3 | G24: Cat 4 | H24: Cat 5 | I24: Cat 6
D25: Communication and Interaction | E25: Cognition and Learning | F25: SEMH | G25: Sensory &/or Physical | H25: Exceptional | I25: Personalised
C26: Level A | D26: 0 | E26: 0 | F26: 0 | G26: 0 | I26: As agreed with Head of SS
C27: Level B | D27: 0 | E27: 0 | F27: 0 | G27: 0
C28: Level C | D28: =D40 -> 2675.246241 | E28: =E40 -> 3210.30007
C29: Level D | D29: =D41 -> 3210.30007 | E29: 5350.492481 | F29: =F41 -> 8025.750175 | G29: 8025.750175
C30: Level E | D30: 10700.99642 | E30: 9898.427124 | F30: =F42 -> 13376.24266 | G30: 13376.24266 | H30: As agreed with Head of SS | I30: As agreed with Head of SS
C31: Level F | D31: =D43 -> 17389.12347 | E31: =E43 -> 16051.4889 | F31: =F43 -> 17389.12347 | G31: 16051.4889
C33: Cov ELC | D33: =Data!Z12 -> 13168.19427
A35: MFG PROTECTED Top-up Rates
A36: Table 3 | D36: Cat 1 | E36: Cat 2 | F36: Cat 3 | G36: Cat 4 | H36: Cat 5 | I36: Cat 6
A37: Protection | D37: Communication and Interaction | E37: Cognition and Learning | F37: SEMH | G37: Sensory &/or Physical | H37: Exceptional | I37: Personalised
A38: Level: | B38: =((D43/D31)-1) -> 0 | C38: Level A | D38: 0 | E38: 0 | F38: 0 | G38: 0 | H38: 0 | I38: 0
C39: Level B | D39: 0 | E39: 0 | F39: 0 | G39: 0 | H39: 0 | I39: 0
C40: Level C | D40: =_xlfn.XLOOKUP($P$3,Data!$A$4:$A$12,Data!AA4:AA12) -> 2675.246241 | E40: =_xlfn.XLOOKUP($P$3,Data!$A$4:$A$12,Data!AB4:AB12) -> 3210.30007 | F40: 0 | G40: 0 | H40: 0 | I40: 0
C41: Level D | D41: =_xlfn.XLOOKUP($P$3,Data!$A$4:$A$12,Data!AC4:AC12) -> 3210.30007 | E41: =_xlfn.XLOOKUP($P$3,Data!$A$4:$A$12,Data!AD4:AD12) -> 5350.492481 | F41: =_xlfn.XLOOKUP($P$3,Data!$A$4:$A$12,Data!AE4:AE12) -> 8025.750175 | G41: =_xlfn.XLOOKUP($P$3,Data!$A$4:$A$12,Data!AF4:AF12) -> 8025.750175 | H41: 0 | I41: 0
C42: Level E | D42: =_xlfn.XLOOKUP($P$3,Data!$A$4:$A$12,Data!AG4:AG12) -> 10700.99642 | E42: =_xlfn.XLOOKUP($P$3,Data!$A$4:$A$12,Data!AH4:AH12) -> 9898.427124 | F42: =_xlfn.XLOOKUP($P$3,Data!$A$4:$A$12,Data!AI4:AI12) -> 13376.24266 | G42: =_xlfn.XLOOKUP($P$3,Data!$A$4:$A$12,Data!AJ4:AJ12) -> 13376.24266 | H42: =_xlfn.XLOOKUP($P$3,Data!$A$4:$A$12,Data!AK4:AK12) -> 26092.905 | I42: =_xlfn.XLOOKUP($P$3,Data!$A$4:$A$12,Data!AL4:AL12) -> 0
C43: Level F | D43: =_xlfn.XLOOKUP($P$3,Data!$A$4:$A$12,Data!AM4:AM12) -> 17389.12347 | E43: =_xlfn.XLOOKUP($P$3,Data!$A$4:$A$12,Data!AN4:AN12) -> 16051.4889 | F43: =_xlfn.XLOOKUP($P$3,Data!$A$4:$A$12,Data!AO4:AO12) -> 17389.12347 | G43: =_xlfn.XLOOKUP($P$3,Data!$A$4:$A$12,Data!AP4:AP12) -> 16051.4889 | H43: =_xlfn.XLOOKUP($P$3,Data!$A$4:$A$12,Data!AQ4:AQ12) -> 52185.81 | I43: =_xlfn.XLOOKUP($P$3,Data!$A$4:$A$12,Data!AR4:AR12) -> 0
A46: Notes
A48: Table 2 shows the High Needs Top-up Rates that apply to special schools for each element of the High Needs Funding Matrix.
A49: All top up bands excluding Category 5 have been inflated by 2.1% to mirror inflation in the mainstream national funding formula.
A50: Category 5 Top up bands have been adjusted to reflect actual staffing costs.
A53: =IF(N4="MFG","standard High Needs Top-up rates. Your protected top-up rates are shown in table 3 and apply to your school for the 2021/22 financial year.","") -> 

Sheet Summer 2026 Top-up (hidden)
A1: ='Summary of Funding'!A1 -> Date Issued: 25th March 2026 | M1: ='Summary of Funding'!H1 -> Last Amended: 20th March 2026
A2: ='Summary of Funding'!A2 -> COVENTRY CITY COUNCIL
A3: ='Summary of Funding'!A3 -> 2026-27 Funding Allocations for Special Schools & Alternative Provision | P3: ='Summary of Funding'!P3 -> 6
A4: Summer 2026 Top-up Funding
A6: =_xlfn.XLOOKUP(P3,Data!A4:A12,Data!B4:B12) -> Baginton Fields Special School | P6: Checks
A10: Total days in term: | B10: =Data!A20 -> 65
A11: Summer 2026 Funded days - Coventry
A12: Indicative | D12: Cat 1 | E12: Cat 2 | F12: Cat 3 | G12: Cat 4 | H12: Cat 5 | I12: Cat 6
C13: Level A | D13: 0 | E13: 0 | F13: 0 | G13: 0 | H13: 0 | I13: 0
C14: Level B | D14: 0 | E14: 0 | F14: 0 | G14: 0 | H14: 0 | I14: 0
C15: Level C | D15: =_xlfn.XLOOKUP($P$3,Data!$A$33:$A$41,Data!E$33:E$41) -> 0 | E15: =_xlfn.XLOOKUP($P$3,Data!$A$33:$A$41,Data!F$33:F$41) -> 0 | F15: 0 | G15: 0 | H15: 0 | I15: 0
C16: Level D | D16: =_xlfn.XLOOKUP($P$3,Data!$A$33:$A$41,Data!G$33:G$41) -> 0 | E16: =_xlfn.XLOOKUP($P$3,Data!$A$33:$A$41,Data!H$33:H$41) -> 0 | F16: =_xlfn.XLOOKUP($P$3,Data!$A$33:$A$41,Data!I$33:I$41) -> 0 | G16: =_xlfn.XLOOKUP($P$3,Data!$A$33:$A$41,Data!J$33:J$41) -> 0 | H16: 0 | I16: 0
C17: Level E | D17: =_xlfn.XLOOKUP($P$3,Data!$A$33:$A$41,Data!K$33:K$41) -> 1805.373134 | E17: =_xlfn.XLOOKUP($P$3,Data!$A$33:$A$41,Data!L$33:L$41) -> 2471.940299 | F17: =_xlfn.XLOOKUP($P$3,Data!$A$33:$A$41,Data!M$33:M$41) -> 0 | G17: =_xlfn.XLOOKUP($P$3,Data!$A$33:$A$41,Data!N$33:N$41) -> 133.7313433 | H17: =_xlfn.XLOOKUP($P$3,Data!$A$33:$A$41,Data!O$33:O$41) -> 812.8358209 | I17: =_xlfn.XLOOKUP($P$3,Data!$A$33:$A$41,Data!P$33:P$41) -> 0 | K17: Total FTE
C18: Level F | D18: =_xlfn.XLOOKUP($P$3,Data!$A$33:$A$41,Data!Q$33:Q$41) -> 1902.537313 | E18: =_xlfn.XLOOKUP($P$3,Data!$A$33:$A$41,Data!R$33:R$41) -> 802.3880597 | F18: =_xlfn.XLOOKUP($P$3,Data!$A$33:$A$41,Data!S$33:S$41) -> 0 | G18: =_xlfn.XLOOKUP($P$3,Data!$A$33:$A$41,Data!T$33:T$41) -> 133.7313433 | H18: =_xlfn.XLOOKUP($P$3,Data!$A$33:$A$41,Data!U$33:U$41) -> 60.59701493 | I18: =_xlfn.XLOOKUP($P$3,Data!$A$33:$A$41,Data!V$33:V$41) -> 0 | K18: =SUM(D13:I20)/B10 -> 124.9712974
C20: PRU | D20: =_xlfn.XLOOKUP($P$3,Data!$A$21:$A$29,Data!D$21:D$29) -> 0
A22: Summer 2026 Top-up Funding - Coventry
A23: Indicative | D23: Cat 1 | E23: Cat 2 | F23: Cat 3 | G23: Cat 4 | H23: Cat 5 | I23: Cat 6
C24: Level A | D24: =D13*('HN Framework Values'!D38/Data!$A$16) -> 0 | E24: =E13*('HN Framework Values'!E38/Data!$A$16) -> 0 | F24: =F13*('HN Framework Values'!F38/Data!$A$16) -> 0 | G24: =G13*('HN Framework Values'!G38/Data!$A$16) -> 0 | H24: 0 | I24: 0
C25: Level B | D25: =D14*('HN Framework Values'!D39/Data!$A$16) -> 0 | E25: =E14*('HN Framework Values'!E39/Data!$A$16) -> 0 | F25: =F14*('HN Framework Values'!F39/Data!$A$16) -> 0 | G25: =G14*('HN Framework Values'!G39/Data!$A$16) -> 0 | H25: 0 | I25: 0
C26: Level C | D26: =D15*('HN Framework Values'!D40/Data!$A$16) -> 0 | E26: =E15*('HN Framework Values'!E40/Data!$A$16) -> 0 | F26: =F15*('HN Framework Values'!F40/Data!$A$16) -> 0 | G26: =G15*('HN Framework Values'!G40/Data!$A$16) -> 0 | H26: 0 | I26: 0 | K26: Total Coventry Top-up
C27: Level D | D27: =D16*('HN Framework Values'!D41/Data!$A$16) -> 0 | E27: =E16*('HN Framework Values'!E41/Data!$A$16) -> 0 | F27: =F16*('HN Framework Values'!F41/Data!$A$16) -> 0 | G27: =G16*('HN Framework Values'!G41/Data!$A$16) -> 0 | H27: 0 | I27: 0
C28: Level E | D28: =D17*('HN Framework Values'!D42/Data!$A$16) -> 100099.9556 | E28: =E17*('HN Framework Values'!E42/Data!$A$16) -> 126778.8648 | F28: =F17*('HN Framework Values'!F42/Data!$A$16) -> 0 | G28: =G17*('HN Framework Values'!G42/Data!$A$16) -> 9268.512427 | H28: =H17*('HN Framework Values'!H42/Data!$A$16) -> 109892.4759 | I28: =I17*('HN Framework Values'!I42/Data!$A$16) -> 0
C29: Level F | D29: =D18*('HN Framework Values'!D43/Data!$A$16) -> 171416.8718 | E29: =E18*('HN Framework Values'!E43/Data!$A$16) -> 66733.27995 | F29: =F18*('HN Framework Values'!F43/Data!$A$16) -> 0 | G29: =G18*('HN Framework Values'!G43/Data!$A$16) -> 11122.21333 | H29: =H18*('HN Framework Values'!H43/Data!$A$16) -> 16384.99641 | I29: =I18*('HN Framework Values'!I43/Data!$A$16) -> 0 | K29: =SUM(D24:I31) -> 611697.1702
C31: PRU | D31: =D20*'HN Framework Values'!D33/Data!A16 -> 0
A33: Summer 2026 Funded days - Other LAs
A34: Indicative | D34: Cat 1 | E34: Cat 2 | F34: Cat 3 | G34: Cat 4 | H34: Cat 5 | I34: Cat 6
C35: Level A | D35: 0 | E35: 0 | F35: 0 | G35: 0 | H35: 0 | I35: 0
C36: Level B | D36: 0 | E36: 0 | F36: 0 | G36: 0 | H36: 0 | I36: 0
C37: Level C | D37: =_xlfn.XLOOKUP($P$3,Data!$A$33:$A$41,Data!Z$33:Z$41) -> 0 | E37: =_xlfn.XLOOKUP($P$3,Data!$A$33:$A$41,Data!AA$33:AA$41) -> 0 | F37: 0 | G37: 0 | H37: 0 | I37: 0
C38: Level D | D38: =_xlfn.XLOOKUP($P$3,Data!$A$21:$A$29,Data!AB$33:AB$41) -> 0 | E38: =_xlfn.XLOOKUP($P$3,Data!$A$21:$A$29,Data!AC$33:AC$41) -> 0 | F38: =_xlfn.XLOOKUP($P$3,Data!$A$21:$A$29,Data!AD$33:AD$41) -> 0 | G38: =_xlfn.XLOOKUP($P$3,Data!$A$21:$A$29,Data!AE$33:AE$41) -> 0 | H38: 0 | I38: 0
C39: Level E | D39: =_xlfn.XLOOKUP($P$3,Data!$A$33:$A$41,Data!AF$33:AF$41) -> 0 | E39: =_xlfn.XLOOKUP($P$3,Data!$A$33:$A$41,Data!AG$33:AG$41) -> 66.86567164 | F39: =_xlfn.XLOOKUP($P$3,Data!$A$33:$A$41,Data!AH$33:AH$41) -> 0 | G39: =_xlfn.XLOOKUP($P$3,Data!$A$33:$A$41,Data!AI$33:AI$41) -> 0 | H39: =_xlfn.XLOOKUP($P$3,Data!$A$33:$A$41,Data!AJ$33:AJ$41) -> 0 | I39: =_xlfn.XLOOKUP($P$3,Data!$A$33:$A$41,Data!AK$33:AK$41) -> 0 | K39: Total FTE
C40: Level F | D40: =_xlfn.XLOOKUP($P$3,Data!$A$33:$A$41,Data!AL$33:AL$41) -> 0 | E40: =_xlfn.XLOOKUP($P$3,Data!$A$33:$A$41,Data!AM$33:AM$41) -> 0 | F40: =_xlfn.XLOOKUP($P$3,Data!$A$33:$A$41,Data!AN$33:AN$41) -> 0 | G40: =_xlfn.XLOOKUP($P$3,Data!$A$33:$A$41,Data!AO$33:AO$41) -> 0 | H40: =_xlfn.XLOOKUP($P$3,Data!$A$33:$A$41,Data!AP$33:AP$41) -> 0 | I40: =_xlfn.XLOOKUP($P$3,Data!$A$33:$A$41,Data!AQ$33:AQ$41) -> 0 | K40: =SUM(D35:I42)/B10 -> 1.028702641
C42: PRU | D42: =_xlfn.XLOOKUP($P$3,Data!$A$33:$A$41,Data!Y$33:Y$41) -> 0
A44: Summer 2026 Top-up Funding - Other LAs
A45: Indicative | D45: Cat 1 | E45: Cat 2 | F45: Cat 3 | G45: Cat 4 | H45: Cat 5 | I45: Cat 6
C46: Level A | D46: =D35*('HN Framework Values'!D38/Data!$A$16) -> 0 | E46: =E35*('HN Framework Values'!E38/Data!$A$16) -> 0 | F46: =F35*('HN Framework Values'!F38/Data!$A$16) -> 0 | G46: =G35*('HN Framework Values'!G38/Data!$A$16) -> 0 | H46: =H35*('HN Framework Values'!H38/Data!$A$16) -> 0 | I46: =I35*('HN Framework Values'!I38/Data!$A$16) -> 0
C47: Level B | D47: =D36*('HN Framework Values'!D39/Data!$A$16) -> 0 | E47: =E36*('HN Framework Values'!E39/Data!$A$16) -> 0 | F47: =F36*('HN Framework Values'!F39/Data!$A$16) -> 0 | G47: =G36*('HN Framework Values'!G39/Data!$A$16) -> 0 | H47: =H36*('HN Framework Values'!H39/Data!$A$16) -> 0 | I47: =I36*('HN Framework Values'!I39/Data!$A$16) -> 0
C48: Level C | D48: =D37*('HN Framework Values'!D40/Data!$A$16) -> 0 | E48: =E37*('HN Framework Values'!E40/Data!$A$16) -> 0 | F48: =F37*('HN Framework Values'!F40/Data!$A$16) -> 0 | G48: =G37*('HN Framework Values'!G40/Data!$A$16) -> 0 | H48: =H37*('HN Framework Values'!H40/Data!$A$16) -> 0 | I48: =I37*('HN Framework Values'!I40/Data!$A$16) -> 0 | K48: Total Other LA Top-up
C49: Level D | D49: =D38*('HN Framework Values'!D41/Data!$A$16) -> 0 | E49: =E38*('HN Framework Values'!E41/Data!$A$16) -> 0 | F49: =F38*('HN Framework Values'!F41/Data!$A$16) -> 0 | G49: =G38*('HN Framework Values'!G41/Data!$A$16) -> 0 | H49: =H38*('HN Framework Values'!H41/Data!$A$16) -> 0 | I49: =I38*('HN Framework Values'!I41/Data!$A$16) -> 0
C50: Level E | D50: =D39*('HN Framework Values'!D42/Data!$A$16) -> 0 | E50: =E39*('HN Framework Values'!E42/Data!$A$16) -> 3429.352217 | F50: =F39*('HN Framework Values'!F42/Data!$A$16) -> 0 | G50: =G39*('HN Framework Values'!G42/Data!$A$16) -> 0 | H50: =H39*('HN Framework Values'!H42/Data!$A$16) -> 0 | I50: =I39*('HN Framework Values'!I42/Data!$A$16) -> 0
C51: Level F | D51: =D40*('HN Framework Values'!D43/Data!$A$16) -> 0 | E51: =E40*('HN Framework Values'!E43/Data!$A$16) -> 0 | F51: =F40*('HN Framework Values'!F43/Data!$A$16) -> 0 | G51: =G40*('HN Framework Values'!G43/Data!$A$16) -> 0 | H51: =H40*('HN Framework Values'!H43/Data!$A$16) -> 0 | I51: =I40*('HN Framework Values'!I43/Data!$A$16) -> 0 | K51: =SUM(D46:I53) -> 3429.352217
C53: PRU | D53: =D42*'HN Framework Values'!D33/Data!A16 -> 0
A55: Total INDICATIVE Summer 2026 Top-up Funding | K55: =K51+K29 -> 615126.5224 | Q55: =_xlfn.XLOOKUP($P$3,Data!$A$33:$A$41,Data!AT$33:AT$41)-K55 -> 0
A59: Notes
A61: Top up funding is allocated to pupils based on their High Needs Banding and how many days they are on roll at your school.
A63: This data is based on the level of provision your school delivered in the 2025 summer term. Where the number of places at your school
A64: has changed we have scaled the indicative level of provision up or down as appropriate to reflect the changing position at the school -
A65: but we have not allowed this to increase above your number of comissioned places.
A67: This will be updated at the end of each term to reflect the actual number of Full Time Equivilant pupils that have been educated in this
A68: period. Your top-up funding budget will change accordingly.
A70: Other LA Top-up funding is not paid to you by Coventry City Council and you will need to invoice the relevant Local Authorities for this
A71: funding. If you need contact information for any other Local Authority please contact SEN Management Services on 024 7683 1614.

Sheet Autumn 2026 Top-up (hidden)
A1: ='Summary of Funding'!A1 -> Date Issued: 25th March 2026 | M1: ='Summary of Funding'!H1 -> Last Amended: 20th March 2026
A2: ='Summary of Funding'!A2 -> COVENTRY CITY COUNCIL
A3: ='Summary of Funding'!A3 -> 2026-27 Funding Allocations for Special Schools & Alternative Provision | P3: ='Summary of Funding'!P3 -> 6
A4: Autumn 2026 Top-up Funding
A6: =_xlfn.XLOOKUP(P3,Data!A4:A12,Data!B4:B12) -> Baginton Fields Special School | P6: Checks
A10: Total days in term: | B10: =Data!$A$58 -> 74
A11: Autumn 2026 Funded days - Coventry
A12: Indicative | D12: Cat 1 | E12: Cat 2 | F12: Cat 3 | G12: Cat 4 | H12: Cat 5 | I12: Cat 6
C13: Level A | D13: 0 | E13: 0 | F13: 0 | G13: 0 | H13: 0 | I13: 0
C14: Level B | D14: 0 | E14: 0 | F14: 0 | G14: 0 | H14: 0 | I14: 0
C15: Level C | D15: =_xlfn.XLOOKUP($P$3,Data!$A$59:$A$67,Data!E59:E67) -> 0 | E15: =_xlfn.XLOOKUP($P$3,Data!$A$59:$A$67,Data!F59:F67) -> 0 | F15: 0 | G15: 0 | H15: 0 | I15: 0
C16: Level D | D16: =_xlfn.XLOOKUP($P$3,Data!$A$59:$A$67,Data!G59:G67) -> 0 | E16: =_xlfn.XLOOKUP($P$3,Data!$A$59:$A$67,Data!H59:H67) -> 0 | F16: =_xlfn.XLOOKUP($P$3,Data!$A$59:$A$67,Data!I59:I67) -> 0 | G16: =_xlfn.XLOOKUP($P$3,Data!$A$59:$A$67,Data!J59:J67) -> 0 | H16: 0 | I16: 0
C17: Level E | D17: =_xlfn.XLOOKUP($P$3,Data!$A$59:$A$67,Data!K59:K67) -> 2652.457045 | E17: =_xlfn.XLOOKUP($P$3,Data!$A$59:$A$67,Data!L59:L67) -> 2421.027923 | F17: =_xlfn.XLOOKUP($P$3,Data!$A$59:$A$67,Data!M59:M67) -> 0 | G17: =_xlfn.XLOOKUP($P$3,Data!$A$59:$A$67,Data!N59:N67) -> 299.2617952 | H17: =_xlfn.XLOOKUP($P$3,Data!$A$59:$A$67,Data!O59:O67) -> 822.9699369 | I17: =_xlfn.XLOOKUP($P$3,Data!$A$59:$A$67,Data!P59:P67) -> 0 | K17: Total FTE
C18: Level F | D18: =_xlfn.XLOOKUP($P$3,Data!$A$59:$A$67,Data!Q59:Q67) -> 2006.051567 | E18: =_xlfn.XLOOKUP($P$3,Data!$A$59:$A$67,Data!R59:R67) -> 748.1544881 | F18: =_xlfn.XLOOKUP($P$3,Data!$A$59:$A$67,Data!S59:S67) -> 0 | G18: =_xlfn.XLOOKUP($P$3,Data!$A$59:$A$67,Data!T59:T67) -> 299.2617952 | H18: =_xlfn.XLOOKUP($P$3,Data!$A$59:$A$67,Data!U59:U67) -> 0 | I18: =_xlfn.XLOOKUP($P$3,Data!$A$59:$A$67,Data!V59:V67) -> 0 | K18: =SUM(D13:I20)/B10 -> 124.9889804
C20: PRU | D20: =_xlfn.XLOOKUP($P$3,Data!$A$59:$A$67,Data!D59:D67) -> 0
A22: Autumn 2026 Top-up Funding - Coventry
A23: Indicative | D23: Cat 1 | E23: Cat 2 | F23: Cat 3 | G23: Cat 4 | H23: Cat 5 | I23: Cat 6
C24: Level A | D24: =D13*('HN Framework Values'!D38/Data!$A$16) -> 0 | E24: =E13*('HN Framework Values'!E38/Data!$A$16) -> 0 | F24: =F13*('HN Framework Values'!F38/Data!$A$16) -> 0 | G24: =G13*('HN Framework Values'!G38/Data!$A$16) -> 0 | H24: 0 | I24: 0
C25: Level B | D25: =D14*('HN Framework Values'!D39/Data!$A$16) -> 0 | E25: =E14*('HN Framework Values'!E39/Data!$A$16) -> 0 | F25: =F14*('HN Framework Values'!F39/Data!$A$16) -> 0 | G25: =G14*('HN Framework Values'!G39/Data!$A$16) -> 0 | H25: 0 | I25: 0
C26: Level C | D26: =D15*('HN Framework Values'!D40/Data!$A$16) -> 0 | E26: =E15*('HN Framework Values'!E40/Data!$A$16) -> 0 | F26: =F15*('HN Framework Values'!F40/Data!$A$16) -> 0 | G26: =G15*('HN Framework Values'!G40/Data!$A$16) -> 0 | H26: 0 | I26: 0 | K26: Total Coventry Top-up
C27: Level D | D27: =D16*('HN Framework Values'!D41/Data!$A$16) -> 0 | E27: =E16*('HN Framework Values'!E41/Data!$A$16) -> 0 | F27: =F16*('HN Framework Values'!F41/Data!$A$16) -> 0 | G27: =G16*('HN Framework Values'!G41/Data!$A$16) -> 0 | H27: 0 | I27: 0
C28: Level E | D28: =D17*('HN Framework Values'!D42/Data!$A$16) -> 147067.0121 | E28: =E17*('HN Framework Values'!E42/Data!$A$16) -> 124167.7123 | F28: =F17*('HN Framework Values'!F42/Data!$A$16) -> 0 | G28: =G17*('HN Framework Values'!G42/Data!$A$16) -> 20740.9243 | H28: =H17*('HN Framework Values'!H42/Data!$A$16) -> 111262.5719 | I28: =I17*('HN Framework Values'!I42/Data!$A$16) -> 0
C29: Level F | D29: =D18*('HN Framework Values'!D43/Data!$A$16) -> 180743.4114 | E29: =E18*('HN Framework Values'!E43/Data!$A$16) -> 62222.76403 | F29: =F18*('HN Framework Values'!F43/Data!$A$16) -> 0 | G29: =G18*('HN Framework Values'!G43/Data!$A$16) -> 24889.10561 | H29: =H18*('HN Framework Values'!H43/Data!$A$16) -> 0 | I29: =I18*('HN Framework Values'!I43/Data!$A$16) -> 0 | K29: =SUM(D24:I31) -> 671093.5016
C31: PRU | D31: =D20*'HN Framework Values'!D33/Data!A16 -> 0
A33: Autumn 2026 Funded days - Other LAs
A34: Indicative | D34: Cat 1 | E34: Cat 2 | F34: Cat 3 | G34: Cat 4 | H34: Cat 5 | I34: Cat 6
C35: Level A | D35: 0 | E35: 0 | F35: 0 | G35: 0 | H35: 0 | I35: 0
C36: Level B | D36: 0 | E36: 0 | F36: 0 | G36: 0 | H36: 0 | I36: 0
C37: Level C | D37: =_xlfn.XLOOKUP($P$3,Data!$A$59:$A$67,Data!Z59:Z67) -> 0 | E37: =_xlfn.XLOOKUP($P$3,Data!$A$59:$A$67,Data!AA59:AA67) -> 0 | F37: 0 | G37: 0 | H37: 0 | I37: 0
C38: Level D | D38: =_xlfn.XLOOKUP($P$3,Data!$A$59:$A$67,Data!AB59:AB67) -> 0 | E38: =_xlfn.XLOOKUP($P$3,Data!$A$59:$A$67,Data!AC59:AC67) -> 0 | F38: =_xlfn.XLOOKUP($P$3,Data!$A$59:$A$67,Data!AD59:AD67) -> 0 | G38: =_xlfn.XLOOKUP($P$3,Data!$A$59:$A$67,Data!AE59:AE67) -> 0 | H38: 0 | I38: 0
C39: Level E | D39: =_xlfn.XLOOKUP($P$3,Data!$A$59:$A$67,Data!AF59:AF67) -> 0 | E39: =_xlfn.XLOOKUP($P$3,Data!$A$59:$A$67,Data!AG59:AG67) -> 74.81544881 | F39: =_xlfn.XLOOKUP($P$3,Data!$A$59:$A$67,Data!AH59:AH67) -> 0 | G39: =_xlfn.XLOOKUP($P$3,Data!$A$59:$A$67,Data!AI59:AI67) -> 0 | H39: =_xlfn.XLOOKUP($P$3,Data!$A$59:$A$67,Data!AJ59:AJ67) -> 0 | I39: =_xlfn.XLOOKUP($P$3,Data!$A$59:$A$67,Data!AK59:AK67) -> 0 | K39: Total FTE
C40: Level F | D40: =_xlfn.XLOOKUP($P$3,Data!$A$59:$A$67,Data!AL59:AL67) -> 0 | E40: =_xlfn.XLOOKUP($P$3,Data!$A$59:$A$67,Data!AM59:AM67) -> 0 | F40: =_xlfn.XLOOKUP($P$3,Data!$A$59:$A$67,Data!AN59:AN67) -> 0 | G40: =_xlfn.XLOOKUP($P$3,Data!$A$59:$A$67,Data!AO59:AO67) -> 0 | H40: =_xlfn.XLOOKUP($P$3,Data!$A$59:$A$67,Data!AP59:AP67) -> 0 | I40: =_xlfn.XLOOKUP($P$3,Data!$A$59:$A$67,Data!AQ59:AQ67) -> 0 | K40: =SUM(D35:I42)/B10 -> 1.011019578
C42: PRU | D42: =_xlfn.XLOOKUP($P$3,Data!$A$59:$A$67,Data!Y59:Y67) -> 0
A44: Autumn 2026 Top-up Funding - Other LAs
A45: Indicative | D45: Cat 1 | E45: Cat 2 | F45: Cat 3 | G45: Cat 4 | H45: Cat 5 | I45: Cat 6
C46: Level A | D46: =D35*('HN Framework Values'!D38/Data!$A$16) -> 0 | E46: =E35*('HN Framework Values'!E38/Data!$A$16) -> 0 | F46: =F35*('HN Framework Values'!F38/Data!$A$16) -> 0 | G46: =G35*('HN Framework Values'!G38/Data!$A$16) -> 0 | H46: =H35*('HN Framework Values'!H38/Data!$A$16) -> 0 | I46: =I35*('HN Framework Values'!I38/Data!$A$16) -> 0
C47: Level B | D47: =D36*('HN Framework Values'!D39/Data!$A$16) -> 0 | E47: =E36*('HN Framework Values'!E39/Data!$A$16) -> 0 | F47: =F36*('HN Framework Values'!F39/Data!$A$16) -> 0 | G47: =G36*('HN Framework Values'!G39/Data!$A$16) -> 0 | H47: =H36*('HN Framework Values'!H39/Data!$A$16) -> 0 | I47: =I36*('HN Framework Values'!I39/Data!$A$16) -> 0
C48: Level C | D48: =D37*('HN Framework Values'!D40/Data!$A$16) -> 0 | E48: =E37*('HN Framework Values'!E40/Data!$A$16) -> 0 | F48: =F37*('HN Framework Values'!F40/Data!$A$16) -> 0 | G48: =G37*('HN Framework Values'!G40/Data!$A$16) -> 0 | H48: =H37*('HN Framework Values'!H40/Data!$A$16) -> 0 | I48: =I37*('HN Framework Values'!I40/Data!$A$16) -> 0 | K48: Total Other LA Top-up
C49: Level D | D49: =D38*('HN Framework Values'!D41/Data!$A$16) -> 0 | E49: =E38*('HN Framework Values'!E41/Data!$A$16) -> 0 | F49: =F38*('HN Framework Values'!F41/Data!$A$16) -> 0 | G49: =G38*('HN Framework Values'!G41/Data!$A$16) -> 0 | H49: =H38*('HN Framework Values'!H41/Data!$A$16) -> 0 | I49: =I38*('HN Framework Values'!I41/Data!$A$16) -> 0
C50: Level E | D50: =D39*('HN Framework Values'!D42/Data!$A$16) -> 0 | E50: =E39*('HN Framework Values'!E42/Data!$A$16) -> 3837.073926 | F50: =F39*('HN Framework Values'!F42/Data!$A$16) -> 0 | G50: =G39*('HN Framework Values'!G42/Data!$A$16) -> 0 | H50: =H39*('HN Framework Values'!H42/Data!$A$16) -> 0 | I50: =I39*('HN Framework Values'!I42/Data!$A$16) -> 0
C51: Level F | D51: =D40*('HN Framework Values'!D43/Data!$A$16) -> 0 | E51: =E40*('HN Framework Values'!E43/Data!$A$16) -> 0 | F51: =F40*('HN Framework Values'!F43/Data!$A$16) -> 0 | G51: =G40*('HN Framework Values'!G43/Data!$A$16) -> 0 | H51: =H40*('HN Framework Values'!H43/Data!$A$16) -> 0 | I51: =I40*('HN Framework Values'!I43/Data!$A$16) -> 0 | K51: =SUM(D46:I53) -> 3837.073926
C53: PRU | D53: =D42*'HN Framework Values'!D33/Data!A16 -> 0
A55: Total INDICATIVE Autumn 2026 Top-up Funding | K55: =K51+K29 -> 674930.5755 | Q55: =_xlfn.XLOOKUP(P3,Data!A59:A67,Data!AT59:AT67)-K55 -> 0
A59: Notes
A61: Top up funding is allocated to pupils based on their High Needs Banding and how many days they are on roll at your school.
A63: This data is based on the level of provision your school delivered in the 2025 autumn term. Where the number of places at your school
A64: has changed we have scaled the indicative level of provision up or down as appropriate to reflect the changing position at the school -
A65: but we have not allowed this to increase above your number of comissioned places.
A67: This will be updated at the end of each term to reflect the actual number of Full Time Equivilant pupils that have been educated in this
A68: period. Your top-up funding budget will change accordingly.
A70: Other LA Top-up funding is not paid to you by Coventry City Council and you will need to invoice the relevant Local Authorities for this
A71: funding. If you need contact information for any other Local Authority please contact SEN Management Services on 024 7683 1614.

Sheet Spring 2027 Top-up (hidden)
A1: ='Summary of Funding'!A1 -> Date Issued: 25th March 2026 | M1: ='Summary of Funding'!H1 -> Last Amended: 20th March 2026
A2: ='Summary of Funding'!A2 -> COVENTRY CITY COUNCIL
A3: ='Summary of Funding'!A3 -> 2026-27 Funding Allocations for Special Schools & Alternative Provision | P3: ='Summary of Funding'!P3 -> 6
A4: Spring 2027 Top-up Funding
A6: =_xlfn.XLOOKUP(P3,Data!A4:A12,Data!B4:B12) -> Baginton Fields Special School | P6: Checks
A10: Total days in term: | B10: =Data!$A$73 -> 54
A11: Spring 2027 Funded days - Coventry
A12: Indicative | D12: Cat 1 | E12: Cat 2 | F12: Cat 3 | G12: Cat 4 | H12: Cat 5 | I12: Cat 6
C13: Level A | D13: 0 | E13: 0 | F13: 0 | G13: 0 | H13: 0 | I13: 0
C14: Level B | D14: 0 | E14: 0 | F14: 0 | G14: 0 | H14: 0 | I14: 0
C15: Level C | D15: =_xlfn.XLOOKUP($P$3,Data!$A$86:$A$94,Data!E86:E94) -> 0 | E15: =_xlfn.XLOOKUP($P$3,Data!$A$86:$A$94,Data!F86:F94) -> 0 | F15: 0 | G15: 0 | H15: 0 | I15: 0
C16: Level D | D16: =_xlfn.XLOOKUP($P$3,Data!$A$86:$A$94,Data!G86:G94) -> 0 | E16: =_xlfn.XLOOKUP($P$3,Data!$A$86:$A$94,Data!H86:H94) -> 0 | F16: =_xlfn.XLOOKUP($P$3,Data!$A$86:$A$94,Data!I86:I94) -> 0 | G16: =_xlfn.XLOOKUP($P$3,Data!$A$86:$A$94,Data!J86:J94) -> 0 | H16: 0 | I16: 0
C17: Level E | D17: =_xlfn.XLOOKUP($P$3,Data!$A$86:$A$94,Data!K86:K94) -> 1909.665386 | E17: =_xlfn.XLOOKUP($P$3,Data!$A$86:$A$94,Data!L86:L94) -> 1769.884718 | F17: =_xlfn.XLOOKUP($P$3,Data!$A$86:$A$94,Data!M86:M94) -> 0 | G17: =_xlfn.XLOOKUP($P$3,Data!$A$86:$A$94,Data!N86:N94) -> 221.2355897 | H17: =_xlfn.XLOOKUP($P$3,Data!$A$86:$A$94,Data!O86:O94) -> 679.7966302 | I17: =_xlfn.XLOOKUP($P$3,Data!$A$86:$A$94,Data!P86:P94) -> 0 | K17: Total FTE
C18: Level F | D18: =_xlfn.XLOOKUP($P$3,Data!$A$86:$A$94,Data!Q86:Q94) -> 1393.784215 | E18: =_xlfn.XLOOKUP($P$3,Data!$A$86:$A$94,Data!R86:R94) -> 553.0889743 | F18: =_xlfn.XLOOKUP($P$3,Data!$A$86:$A$94,Data!S86:S94) -> 0 | G18: =_xlfn.XLOOKUP($P$3,Data!$A$86:$A$94,Data!T86:T94) -> 221.2355897 | H18: =_xlfn.XLOOKUP($P$3,Data!$A$86:$A$94,Data!U86:U94) -> 0 | I18: =_xlfn.XLOOKUP($P$3,Data!$A$86:$A$94,Data!V86:V94) -> 0 | K18: =SUM(D13:I20)/B10 -> 124.9757612
C20: PRU | D20: =_xlfn.XLOOKUP($P$3,Data!$A$86:$A$94,Data!D86:D94) -> 0
A22: Spring 2027 Top-up Funding - Coventry
A23: Indicative | D23: Cat 1 | E23: Cat 2 | F23: Cat 3 | G23: Cat 4 | H23: Cat 5 | I23: Cat 6
C24: Level A | D24: =D13*('HN Framework Values'!D38/Data!$A$16) -> 0 | E24: =E13*('HN Framework Values'!E38/Data!$A$16) -> 0 | F24: =F13*('HN Framework Values'!F38/Data!$A$16) -> 0 | G24: =G13*('HN Framework Values'!G38/Data!$A$16) -> 0 | H24: 0 | I24: 0
C25: Level B | D25: =D14*('HN Framework Values'!D39/Data!$A$16) -> 0 | E25: =E14*('HN Framework Values'!E39/Data!$A$16) -> 0 | F25: =F14*('HN Framework Values'!F39/Data!$A$16) -> 0 | G25: =G14*('HN Framework Values'!G39/Data!$A$16) -> 0 | H25: 0 | I25: 0
C26: Level C | D26: =D15*('HN Framework Values'!D40/Data!$A$16) -> 0 | E26: =E15*('HN Framework Values'!E40/Data!$A$16) -> 0 | F26: =F15*('HN Framework Values'!F40/Data!$A$16) -> 0 | G26: =G15*('HN Framework Values'!G40/Data!$A$16) -> 0 | H26: 0 | I26: 0 | K26: Total Coventry Top-up
C27: Level D | D27: =D16*('HN Framework Values'!D41/Data!$A$16) -> 0 | E27: =E16*('HN Framework Values'!E41/Data!$A$16) -> 0 | F27: =F16*('HN Framework Values'!F41/Data!$A$16) -> 0 | G27: =G16*('HN Framework Values'!G41/Data!$A$16) -> 0 | H27: 0 | I27: 0
C28: Level E | D28: =D17*('HN Framework Values'!D42/Data!$A$16) -> 105882.4997 | E28: =E17*('HN Framework Values'!E42/Data!$A$16) -> 90772.40879 | F28: =F17*('HN Framework Values'!F42/Data!$A$16) -> 0 | G28: =G17*('HN Framework Values'!G42/Data!$A$16) -> 15333.16545 | H28: =H17*('HN Framework Values'!H42/Data!$A$16) -> 91906.05643 | I28: =I17*('HN Framework Values'!I42/Data!$A$16) -> 0
C29: Level F | D29: =D18*('HN Framework Values'!D43/Data!$A$16) -> 125578.6829 | E29: =E18*('HN Framework Values'!E43/Data!$A$16) -> 45999.48979 | F29: =F18*('HN Framework Values'!F43/Data!$A$16) -> 0 | G29: =G18*('HN Framework Values'!G43/Data!$A$16) -> 18399.79592 | H29: =H18*('HN Framework Values'!H43/Data!$A$16) -> 0 | I29: =I18*('HN Framework Values'!I43/Data!$A$16) -> 0 | K29: =SUM(D24:I31) -> 493872.099
C31: PRU | D31: =D20*'HN Framework Values'!D33/Data!A16 -> 0
A33: Spring 2027 Funded days - Other LAs
A34: Indicative | D34: Cat 1 | E34: Cat 2 | F34: Cat 3 | G34: Cat 4 | H34: Cat 5 | I34: Cat 6
C35: Level A | D35: 0 | E35: 0 | F35: 0 | G35: 0 | H35: 0 | I35: 0
C36: Level B | D36: 0 | E36: 0 | F36: 0 | G36: 0 | H36: 0 | I36: 0
C37: Level C | D37: =_xlfn.XLOOKUP($P$3,Data!$A$86:$A$94,Data!Z86:Z94) -> 0 | E37: =_xlfn.XLOOKUP($P$3,Data!$A$86:$A$94,Data!AA86:AA94) -> 0 | F37: 0 | G37: 0 | H37: 0 | I37: 0
C38: Level D | D38: =_xlfn.XLOOKUP($P$3,Data!$A$86:$A$94,Data!AB86:AB94) -> 0 | E38: =_xlfn.XLOOKUP($P$3,Data!$A$86:$A$94,Data!AC86:AC94) -> 0 | F38: =_xlfn.XLOOKUP($P$3,Data!$A$86:$A$94,Data!AD86:AD94) -> 0 | G38: =_xlfn.XLOOKUP($P$3,Data!$A$86:$A$94,Data!AE86:AE94) -> 0 | H38: 0 | I38: 0
C39: Level E | D39: =_xlfn.XLOOKUP($P$3,Data!$A$86:$A$94,Data!AF86:AF94) -> 0 | E39: =_xlfn.XLOOKUP($P$3,Data!$A$86:$A$94,Data!AG86:AG94) -> 55.30889743 | F39: =_xlfn.XLOOKUP($P$3,Data!$A$86:$A$94,Data!AH86:AH94) -> 0 | G39: =_xlfn.XLOOKUP($P$3,Data!$A$86:$A$94,Data!AI86:AI94) -> 0 | H39: =_xlfn.XLOOKUP($P$3,Data!$A$86:$A$94,Data!AJ86:AJ94) -> 0 | I39: =_xlfn.XLOOKUP($P$3,Data!$A$86:$A$94,Data!AK86:AK94) -> 0 | K39: Total FTE
C40: Level F | D40: =_xlfn.XLOOKUP($P$3,Data!$A$86:$A$94,Data!AL86:AL94) -> 0 | E40: =_xlfn.XLOOKUP($P$3,Data!$A$86:$A$94,Data!AM86:AM94) -> 0 | F40: =_xlfn.XLOOKUP($P$3,Data!$A$86:$A$94,Data!AN86:AN94) -> 0 | G40: =_xlfn.XLOOKUP($P$3,Data!$A$86:$A$94,Data!AO86:AO94) -> 0 | H40: =_xlfn.XLOOKUP($P$3,Data!$A$86:$A$94,Data!AP86:AP94) -> 0 | I40: =_xlfn.XLOOKUP($P$3,Data!$A$86:$A$94,Data!AQ86:AQ94) -> 0 | K40: =SUM(D35:I42)/B10 -> 1.024238841
C42: PRU | D42: =_xlfn.XLOOKUP($P$3,Data!$A$86:$A$94,Data!Y86:Y94) -> 0
A44: Spring 2027 Top-up Funding - Other LAs
A45: Indicative | D45: Cat 1 | E45: Cat 2 | F45: Cat 3 | G45: Cat 4 | H45: Cat 5 | I45: Cat 6
C46: Level A | D46: =D35*('HN Framework Values'!D38/Data!$A$16) -> 0 | E46: =E35*('HN Framework Values'!E38/Data!$A$16) -> 0 | F46: =F35*('HN Framework Values'!F38/Data!$A$16) -> 0 | G46: =G35*('HN Framework Values'!G38/Data!$A$16) -> 0 | H46: =H35*('HN Framework Values'!H38/Data!$A$16) -> 0 | I46: =I35*('HN Framework Values'!I38/Data!$A$16) -> 0
C47: Level B | D47: =D36*('HN Framework Values'!D39/Data!$A$16) -> 0 | E47: =E36*('HN Framework Values'!E39/Data!$A$16) -> 0 | F47: =F36*('HN Framework Values'!F39/Data!$A$16) -> 0 | G47: =G36*('HN Framework Values'!G39/Data!$A$16) -> 0 | H47: =H36*('HN Framework Values'!H39/Data!$A$16) -> 0 | I47: =I36*('HN Framework Values'!I39/Data!$A$16) -> 0
C48: Level C | D48: =D37*('HN Framework Values'!D40/Data!$A$16) -> 0 | E48: =E37*('HN Framework Values'!E40/Data!$A$16) -> 0 | F48: =F37*('HN Framework Values'!F40/Data!$A$16) -> 0 | G48: =G37*('HN Framework Values'!G40/Data!$A$16) -> 0 | H48: =H37*('HN Framework Values'!H40/Data!$A$16) -> 0 | I48: =I37*('HN Framework Values'!I40/Data!$A$16) -> 0 | K48: Total Other LA Top-up
C49: Level D | D49: =D38*('HN Framework Values'!D41/Data!$A$16) -> 0 | E49: =E38*('HN Framework Values'!E41/Data!$A$16) -> 0 | F49: =F38*('HN Framework Values'!F41/Data!$A$16) -> 0 | G49: =G38*('HN Framework Values'!G41/Data!$A$16) -> 0 | H49: =H38*('HN Framework Values'!H41/Data!$A$16) -> 0 | I49: =I38*('HN Framework Values'!I41/Data!$A$16) -> 0
C50: Level E | D50: =D39*('HN Framework Values'!D42/Data!$A$16) -> 0 | E50: =E39*('HN Framework Values'!E42/Data!$A$16) -> 2836.637775 | F50: =F39*('HN Framework Values'!F42/Data!$A$16) -> 0 | G50: =G39*('HN Framework Values'!G42/Data!$A$16) -> 0 | H50: =H39*('HN Framework Values'!H42/Data!$A$16) -> 0 | I50: =I39*('HN Framework Values'!I42/Data!$A$16) -> 0
C51: Level F | D51: =D40*('HN Framework Values'!D43/Data!$A$16) -> 0 | E51: =E40*('HN Framework Values'!E43/Data!$A$16) -> 0 | F51: =F40*('HN Framework Values'!F43/Data!$A$16) -> 0 | G51: =G40*('HN Framework Values'!G43/Data!$A$16) -> 0 | H51: =H40*('HN Framework Values'!H43/Data!$A$16) -> 0 | I51: =I40*('HN Framework Values'!I43/Data!$A$16) -> 0 | K51: =SUM(D46:I53) -> 2836.637775
C53: PRU | D53: =D42*'HN Framework Values'!D33/Data!A16 -> 0
A55: Total INDICATIVE Spring 2027 Top-up Funding | K55: =K51+K29 -> 496708.7368 | Q55: =_xlfn.XLOOKUP(P3,Data!A86:A94,Data!AT86:AT94)-K55 -> 0
A60: Notes
A62: Top up funding is allocated to pupils based on their High Needs Banding and how many days they are on roll at your school.
A64: This data is based on the level of provision your school delivered in the 2026 spring term. Where the number of places at your school
A65: has changed we have scaled the indicative level of provision up or down as appropriate to reflect the changing position at the school -
A66: but we have not allowed this to increase above your number of comissioned places.
A68: This will be updated at the end of each term to reflect the actual number of Full Time Equivilant pupils that have been educated in this
A69: period. Your top-up funding budget will change accordingly.
A71: Other LA Top-up funding is not paid to you by Coventry City Council and you will need to invoice the relevant Local Authorities for this
A72: funding. If you need contact information for any other Local Authority please contact SEN Management Services on 024 7683 1614.

Sheet Data (hidden)
A1: 1 | B1: 2 | C1: 3 | D1: 4 | E1: 5 | F1: 6 | G1: 7 | H1: 8 | I1: 9 | J1: 10 | K1: 11 | L1: 12 | M1: 13 | N1: 14 | O1: 15 | P1: 16 | Q1: 17 | R1: 18 | S1: 19 | T1: 20 | U1: 21 | V1: 22 | W1: 23 | X1: 24 | Y1: 25 | Z1: 26 | AA1: 27 | AB1: 28 | AC1: 29 | AD1: 30 | AE1: 31 | AF1: 32 | AG1: 33 | AH1: 34 | AI1: 35 | AJ1: 36 | AK1: 37 | AL1: 38 | AM1: 39 | AN1: 40 | AO1: 41 | AP1: 42 | AQ1: 43 | AR1: 44 | AS1: 45 | AT1: 46
C2: 2025-26 places* | G2: 2026-27 Places Information | R2: Place Led Funding | Z2: 0.021 | AA2: Funding Rate Information | AT2: Other Funding Elements | AW2: Deductions
A3: Ref # | B3: School Name | C3: TOTAL Apr - Jul PLACES | D3: TOTAL Aug PLACES | E3: TOTAL Sep - Dec PLACES | F3: TOTAL Jan - Mar PLACES | G3: Pre-16 Apr - Jul | H3: Pre-16 Aug | I3: Pre-16 Sept - Dec | J3: Pre-16 Jan - Mar | K3: Post-16 Apr - Jul | L3: Post-16 Aug - Mar | M3: TOTAL Apr - Jul PLACES | N3: TOTAL Aug PLACES | O3: TOTAL Sep - Dec PLACES | P3: TOTAL Jan - Mar PLACES | R3: Pre-16 Apr - Jul | S3: Pre-16 Aug | T3: Pre-16 Sept - Dec | U3: Pre-16 Jan - Mar | V3: Post-16 Apr - Jul | W3: Post-16 Aug | X3: Post-16 Sept - Mar | Z3: Coventry ELC Band | AA3: Band 1C | AB3: Band 2C | AC3: Band 1D | AD3: Band 2D | AE3: Band 3D | AF3: Band 4D | AG3: Band 1E | AH3: Band 2E | AI3: Band 3E | AJ3: Band 4E | AK3: Band 5E | AL3: Band 6E | AM3: Band 1F | AN3: Band 2F | AO3: Band 3F | AP3: Band 4F | AQ3: Band 5F | AR3: Band 6F | AT3: 2026/27 Pupil Premium | AU3: 2026/27 Legacy Funding | AV3: Split Site Funding | AW3: RPA
A4: 1 | B4: Castle Wood Special School | C4: =[5]Data!L4 -> 164 | D4: =[5]Data!M4 -> 164 | E4: =[5]Data!N4 -> 190 | F4: =[5]Data!O4 -> 190 | G4: =+[5]Data!I4 -> 190 | H4: =+G4 -> 190 | I4: =+H4 -> 190 | J4: 190 | K4: 0 | L4: 0 | M4: =G4+K4 -> 190 | N4: =H4+L4 -> 190 | O4: =I4+L4 -> 190 | P4: =J4+L4 -> 190 | R4: =G4*10000*4/12 -> 633333.3333 | S4: =H4*10000*1/12 -> 158333.3333 | T4: =I4*10000*4/12 -> 633333.3333 | U4: =J4*10000*3/12 -> 475000 | V4: =K4*10000*4/12 -> 0 | W4: =K4*10000*1/12 -> 0 | X4: =L4*10000*7/12 -> 0 | Z4: 0 | AA4: ='[6]Banded Framework'!$R$7*(1+$Z$2) -> 2675.246241 | AB4: ='[6]Banded Framework'!$S$7*(1+$Z$2) -> 3210.30007 | AC4: ='[6]Banded Framework'!$R$8*(1+$Z$2) -> 3210.30007 | AD4: ='[6]Banded Framework'!$S$8*(1+$Z$2) -> 5350.492481 | AE4: ='[6]Banded Framework'!$T$8*(1+$Z$2) -> 8025.750175 | AF4: ='[6]Banded Framework'!$U$8*(1+$Z$2) -> 8025.750175 | AG4: ='[6]Banded Framework'!$R$9*(1+$Z$2) -> 10700.99642 | AH4: ='[6]Banded Framework'!$S$9*(1+$Z$2) -> 9898.427124 | AI4: ='[6]Banded Framework'!$T$9*(1+$Z$2) -> 13376.24266 | AJ4: ='[6]Banded Framework'!$U$9*(1+$Z$2) -> 13376.24266 | AK4: ='[7]Proposed Structure (2)'!$AQ$24 -> 26092.905 | AL4: 0 | AM4: ='[6]Banded Framework'!$R$10*(1+$Z$2) -> 17389.12347 | AN4: ='[6]Banded Framework'!$S$10*(1+$Z$2) -> 16051.4889 | AO4: ='[6]Banded Framework'!$T$10*(1+$Z$2) -> 17389.12347 | AP4: ='[6]Banded Framework'!$U$10*(1+$Z$2) -> 16051.4889 | AQ4: ='[7]Proposed Structure (2)'!$AQ$24*2 -> 52185.81 | AR4: 0 | AT4: =[8]Allocations!$U$58 -> 106950 | AU4: =+[9]Sheet1!$R3 -> 810257.3704 | AV4: 0 | AW4: =-'[10]LAMS Data'!$AC$34 -> -4640
A5: 2 | B5: Kingsbury Academy | C5: =[5]Data!L5 -> 103 | D5: =[5]Data!M5 -> 103 | E5: =[5]Data!N5 -> 106 | F5: =[5]Data!O5 -> 106 | G5: =+[5]Data!I5 -> 106 | H5: =+G5 -> 106 | I5: 106 | J5: =+I5 -> 106 | K5: 0 | L5: 0 | M5: 106 | N5: 106 | O5: =I5+L5 -> 106 | P5: =J5+L5 -> 106 | R5: 353333.3333 | S5: 88333.33333 | T5: 353333.3333 | U5: 265000 | V5: 0 | W5: 0 | X5: 0 | Z5: 0 | AA5: ='[6]Banded Framework'!$R$7*(1+$Z$2) -> 2675.246241 | AB5: ='[6]Banded Framework'!$S$7*(1+$Z$2) -> 3210.30007 | AC5: ='[6]Banded Framework'!$R$8*(1+$Z$2) -> 3210.30007 | AD5: ='[6]Banded Framework'!$S$8*(1+$Z$2) -> 5350.492481 | AE5: ='[6]Banded Framework'!$T$8*(1+$Z$2) -> 8025.750175 | AF5: ='[6]Banded Framework'!$U$8*(1+$Z$2) -> 8025.750175 | AG5: ='[6]Banded Framework'!$R$9*(1+$Z$2) -> 10700.99642 | AH5: ='[6]Banded Framework'!$S$9*(1+$Z$2) -> 9898.427124 | AI5: ='[6]Banded Framework'!$T$9*(1+$Z$2) -> 13376.24266 | AJ5: ='[6]Banded Framework'!$U$9*(1+$Z$2) -> 13376.24266 | AK5: ='[7]Proposed Structure (2)'!$AQ$24 -> 26092.905 | AL5: 0 | AM5: ='[6]Banded Framework'!$R$10*(1+$Z$2) -> 17389.12347 | AN5: ='[6]Banded Framework'!$S$10*(1+$Z$2) -> 16051.4889 | AO5: ='[6]Banded Framework'!$T$10*(1+$Z$2) -> 17389.12347 | AP5: ='[6]Banded Framework'!$U$10*(1+$Z$2) -> 16051.4889 | AQ5: ='[7]Proposed Structure (2)'!$AQ$24*2 -> 52185.81 | AR5: 0 | AT5: 0 | AU5: =+[9]Sheet1!$R4 -> 459409.8331 | AV5: 0 | AW5: 0
A6: 3 | B6: Riverbank Academy | C6: =[5]Data!L6 -> 209 | D6: =[5]Data!M6 -> 209 | E6: =[5]Data!N6 -> 220 | F6: =[5]Data!O6 -> 220 | G6: =+[5]Data!I6 -> 200 | H6: 200 | I6: =+H6+25 -> 225 | J6: =+I6 -> 225 | K6: 20 | L6: 20 | M6: 220 | N6: 220 | O6: 245 | P6: 245 | R6: 666666.6667 | S6: 166666.6667 | T6: 750000 | U6: 562500 | V6: 66666.66667 | W6: 16666.66667 | X6: 116666.6667 | Z6: 0 | AA6: ='[6]Banded Framework'!$R$7*(1+$Z$2) -> 2675.246241 | AB6: ='[6]Banded Framework'!$S$7*(1+$Z$2) -> 3210.30007 | AC6: ='[6]Banded Framework'!$R$8*(1+$Z$2) -> 3210.30007 | AD6: ='[6]Banded Framework'!$S$8*(1+$Z$2) -> 5350.492481 | AE6: ='[6]Banded Framework'!$T$8*(1+$Z$2) -> 8025.750175 | AF6: ='[6]Banded Framework'!$U$8*(1+$Z$2) -> 8025.750175 | AG6: ='[6]Banded Framework'!$R$9*(1+$Z$2) -> 10700.99642 | AH6: ='[6]Banded Framework'!$S$9*(1+$Z$2) -> 9898.427124 | AI6: ='[6]Banded Framework'!$T$9*(1+$Z$2) -> 13376.24266 | AJ6: ='[6]Banded Framework'!$U$9*(1+$Z$2) -> 13376.24266 | AK6: ='[7]Proposed Structure (2)'!$AQ$24 -> 26092.905 | AL6: =35707.76*(1+Z2) -> 36457.62296 | AM6: ='[6]Banded Framework'!$R$10*(1+$Z$2) -> 17389.12347 | AN6: ='[6]Banded Framework'!$S$10*(1+$Z$2) -> 16051.4889 | AO6: ='[6]Banded Framework'!$T$10*(1+$Z$2) -> 17389.12347 | AP6: ='[6]Banded Framework'!$U$10*(1+$Z$2) -> 16051.4889 | AQ6: ='[7]Proposed Structure (2)'!$AQ$24*2 -> 52185.81 | AR6: 0 | AT6: 0 | AU6: =+[9]Sheet1!$R5 -> 1005643.142 | AV6: 0 | AW6: 0
A7: 4 | B7: Corley Academy | C7: =[5]Data!L7 -> 155 | D7: =[5]Data!M7 -> 155 | E7: =[5]Data!N7 -> 165 | F7: =[5]Data!O7 -> 165 | G7: =+[5]Data!I7 -> 155 | H7: 155 | I7: =+H7+5 -> 160 | J7: =+I7 -> 160 | K7: 10 | L7: 10 | M7: 165 | N7: 165 | O7: 170 | P7: 170 | R7: 516666.6667 | S7: 129166.6667 | T7: 533333.3333 | U7: 400000 | V7: 33333.33333 | W7: 8333.333333 | X7: 58333.33333 | Z7: 0 | AA7: ='[6]Banded Framework'!$R$7*(1+$Z$2) -> 2675.246241 | AB7: ='[6]Banded Framework'!$S$7*(1+$Z$2) -> 3210.30007 | AC7: ='[6]Banded Framework'!$R$8*(1+$Z$2) -> 3210.30007 | AD7: ='[6]Banded Framework'!$S$8*(1+$Z$2) -> 5350.492481 | AE7: ='[6]Banded Framework'!$T$8*(1+$Z$2) -> 8025.750175 | AF7: ='[6]Banded Framework'!$U$8*(1+$Z$2) -> 8025.750175 | AG7: ='[6]Banded Framework'!$R$9*(1+$Z$2) -> 10700.99642 | AH7: ='[6]Banded Framework'!$S$9*(1+$Z$2) -> 9898.427124 | AI7: ='[6]Banded Framework'!$T$9*(1+$Z$2) -> 13376.24266 | AJ7: ='[6]Banded Framework'!$U$9*(1+$Z$2) -> 13376.24266 | AK7: ='[7]Proposed Structure (2)'!$AQ$24 -> 26092.905 | AL7: 0 | AM7: ='[6]Banded Framework'!$R$10*(1+$Z$2) -> 17389.12347 | AN7: ='[6]Banded Framework'!$S$10*(1+$Z$2) -> 16051.4889 | AO7: ='[6]Banded Framework'!$T$10*(1+$Z$2) -> 17389.12347 | AP7: ='[6]Banded Framework'!$U$10*(1+$Z$2) -> 16051.4889 | AQ7: ='[7]Proposed Structure (2)'!$AQ$24*2 -> 52185.81 | AR7: 0 | AT7: 0 | AU7: =+[9]Sheet1!$R6 -> 723887.4801 | AV7: 0 | AW7: 0
A8: 5 | B8: Tiverton Special School | C8: =[5]Data!L8 -> 133 | D8: =[5]Data!M8 -> 133 | E8: =[5]Data!N8 -> 133 | F8: =[5]Data!O8 -> 136 | G8: =+[5]Data!I8 -> 136 | H8: 136 | I8: 136 | J8: =+I8 -> 136 | K8: 0 | L8: 0 | M8: 136 | N8: 136 | O8: 136 | P8: 136 | R8: 453333.3333 | S8: 113333.3333 | T8: 453333.3333 | U8: 340000 | V8: 0 | W8: 0 | X8: 0 | Z8: 0 | AA8: ='[6]Banded Framework'!$R$7*(1+$Z$2) -> 2675.246241 | AB8: ='[6]Banded Framework'!$S$7*(1+$Z$2) -> 3210.30007 | AC8: ='[6]Banded Framework'!$R$8*(1+$Z$2) -> 3210.30007 | AD8: ='[6]Banded Framework'!$S$8*(1+$Z$2) -> 5350.492481 | AE8: ='[6]Banded Framework'!$T$8*(1+$Z$2) -> 8025.750175 | AF8: ='[6]Banded Framework'!$U$8*(1+$Z$2) -> 8025.750175 | AG8: ='[6]Banded Framework'!$R$9*(1+$Z$2) -> 10700.99642 | AH8: ='[6]Banded Framework'!$S$9*(1+$Z$2) -> 9898.427124 | AI8: ='[6]Banded Framework'!$T$9*(1+$Z$2) -> 13376.24266 | AJ8: ='[6]Banded Framework'!$U$9*(1+$Z$2) -> 13376.24266 | AK8: ='[7]Proposed Structure (2)'!$AQ$24 -> 26092.905 | AL8: 0 | AM8: ='[6]Banded Framework'!$R$10*(1+$Z$2) -> 17389.12347 | AN8: ='[6]Banded Framework'!$S$10*(1+$Z$2) -> 16051.4889 | AO8: ='[6]Banded Framework'!$T$10*(1+$Z$2) -> 17389.12347 | AP8: ='[6]Banded Framework'!$U$10*(1+$Z$2) -> 16051.4889 | AQ8: ='[7]Proposed Structure (2)'!$AQ$24*2 -> 52185.81 | AR8: 0 | AT8: =[8]Allocations!$U$59 -> 70480 | AU8: =+[9]Sheet1!$R7 -> 591028.4177 | AV8: 0 | AW8: =-'[10]LAMS Data'!$AC$41 -> -3509 | AY8: Goal Seek | AZ8: 0.05913469681
A9: 6 | B9: Baginton Fields Special School | C9: =[5]Data!L9 -> 126 | D9: =[5]Data!M9 -> 126 | E9: =[5]Data!N9 -> 126 | F9: =[5]Data!O9 -> 126 | G9: =+[5]Data!I9 -> 88 | H9: 88 | I9: 88 | J9: =+I9 -> 88 | K9: 38 | L9: 38 | M9: 126 | N9: 126 | O9: 126 | P9: 126 | R9: 293333.3333 | S9: 73333.33333 | T9: 293333.3333 | U9: 220000 | V9: 126666.6667 | W9: 31666.66667 | X9: 221666.6667 | Z9: 0 | AA9: ='[6]Banded Framework'!$R$7*(1+$Z$2) -> 2675.246241 | AB9: ='[6]Banded Framework'!$S$7*(1+$Z$2) -> 3210.30007 | AC9: ='[6]Banded Framework'!$R$8*(1+$Z$2) -> 3210.30007 | AD9: ='[6]Banded Framework'!$S$8*(1+$Z$2) -> 5350.492481 | AE9: ='[6]Banded Framework'!$T$8*(1+$Z$2) -> 8025.750175 | AF9: ='[6]Banded Framework'!$U$8*(1+$Z$2) -> 8025.750175 | AG9: ='[6]Banded Framework'!$R$9*(1+$Z$2) -> 10700.99642 | AH9: ='[6]Banded Framework'!$S$9*(1+$Z$2) -> 9898.427124 | AI9: ='[6]Banded Framework'!$T$9*(1+$Z$2) -> 13376.24266 | AJ9: ='[6]Banded Framework'!$U$9*(1+$Z$2) -> 13376.24266 | AK9: ='[7]Proposed Structure (2)'!$AQ$24 -> 26092.905 | AL9: 0 | AM9: ='[6]Banded Framework'!$R$10*(1+$Z$2) -> 17389.12347 | AN9: ='[6]Banded Framework'!$S$10*(1+$Z$2) -> 16051.4889 | AO9: ='[6]Banded Framework'!$T$10*(1+$Z$2) -> 17389.12347 | AP9: ='[6]Banded Framework'!$U$10*(1+$Z$2) -> 16051.4889 | AQ9: ='[7]Proposed Structure (2)'!$AQ$24*2 -> 52185.81 | AR9: 0 | AT9: 0 | AU9: =+[9]Sheet1!$R8 -> 552304.3 | AV9: 0 | AW9: =-IFERROR(_xlfn.XLOOKUP(A9,'[11]LAMS Data'!$AH:$AH,'[11]LAMS Data'!$AE:$AE),0) -> 0 | AY9: =L121 -> 16905477.14
A10: 7 | B10: Sherbourne Fields Special School | C10: =[5]Data!L10 -> 258 | D10: =[5]Data!M10 -> 258 | E10: =[5]Data!N10 -> 258 | F10: =[5]Data!O10 -> 258 | G10: =+[5]Data!I10 -> 224 | H10: 224 | I10: 224 | J10: =+I10 -> 224 | K10: 34 | L10: 34 | M10: 258 | N10: 258 | O10: 258 | P10: 258 | R10: 746666.6667 | S10: 186666.6667 | T10: 746666.6667 | U10: 560000 | V10: 113333.3333 | W10: 28333.33333 | X10: 198333.3333 | Z10: 0 | AA10: ='[6]Banded Framework'!$R$7*(1+$Z$2) -> 2675.246241 | AB10: ='[6]Banded Framework'!$S$7*(1+$Z$2) -> 3210.30007 | AC10: ='[6]Banded Framework'!$R$8*(1+$Z$2) -> 3210.30007 | AD10: ='[6]Banded Framework'!$S$8*(1+$Z$2) -> 5350.492481 | AE10: ='[6]Banded Framework'!$T$8*(1+$Z$2) -> 8025.750175 | AF10: ='[6]Banded Framework'!$U$8*(1+$Z$2) -> 8025.750175 | AG10: ='[6]Banded Framework'!$R$9*(1+$Z$2) -> 10700.99642 | AH10: ='[6]Banded Framework'!$S$9*(1+$Z$2) -> 9898.427124 | AI10: ='[6]Banded Framework'!$T$9*(1+$Z$2) -> 13376.24266 | AJ10: ='[6]Banded Framework'!$U$9*(1+$Z$2) -> 13376.24266 | AK10: ='[7]Proposed Structure (2)'!$AQ$24 -> 26092.905 | AL10: 0 | AM10: ='[6]Banded Framework'!$R$10*(1+$Z$2) -> 17389.12347 | AN10: ='[6]Banded Framework'!$S$10*(1+$Z$2) -> 16051.4889 | AO10: ='[6]Banded Framework'!$T$10*(1+$Z$2) -> 17389.12347 | AP10: ='[6]Banded Framework'!$U$10*(1+$Z$2) -> 16051.4889 | AQ10: ='[7]Proposed Structure (2)'!$AQ$24*2 -> 52185.81 | AR10: 0 | AT10: =[8]Allocations!$U$60+[8]Allocations!$U$65 -> 108210 | AU10: =+[9]Sheet1!$R9 -> 1119643.933 | AV10: 0 | AW10: =-'[10]LAMS Data'!$AC$12 -> -7482 | AY10: 896123
A11: 8 | B11: Woodfield Special School | C11: =[5]Data!L11 -> 155 | D11: =[5]Data!M11 -> 155 | E11: =[5]Data!N11 -> 161 | F11: =[5]Data!O11 -> 161 | G11: =+[5]Data!I11 -> 161 | H11: 161 | I11: =+H11+24 -> 185 | J11: =+I11 -> 185 | K11: 0 | L11: 0 | M11: 161 | N11: 161 | O11: 185 | P11: 185 | R11: 536666.6667 | S11: 134166.6667 | T11: 616666.6667 | U11: =J11*10000*3/12 -> 462500 | V11: 0 | W11: 0 | X11: 0 | Z11: 0 | AA11: ='[6]Banded Framework'!$R$7*(1+$Z$2) -> 2675.246241 | AB11: ='[6]Banded Framework'!$S$7*(1+$Z$2) -> 3210.30007 | AC11: ='[6]Banded Framework'!$R$8*(1+$Z$2) -> 3210.30007 | AD11: ='[6]Banded Framework'!$S$8*(1+$Z$2) -> 5350.492481 | AE11: ='[6]Banded Framework'!$T$8*(1+$Z$2) -> 8025.750175 | AF11: ='[6]Banded Framework'!$U$8*(1+$Z$2) -> 8025.750175 | AG11: ='[6]Banded Framework'!$R$9*(1+$Z$2) -> 10700.99642 | AH11: ='[6]Banded Framework'!$S$9*(1+$Z$2) -> 9898.427124 | AI11: ='[6]Banded Framework'!$T$9*(1+$Z$2) -> 13376.24266 | AJ11: ='[6]Banded Framework'!$U$9*(1+$Z$2) -> 13376.24266 | AK11: ='[7]Proposed Structure (2)'!$AQ$24 -> 26092.905 | AL11: 0 | AM11: ='[6]Banded Framework'!$R$10*(1+$Z$2) -> 17389.12347 | AN11: ='[6]Banded Framework'!$S$10*(1+$Z$2) -> 16051.4889 | AO11: ='[6]Banded Framework'!$T$10*(1+$Z$2) -> 17389.12347 | AP11: ='[6]Banded Framework'!$U$10*(1+$Z$2) -> 16051.4889 | AQ11: ='[7]Proposed Structure (2)'!$AQ$24*2 -> 52185.81 | AR11: 0 | AT11: =+[8]Allocations!$U$61+[8]Allocations!$U$66 -> 162970 | AU11: =+[9]Sheet1!$R10 -> 773598.8062 | AV11: 90000 | AW11: =-'[10]LAMS Data'!$AC$4 -> -4495 | AY11: =SUM(AY9:AY10) -> 17801600.14
A12: 9 | B12: Coventry Extended Learning Centre | C12: =[5]Data!L12 -> 120 | D12: =[5]Data!M12 -> 120 | E12: =[5]Data!N12 -> 120 | F12: =[5]Data!O12 -> 120 | G12: =+[5]Data!I12 -> 120 | H12: 120 | I12: 120 | J12: =+I12 -> 120 | K12: 0 | L12: 0 | M12: 120 | N12: 120 | O12: 120 | P12: 120 | R12: 400000 | S12: 100000 | T12: 400000 | U12: 300000 | V12: 0 | W12: 0 | X12: 0 | Z12: ='[6]Banded Framework'!$R$12*(1+Z2) -> 13168.19427 | AA12: 0 | AB12: 0 | AC12: 0 | AD12: 0 | AE12: 0 | AF12: 0 | AG12: 0 | AH12: 0 | AI12: 0 | AJ12: 0 | AK12: 0 | AL12: 0 | AM12: 0 | AN12: 0 | AO12: 0 | AP12: 0 | AQ12: 0 | AR12: 0 | AT12: =[12]Allocations!$U$75*0 -> 0 | AU12: =+[9]Sheet1!$R11 -> 506218.71 | AV12: 0 | AW12: =-IFERROR(_xlfn.XLOOKUP(A12,'[11]LAMS Data'!$AH:$AH,'[11]LAMS Data'!$AE:$AE),0) -> 0
C13: =SUM(C4:C12) -> 1423 | D13: 1423 | E13: 1479 | F13: 1482 | G13: 1380 | H13: 1380 | I13: 1434 | J13: 1434 | K13: 102 | L13: 102 | M13: 1482 | N13: 1482 | O13: =SUM(O4:O12) -> 1536 | P13: 1536 | R13: =SUM(R4:R12) -> 4600000 | S13: 1150000 | T13: 4780000 | U13: 3585000 | V13: 340000 | W13: 85000 | X13: 595000 | AT13: =SUM(AT4:AT12) -> 448610 | AU13: 6541991.992 | AV13: =SUM(AV4:AV12) -> 90000 | AW13: =SUM(AW4:AW12) -> -20126
AM15: =AB5*66/197 -> 1075.532003
A16: =A32+A46+A85 -> 193 | D16: Coventry pupils | Y16: Other LA Pupils
C17: Place Led | D17: Cov ELC Band | E17: Band 1C | F17: Band 2C | G17: Band 1D | H17: Band 2D | I17: Band 3D | J17: Band 4D | K17: Band 1E | L17: Band 2E | M17: Band 3E | N17: Band 4E | O17: Band 5E | P17: Band 6E | Q17: Band 1F | R17: Band 2F | S17: Band 3F | T17: Band 4F | U17: Band 5F | V17: Band 6F | W17: No. FTEs | X17: Coventry | Y17: Cov ELC Band | Z17: Band 1C | AA17: Band 2C | AB17: Band 1D | AC17: Band 2D | AD17: Band 3D | AE17: Band 4D | AF17: Band 1E | AG17: Band 2E | AH17: Band 3E | AI17: Band 4E | AJ17: Band 5E | AK17: Band 6E | AL17: Band 1F | AM17: Band 2F | AN17: Band 3F | AO17: Band 4F | AP17: Band 5F | AQ17: Band 6F | AR17: No. FTEs | AS17: Other LA | AT17: Total Top Up | AV17: Manual Check | AW17: Total | AX17: 25/26 | AY17: 25/26 | AZ17: Budget Setting | BA17: 25/26 | BB17: Additional | BC17: Ave Top Up
C18: Day Rate | D18: Day Units | E18: Day Units | F18: Day Units | G18: Day Units | H18: Day Units | I18: Day Units | J18: Day Units | K18: Day Units | L18: Day Units | M18: Day Units | N18: Day Units | O18: Day Units | P18: Day Units | Q18: Day Units | R18: Day Units | S18: Day Units | T18: Day Units | U18: Day Units | V18: Day Units | W18: Equivalency | X18: Funding £ | Y18: Day Units | Z18: Day Units | AA18: Day Units | AB18: Day Units | AC18: Day Units | AD18: Day Units | AE18: Day Units | AF18: Day Units | AG18: Day Units | AH18: Day Units | AI18: Day Units | AJ18: Day Units | AK18: Day Units | AL18: Day Units | AM18: Day Units | AN18: Day Units | AO18: Day Units | AP18: Day Units | AQ18: Day Units | AR18: Equivalency | AS18: Funding £ | AT18: Funding £ | AU18: No. FTE | AW18: Places | AX18: v5 FTE | AY18: Places | BA18: Term Days | BB18: Place Days | BE18: ELC Band | BF18: Band 1C | BG18: Band 2C | BH18: Band 1D | BI18: Band 2D | BJ18: Band 3D | BK18: Band 4D | BL18: Band 1E | BM18: Band 2E | BN18: Band 3E | BO18: Band 4E | BP18: Band 5E | BQ18: Band 6E | BR18: Band 1F | BS18: Band 2F | BT18: Band 3F | BU18: Band 4F | BV18: Band 5F | BW18: Band 6F | BY18: ELC Band | BZ18: Band 1C | CA18: Band 2C | CB18: Band 1D | CC18: Band 2D | CD18: Band 3D | CE18: Band 4D | CF18: Band 1E | CG18: Band 2E | CH18: Band 3E | CI18: Band 4E | CJ18: Band 5E | CK18: Band 6E | CL18: Band 1F | CM18: Band 2F | CN18: Band 3F | CO18: Band 4F | CP18: Band 5F | CQ18: Band 6F
B19: Summer Term 2026
A20: 65 | B20: School | BA20: 64
A21: 1 | B21: Castle Wood | C21: =10000/$A$16 -> 51.8134715 | D21: 0 | E21: =SUMIFS(SummerProvRep!$K:$K,SummerProvRep!$A:$A,Data!$A$21,SummerProvRep!$P:$P,"Coventry",SummerProvRep!$U:$U,Data!E$17)/$BA$20*$A$20 -> 0 | F21: =SUMIFS(SummerProvRep!$K:$K,SummerProvRep!$A:$A,Data!$A$21,SummerProvRep!$P:$P,"Coventry",SummerProvRep!$U:$U,Data!F$17)/$BA$20*$A$20 -> 0 | G21: =SUMIFS(SummerProvRep!$K:$K,SummerProvRep!$A:$A,Data!$A$21,SummerProvRep!$P:$P,"Coventry",SummerProvRep!$U:$U,Data!G$17)/$BA$20*$A$20 -> 0 | H21: =SUMIFS(SummerProvRep!$K:$K,SummerProvRep!$A:$A,Data!$A$21,SummerProvRep!$P:$P,"Coventry",SummerProvRep!$U:$U,Data!H$17)/$BA$20*$A$20 -> 0 | I21: =SUMIFS(SummerProvRep!$K:$K,SummerProvRep!$A:$A,Data!$A$21,SummerProvRep!$P:$P,"Coventry",SummerProvRep!$U:$U,Data!I$17)/$BA$20*$A$20 -> 0 | J21: =SUMIFS(SummerProvRep!$K:$K,SummerProvRep!$A:$A,Data!$A$21,SummerProvRep!$P:$P,"Coventry",SummerProvRep!$U:$U,Data!J$17)/$BA$20*$A$20 -> 65 | K21: =SUMIFS(SummerProvRep!$K:$K,SummerProvRep!$A:$A,Data!$A$21,SummerProvRep!$P:$P,"Coventry",SummerProvRep!$U:$U,Data!K$17)/$BA$20*$A$20 -> 5725.078125 | L21: =SUMIFS(SummerProvRep!$K:$K,SummerProvRep!$A:$A,Data!$A$21,SummerProvRep!$P:$P,"Coventry",SummerProvRep!$U:$U,Data!L$17)/$BA$20*$A$20 -> 585 | M21: =SUMIFS(SummerProvRep!$K:$K,SummerProvRep!$A:$A,Data!$A$21,SummerProvRep!$P:$P,"Coventry",SummerProvRep!$U:$U,Data!M$17)/$BA$20*$A$20 -> 0 | N21: =SUMIFS(SummerProvRep!$K:$K,SummerProvRep!$A:$A,Data!$A$21,SummerProvRep!$P:$P,"Coventry",SummerProvRep!$U:$U,Data!N$17)/$BA$20*$A$20 -> 455 | O21: =SUMIFS(SummerProvRep!$K:$K,SummerProvRep!$A:$A,Data!$A$21,SummerProvRep!$P:$P,"Coventry",SummerProvRep!$U:$U,Data!O$17)/$BA$20*$A$20 -> 650 | P21: =SUMIFS(SummerProvRep!$K:$K,SummerProvRep!$A:$A,Data!$A$21,SummerProvRep!$P:$P,"Coventry",SummerProvRep!$U:$U,Data!P$17)/$BA$20*$A$20 -> 0 | Q21: =SUMIFS(SummerProvRep!$K:$K,SummerProvRep!$A:$A,Data!$A$21,SummerProvRep!$P:$P,"Coventry",SummerProvRep!$U:$U,Data!Q$17)/$BA$20*$A$20 -> 2080 | R21: =SUMIFS(SummerProvRep!$K:$K,SummerProvRep!$A:$A,Data!$A$21,SummerProvRep!$P:$P,"Coventry",SummerProvRep!$U:$U,Data!R$17)/$BA$20*$A$20 -> 455 | S21: =SUMIFS(SummerProvRep!$K:$K,SummerProvRep!$A:$A,Data!$A$21,SummerProvRep!$P:$P,"Coventry",SummerProvRep!$U:$U,Data!S$17)/$BA$20*$A$20 -> 0 | T21: =SUMIFS(SummerProvRep!$K:$K,SummerProvRep!$A:$A,Data!$A$21,SummerProvRep!$P:$P,"Coventry",SummerProvRep!$U:$U,Data!T$17)/$BA$20*$A$20 -> 390 | U21: =SUMIFS(SummerProvRep!$K:$K,SummerProvRep!$A:$A,Data!$A$21,SummerProvRep!$P:$P,"Coventry",SummerProvRep!$U:$U,Data!U$17)/$BA$20*$A$20 -> 163.515625 | V21: =SUMIFS(SummerProvRep!$K:$K,SummerProvRep!$A:$A,Data!$A$21,SummerProvRep!$P:$P,"Coventry",SummerProvRep!$U:$U,Data!V$17)/$BA$20*$A$20 -> 0 | W21: =SUM(D21:V21)/$A$20 -> 162.59375 | X21: =SUMPRODUCT(E21:V21,$AA$6:$AR$6)/$A$16 -> 771445.3526 | Y21: 0 | Z21: =SUMIFS(SummerProvRep!$K:$K,SummerProvRep!$A:$A,Data!#REF!,SummerProvRep!$P:$P,"<>Coventry",SummerProvRep!$U:$U,Data!Z$17) -> 0 | AA21: =SUMIFS(SummerProvRep!$K:$K,SummerProvRep!$A:$A,Data!#REF!,SummerProvRep!$P:$P,"<>Coventry",SummerProvRep!$U:$U,Data!AA$17) -> 0 | AB21: =SUMIFS(SummerProvRep!$K:$K,SummerProvRep!$A:$A,Data!#REF!,SummerProvRep!$P:$P,"<>Coventry",SummerProvRep!$U:$U,Data!AB$17) -> 0 | AC21: =SUMIFS(SummerProvRep!$K:$K,SummerProvRep!$A:$A,Data!#REF!,SummerProvRep!$P:$P,"<>Coventry",SummerProvRep!$U:$U,Data!AC$17) -> 0 | AD21: =SUMIFS(SummerProvRep!$K:$K,SummerProvRep!$A:$A,Data!#REF!,SummerProvRep!$P:$P,"<>Coventry",SummerProvRep!$U:$U,Data!AD$17) -> 0 | AE21: =SUMIFS(SummerProvRep!$K:$K,SummerProvRep!$A:$A,Data!#REF!,SummerProvRep!$P:$P,"<>Coventry",SummerProvRep!$U:$U,Data!AE$17) -> 0 | AF21: =SUMIFS(SummerProvRep!$K:$K,SummerProvRep!$A:$A,Data!$A$21,SummerProvRep!$P:$P,"<>Coventry",SummerProvRep!$U:$U,Data!AF$17)/$BA$20*$A$20 -> 130 | AG21: =SUMIFS(SummerProvRep!$K:$K,SummerProvRep!$A:$A,Data!$A$21,SummerProvRep!$P:$P,"<>Coventry",SummerProvRep!$U:$U,Data!AG$17)/$BA$20*$A$20 -> 0 | AH21: =SUMIFS(SummerProvRep!$K:$K,SummerProvRep!$A:$A,Data!$A$21,SummerProvRep!$P:$P,"<>Coventry",SummerProvRep!$U:$U,Data!AH$17)/$BA$20*$A$20 -> 0 | AI21: =SUMIFS(SummerProvRep!$K:$K,SummerProvRep!$A:$A,Data!$A$21,SummerProvRep!$P:$P,"<>Coventry",SummerProvRep!$U:$U,Data!AI$17)/$BA$20*$A$20 -> 0 | AJ21: =SUMIFS(SummerProvRep!$K:$K,SummerProvRep!$A:$A,Data!$A$21,SummerProvRep!$P:$P,"<>Coventry",SummerProvRep!$U:$U,Data!AJ$17)/$BA$20*$A$20 -> 0 | AK21: =SUMIFS(SummerProvRep!$K:$K,SummerProvRep!$A:$A,Data!$A$21,SummerProvRep!$P:$P,"<>Coventry",SummerProvRep!$U:$U,Data!AK$17)/$BA$20*$A$20 -> 0 | AL21: =SUMIFS(SummerProvRep!$K:$K,SummerProvRep!$A:$A,Data!$A$21,SummerProvRep!$P:$P,"<>Coventry",SummerProvRep!$U:$U,Data!AL$17)/$BA$20*$A$20 -> 65 | AM21: =SUMIFS(SummerProvRep!$K:$K,SummerProvRep!$A:$A,Data!$A$21,SummerProvRep!$P:$P,"<>Coventry",SummerProvRep!$U:$U,Data!AM$17)/$BA$20*$A$20 -> 0 | AN21: =SUMIFS(SummerProvRep!$K:$K,SummerProvRep!$A:$A,Data!$A$21,SummerProvRep!$P:$P,"<>Coventry",SummerProvRep!$U:$U,Data!AN$17)/$BA$20*$A$20 -> 0 | AO21: =SUMIFS(SummerProvRep!$K:$K,SummerProvRep!$A:$A,Data!$A$21,SummerProvRep!$P:$P,"<>Coventry",SummerProvRep!$U:$U,Data!AO$17)/$BA$20*$A$20 -> 0 | AP21: =SUMIFS(SummerProvRep!$K:$K,SummerProvRep!$A:$A,Data!$A$21,SummerProvRep!$P:$P,"<>Coventry",SummerProvRep!$U:$U,Data!AP$17)/$BA$20*$A$20 -> 0 | AQ21: =SUMIFS(SummerProvRep!$K:$K,SummerProvRep!$A:$A,Data!$A$21,SummerProvRep!$P:$P,"<>Coventry",SummerProvRep!$U:$U,Data!AQ$17)/$BA$20*$A$20 -> 0 | AR21: =SUM(Z21:AQ21)/$A$20 -> 3 | AS21: =SUMPRODUCT(Y21:AQ21,$Z$6:$AR$6)/$A$16 -> 13064.36559 | AT21: =X21+AS21 -> 784509.7182 | AU21: =AR21+W21 -> 165.59375 | AV21: =AU21-AW21 -> -24.40625 | AW21: =M4 -> 190 | AX21: =[13]Data!$AU21 -> 165.59375 | AY21: =C4 -> 164 | BB21: =($M$4-$AU$21)*$A$20 -> 1586.40625 | BD21: =AU21*$A$20 -> 10763.59375 | BE21: =$BB$21/$BD$21*D21 -> 0 | BF21: =$BB$21/$BD$21*E21 -> 0 | BG21: 0 | BH21: 0 | BI21: 0 | BJ21: 0 | BK21: 9.580109455 | BL21: 843.7980781 | BM21: 86.22098509 | BN21: 0 | BO21: 67.06076618 | BP21: 95.80109455 | BQ21: 0 | BR21: 306.5635025 | BS21: 67.06076618 | BT21: 0 | BU21: 57.48065673 | BV21: 24.09996285 | BW21: 0 | BY21: =$BB$21/$BD$21*Y21 -> 0 | BZ21: 0 | CA21: 0 | CB21: 0 | CC21: 0 | CD21: 0 | CE21: 0 | CF21: 19.16021891 | CG21: 0 | CH21: 0 | CI21: 0 | CJ21: 0 | CK21: 0 | CL21: 9.580109455 | CM21: 0 | CN21: 0 | CO21: 0 | CP21: 0 | CQ21: 0
A22: 2 | B22: Kingsbury | C22: =10000/$A$16 -> 51.8134715 | D22: 0 | E22: =SUMIFS(SummerProvRep!$K:$K,SummerProvRep!$A:$A,Data!$A$22,SummerProvRep!$P:$P,"Coventry",SummerProvRep!$U:$U,Data!E$17)/$BA$20*$A$20 -> 0 | F22: =SUMIFS(SummerProvRep!$K:$K,SummerProvRep!$A:$A,Data!$A$22,SummerProvRep!$P:$P,"Coventry",SummerProvRep!$U:$U,Data!F$17)/$BA$20*$A$20 -> 0 | G22: =SUMIFS(SummerProvRep!$K:$K,SummerProvRep!$A:$A,Data!$A$22,SummerProvRep!$P:$P,"Coventry",SummerProvRep!$U:$U,Data!G$17)/$BA$20*$A$20 -> 0 | H22: =SUMIFS(SummerProvRep!$K:$K,SummerProvRep!$A:$A,Data!$A$22,SummerProvRep!$P:$P,"Coventry",SummerProvRep!$U:$U,Data!H$17)/$BA$20*$A$20 -> 0 | I22: =SUMIFS(SummerProvRep!$K:$K,SummerProvRep!$A:$A,Data!$A$22,SummerProvRep!$P:$P,"Coventry",SummerProvRep!$U:$U,Data!I$17)/$BA$20*$A$20 -> 0 | J22: =SUMIFS(SummerProvRep!$K:$K,SummerProvRep!$A:$A,Data!$A$22,SummerProvRep!$P:$P,"Coventry",SummerProvRep!$U:$U,Data!J$17)/$BA$20*$A$20 -> 0 | K22: =SUMIFS(SummerProvRep!$K:$K,SummerProvRep!$A:$A,Data!$A$22,SummerProvRep!$P:$P,"Coventry",SummerProvRep!$U:$U,Data!K$17)/$BA$20*$A$20 -> 3882.734375 | L22: =SUMIFS(SummerProvRep!$K:$K,SummerProvRep!$A:$A,Data!$A$22,SummerProvRep!$P:$P,"Coventry",SummerProvRep!$U:$U,Data!L$17)/$BA$20*$A$20 -> 130 | M22: =SUMIFS(SummerProvRep!$K:$K,SummerProvRep!$A:$A,Data!$A$22,SummerProvRep!$P:$P,"Coventry",SummerProvRep!$U:$U,Data!M$17)/$BA$20*$A$20 -> 0 | N22: =SUMIFS(SummerProvRep!$K:$K,SummerProvRep!$A:$A,Data!$A$22,SummerProvRep!$P:$P,"Coventry",SummerProvRep!$U:$U,Data!N$17)/$BA$20*$A$20 -> 0 | O22: =SUMIFS(SummerProvRep!$K:$K,SummerProvRep!$A:$A,Data!$A$22,SummerProvRep!$P:$P,"Coventry",SummerProvRep!$U:$U,Data!O$17)/$BA$20*$A$20 -> 643.90625 | P22: =SUMIFS(SummerProvRep!$K:$K,SummerProvRep!$A:$A,Data!$A$22,SummerProvRep!$P:$P,"Coventry",SummerProvRep!$U:$U,Data!P$17)/$BA$20*$A$20 -> 0 | Q22: =SUMIFS(SummerProvRep!$K:$K,SummerProvRep!$A:$A,Data!$A$22,SummerProvRep!$P:$P,"Coventry",SummerProvRep!$U:$U,Data!Q$17)/$BA$20*$A$20 -> 1583.359375 | R22: =SUMIFS(SummerProvRep!$K:$K,SummerProvRep!$A:$A,Data!$A$22,SummerProvRep!$P:$P,"Coventry",SummerProvRep!$U:$U,Data!R$17)/$BA$20*$A$20 -> 0 | S22: =SUMIFS(SummerProvRep!$K:$K,SummerProvRep!$A:$A,Data!$A$22,SummerProvRep!$P:$P,"Coventry",SummerProvRep!$U:$U,Data!S$17)/$BA$20*$A$20 -> 0 | T22: =SUMIFS(SummerProvRep!$K:$K,SummerProvRep!$A:$A,Data!$A$22,SummerProvRep!$P:$P,"Coventry",SummerProvRep!$U:$U,Data!T$17)/$BA$20*$A$20 -> 0 | U22: =SUMIFS(SummerProvRep!$K:$K,SummerProvRep!$A:$A,Data!$A$22,SummerProvRep!$P:$P,"Coventry",SummerProvRep!$U:$U,Data!U$17)/$BA$20*$A$20 -> 0 | V22: =SUMIFS(SummerProvRep!$K:$K,SummerProvRep!$A:$A,Data!$A$22,SummerProvRep!$P:$P,"Coventry",SummerProvRep!$U:$U,Data!V$17)/$BA$20*$A$20 -> 0 | W22: =SUM(D22:V22)/$A$20 -> 96 | X22: 451660.8209 | Y22: 0 | Z22: =SUMIFS(SummerProvRep!$K:$K,SummerProvRep!$A:$A,Data!#REF!,SummerProvRep!$P:$P,"<>Coventry",SummerProvRep!$U:$U,Data!Z$17) -> 0 | AA22: =SUMIFS(SummerProvRep!$K:$K,SummerProvRep!$A:$A,Data!#REF!,SummerProvRep!$P:$P,"<>Coventry",SummerProvRep!$U:$U,Data!AA$17) -> 0 | AB22: =SUMIFS(SummerProvRep!$K:$K,SummerProvRep!$A:$A,Data!#REF!,SummerProvRep!$P:$P,"<>Coventry",SummerProvRep!$U:$U,Data!AB$17) -> 0 | AC22: =SUMIFS(SummerProvRep!$K:$K,SummerProvRep!$A:$A,Data!#REF!,SummerProvRep!$P:$P,"<>Coventry",SummerProvRep!$U:$U,Data!AC$17) -> 0 | AD22: =SUMIFS(SummerProvRep!$K:$K,SummerProvRep!$A:$A,Data!#REF!,SummerProvRep!$P:$P,"<>Coventry",SummerProvRep!$U:$U,Data!AD$17) -> 0 | AE22: =SUMIFS(SummerProvRep!$K:$K,SummerProvRep!$A:$A,Data!#REF!,SummerProvRep!$P:$P,"<>Coventry",SummerProvRep!$U:$U,Data!AE$17) -> 0 | AF22: =SUMIFS(SummerProvRep!$K:$K,SummerProvRep!$A:$A,Data!$A$22,SummerProvRep!$P:$P,"<>Coventry",SummerProvRep!$U:$U,Data!AF$17)/$BA$20*$A$20 -> 65 | AG22: =SUMIFS(SummerProvRep!$K:$K,SummerProvRep!$A:$A,Data!$A$22,SummerProvRep!$P:$P,"<>Coventry",SummerProvRep!$U:$U,Data!AG$17)/$BA$20*$A$20 -> 65 | AH22: =SUMIFS(SummerProvRep!$K:$K,SummerProvRep!$A:$A,Data!$A$22,SummerProvRep!$P:$P,"<>Coventry",SummerProvRep!$U:$U,Data!AH$17)/$BA$20*$A$20 -> 0 | AI22: =SUMIFS(SummerProvRep!$K:$K,SummerProvRep!$A:$A,Data!$A$22,SummerProvRep!$P:$P,"<>Coventry",SummerProvRep!$U:$U,Data!AI$17)/$BA$20*$A$20 -> 0 | AJ22: =SUMIFS(SummerProvRep!$K:$K,SummerProvRep!$A:$A,Data!$A$22,SummerProvRep!$P:$P,"<>Coventry",SummerProvRep!$U:$U,Data!AJ$17)/$BA$20*$A$20 -> 0 | AK22: =SUMIFS(SummerProvRep!$K:$K,SummerProvRep!$A:$A,Data!$A$22,SummerProvRep!$P:$P,"<>Coventry",SummerProvRep!$U:$U,Data!AK$17)/$BA$20*$A$20 -> 0 | AL22: =SUMIFS(SummerProvRep!$K:$K,SummerProvRep!$A:$A,Data!$A$22,SummerProvRep!$P:$P,"<>Coventry",SummerProvRep!$U:$U,Data!AL$17)/$BA$20*$A$20 -> 130 | AM22: =SUMIFS(SummerProvRep!$K:$K,SummerProvRep!$A:$A,Data!$A$22,SummerProvRep!$P:$P,"<>Coventry",SummerProvRep!$U:$U,Data!AM$17)/$BA$20*$A$20 -> 0 | AN22: =SUMIFS(SummerProvRep!$K:$K,SummerProvRep!$A:$A,Data!$A$22,SummerProvRep!$P:$P,"<>Coventry",SummerProvRep!$U:$U,Data!AN$17)/$BA$20*$A$20 -> 0 | AO22: =SUMIFS(SummerProvRep!$K:$K,SummerProvRep!$A:$A,Data!$A$22,SummerProvRep!$P:$P,"<>Coventry",SummerProvRep!$U:$U,Data!AO$17)/$BA$20*$A$20 -> 0 | AP22: =SUMIFS(SummerProvRep!$K:$K,SummerProvRep!$A:$A,Data!$A$22,SummerProvRep!$P:$P,"<>Coventry",SummerProvRep!$U:$U,Data!AP$17)/$BA$20*$A$20 -> 0 | AQ22: =SUMIFS(SummerProvRep!$K:$K,SummerProvRep!$A:$A,Data!$A$22,SummerProvRep!$P:$P,"<>Coventry",SummerProvRep!$U:$U,Data!AQ$17)/$BA$20*$A$20 -> 0 | AR22: 4 | AS22: 18650.51078 | AT22: 470311.3317 | AU22: 100 | AV22: =AU22-AW22 -> -6 | AW22: =M5 -> 106 | AX22: =[13]Data!$AU22 -> 100 | AY22: 103 | BB22: =($M$5-$AU$22)*$A$20 -> 390 | BD22: =AU22*$A$20 -> 6500 | BE22: =$BB$22/$BD$22*D22 -> 0 | BF22: 0 | BG22: 0 | BH22: 0 | BI22: 0 | BJ22: 0 | BK22: 0 | BL22: 232.9640625 | BM22: 7.8 | BN22: 0 | BO22: 0 | BP22: 38.634375 | BQ22: 0 | BR22: 95.0015625 | BS22: 0 | BT22: 0 | BU22: 0 | BV22: 0 | BW22: 0 | BY22: =$BB$22/$BD$22*Y22 -> 0 | BZ22: 0 | CA22: 0 | CB22: 0 | CC22: 0 | CD22: 0 | CE22: 0 | CF22: 3.9 | CG22: 3.9 | CH22: 0 | CI22: 0 | CJ22: 0 | CK22: 0 | CL22: 7.8 | CM22: 0 | CN22: 0 | CO22: 0 | CP22: 0 | CQ22: 0
A23: 3 | B23: Riverbank | C23: 51.8134715 | D23: 0 | E23: =SUMIFS(SummerProvRep!$K:$K,SummerProvRep!$A:$A,Data!$A$23,SummerProvRep!$P:$P,"Coventry",SummerProvRep!$U:$U,Data!E$17)/$BA$20*$A$20 -> 0 | F23: =SUMIFS(SummerProvRep!$K:$K,SummerProvRep!$A:$A,Data!$A$23,SummerProvRep!$P:$P,"Coventry",SummerProvRep!$U:$U,Data!F$17)/$BA$20*$A$20 -> 0 | G23: =SUMIFS(SummerProvRep!$K:$K,SummerProvRep!$A:$A,Data!$A$23,SummerProvRep!$P:$P,"Coventry",SummerProvRep!$U:$U,Data!G$17)/$BA$20*$A$20 -> 361.5625 | H23: =SUMIFS(SummerProvRep!$K:$K,SummerProvRep!$A:$A,Data!$A$23,SummerProvRep!$P:$P,"Coventry",SummerProvRep!$U:$U,Data!H$17)/$BA$20*$A$20 -> 432.65625 | I23: =SUMIFS(SummerProvRep!$K:$K,SummerProvRep!$A:$A,Data!$A$23,SummerProvRep!$P:$P,"Coventry",SummerProvRep!$U:$U,Data!I$17)/$BA$20*$A$20 -> 0 | J23: =SUMIFS(SummerProvRep!$K:$K,SummerProvRep!$A:$A,Data!$A$23,SummerProvRep!$P:$P,"Coventry",SummerProvRep!$U:$U,Data!J$17)/$BA$20*$A$20 -> 0 | K23: =SUMIFS(SummerProvRep!$K:$K,SummerProvRep!$A:$A,Data!$A$23,SummerProvRep!$P:$P,"Coventry",SummerProvRep!$U:$U,Data!K$17)/$BA$20*$A$20 -> 4910.546875 | L23: =SUMIFS(SummerProvRep!$K:$K,SummerProvRep!$A:$A,Data!$A$23,SummerProvRep!$P:$P,"Coventry",SummerProvRep!$U:$U,Data!L$17)/$BA$20*$A$20 -> 3667.421875 | M23: =SUMIFS(SummerProvRep!$K:$K,SummerProvRep!$A:$A,Data!$A$23,SummerProvRep!$P:$P,"Coventry",SummerProvRep!$U:$U,Data!M$17)/$BA$20*$A$20 -> 74.140625 | N23: =SUMIFS(SummerProvRep!$K:$K,SummerProvRep!$A:$A,Data!$A$23,SummerProvRep!$P:$P,"Coventry",SummerProvRep!$U:$U,Data!N$17)/$BA$20*$A$20 -> 520 | O23: =SUMIFS(SummerProvRep!$K:$K,SummerProvRep!$A:$A,Data!$A$23,SummerProvRep!$P:$P,"Coventry",SummerProvRep!$U:$U,Data!O$17)/$BA$20*$A$20 -> 602.265625 | P23: =SUMIFS(SummerProvRep!$K:$K,SummerProvRep!$A:$A,Data!$A$23,SummerProvRep!$P:$P,"Coventry",SummerProvRep!$U:$U,Data!P$17)/$BA$20*$A$20 -> 258.984375 | Q23: =SUMIFS(SummerProvRep!$K:$K,SummerProvRep!$A:$A,Data!$A$23,SummerProvRep!$P:$P,"Coventry",SummerProvRep!$U:$U,Data!Q$17)/$BA$20*$A$20 -> 1574.21875 | R23: =SUMIFS(SummerProvRep!$K:$K,SummerProvRep!$A:$A,Data!$A$23,SummerProvRep!$P:$P,"Coventry",SummerProvRep!$U:$U,Data!R$17)/$BA$20*$A$20 -> 390 | S23: =SUMIFS(SummerProvRep!$K:$K,SummerProvRep!$A:$A,Data!$A$23,SummerProvRep!$P:$P,"Coventry",SummerProvRep!$U:$U,Data!S$17)/$BA$20*$A$20 -> 0 | T23: =SUMIFS(SummerProvRep!$K:$K,SummerProvRep!$A:$A,Data!$A$23,SummerProvRep!$P:$P,"Coventry",SummerProvRep!$U:$U,Data!T$17)/$BA$20*$A$20 -> 195 | U23: =SUMIFS(SummerProvRep!$K:$K,SummerProvRep!$A:$A,Data!$A$23,SummerProvRep!$P:$P,"Coventry",SummerProvRep!$U:$U,Data!U$17)/$BA$20*$A$20 -> 0 | V23: =SUMIFS(SummerProvRep!$K:$K,SummerProvRep!$A:$A,Data!$A$23,SummerProvRep!$P:$P,"Coventry",SummerProvRep!$U:$U,Data!V$17)/$BA$20*$A$20 -> 0 | W23: 199.796875 | X23: 840381.8115 | Y23: 0 | Z23: =SUMIFS(SummerProvRep!$K:$K,SummerProvRep!$A:$A,Data!#REF!,SummerProvRep!$P:$P,"<>Coventry",SummerProvRep!$U:$U,Data!Z$17) -> 0 | AA23: =SUMIFS(SummerProvRep!$K:$K,SummerProvRep!$A:$A,Data!#REF!,SummerProvRep!$P:$P,"<>Coventry",SummerProvRep!$U:$U,Data!AA$17) -> 0 | AB23: =SUMIFS(SummerProvRep!$K:$K,SummerProvRep!$A:$A,Data!#REF!,SummerProvRep!$P:$P,"<>Coventry",SummerProvRep!$U:$U,Data!AB$17) -> 0 | AC23: =SUMIFS(SummerProvRep!$K:$K,SummerProvRep!$A:$A,Data!#REF!,SummerProvRep!$P:$P,"<>Coventry",SummerProvRep!$U:$U,Data!AC$17) -> 0 | AD23: =SUMIFS(SummerProvRep!$K:$K,SummerProvRep!$A:$A,Data!#REF!,SummerProvRep!$P:$P,"<>Coventry",SummerProvRep!$U:$U,Data!AD$17) -> 0 | AE23: =SUMIFS(SummerProvRep!$K:$K,SummerProvRep!$A:$A,Data!#REF!,SummerProvRep!$P:$P,"<>Coventry",SummerProvRep!$U:$U,Data!AE$17) -> 0 | AF23: =SUMIFS(SummerProvRep!$K:$K,SummerProvRep!$A:$A,Data!$A$23,SummerProvRep!$P:$P,"<>Coventry",SummerProvRep!$U:$U,Data!AF$17)/$BA$20*$A$20 -> 0 | AG23: =SUMIFS(SummerProvRep!$K:$K,SummerProvRep!$A:$A,Data!$A$23,SummerProvRep!$P:$P,"<>Coventry",SummerProvRep!$U:$U,Data!AG$17)/$BA$20*$A$20 -> 65 | AH23: =SUMIFS(SummerProvRep!$K:$K,SummerProvRep!$A:$A,Data!$A$23,SummerProvRep!$P:$P,"<>Coventry",SummerProvRep!$U:$U,Data!AH$17)/$BA$20*$A$20 -> 0 | AI23: =SUMIFS(SummerProvRep!$K:$K,SummerProvRep!$A:$A,Data!$A$23,SummerProvRep!$P:$P,"<>Coventry",SummerProvRep!$U:$U,Data!AI$17)/$BA$20*$A$20 -> 0 | AJ23: =SUMIFS(SummerProvRep!$K:$K,SummerProvRep!$A:$A,Data!$A$23,SummerProvRep!$P:$P,"<>Coventry",SummerProvRep!$U:$U,Data!AJ$17)/$BA$20*$A$20 -> 0 | AK23: =SUMIFS(SummerProvRep!$K:$K,SummerProvRep!$A:$A,Data!$A$23,SummerProvRep!$P:$P,"<>Coventry",SummerProvRep!$U:$U,Data!AK$17)/$BA$20*$A$20 -> 0 | AL23: =SUMIFS(SummerProvRep!$K:$K,SummerProvRep!$A:$A,Data!$A$23,SummerProvRep!$P:$P,"<>Coventry",SummerProvRep!$U:$U,Data!AL$17)/$BA$20*$A$20 -> 0 | AM23: =SUMIFS(SummerProvRep!$K:$K,SummerProvRep!$A:$A,Data!$A$23,SummerProvRep!$P:$P,"<>Coventry",SummerProvRep!$U:$U,Data!AM$17)/$BA$20*$A$20 -> 0 | AN23: =SUMIFS(SummerProvRep!$K:$K,SummerProvRep!$A:$A,Data!$A$23,SummerProvRep!$P:$P,"<>Coventry",SummerProvRep!$U:$U,Data!AN$17)/$BA$20*$A$20 -> 0 | AO23: =SUMIFS(SummerProvRep!$K:$K,SummerProvRep!$A:$A,Data!$A$23,SummerProvRep!$P:$P,"<>Coventry",SummerProvRep!$U:$U,Data!AO$17)/$BA$20*$A$20 -> 0 | AP23: =SUMIFS(SummerProvRep!$K:$K,SummerProvRep!$A:$A,Data!$A$23,SummerProvRep!$P:$P,"<>Coventry",SummerProvRep!$U:$U,Data!AP$17)/$BA$20*$A$20 -> 0 | AQ23: =SUMIFS(SummerProvRep!$K:$K,SummerProvRep!$A:$A,Data!$A$23,SummerProvRep!$P:$P,"<>Coventry",SummerProvRep!$U:$U,Data!AQ$17)/$BA$20*$A$20 -> 0 | AR23: 1 | AS23: 3333.667166 | AT23: 843715.4787 | AU23: 200.796875 | AV23: =AU23-AW23 -> -19.203125 | AW23: 220 | AX23: =[13]Data!$AU23 -> 200.796875 | AY23: 209 | BB23: =($M$6-$AU$23)*$A$20 -> 1248.203125 | BD23: =AU23*$A$20 -> 13051.79688 | BE23: =$BB$23/$BD$23*D23 -> 0 | BF23: 0 | BG23: 0 | BH23: 34.57787818 | BI23: 41.37689917 | BJ23: 0 | BK23: 0 | BL23: 469.6180927 | BM23: 350.7323542 | BN23: 7.090407604 | BO23: 49.7299821 | BP23: 57.59742068 | BQ23: 24.76786218 | BR23: 150.5497505 | BS23: 37.29748658 | BT23: 0 | BU23: 18.64874329 | BV23: 0 | BW23: 0 | BY23: =$BB$23/$BD$23*Y23 -> 0 | BZ23: 0 | CA23: 0 | CB23: 0 | CC23: 0 | CD23: 0 | CE23: 0 | CF23: 0 | CG23: 6.216247763 | CH23: 0 | CI23: 0 | CJ23: 0 | CK23: 0 | CL23: 0 | CM23: 0 | CN23: 0 | CO23: 0 | CP23: 0 | CQ23: 0
A24: 4 | B24: Corley | C24: 51.8134715 | D24: 0 | E24: =SUMIFS(SummerProvRep!$K:$K,SummerProvRep!$A:$A,Data!$A$24,SummerProvRep!$P:$P,"Coventry",SummerProvRep!$U:$U,Data!E$17)/$BA$20*$A$20 -> 0 | F24: =SUMIFS(SummerProvRep!$K:$K,SummerProvRep!$A:$A,Data!$A$24,SummerProvRep!$P:$P,"Coventry",SummerProvRep!$U:$U,Data!F$17)/$BA$20*$A$20 -> 0 | G24: =SUMIFS(SummerProvRep!$K:$K,SummerProvRep!$A:$A,Data!$A$24,SummerProvRep!$P:$P,"Coventry",SummerProvRep!$U:$U,Data!G$17)/$BA$20*$A$20 -> 195 | H24: =SUMIFS(SummerProvRep!$K:$K,SummerProvRep!$A:$A,Data!$A$24,SummerProvRep!$P:$P,"Coventry",SummerProvRep!$U:$U,Data!H$17)/$BA$20*$A$20 -> 195 | I24: =SUMIFS(SummerProvRep!$K:$K,SummerProvRep!$A:$A,Data!$A$24,SummerProvRep!$P:$P,"Coventry",SummerProvRep!$U:$U,Data!I$17)/$BA$20*$A$20 -> 0 | J24: =SUMIFS(SummerProvRep!$K:$K,SummerProvRep!$A:$A,Data!$A$24,SummerProvRep!$P:$P,"Coventry",SummerProvRep!$U:$U,Data!J$17)/$BA$20*$A$20 -> 0 | K24: =SUMIFS(SummerProvRep!$K:$K,SummerProvRep!$A:$A,Data!$A$24,SummerProvRep!$P:$P,"Coventry",SummerProvRep!$U:$U,Data!K$17)/$BA$20*$A$20 -> 7815.234375 | L24: =SUMIFS(SummerProvRep!$K:$K,SummerProvRep!$A:$A,Data!$A$24,SummerProvRep!$P:$P,"Coventry",SummerProvRep!$U:$U,Data!L$17)/$BA$20*$A$20 -> 0 | M24: =SUMIFS(SummerProvRep!$K:$K,SummerProvRep!$A:$A,Data!$A$24,SummerProvRep!$P:$P,"Coventry",SummerProvRep!$U:$U,Data!M$17)/$BA$20*$A$20 -> 397.109375 | N24: =SUMIFS(SummerProvRep!$K:$K,SummerProvRep!$A:$A,Data!$A$24,SummerProvRep!$P:$P,"Coventry",SummerProvRep!$U:$U,Data!N$17)/$BA$20*$A$20 -> 0 | O24: =SUMIFS(SummerProvRep!$K:$K,SummerProvRep!$A:$A,Data!$A$24,SummerProvRep!$P:$P,"Coventry",SummerProvRep!$U:$U,Data!O$17)/$BA$20*$A$20 -> 446.875 | P24: =SUMIFS(SummerProvRep!$K:$K,SummerProvRep!$A:$A,Data!$A$24,SummerProvRep!$P:$P,"Coventry",SummerProvRep!$U:$U,Data!P$17)/$BA$20*$A$20 -> 0 | Q24: =SUMIFS(SummerProvRep!$K:$K,SummerProvRep!$A:$A,Data!$A$24,SummerProvRep!$P:$P,"Coventry",SummerProvRep!$U:$U,Data!Q$17)/$BA$20*$A$20 -> 776.953125 | R24: =SUMIFS(SummerProvRep!$K:$K,SummerProvRep!$A:$A,Data!$A$24,SummerProvRep!$P:$P,"Coventry",SummerProvRep!$U:$U,Data!R$17)/$BA$20*$A$20 -> 0 | S24: =SUMIFS(SummerProvRep!$K:$K,SummerProvRep!$A:$A,Data!$A$24,SummerProvRep!$P:$P,"Coventry",SummerProvRep!$U:$U,Data!S$17)/$BA$20*$A$20 -> 0 | T24: =SUMIFS(SummerProvRep!$K:$K,SummerProvRep!$A:$A,Data!$A$24,SummerProvRep!$P:$P,"Coventry",SummerProvRep!$U:$U,Data!T$17)/$BA$20*$A$20 -> 0 | U24: =SUMIFS(SummerProvRep!$K:$K,SummerProvRep!$A:$A,Data!$A$24,SummerProvRep!$P:$P,"Coventry",SummerProvRep!$U:$U,Data!U$17)/$BA$20*$A$20 -> 0 | V24: =SUMIFS(SummerProvRep!$K:$K,SummerProvRep!$A:$A,Data!$A$24,SummerProvRep!$P:$P,"Coventry",SummerProvRep!$U:$U,Data!V$17)/$BA$20*$A$20 -> 0 | W24: 151.171875 | X24: 599910.7859 | Y24: 0 | Z24: =SUMIFS(SummerProvRep!$K:$K,SummerProvRep!$A:$A,Data!#REF!,SummerProvRep!$P:$P,"<>Coventry",SummerProvRep!$U:$U,Data!Z$17) -> 0 | AA24: =SUMIFS(SummerProvRep!$K:$K,SummerProvRep!$A:$A,Data!#REF!,SummerProvRep!$P:$P,"<>Coventry",SummerProvRep!$U:$U,Data!AA$17) -> 0 | AB24: =SUMIFS(SummerProvRep!$K:$K,SummerProvRep!$A:$A,Data!#REF!,SummerProvRep!$P:$P,"<>Coventry",SummerProvRep!$U:$U,Data!AB$17) -> 0 | AC24: =SUMIFS(SummerProvRep!$K:$K,SummerProvRep!$A:$A,Data!#REF!,SummerProvRep!$P:$P,"<>Coventry",SummerProvRep!$U:$U,Data!AC$17) -> 0 | AD24: =SUMIFS(SummerProvRep!$K:$K,SummerProvRep!$A:$A,Data!#REF!,SummerProvRep!$P:$P,"<>Coventry",SummerProvRep!$U:$U,Data!AD$17) -> 0 | AE24: =SUMIFS(SummerProvRep!$K:$K,SummerProvRep!$A:$A,Data!#REF!,SummerProvRep!$P:$P,"<>Coventry",SummerProvRep!$U:$U,Data!AE$17) -> 0 | AF24: =SUMIFS(SummerProvRep!$K:$K,SummerProvRep!$A:$A,Data!$A$24,SummerProvRep!$P:$P,"<>Coventry",SummerProvRep!$U:$U,Data!AF$17)/$BA$20*$A$20 -> 130 | AG24: =SUMIFS(SummerProvRep!$K:$K,SummerProvRep!$A:$A,Data!$A$24,SummerProvRep!$P:$P,"<>Coventry",SummerProvRep!$U:$U,Data!AG$17)/$BA$20*$A$20 -> 0 | AH24: =SUMIFS(SummerProvRep!$K:$K,SummerProvRep!$A:$A,Data!$A$24,SummerProvRep!$P:$P,"<>Coventry",SummerProvRep!$U:$U,Data!AH$17)/$BA$20*$A$20 -> 0 | AI24: =SUMIFS(SummerProvRep!$K:$K,SummerProvRep!$A:$A,Data!$A$24,SummerProvRep!$P:$P,"<>Coventry",SummerProvRep!$U:$U,Data!AI$17)/$BA$20*$A$20 -> 0 | AJ24: =SUMIFS(SummerProvRep!$K:$K,SummerProvRep!$A:$A,Data!$A$24,SummerProvRep!$P:$P,"<>Coventry",SummerProvRep!$U:$U,Data!AJ$17)/$BA$20*$A$20 -> 0 | AK24: =SUMIFS(SummerProvRep!$K:$K,SummerProvRep!$A:$A,Data!$A$24,SummerProvRep!$P:$P,"<>Coventry",SummerProvRep!$U:$U,Data!AK$17)/$BA$20*$A$20 -> 0 | AL24: =SUMIFS(SummerProvRep!$K:$K,SummerProvRep!$A:$A,Data!$A$24,SummerProvRep!$P:$P,"<>Coventry",SummerProvRep!$U:$U,Data!AL$17)/$BA$20*$A$20 -> 0 | AM24: =SUMIFS(SummerProvRep!$K:$K,SummerProvRep!$A:$A,Data!$A$24,SummerProvRep!$P:$P,"<>Coventry",SummerProvRep!$U:$U,Data!AM$17)/$BA$20*$A$20 -> 0 | AN24: =SUMIFS(SummerProvRep!$K:$K,SummerProvRep!$A:$A,Data!$A$24,SummerProvRep!$P:$P,"<>Coventry",SummerProvRep!$U:$U,Data!AN$17)/$BA$20*$A$20 -> 0 | AO24: =SUMIFS(SummerProvRep!$K:$K,SummerProvRep!$A:$A,Data!$A$24,SummerProvRep!$P:$P,"<>Coventry",SummerProvRep!$U:$U,Data!AO$17)/$BA$20*$A$20 -> 0 | AP24: =SUMIFS(SummerProvRep!$K:$K,SummerProvRep!$A:$A,Data!$A$24,SummerProvRep!$P:$P,"<>Coventry",SummerProvRep!$U:$U,Data!AP$17)/$BA$20*$A$20 -> 0 | AQ24: =SUMIFS(SummerProvRep!$K:$K,SummerProvRep!$A:$A,Data!$A$24,SummerProvRep!$P:$P,"<>Coventry",SummerProvRep!$U:$U,Data!AQ$17)/$BA$20*$A$20 -> 0 | AR24: 2 | AS24: 7207.925047 | AT24: 607118.711 | AU24: 153.171875 | AV24: -11.828125 | AW24: 165 | AX24: =[13]Data!$AU24 -> 153.171875 | AY24: 155 | BB24: =($M$7-$AU$24)*$A$20 -> 768.828125 | BD24: 9956.171875 | BE24: =$BB$24/$BD$24*D24 -> 0 | BF24: 0 | BG24: 0 | BH24: 15.05814547 | BI24: 15.05814547 | BJ24: 0 | BK24: 0 | BL24: 603.5022362 | BM24: 0 | BN24: 30.66528582 | BO24: 0 | BP24: 34.50825003 | BQ24: 0 | BR24: 59.99729834 | BS24: 0 | BT24: 0 | BU24: 0 | BV24: 0 | BW24: 0 | BY24: =$BB$24/$BD$24*Y24 -> 0 | BZ24: 0 | CA24: 0 | CB24: 0 | CC24: 0 | CD24: 0 | CE24: 0 | CF24: 10.03876364 | CG24: 0 | CH24: 0 | CI24: 0 | CJ24: 0 | CK24: 0 | CL24: 0 | CM24: 0 | CN24: 0 | CO24: 0 | CP24: 0 | CQ24: 0
A25: 5 | B25: Tiverton | C25: 51.8134715 | D25: 0 | E25: =SUMIFS(SummerProvRep!$K:$K,SummerProvRep!$A:$A,Data!$A$25,SummerProvRep!$P:$P,"Coventry",SummerProvRep!$U:$U,Data!E$17)/$BA$20*$A$20 -> 0 | F25: =SUMIFS(SummerProvRep!$K:$K,SummerProvRep!$A:$A,Data!$A$25,SummerProvRep!$P:$P,"Coventry",SummerProvRep!$U:$U,Data!F$17)/$BA$20*$A$20 -> 0 | G25: =SUMIFS(SummerProvRep!$K:$K,SummerProvRep!$A:$A,Data!$A$25,SummerProvRep!$P:$P,"Coventry",SummerProvRep!$U:$U,Data!G$17)/$BA$20*$A$20 -> 0 | H25: =SUMIFS(SummerProvRep!$K:$K,SummerProvRep!$A:$A,Data!$A$25,SummerProvRep!$P:$P,"Coventry",SummerProvRep!$U:$U,Data!H$17)/$BA$20*$A$20 -> 0 | I25: =SUMIFS(SummerProvRep!$K:$K,SummerProvRep!$A:$A,Data!$A$25,SummerProvRep!$P:$P,"Coventry",SummerProvRep!$U:$U,Data!I$17)/$BA$20*$A$20 -> 0 | J25: =SUMIFS(SummerProvRep!$K:$K,SummerProvRep!$A:$A,Data!$A$25,SummerProvRep!$P:$P,"Coventry",SummerProvRep!$U:$U,Data!J$17)/$BA$20*$A$20 -> 0 | K25: =SUMIFS(SummerProvRep!$K:$K,SummerProvRep!$A:$A,Data!$A$25,SummerProvRep!$P:$P,"Coventry",SummerProvRep!$U:$U,Data!K$17)/$BA$20*$A$20 -> 4969.453125 | L25: =SUMIFS(SummerProvRep!$K:$K,SummerProvRep!$A:$A,Data!$A$25,SummerProvRep!$P:$P,"Coventry",SummerProvRep!$U:$U,Data!L$17)/$BA$20*$A$20 -> 715 | M25: =SUMIFS(SummerProvRep!$K:$K,SummerProvRep!$A:$A,Data!$A$25,SummerProvRep!$P:$P,"Coventry",SummerProvRep!$U:$U,Data!M$17)/$BA$20*$A$20 -> 0 | N25: =SUMIFS(SummerProvRep!$K:$K,SummerProvRep!$A:$A,Data!$A$25,SummerProvRep!$P:$P,"Coventry",SummerProvRep!$U:$U,Data!N$17)/$BA$20*$A$20 -> 325 | O25: =SUMIFS(SummerProvRep!$K:$K,SummerProvRep!$A:$A,Data!$A$25,SummerProvRep!$P:$P,"Coventry",SummerProvRep!$U:$U,Data!O$17)/$BA$20*$A$20 -> 398.125 | P25: =SUMIFS(SummerProvRep!$K:$K,SummerProvRep!$A:$A,Data!$A$25,SummerProvRep!$P:$P,"Coventry",SummerProvRep!$U:$U,Data!P$17)/$BA$20*$A$20 -> 0 | Q25: =SUMIFS(SummerProvRep!$K:$K,SummerProvRep!$A:$A,Data!$A$25,SummerProvRep!$P:$P,"Coventry",SummerProvRep!$U:$U,Data!Q$17)/$BA$20*$A$20 -> 1139.53125 | R25: =SUMIFS(SummerProvRep!$K:$K,SummerProvRep!$A:$A,Data!$A$25,SummerProvRep!$P:$P,"Coventry",SummerProvRep!$U:$U,Data!R$17)/$BA$20*$A$20 -> 455 | S25: =SUMIFS(SummerProvRep!$K:$K,SummerProvRep!$A:$A,Data!$A$25,SummerProvRep!$P:$P,"Coventry",SummerProvRep!$U:$U,Data!S$17)/$BA$20*$A$20 -> 0 | T25: =SUMIFS(SummerProvRep!$K:$K,SummerProvRep!$A:$A,Data!$A$25,SummerProvRep!$P:$P,"Coventry",SummerProvRep!$U:$U,Data!T$17)/$BA$20*$A$20 -> 390 | U25: =SUMIFS(SummerProvRep!$K:$K,SummerProvRep!$A:$A,Data!$A$25,SummerProvRep!$P:$P,"Coventry",SummerProvRep!$U:$U,Data!U$17)/$BA$20*$A$20 -> 57.890625 | V25: =SUMIFS(SummerProvRep!$K:$K,SummerProvRep!$A:$A,Data!$A$25,SummerProvRep!$P:$P,"Coventry",SummerProvRep!$U:$U,Data!V$17)/$BA$20*$A$20 -> 0 | W25: 130 | X25: 577155.5389 | Y25: 0 | Z25: =SUMIFS(SummerProvRep!$K:$K,SummerProvRep!$A:$A,Data!#REF!,SummerProvRep!$P:$P,"<>Coventry",SummerProvRep!$U:$U,Data!Z$17) -> 0 | AA25: =SUMIFS(SummerProvRep!$K:$K,SummerProvRep!$A:$A,Data!#REF!,SummerProvRep!$P:$P,"<>Coventry",SummerProvRep!$U:$U,Data!AA$17) -> 0 | AB25: =SUMIFS(SummerProvRep!$K:$K,SummerProvRep!$A:$A,Data!#REF!,SummerProvRep!$P:$P,"<>Coventry",SummerProvRep!$U:$U,Data!AB$17) -> 0 | AC25: =SUMIFS(SummerProvRep!$K:$K,SummerProvRep!$A:$A,Data!#REF!,SummerProvRep!$P:$P,"<>Coventry",SummerProvRep!$U:$U,Data!AC$17) -> 0 | AD25: =SUMIFS(SummerProvRep!$K:$K,SummerProvRep!$A:$A,Data!#REF!,SummerProvRep!$P:$P,"<>Coventry",SummerProvRep!$U:$U,Data!AD$17) -> 0 | AE25: =SUMIFS(SummerProvRep!$K:$K,SummerProvRep!$A:$A,Data!#REF!,SummerProvRep!$P:$P,"<>Coventry",SummerProvRep!$U:$U,Data!AE$17) -> 0 | AF25: =SUMIFS(SummerProvRep!$K:$K,SummerProvRep!$A:$A,Data!$A$25,SummerProvRep!$P:$P,"<>Coventry",SummerProvRep!$U:$U,Data!AF$17)/$BA$20*$A$20 -> 0 | AG25: =SUMIFS(SummerProvRep!$K:$K,SummerProvRep!$A:$A,Data!$A$25,SummerProvRep!$P:$P,"<>Coventry",SummerProvRep!$U:$U,Data!AG$17)/$BA$20*$A$20 -> 0 | AH25: =SUMIFS(SummerProvRep!$K:$K,SummerProvRep!$A:$A,Data!$A$25,SummerProvRep!$P:$P,"<>Coventry",SummerProvRep!$U:$U,Data!AH$17)/$BA$20*$A$20 -> 0 | AI25: =SUMIFS(SummerProvRep!$K:$K,SummerProvRep!$A:$A,Data!$A$25,SummerProvRep!$P:$P,"<>Coventry",SummerProvRep!$U:$U,Data!AI$17)/$BA$20*$A$20 -> 0 | AJ25: =SUMIFS(SummerProvRep!$K:$K,SummerProvRep!$A:$A,Data!$A$25,SummerProvRep!$P:$P,"<>Coventry",SummerProvRep!$U:$U,Data!AJ$17)/$BA$20*$A$20 -> 0 | AK25: =SUMIFS(SummerProvRep!$K:$K,SummerProvRep!$A:$A,Data!$A$25,SummerProvRep!$P:$P,"<>Coventry",SummerProvRep!$U:$U,Data!AK$17)/$BA$20*$A$20 -> 0 | AL25: =SUMIFS(SummerProvRep!$K:$K,SummerProvRep!$A:$A,Data!$A$25,SummerProvRep!$P:$P,"<>Coventry",SummerProvRep!$U:$U,Data!AL$17)/$BA$20*$A$20 -> 65 | AM25: =SUMIFS(SummerProvRep!$K:$K,SummerProvRep!$A:$A,Data!$A$25,SummerProvRep!$P:$P,"<>Coventry",SummerProvRep!$U:$U,Data!AM$17)/$BA$20*$A$20 -> 0 | AN25: =SUMIFS(SummerProvRep!$K:$K,SummerProvRep!$A:$A,Data!$A$25,SummerProvRep!$P:$P,"<>Coventry",SummerProvRep!$U:$U,Data!AN$17)/$BA$20*$A$20 -> 0 | AO25: =SUMIFS(SummerProvRep!$K:$K,SummerProvRep!$A:$A,Data!$A$25,SummerProvRep!$P:$P,"<>Coventry",SummerProvRep!$U:$U,Data!AO$17)/$BA$20*$A$20 -> 0 | AP25: =SUMIFS(SummerProvRep!$K:$K,SummerProvRep!$A:$A,Data!$A$25,SummerProvRep!$P:$P,"<>Coventry",SummerProvRep!$U:$U,Data!AP$17)/$BA$20*$A$20 -> 0 | AQ25: =SUMIFS(SummerProvRep!$K:$K,SummerProvRep!$A:$A,Data!$A$25,SummerProvRep!$P:$P,"<>Coventry",SummerProvRep!$U:$U,Data!AQ$17)/$BA$20*$A$20 -> 0 | AR25: 1 | AS25: 5856.440547 | AT25: 583011.9795 | AU25: 131 | AV25: -5 | AW25: 136 | AX25: =[13]Data!$AU25 -> 131 | AY25: 133 | BB25: =($M$8-$AU$25)*$A$20 -> 325 | BD25: 8515 | BE25: =$BB$25/$BD$25*D25 -> 0 | BF25: 0 | BG25: 0 | BH25: 0 | BI25: 0 | BJ25: 0 | BK25: 0 | BL25: 189.6737834 | BM25: 27.29007634 | BN25: 0 | BO25: 12.40458015 | BP25: 15.19561069 | BQ25: 0 | BR25: 43.49355916 | BS25: 17.36641221 | BT25: 0 | BU25: 14.88549618 | BV25: 2.20956584 | BW25: 0 | BY25: =$BB$25/$BD$25*Y25 -> 0 | BZ25: 0 | CA25: 0 | CB25: 0 | CC25: 0 | CD25: 0 | CE25: 0 | CF25: 0 | CG25: 0 | CH25: 0 | CI25: 0 | CJ25: 0 | CK25: 0 | CL25: 2.480916031 | CM25: 0 | CN25: 0 | CO25: 0 | CP25: 0 | CQ25: 0
A26: 6 | B26: Baginton Fields | C26: 51.8134715 | D26: 0 | E26: =SUMIFS(SummerProvRep!$K:$K,SummerProvRep!$A:$A,Data!$A$26,SummerProvRep!$P:$P,"Coventry",SummerProvRep!$U:$U,Data!E$17)/$BA$20*$A$20 -> 0 | F26: =SUMIFS(SummerProvRep!$K:$K,SummerProvRep!$A:$A,Data!$A$26,SummerProvRep!$P:$P,"Coventry",SummerProvRep!$U:$U,Data!F$17)/$BA$20*$A$20 -> 0 | G26: =SUMIFS(SummerProvRep!$K:$K,SummerProvRep!$A:$A,Data!$A$26,SummerProvRep!$P:$P,"Coventry",SummerProvRep!$U:$U,Data!G$17)/$BA$20*$A$20 -> 0 | H26: =SUMIFS(SummerProvRep!$K:$K,SummerProvRep!$A:$A,Data!$A$26,SummerProvRep!$P:$P,"Coventry",SummerProvRep!$U:$U,Data!H$17)/$BA$20*$A$20 -> 0 | I26: =SUMIFS(SummerProvRep!$K:$K,SummerProvRep!$A:$A,Data!$A$26,SummerProvRep!$P:$P,"Coventry",SummerProvRep!$U:$U,Data!I$17)/$BA$20*$A$20 -> 0 | J26: =SUMIFS(SummerProvRep!$K:$K,SummerProvRep!$A:$A,Data!$A$26,SummerProvRep!$P:$P,"Coventry",SummerProvRep!$U:$U,Data!J$17)/$BA$20*$A$20 -> 0 | K26: =SUMIFS(SummerProvRep!$K:$K,SummerProvRep!$A:$A,Data!$A$26,SummerProvRep!$P:$P,"Coventry",SummerProvRep!$U:$U,Data!K$17)/$BA$20*$A$20 -> 1755 | L26: =SUMIFS(SummerProvRep!$K:$K,SummerProvRep!$A:$A,Data!$A$26,SummerProvRep!$P:$P,"Coventry",SummerProvRep!$U:$U,Data!L$17)/$BA$20*$A$20 -> 2402.96875 | M26: =SUMIFS(SummerProvRep!$K:$K,SummerProvRep!$A:$A,Data!$A$26,SummerProvRep!$P:$P,"Coventry",SummerProvRep!$U:$U,Data!M$17)/$BA$20*$A$20 -> 0 | N26: =SUMIFS(SummerProvRep!$K:$K,SummerProvRep!$A:$A,Data!$A$26,SummerProvRep!$P:$P,"Coventry",SummerProvRep!$U:$U,Data!N$17)/$BA$20*$A$20 -> 130 | O26: =SUMIFS(SummerProvRep!$K:$K,SummerProvRep!$A:$A,Data!$A$26,SummerProvRep!$P:$P,"Coventry",SummerProvRep!$U:$U,Data!O$17)/$BA$20*$A$20 -> 790.15625 | P26: =SUMIFS(SummerProvRep!$K:$K,SummerProvRep!$A:$A,Data!$A$26,SummerProvRep!$P:$P,"Coventry",SummerProvRep!$U:$U,Data!P$17)/$BA$20*$A$20 -> 0 | Q26: =SUMIFS(SummerProvRep!$K:$K,SummerProvRep!$A:$A,Data!$A$26,SummerProvRep!$P:$P,"Coventry",SummerProvRep!$U:$U,Data!Q$17)/$BA$20*$A$20 -> 1849.453125 | R26: =SUMIFS(SummerProvRep!$K:$K,SummerProvRep!$A:$A,Data!$A$26,SummerProvRep!$P:$P,"Coventry",SummerProvRep!$U:$U,Data!R$17)/$BA$20*$A$20 -> 780 | S26: =SUMIFS(SummerProvRep!$K:$K,SummerProvRep!$A:$A,Data!$A$26,SummerProvRep!$P:$P,"Coventry",SummerProvRep!$U:$U,Data!S$17)/$BA$20*$A$20 -> 0 | T26: =SUMIFS(SummerProvRep!$K:$K,SummerProvRep!$A:$A,Data!$A$26,SummerProvRep!$P:$P,"Coventry",SummerProvRep!$U:$U,Data!T$17)/$BA$20*$A$20 -> 130 | U26: =SUMIFS(SummerProvRep!$K:$K,SummerProvRep!$A:$A,Data!$A$26,SummerProvRep!$P:$P,"Coventry",SummerProvRep!$U:$U,Data!U$17)/$BA$20*$A$20 -> 58.90625 | V26: =SUMIFS(SummerProvRep!$K:$K,SummerProvRep!$A:$A,Data!$A$26,SummerProvRep!$P:$P,"Coventry",SummerProvRep!$U:$U,Data!V$17)/$BA$20*$A$20 -> 0 | W26: 121.484375 | X26: 594629.7268 | Y26: 0 | Z26: =SUMIFS(SummerProvRep!$K:$K,SummerProvRep!$A:$A,Data!#REF!,SummerProvRep!$P:$P,"<>Coventry",SummerProvRep!$U:$U,Data!Z$17) -> 0 | AA26: =SUMIFS(SummerProvRep!$K:$K,SummerProvRep!$A:$A,Data!#REF!,SummerProvRep!$P:$P,"<>Coventry",SummerProvRep!$U:$U,Data!AA$17) -> 0 | AB26: =SUMIFS(SummerProvRep!$K:$K,SummerProvRep!$A:$A,Data!#REF!,SummerProvRep!$P:$P,"<>Coventry",SummerProvRep!$U:$U,Data!AB$17) -> 0 | AC26: =SUMIFS(SummerProvRep!$K:$K,SummerProvRep!$A:$A,Data!#REF!,SummerProvRep!$P:$P,"<>Coventry",SummerProvRep!$U:$U,Data!AC$17) -> 0 | AD26: =SUMIFS(SummerProvRep!$K:$K,SummerProvRep!$A:$A,Data!#REF!,SummerProvRep!$P:$P,"<>Coventry",SummerProvRep!$U:$U,Data!AD$17) -> 0 | AE26: =SUMIFS(SummerProvRep!$K:$K,SummerProvRep!$A:$A,Data!#REF!,SummerProvRep!$P:$P,"<>Coventry",SummerProvRep!$U:$U,Data!AE$17) -> 0 | AF26: =SUMIFS(SummerProvRep!$K:$K,SummerProvRep!$A:$A,Data!$A$26,SummerProvRep!$P:$P,"<>Coventry",SummerProvRep!$U:$U,Data!AF$17)/$BA$20*$A$20 -> 0 | AG26: =SUMIFS(SummerProvRep!$K:$K,SummerProvRep!$A:$A,Data!$A$26,SummerProvRep!$P:$P,"<>Coventry",SummerProvRep!$U:$U,Data!AG$17)/$BA$20*$A$20 -> 65 | AH26: =SUMIFS(SummerProvRep!$K:$K,SummerProvRep!$A:$A,Data!$A$26,SummerProvRep!$P:$P,"<>Coventry",SummerProvRep!$U:$U,Data!AH$17)/$BA$20*$A$20 -> 0 | AI26: =SUMIFS(SummerProvRep!$K:$K,SummerProvRep!$A:$A,Data!$A$26,SummerProvRep!$P:$P,"<>Coventry",SummerProvRep!$U:$U,Data!AI$17)/$BA$20*$A$20 -> 0 | AJ26: =SUMIFS(SummerProvRep!$K:$K,SummerProvRep!$A:$A,Data!$A$26,SummerProvRep!$P:$P,"<>Coventry",SummerProvRep!$U:$U,Data!AJ$17)/$BA$20*$A$20 -> 0 | AK26: =SUMIFS(SummerProvRep!$K:$K,SummerProvRep!$A:$A,Data!$A$26,SummerProvRep!$P:$P,"<>Coventry",SummerProvRep!$U:$U,Data!AK$17)/$BA$20*$A$20 -> 0 | AL26: =SUMIFS(SummerProvRep!$K:$K,SummerProvRep!$A:$A,Data!$A$26,SummerProvRep!$P:$P,"<>Coventry",SummerProvRep!$U:$U,Data!AL$17)/$BA$20*$A$20 -> 0 | AM26: =SUMIFS(SummerProvRep!$K:$K,SummerProvRep!$A:$A,Data!$A$26,SummerProvRep!$P:$P,"<>Coventry",SummerProvRep!$U:$U,Data!AM$17)/$BA$20*$A$20 -> 0 | AN26: =SUMIFS(SummerProvRep!$K:$K,SummerProvRep!$A:$A,Data!$A$26,SummerProvRep!$P:$P,"<>Coventry",SummerProvRep!$U:$U,Data!AN$17)/$BA$20*$A$20 -> 0 | AO26: =SUMIFS(SummerProvRep!$K:$K,SummerProvRep!$A:$A,Data!$A$26,SummerProvRep!$P:$P,"<>Coventry",SummerProvRep!$U:$U,Data!AO$17)/$BA$20*$A$20 -> 0 | AP26: =SUMIFS(SummerProvRep!$K:$K,SummerProvRep!$A:$A,Data!$A$26,SummerProvRep!$P:$P,"<>Coventry",SummerProvRep!$U:$U,Data!AP$17)/$BA$20*$A$20 -> 0 | AQ26: =SUMIFS(SummerProvRep!$K:$K,SummerProvRep!$A:$A,Data!$A$26,SummerProvRep!$P:$P,"<>Coventry",SummerProvRep!$U:$U,Data!AQ$17)/$BA$20*$A$20 -> 0 | AR26: 1 | AS26: 3333.667166 | AT26: 597963.394 | AU26: 122.484375 | AV26: -3.515625 | AW26: 126 | AX26: =[13]Data!$AU26 -> 122.484375 | AY26: 126 | BB26: =($M$9-$AU$26)*$A$20 -> 228.515625 | BD26: 7961.484375 | BE26: =$BB$26/$BD$26*D26 -> 0 | BF26: 0 | BG26: 0 | BH26: 0 | BI26: 0 | BJ26: 0 | BK26: 0 | BL26: 50.37313433 | BM26: 68.97154851 | BN26: 0 | BO26: 3.731343284 | BP26: 22.6795709 | BQ26: 0 | BR26: 53.08418843 | BS26: 22.3880597 | BT26: 0 | BU26: 3.731343284 | BV26: 1.690764925 | BW26: 0 | BY26: =$BB$26/$BD$26*Y26 -> 0 | BZ26: 0 | CA26: 0 | CB26: 0 | CC26: 0 | CD26: 0 | CE26: 0 | CF26: 0 | CG26: 1.865671642 | CH26: 0 | CI26: 0 | CJ26: 0 | CK26: 0 | CL26: 0 | CM26: 0 | CN26: 0 | CO26: 0 | CP26: 0 | CQ26: 0
A27: 7 | B27: Sherbourne Fields | C27: 51.8134715 | D27: 0 | E27: =SUMIFS(SummerProvRep!$K:$K,SummerProvRep!$A:$A,Data!$A$27,SummerProvRep!$P:$P,"Coventry",SummerProvRep!$U:$U,Data!E$17)/$BA$20*$A$20 -> 0 | F27: =SUMIFS(SummerProvRep!$K:$K,SummerProvRep!$A:$A,Data!$A$27,SummerProvRep!$P:$P,"Coventry",SummerProvRep!$U:$U,Data!F$17)/$BA$20*$A$20 -> 0 | G27: =SUMIFS(SummerProvRep!$K:$K,SummerProvRep!$A:$A,Data!$A$27,SummerProvRep!$P:$P,"Coventry",SummerProvRep!$U:$U,Data!G$17)/$BA$20*$A$20 -> 0 | H27: =SUMIFS(SummerProvRep!$K:$K,SummerProvRep!$A:$A,Data!$A$27,SummerProvRep!$P:$P,"Coventry",SummerProvRep!$U:$U,Data!H$17)/$BA$20*$A$20 -> 65 | I27: =SUMIFS(SummerProvRep!$K:$K,SummerProvRep!$A:$A,Data!$A$27,SummerProvRep!$P:$P,"Coventry",SummerProvRep!$U:$U,Data!I$17)/$BA$20*$A$20 -> 0 | J27: =SUMIFS(SummerProvRep!$K:$K,SummerProvRep!$A:$A,Data!$A$27,SummerProvRep!$P:$P,"Coventry",SummerProvRep!$U:$U,Data!J$17)/$BA$20*$A$20 -> 0 | K27: =SUMIFS(SummerProvRep!$K:$K,SummerProvRep!$A:$A,Data!$A$27,SummerProvRep!$P:$P,"Coventry",SummerProvRep!$U:$U,Data!K$17)/$BA$20*$A$20 -> 5655 | L27: =SUMIFS(SummerProvRep!$K:$K,SummerProvRep!$A:$A,Data!$A$27,SummerProvRep!$P:$P,"Coventry",SummerProvRep!$U:$U,Data!L$17)/$BA$20*$A$20 -> 3900 | M27: =SUMIFS(SummerProvRep!$K:$K,SummerProvRep!$A:$A,Data!$A$27,SummerProvRep!$P:$P,"Coventry",SummerProvRep!$U:$U,Data!M$17)/$BA$20*$A$20 -> 65 | N27: =SUMIFS(SummerProvRep!$K:$K,SummerProvRep!$A:$A,Data!$A$27,SummerProvRep!$P:$P,"Coventry",SummerProvRep!$U:$U,Data!N$17)/$BA$20*$A$20 -> 1885 | O27: =SUMIFS(SummerProvRep!$K:$K,SummerProvRep!$A:$A,Data!$A$27,SummerProvRep!$P:$P,"Coventry",SummerProvRep!$U:$U,Data!O$17)/$BA$20*$A$20 -> 195 | P27: =SUMIFS(SummerProvRep!$K:$K,SummerProvRep!$A:$A,Data!$A$27,SummerProvRep!$P:$P,"Coventry",SummerProvRep!$U:$U,Data!P$17)/$BA$20*$A$20 -> 0 | Q27: =SUMIFS(SummerProvRep!$K:$K,SummerProvRep!$A:$A,Data!$A$27,SummerProvRep!$P:$P,"Coventry",SummerProvRep!$U:$U,Data!Q$17)/$BA$20*$A$20 -> 1820 | R27: =SUMIFS(SummerProvRep!$K:$K,SummerProvRep!$A:$A,Data!$A$27,SummerProvRep!$P:$P,"Coventry",SummerProvRep!$U:$U,Data!R$17)/$BA$20*$A$20 -> 1687.96875 | S27: =SUMIFS(SummerProvRep!$K:$K,SummerProvRep!$A:$A,Data!$A$27,SummerProvRep!$P:$P,"Coventry",SummerProvRep!$U:$U,Data!S$17)/$BA$20*$A$20 -> 0 | T27: =SUMIFS(SummerProvRep!$K:$K,SummerProvRep!$A:$A,Data!$A$27,SummerProvRep!$P:$P,"Coventry",SummerProvRep!$U:$U,Data!T$17)/$BA$20*$A$20 -> 1300 | U27: =SUMIFS(SummerProvRep!$K:$K,SummerProvRep!$A:$A,Data!$A$27,SummerProvRep!$P:$P,"Coventry",SummerProvRep!$U:$U,Data!U$17)/$BA$20*$A$20 -> 0 | V27: =SUMIFS(SummerProvRep!$K:$K,SummerProvRep!$A:$A,Data!$A$27,SummerProvRep!$P:$P,"Coventry",SummerProvRep!$U:$U,Data!V$17)/$BA$20*$A$20 -> 0 | W27: 254.96875 | X27: 1089363.337 | Y27: 0 | Z27: =SUMIFS(SummerProvRep!$K:$K,SummerProvRep!$A:$A,Data!#REF!,SummerProvRep!$P:$P,"<>Coventry",SummerProvRep!$U:$U,Data!Z$17) -> 0 | AA27: =SUMIFS(SummerProvRep!$K:$K,SummerProvRep!$A:$A,Data!#REF!,SummerProvRep!$P:$P,"<>Coventry",SummerProvRep!$U:$U,Data!AA$17) -> 0 | AB27: =SUMIFS(SummerProvRep!$K:$K,SummerProvRep!$A:$A,Data!#REF!,SummerProvRep!$P:$P,"<>Coventry",SummerProvRep!$U:$U,Data!AB$17) -> 0 | AC27: =SUMIFS(SummerProvRep!$K:$K,SummerProvRep!$A:$A,Data!#REF!,SummerProvRep!$P:$P,"<>Coventry",SummerProvRep!$U:$U,Data!AC$17) -> 0 | AD27: =SUMIFS(SummerProvRep!$K:$K,SummerProvRep!$A:$A,Data!#REF!,SummerProvRep!$P:$P,"<>Coventry",SummerProvRep!$U:$U,Data!AD$17) -> 0 | AE27: =SUMIFS(SummerProvRep!$K:$K,SummerProvRep!$A:$A,Data!#REF!,SummerProvRep!$P:$P,"<>Coventry",SummerProvRep!$U:$U,Data!AE$17) -> 0 | AF27: =SUMIFS(SummerProvRep!$K:$K,SummerProvRep!$A:$A,Data!$A$27,SummerProvRep!$P:$P,"<>Coventry",SummerProvRep!$U:$U,Data!AF$17)/$BA$20*$A$20 -> 130 | AG27: =SUMIFS(SummerProvRep!$K:$K,SummerProvRep!$A:$A,Data!$A$27,SummerProvRep!$P:$P,"<>Coventry",SummerProvRep!$U:$U,Data!AG$17)/$BA$20*$A$20 -> 0 | AH27: =SUMIFS(SummerProvRep!$K:$K,SummerProvRep!$A:$A,Data!$A$27,SummerProvRep!$P:$P,"<>Coventry",SummerProvRep!$U:$U,Data!AH$17)/$BA$20*$A$20 -> 0 | AI27: =SUMIFS(SummerProvRep!$K:$K,SummerProvRep!$A:$A,Data!$A$27,SummerProvRep!$P:$P,"<>Coventry",SummerProvRep!$U:$U,Data!AI$17)/$BA$20*$A$20 -> 65 | AJ27: =SUMIFS(SummerProvRep!$K:$K,SummerProvRep!$A:$A,Data!$A$27,SummerProvRep!$P:$P,"<>Coventry",SummerProvRep!$U:$U,Data!AJ$17)/$BA$20*$A$20 -> 0 | AK27: =SUMIFS(SummerProvRep!$K:$K,SummerProvRep!$A:$A,Data!$A$27,SummerProvRep!$P:$P,"<>Coventry",SummerProvRep!$U:$U,Data!AK$17)/$BA$20*$A$20 -> 0 | AL27: =SUMIFS(SummerProvRep!$K:$K,SummerProvRep!$A:$A,Data!$A$27,SummerProvRep!$P:$P,"<>Coventry",SummerProvRep!$U:$U,Data!AL$17)/$BA$20*$A$20 -> 0 | AM27: =SUMIFS(SummerProvRep!$K:$K,SummerProvRep!$A:$A,Data!$A$27,SummerProvRep!$P:$P,"<>Coventry",SummerProvRep!$U:$U,Data!AM$17)/$BA$20*$A$20 -> 0 | AN27: =SUMIFS(SummerProvRep!$K:$K,SummerProvRep!$A:$A,Data!$A$27,SummerProvRep!$P:$P,"<>Coventry",SummerProvRep!$U:$U,Data!AN$17)/$BA$20*$A$20 -> 0 | AO27: =SUMIFS(SummerProvRep!$K:$K,SummerProvRep!$A:$A,Data!$A$27,SummerProvRep!$P:$P,"<>Coventry",SummerProvRep!$U:$U,Data!AO$17)/$BA$20*$A$20 -> 130 | AP27: =SUMIFS(SummerProvRep!$K:$K,SummerProvRep!$A:$A,Data!$A$27,SummerProvRep!$P:$P,"<>Coventry",SummerProvRep!$U:$U,Data!AP$17)/$BA$20*$A$20 -> 0 | AQ27: =SUMIFS(SummerProvRep!$K:$K,SummerProvRep!$A:$A,Data!$A$27,SummerProvRep!$P:$P,"<>Coventry",SummerProvRep!$U:$U,Data!AQ$17)/$BA$20*$A$20 -> 0 | AR27: 5 | AS27: 22524.76095 | AT27: 1111888.098 | AU27: 259.96875 | AV27: 1.96875 | AW27: 258 | AX27: =[13]Data!$AU27 -> 259.96875 | AY27: 258 | BB27: =($M$10-$AU$27)*$A$20 -> -127.96875 | BD27: 16897.96875 | BE27: =$BB$27/$BD$27*D27 -> 0 | BF27: 0 | BG27: 0 | BH27: 0 | BI27: -0.4922466643 | BJ27: 0 | BK27: 0 | BL27: -42.82545979 | BM27: -29.53479986 | BN27: -0.4922466643 | BO27: -14.27515326 | BP27: -1.476739993 | BQ27: 0 | BR27: -13.7829066 | BS27: -12.78303056 | BT27: 0 | BU27: -9.844933285 | BV27: 0 | BW27: 0 | BY27: =$BB$27/$BD$27*Y27 -> 0 | BZ27: 0 | CA27: 0 | CB27: 0 | CC27: 0 | CD27: 0 | CE27: 0 | CF27: -0.9844933285 | CG27: 0 | CH27: 0 | CI27: -0.4922466643 | CJ27: 0 | CK27: 0 | CL27: 0 | CM27: 0 | CN27: 0 | CO27: -0.9844933285 | CP27: 0 | CQ27: 0
A28: 8 | B28: Woodfield | C28: =10000/$A$16 -> 51.8134715 | D28: 0 | E28: =SUMIFS(SummerProvRep!$K:$K,SummerProvRep!$A:$A,Data!$A$28,SummerProvRep!$P:$P,"Coventry",SummerProvRep!$U:$U,Data!E$17)/$BA$20*$A$20 -> 0 | F28: =SUMIFS(SummerProvRep!$K:$K,SummerProvRep!$A:$A,Data!$A$28,SummerProvRep!$P:$P,"Coventry",SummerProvRep!$U:$U,Data!F$17)/$BA$20*$A$20 -> 0 | G28: =SUMIFS(SummerProvRep!$K:$K,SummerProvRep!$A:$A,Data!$A$28,SummerProvRep!$P:$P,"Coventry",SummerProvRep!$U:$U,Data!G$17)/$BA$20*$A$20 -> 0 | H28: =SUMIFS(SummerProvRep!$K:$K,SummerProvRep!$A:$A,Data!$A$28,SummerProvRep!$P:$P,"Coventry",SummerProvRep!$U:$U,Data!H$17)/$BA$20*$A$20 -> 0 | I28: =SUMIFS(SummerProvRep!$K:$K,SummerProvRep!$A:$A,Data!$A$28,SummerProvRep!$P:$P,"Coventry",SummerProvRep!$U:$U,Data!I$17)/$BA$20*$A$20 -> 0 | J28: =SUMIFS(SummerProvRep!$K:$K,SummerProvRep!$A:$A,Data!$A$28,SummerProvRep!$P:$P,"Coventry",SummerProvRep!$U:$U,Data!J$17)/$BA$20*$A$20 -> 0 | K28: =SUMIFS(SummerProvRep!$K:$K,SummerProvRep!$A:$A,Data!$A$28,SummerProvRep!$P:$P,"Coventry",SummerProvRep!$U:$U,Data!K$17)/$BA$20*$A$20 -> 0 | L28: =SUMIFS(SummerProvRep!$K:$K,SummerProvRep!$A:$A,Data!$A$28,SummerProvRep!$P:$P,"Coventry",SummerProvRep!$U:$U,Data!L$17)/$BA$20*$A$20 -> 0 | M28: =SUMIFS(SummerProvRep!$K:$K,SummerProvRep!$A:$A,Data!$A$28,SummerProvRep!$P:$P,"Coventry",SummerProvRep!$U:$U,Data!M$17)/$BA$20*$A$20 -> 0 | N28: =SUMIFS(SummerProvRep!$K:$K,SummerProvRep!$A:$A,Data!$A$28,SummerProvRep!$P:$P,"Coventry",SummerProvRep!$U:$U,Data!N$17)/$BA$20*$A$20 -> 0 | O28: =SUMIFS(SummerProvRep!$K:$K,SummerProvRep!$A:$A,Data!$A$28,SummerProvRep!$P:$P,"Coventry",SummerProvRep!$U:$U,Data!O$17)/$BA$20*$A$20 -> 585 | P28: =SUMIFS(SummerProvRep!$K:$K,SummerProvRep!$A:$A,Data!$A$28,SummerProvRep!$P:$P,"Coventry",SummerProvRep!$U:$U,Data!P$17)/$BA$20*$A$20 -> 0 | Q28: =SUMIFS(SummerProvRep!$K:$K,SummerProvRep!$A:$A,Data!$A$28,SummerProvRep!$P:$P,"Coventry",SummerProvRep!$U:$U,Data!Q$17)/$BA$20*$A$20 -> 9411.796875 | R28: =SUMIFS(SummerProvRep!$K:$K,SummerProvRep!$A:$A,Data!$A$28,SummerProvRep!$P:$P,"Coventry",SummerProvRep!$U:$U,Data!R$17)/$BA$20*$A$20 -> 0 | S28: =SUMIFS(SummerProvRep!$K:$K,SummerProvRep!$A:$A,Data!$A$28,SummerProvRep!$P:$P,"Coventry",SummerProvRep!$U:$U,Data!S$17)/$BA$20*$A$20 -> 26.40625 | T28: =SUMIFS(SummerProvRep!$K:$K,SummerProvRep!$A:$A,Data!$A$28,SummerProvRep!$P:$P,"Coventry",SummerProvRep!$U:$U,Data!T$17)/$BA$20*$A$20 -> 0 | U28: =SUMIFS(SummerProvRep!$K:$K,SummerProvRep!$A:$A,Data!$A$28,SummerProvRep!$P:$P,"Coventry",SummerProvRep!$U:$U,Data!U$17)/$BA$20*$A$20 -> 132.03125 | V28: =SUMIFS(SummerProvRep!$K:$K,SummerProvRep!$A:$A,Data!$A$28,SummerProvRep!$P:$P,"Coventry",SummerProvRep!$U:$U,Data!V$17)/$BA$20*$A$20 -> 0 | W28: 156.234375 | X28: 965163.6613 | Y28: 0 | Z28: =SUMIFS(SummerProvRep!$K:$K,SummerProvRep!$A:$A,Data!#REF!,SummerProvRep!$P:$P,"<>Coventry",SummerProvRep!$U:$U,Data!Z$17) -> 0 | AA28: =SUMIFS(SummerProvRep!$K:$K,SummerProvRep!$A:$A,Data!#REF!,SummerProvRep!$P:$P,"<>Coventry",SummerProvRep!$U:$U,Data!AA$17) -> 0 | AB28: =SUMIFS(SummerProvRep!$K:$K,SummerProvRep!$A:$A,Data!#REF!,SummerProvRep!$P:$P,"<>Coventry",SummerProvRep!$U:$U,Data!AB$17) -> 0 | AC28: =SUMIFS(SummerProvRep!$K:$K,SummerProvRep!$A:$A,Data!#REF!,SummerProvRep!$P:$P,"<>Coventry",SummerProvRep!$U:$U,Data!AC$17) -> 0 | AD28: =SUMIFS(SummerProvRep!$K:$K,SummerProvRep!$A:$A,Data!#REF!,SummerProvRep!$P:$P,"<>Coventry",SummerProvRep!$U:$U,Data!AD$17) -> 0 | AE28: =SUMIFS(SummerProvRep!$K:$K,SummerProvRep!$A:$A,Data!#REF!,SummerProvRep!$P:$P,"<>Coventry",SummerProvRep!$U:$U,Data!AE$17) -> 0 | AF28: =SUMIFS(SummerProvRep!$K:$K,SummerProvRep!$A:$A,Data!$A$28,SummerProvRep!$P:$P,"<>Coventry",SummerProvRep!$U:$U,Data!AF$17)/$BA$20*$A$20 -> 0 | AG28: =SUMIFS(SummerProvRep!$K:$K,SummerProvRep!$A:$A,Data!$A$28,SummerProvRep!$P:$P,"<>Coventry",SummerProvRep!$U:$U,Data!AG$17)/$BA$20*$A$20 -> 0 | AH28: =SUMIFS(SummerProvRep!$K:$K,SummerProvRep!$A:$A,Data!$A$28,SummerProvRep!$P:$P,"<>Coventry",SummerProvRep!$U:$U,Data!AH$17)/$BA$20*$A$20 -> 0 | AI28: =SUMIFS(SummerProvRep!$K:$K,SummerProvRep!$A:$A,Data!$A$28,SummerProvRep!$P:$P,"<>Coventry",SummerProvRep!$U:$U,Data!AI$17)/$BA$20*$A$20 -> 0 | AJ28: =SUMIFS(SummerProvRep!$K:$K,SummerProvRep!$A:$A,Data!$A$28,SummerProvRep!$P:$P,"<>Coventry",SummerProvRep!$U:$U,Data!AJ$17)/$BA$20*$A$20 -> 0 | AK28: =SUMIFS(SummerProvRep!$K:$K,SummerProvRep!$A:$A,Data!$A$28,SummerProvRep!$P:$P,"<>Coventry",SummerProvRep!$U:$U,Data!AK$17)/$BA$20*$A$20 -> 0 | AL28: =SUMIFS(SummerProvRep!$K:$K,SummerProvRep!$A:$A,Data!$A$28,SummerProvRep!$P:$P,"<>Coventry",SummerProvRep!$U:$U,Data!AL$17)/$BA$20*$A$20 -> 130 | AM28: =SUMIFS(SummerProvRep!$K:$K,SummerProvRep!$A:$A,Data!$A$28,SummerProvRep!$P:$P,"<>Coventry",SummerProvRep!$U:$U,Data!AM$17)/$BA$20*$A$20 -> 0 | AN28: =SUMIFS(SummerProvRep!$K:$K,SummerProvRep!$A:$A,Data!$A$28,SummerProvRep!$P:$P,"<>Coventry",SummerProvRep!$U:$U,Data!AN$17)/$BA$20*$A$20 -> 0 | AO28: =SUMIFS(SummerProvRep!$K:$K,SummerProvRep!$A:$A,Data!$A$28,SummerProvRep!$P:$P,"<>Coventry",SummerProvRep!$U:$U,Data!AO$17)/$BA$20*$A$20 -> 0 | AP28: =SUMIFS(SummerProvRep!$K:$K,SummerProvRep!$A:$A,Data!$A$28,SummerProvRep!$P:$P,"<>Coventry",SummerProvRep!$U:$U,Data!AP$17)/$BA$20*$A$20 -> 0 | AQ28: =SUMIFS(SummerProvRep!$K:$K,SummerProvRep!$A:$A,Data!$A$28,SummerProvRep!$P:$P,"<>Coventry",SummerProvRep!$U:$U,Data!AQ$17)/$BA$20*$A$20 -> 0 | AR28: =SUM(Y28:AQ28)/$A$20 -> 2 | AS28: 11712.88109 | AT28: 976876.5424 | AU28: 158.234375 | AV28: =AU28-AW28 -> -2.765625 | AW28: 161 | AX28: =[13]Data!$AU28 -> 158.234375 | AY28: 155 | BB28: =($M$11-$AU$28)*$A$20 -> 179.765625 | BD28: 10285.23438 | BE28: =$BB$28/$BD$28*D28 -> 0 | BF28: 0 | BG28: 0 | BH28: 0 | BI28: 0 | BJ28: 0 | BK28: 0 | BL28: 0 | BM28: 0 | BN28: 0 | BO28: 0 | BP28: 10.22464698 | BQ28: 0 | BR28: 164.499659 | BS28: 0 | BT28: 0.4615292041 | BU28: 0 | BV28: 2.307646021 | BW28: 0 | BY28: =$BB$28/$BD$28*Y28 -> 0 | BZ28: 0 | CA28: 0 | CB28: 0 | CC28: 0 | CD28: 0 | CE28: 0 | CF28: 0 | CG28: 0 | CH28: 0 | CI28: 0 | CJ28: 0 | CK28: 0 | CL28: 2.272143774 | CM28: 0 | CN28: 0 | CO28: 0 | CP28: 0 | CQ28: 0
A29: 9 | B29: Coventry ELC | C29: =10000/$A$16 -> 51.8134715 | D29: =120*A20 -> 7800 | E29: 0 | F29: 0 | G29: 0 | H29: 0 | I29: 0 | J29: 0 | K29: 0 | L29: 0 | M29: 0 | N29: 0 | O29: 0 | P29: 0 | Q29: 0 | R29: 0 | S29: 0 | T29: 0 | U29: 0 | V29: 0 | W29: 120 | X29: =SUMPRODUCT(D29:V29,$Z$12:$AR$12)/$A$16 -> 532186.0896 | Y29: 0 | Z29: 0 | AA29: 0 | AB29: 0 | AC29: 0 | AD29: 0 | AE29: 0 | AF29: 0 | AG29: 0 | AH29: 0 | AI29: 0 | AJ29: 0 | AK29: 0 | AL29: 0 | AM29: 0 | AN29: 0 | AO29: 0 | AP29: 0 | AQ29: 0 | AR29: =SUM(Y29:AQ29)/$A$20 -> 0 | AS29: =SUMPRODUCT(Y29:AQ29,$Z$12:$AR$12)/$A$16 -> 0 | AT29: 532186.0896 | AU29: 120 | AV29: =AU29-AW29 -> 0 | AW29: 120 | AX29: =[13]Data!$AU29 -> 120 | AY29: 120 | BB29: =($M$12-$AU$29)*$A$20 -> 0 | BD29: 7800 | BE29: =$BB$29/$BD$29*D29 -> 0 | BF29: 0 | BG29: 0 | BH29: 0 | BI29: 0 | BJ29: 0 | BK29: 0 | BL29: 0 | BM29: 0 | BN29: 0 | BO29: 0 | BP29: 0 | BQ29: 0 | BR29: 0 | BS29: 0 | BT29: 0 | BU29: 0 | BV29: 0 | BW29: 0 | BY29: =$BB$29/$BD$29*Y29 -> 0 | BZ29: 0 | CA29: 0 | CB29: 0 | CC29: 0 | CD29: 0 | CE29: 0 | CF29: 0 | CG29: 0 | CH29: 0 | CI29: 0 | CJ29: 0 | CK29: 0 | CL29: 0 | CM29: 0 | CN29: 0 | CO29: 0 | CP29: 0 | CQ29: 0
AS30: =SUM(AS21:AS29) -> 85684.21835 | AT30: =SUM(AT21:AT29) -> 6507581.343 | AU30: =SUM(AU21:AU29) -> 1411.25
B31: Summer Term 2026
A32: 65 | B32: School
A33: 1 | B33: Castle Wood | C33: =10000/$A$16 -> 51.8134715 | D33: =D21+BE21 -> 0 | E33: 0 | F33: 0 | G33: 0 | H33: =H21+BI21 -> 0 | I33: =I21+BJ21 -> 0 | J33: =J21+BK21 -> 74.58010945 | K33: =K21+BL21 -> 6568.876203 | L33: =L21+BM21 -> 671.2209851 | M33: =M21+BN21 -> 0 | N33: =N21+BO21 -> 522.0607662 | O33: =O21+BP21 -> 745.8010945 | P33: =P21+BQ21 -> 0 | Q33: =Q21+BR21 -> 2386.563503 | R33: =R21+BS21 -> 522.0607662 | S33: =S21+BT21 -> 0 | T33: =T21+BU21 -> 447.4806567 | U33: =U21+BV21 -> 187.6155878 | V33: =V21+BW21 -> 0 | W33: =SUM(D33:V33)/$A$20 -> 186.5578411 | X33: =SUMPRODUCT(E33:V33,$AA$6:$AR$6)/$A$16 -> 885145.8282 | Y33: =Y21+BY21 -> 0 | Z33: =Z21+BZ21 -> 0 | AA33: 0 | AB33: 0 | AC33: 0 | AD33: 0 | AE33: 0 | AF33: 149.1602189 | AG33: 0 | AH33: 0 | AI33: 0 | AJ33: 0 | AK33: 0 | AL33: 74.58010945 | AM33: 0 | AN33: 0 | AO33: 0 | AP33: 0 | AQ33: =AQ21+CQ21 -> 0 | AR33: =SUM(Z33:AQ33)/$A$20 -> 3.442158898 | AS33: =SUMPRODUCT(Y33:AQ33,$Z$6:$AR$6)/$A$16 -> 14989.87409 | AT33: =X33+AS33 -> 900135.7023 | AU33: =AR33+W33 -> 190 | AV33: =AU33-AW33 -> 0 | AW33: =M4 -> 190 | AX33: =[13]Data!$AU21 -> 165.59375 | AY33: =C4 -> 164 | BA33: =(AT33/69*200)/AU33 -> 13732.04733 | BC33: =X33/W33 -> 4744.618736
A34: 2 | B34: Kingsbury | C34: =10000/$A$16 -> 51.8134715 | D34: 0 | E34: 0 | F34: 0 | G34: 0 | H34: 0 | I34: 0 | J34: 0 | K34: 4115.698438 | L34: 137.8 | M34: 0 | N34: 0 | O34: 682.540625 | P34: 0 | Q34: 1678.360938 | R34: 0 | S34: 0 | T34: 0 | U34: 0 | V34: =V22+BW22 -> 0 | W34: 101.76 | X34: 478760.4702 | Y34: =Y22+BY22 -> 0 | Z34: 0 | AA34: 0 | AB34: 0 | AC34: 0 | AD34: 0 | AE34: 0 | AF34: 68.9 | AG34: 68.9 | AH34: 0 | AI34: 0 | AJ34: 0 | AK34: 0 | AL34: 137.8 | AM34: 0 | AN34: 0 | AO34: 0 | AP34: 0 | AQ34: 0 | AR34: 4.24 | AS34: 19769.54143 | AT34: 498530.0116 | AU34: 106 | AV34: =AU34-AW34 -> 0 | AW34: 106 | AX34: =[13]Data!$AU22 -> 100 | AY34: 103 | BA34: =(AT34/69*200)/AU34 -> 13632.21251 | BC34: =X34/W34 -> 4704.800218
A35: 3 | B35: Riverbank | C35: 51.8134715 | D35: 0 | E35: 0 | F35: 0 | G35: =G23+BH23 -> 396.1403782 | H35: 474.0331492 | I35: 0 | J35: 0 | K35: 5380.164968 | L35: 4018.154229 | M35: 81.2310326 | N35: 569.7299821 | O35: 659.8630457 | P35: 283.7522372 | Q35: 1724.768501 | R35: 427.2974866 | S35: 0 | T35: 213.6487433 | U35: 0 | V35: 0 | W35: 218.9043654 | X35: 920751.3739 | Y35: 0 | Z35: 0 | AA35: 0 | AB35: 0 | AC35: 0 | AD35: 0 | AE35: 0 | AF35: 0 | AG35: 71.21624776 | AH35: 0 | AI35: 0 | AJ35: 0 | AK35: 0 | AL35: 0 | AM35: 0 | AN35: 0 | AO35: 0 | AP35: 0 | AQ35: 0 | AR35: 1.095634581 | AS35: 3652.481029 | AT35: 924403.855 | AU35: 220 | AV35: =AU35-AW35 -> 0 | AW35: 220 | AX35: =[13]Data!$AU23 -> 200.796875 | AY35: 209 | BA35: =(AT35/69*200)/AU35 -> 12179.23393 | BC35: 4206.18096
A36: 4 | B36: Corley | C36: 51.8134715 | D36: 0 | E36: 0 | F36: 0 | G36: 210.0581455 | H36: 210.0581455 | I36: 0 | J36: 0 | K36: 8418.736611 | L36: 0 | M36: 427.7746608 | N36: 0 | O36: 481.38325 | P36: 0 | Q36: 836.9504233 | R36: 0 | S36: 0 | T36: 0 | U36: 0 | V36: 0 | W36: 162.8455575 | X36: 646236.652 | Y36: 0 | Z36: 0 | AA36: 0 | AB36: 0 | AC36: 0 | AD36: 0 | AE36: 0 | AF36: 140.0387636 | AG36: 0 | AH36: 0 | AI36: 0 | AJ36: 0 | AK36: 0 | AL36: 0 | AM36: 0 | AN36: 0 | AO36: 0 | AP36: 0 | AQ36: 0 | AR36: 2.154442518 | AS36: 7764.530092 | AT36: 654001.1821 | AU36: 165 | AV36: =AU36-AW36 -> 0 | AW36: 165 | AX36: =[13]Data!$AU24 -> 153.171875 | AY36: 155 | BA36: 11488.82182 | BC36: 3968.402098
A37: 5 | B37: Tiverton | C37: 51.8134715 | D37: 0 | E37: 0 | F37: 0 | G37: 0 | H37: 0 | I37: 0 | J37: 0 | K37: 5159.126908 | L37: 742.2900763 | M37: 0 | N37: 337.4045802 | O37: 413.3206107 | P37: 0 | Q37: 1183.024809 | R37: 472.3664122 | S37: 0 | T37: 404.8854962 | U37: 60.10019084 | V37: 0 | W37: 134.9618321 | X37: 599184.3763 | Y37: 0 | Z37: 0 | AA37: 0 | AB37: 0 | AC37: 0 | AD37: 0 | AE37: 0 | AF37: 0 | AG37: 0 | AH37: 0 | AI37: 0 | AJ37: 0 | AK37: 0 | AL37: 67.48091603 | AM37: 0 | AN37: 0 | AO37: 0 | AP37: 0 | AQ37: 0 | AR37: 1.038167939 | AS37: 6079.968812 | AT37: 605264.3451 | AU37: 136 | AV37: 0 | AW37: 136 | AX37: =[13]Data!$AU25 -> 131 | AY37: 133 | BA37: 12899.9221 | BC37: 4439.657992
A38: 6 | B38: Baginton Fields | C38: 51.8134715 | D38: 0 | E38: 0 | F38: 0 | G38: 0 | H38: 0 | I38: 0 | J38: 0 | K38: 1805.373134 | L38: 2471.940299 | M38: 0 | N38: 133.7313433 | O38: 812.8358209 | P38: 0 | Q38: 1902.537313 | R38: 802.3880597 | S38: 0 | T38: 133.7313433 | U38: 60.59701493 | V38: 0 | W38: 124.9712974 | X38: 611697.1702 | Y38: 0 | Z38: 0 | AA38: 0 | AB38: 0 | AC38: 0 | AD38: 0 | AE38: 0 | AF38: 0 | AG38: 66.86567164 | AH38: 0 | AI38: 0 | AJ38: 0 | AK38: 0 | AL38: 0 | AM38: 0 | AN38: 0 | AO38: 0 | AP38: 0 | AQ38: 0 | AR38: 1.028702641 | AS38: 3429.352217 | AT38: 615126.5224 | AU38: 126 | AV38: 0 | AW38: 126 | AX38: =[13]Data!$AU26 -> 122.484375 | AY38: 126 | BA38: 14150.59863 | BC38: 4894.701289
A39: 7 | B39: Sherbourne Fields | C39: 51.8134715 | D39: 0 | E39: 0 | F39: 0 | G39: 0 | H39: 64.50775334 | I39: 0 | J39: 0 | K39: 5612.17454 | L39: 3870.4652 | M39: 64.50775334 | N39: 1870.724847 | O39: 193.52326 | P39: 0 | Q39: 1806.217093 | R39: 1675.185719 | S39: 0 | T39: 1290.155067 | U39: 0 | V39: 0 | W39: 253.0378651 | X39: 1081113.561 | Y39: 0 | Z39: 0 | AA39: 0 | AB39: 0 | AC39: 0 | AD39: 0 | AE39: 0 | AF39: 129.0155067 | AG39: 0 | AH39: 0 | AI39: 64.50775334 | AJ39: 0 | AK39: 0 | AL39: 0 | AM39: 0 | AN39: 0 | AO39: 129.0155067 | AP39: 0 | AQ39: 0 | AR39: 4.962134872 | AS39: 22354.18036 | AT39: 1103467.741 | AU39: 258 | AV39: 0 | AW39: 258 | AX39: =[13]Data!$AU27 -> 259.96875 | AY39: 258 | BA39: 12397.12101 | BC39: 4272.536683
A40: 8 | B40: Woodfield | C40: =10000/$A$16 -> 51.8134715 | D40: 0 | E40: 0 | F40: 0 | G40: 0 | H40: 0 | I40: 0 | J40: 0 | K40: 0 | L40: 0 | M40: 0 | N40: 0 | O40: 595.224647 | P40: 0 | Q40: 9576.296534 | R40: 0 | S40: 26.8677792 | T40: 0 | U40: 134.338896 | V40: 0 | W40: 158.9650439 | X40: 982032.8198 | Y40: 0 | Z40: 0 | AA40: 0 | AB40: 0 | AC40: 0 | AD40: 0 | AE40: 0 | AF40: 0 | AG40: 0 | AH40: 0 | AI40: 0 | AJ40: 0 | AK40: 0 | AL40: 132.2721438 | AM40: 0 | AN40: 0 | AO40: 0 | AP40: 0 | AQ40: 0 | AR40: =SUM(Y40:AQ40)/$A$20 -> 2.034956058 | AS40: 11917.59917 | AT40: 993950.4189 | AU40: 161 | AV40: =AU40-AW40 -> 0 | AW40: 161 | AX40: =[13]Data!$AU28 -> 158.234375 | AY40: 155 | BA40: 17894.5075 | BC40: 6177.665199
A41: 9 | B41: Coventry ELC | C41: =10000/$A$16 -> 51.8134715 | D41: 7800 | E41: 0 | F41: 0 | G41: 0 | H41: 0 | I41: 0 | J41: 0 | K41: 0 | L41: 0 | M41: 0 | N41: 0 | O41: 0 | P41: 0 | Q41: 0 | R41: 0 | S41: 0 | T41: 0 | U41: 0 | V41: 0 | W41: 120 | X41: =SUMPRODUCT(D41:V41,$Z$12:$AR$12)/$A$16 -> 532186.0896 | Y41: 0 | Z41: 0 | AA41: 0 | AB41: 0 | AC41: 0 | AD41: 0 | AE41: 0 | AF41: 0 | AG41: 0 | AH41: 0 | AI41: 0 | AJ41: 0 | AK41: 0 | AL41: 0 | AM41: 0 | AN41: 0 | AO41: 0 | AP41: 0 | AQ41: 0 | AR41: =SUM(Y41:AQ41)/$A$20 -> 0 | AS41: =SUMPRODUCT(Y41:AQ41,$Z$12:$AR$12)/$A$16 -> 0 | AT41: 532186.0896 | AU41: 120 | AV41: =AU41-AW41 -> 0 | AW41: 120 | AX41: =[13]Data!$AU29 -> 120 | AY41: 120 | BA41: 12854.73646 | BC41: 4434.88408
AS42: =SUM(AS33:AS41) -> 89957.5272 | AT42: =SUM(AT33:AT41) -> 6827065.868 | AU42: =SUM(AU33:AU41) -> 1482
D44: Coventry pupils | Y44: Other LA Pupils
B45: Autumn Term 2026
A46: 74 | B46: School | BA46: 75
A47: 1 | B47: Castle Wood | C47: =10000/$A$16 -> 51.8134715 | D47: 0 | E47: =SUMIFS(AutumnProvRep!$K:$K,AutumnProvRep!$A:$A,Data!$A$21,AutumnProvRep!$P:$P,"Coventry",AutumnProvRep!$U:$U,Data!E$17)/$BA$46*$A$46 -> 0 | F47: =SUMIFS(AutumnProvRep!$K:$K,AutumnProvRep!$A:$A,Data!$A$21,AutumnProvRep!$P:$P,"Coventry",AutumnProvRep!$U:$U,Data!F$17)/$BA$46*$A$46 -> 0 | G47: =SUMIFS(AutumnProvRep!$K:$K,AutumnProvRep!$A:$A,Data!$A$21,AutumnProvRep!$P:$P,"Coventry",AutumnProvRep!$U:$U,Data!G$17)/$BA$46*$A$46 -> 72.02666667 | H47: =SUMIFS(AutumnProvRep!$K:$K,AutumnProvRep!$A:$A,Data!$A$21,AutumnProvRep!$P:$P,"Coventry",AutumnProvRep!$U:$U,Data!H$17)/$BA$46*$A$46 -> 0 | I47: =SUMIFS(AutumnProvRep!$K:$K,AutumnProvRep!$A:$A,Data!$A$21,AutumnProvRep!$P:$P,"Coventry",AutumnProvRep!$U:$U,Data!I$17)/$BA$46*$A$46 -> 0 | J47: =SUMIFS(AutumnProvRep!$K:$K,AutumnProvRep!$A:$A,Data!$A$21,AutumnProvRep!$P:$P,"Coventry",AutumnProvRep!$U:$U,Data!J$17)/$BA$46*$A$46 -> 74 | K47: =SUMIFS(AutumnProvRep!$K:$K,AutumnProvRep!$A:$A,Data!$A$21,AutumnProvRep!$P:$P,"Coventry",AutumnProvRep!$U:$U,Data!K$17)/$BA$46*$A$46 -> 8323.52 | L47: =SUMIFS(AutumnProvRep!$K:$K,AutumnProvRep!$A:$A,Data!$A$21,AutumnProvRep!$P:$P,"Coventry",AutumnProvRep!$U:$U,Data!L$17)/$BA$46*$A$46 -> 592 | M47: =SUMIFS(AutumnProvRep!$K:$K,AutumnProvRep!$A:$A,Data!$A$21,AutumnProvRep!$P:$P,"Coventry",AutumnProvRep!$U:$U,Data!M$17)/$BA$46*$A$46 -> 0 | N47: =SUMIFS(AutumnProvRep!$K:$K,AutumnProvRep!$A:$A,Data!$A$21,AutumnProvRep!$P:$P,"Coventry",AutumnProvRep!$U:$U,Data!N$17)/$BA$46*$A$46 -> 514.0533333 | O47: =SUMIFS(AutumnProvRep!$K:$K,AutumnProvRep!$A:$A,Data!$A$21,AutumnProvRep!$P:$P,"Coventry",AutumnProvRep!$U:$U,Data!O$17)/$BA$46*$A$46 -> 751.84 | P47: =SUMIFS(AutumnProvRep!$K:$K,AutumnProvRep!$A:$A,Data!$A$21,AutumnProvRep!$P:$P,"Coventry",AutumnProvRep!$U:$U,Data!P$17)/$BA$46*$A$46 -> 0 | Q47: =SUMIFS(AutumnProvRep!$K:$K,AutumnProvRep!$A:$A,Data!$A$21,AutumnProvRep!$P:$P,"Coventry",AutumnProvRep!$U:$U,Data!Q$17)/$BA$46*$A$46 -> 2244.666667 | R47: =SUMIFS(AutumnProvRep!$K:$K,AutumnProvRep!$A:$A,Data!$A$21,AutumnProvRep!$P:$P,"Coventry",AutumnProvRep!$U:$U,Data!R$17)/$BA$46*$A$46 -> 444 | S47: =SUMIFS(AutumnProvRep!$K:$K,AutumnProvRep!$A:$A,Data!$A$21,AutumnProvRep!$P:$P,"Coventry",AutumnProvRep!$U:$U,Data!S$17)/$BA$46*$A$46 -> 0 | T47: =SUMIFS(AutumnProvRep!$K:$K,AutumnProvRep!$A:$A,Data!$A$21,AutumnProvRep!$P:$P,"Coventry",AutumnProvRep!$U:$U,Data!T$17)/$BA$46*$A$46 -> 296 | U47: =SUMIFS(AutumnProvRep!$K:$K,AutumnProvRep!$A:$A,Data!$A$21,AutumnProvRep!$P:$P,"Coventry",AutumnProvRep!$U:$U,Data!U$17)/$BA$46*$A$46 -> 92.74666667 | V47: =SUMIFS(AutumnProvRep!$K:$K,AutumnProvRep!$A:$A,Data!$A$21,AutumnProvRep!$P:$P,"Coventry",AutumnProvRep!$U:$U,Data!V$17)/$BA$46*$A$46 -> 0 | W47: =SUM(D47:V47)/$A$46 -> 181.1466667 | X47: =SUMPRODUCT(D47:V47,$Z$6:$AR$6)/$A$16 -> 922278.2311 | Y47: 0 | Z47: =SUMIFS(AutumnProvRep!$K:$K,AutumnProvRep!$A:$A,Data!$A$21,AutumnProvRep!$P:$P,"<>Coventry",AutumnProvRep!$U:$U,Data!Z$17)/$BA$46*$A$46 -> 0 | AA47: =SUMIFS(AutumnProvRep!$K:$K,AutumnProvRep!$A:$A,Data!$A$21,AutumnProvRep!$P:$P,"<>Coventry",AutumnProvRep!$U:$U,Data!AA$17)/$BA$46*$A$46 -> 0 | AB47: =SUMIFS(AutumnProvRep!$K:$K,AutumnProvRep!$A:$A,Data!$A$21,AutumnProvRep!$P:$P,"<>Coventry",AutumnProvRep!$U:$U,Data!AB$17)/$BA$46*$A$46 -> 0 | AC47: =SUMIFS(AutumnProvRep!$K:$K,AutumnProvRep!$A:$A,Data!$A$21,AutumnProvRep!$P:$P,"<>Coventry",AutumnProvRep!$U:$U,Data!AC$17)/$BA$46*$A$46 -> 0 | AD47: =SUMIFS(AutumnProvRep!$K:$K,AutumnProvRep!$A:$A,Data!$A$21,AutumnProvRep!$P:$P,"<>Coventry",AutumnProvRep!$U:$U,Data!AD$17)/$BA$46*$A$46 -> 0 | AE47: =SUMIFS(AutumnProvRep!$K:$K,AutumnProvRep!$A:$A,Data!$A$21,AutumnProvRep!$P:$P,"<>Coventry",AutumnProvRep!$U:$U,Data!AE$17)/$BA$46*$A$46 -> 0 | AF47: =SUMIFS(AutumnProvRep!$K:$K,AutumnProvRep!$A:$A,Data!$A$21,AutumnProvRep!$P:$P,"<>Coventry",AutumnProvRep!$U:$U,Data!AF$17)/$BA$46*$A$46 -> 292.0533333 | AG47: =SUMIFS(AutumnProvRep!$K:$K,AutumnProvRep!$A:$A,Data!$A$21,AutumnProvRep!$P:$P,"<>Coventry",AutumnProvRep!$U:$U,Data!AG$17)/$BA$46*$A$46 -> 0 | AH47: =SUMIFS(AutumnProvRep!$K:$K,AutumnProvRep!$A:$A,Data!$A$21,AutumnProvRep!$P:$P,"<>Coventry",AutumnProvRep!$U:$U,Data!AH$17)/$BA$46*$A$46 -> 0 | AI47: =SUMIFS(AutumnProvRep!$K:$K,AutumnProvRep!$A:$A,Data!$A$21,AutumnProvRep!$P:$P,"<>Coventry",AutumnProvRep!$U:$U,Data!AI$17)/$BA$46*$A$46 -> 0 | AJ47: =SUMIFS(AutumnProvRep!$K:$K,AutumnProvRep!$A:$A,Data!$A$21,AutumnProvRep!$P:$P,"<>Coventry",AutumnProvRep!$U:$U,Data!AJ$17)/$BA$46*$A$46 -> 0 | AK47: =SUMIFS(AutumnProvRep!$K:$K,AutumnProvRep!$A:$A,Data!$A$21,AutumnProvRep!$P:$P,"<>Coventry",AutumnProvRep!$U:$U,Data!AK$17)/$BA$46*$A$46 -> 0 | AL47: =SUMIFS(AutumnProvRep!$K:$K,AutumnProvRep!$A:$A,Data!$A$21,AutumnProvRep!$P:$P,"<>Coventry",AutumnProvRep!$U:$U,Data!AL$17)/$BA$46*$A$46 -> 0 | AM47: =SUMIFS(AutumnProvRep!$K:$K,AutumnProvRep!$A:$A,Data!$A$21,AutumnProvRep!$P:$P,"<>Coventry",AutumnProvRep!$U:$U,Data!AM$17)/$BA$46*$A$46 -> 0 | AN47: =SUMIFS(AutumnProvRep!$K:$K,AutumnProvRep!$A:$A,Data!$A$21,AutumnProvRep!$P:$P,"<>Coventry",AutumnProvRep!$U:$U,Data!AN$17)/$BA$46*$A$46 -> 0 | AO47: =SUMIFS(AutumnProvRep!$K:$K,AutumnProvRep!$A:$A,Data!$A$21,AutumnProvRep!$P:$P,"<>Coventry",AutumnProvRep!$U:$U,Data!AO$17)/$BA$46*$A$46 -> 0 | AP47: =SUMIFS(AutumnProvRep!$K:$K,AutumnProvRep!$A:$A,Data!$A$21,AutumnProvRep!$P:$P,"<>Coventry",AutumnProvRep!$U:$U,Data!AP$17)/$BA$46*$A$46 -> 0 | AQ47: =SUMIFS(AutumnProvRep!$K:$K,AutumnProvRep!$A:$A,Data!$A$21,AutumnProvRep!$P:$P,"<>Coventry",AutumnProvRep!$U:$U,Data!AQ$17)/$BA$46*$A$46 -> 0 | AR47: =SUM(Y47:AQ47)/$A$46 -> 3.946666667 | AS47: =SUMPRODUCT(Y47:AQ47,$Z$6:$AR$6)/$A$16 -> 16193.06566 | AT47: =X47+AS47 -> 938471.2968 | AU47: =AR47+W47 -> 185.0933333 | AV47: =AU47-AW47 -> -4.906666667 | AW47: =+O4 -> 190 | AX47: =[13]Data!$AU59 -> 185.0933333 | AY47: =E4 -> 190 | BB47: =($O$4-$AU$47)*$A$46 -> 363.0933333 | BD47: =AU47*$A$46 -> 13696.90667 | BE47: =$BB$47/$BD$47*D47 -> 0 | BF47: 0 | BG47: 0 | BH47: 1.909365605 | BI47: 0 | BJ47: 0 | BK47: 1.961676992 | BL47: 220.649428 | BM47: 15.69341593 | BN47: 0 | BO47: 13.62711617 | BP47: 19.93063824 | BQ47: 0 | BR47: 59.50420208 | BS47: 11.77006195 | BT47: 0 | BU47: 7.846707967 | BV47: 2.458635163 | BW47: 0 | BY47: =$BB$47/$BD$47*Y47 -> 0 | BZ47: 0 | CA47: 0 | CB47: 0 | CC47: 0 | CD47: 0 | CE47: 0 | CF47: 7.742085194 | CG47: 0 | CH47: 0 | CI47: 0 | CJ47: 0 | CK47: 0 | CL47: 0 | CM47: 0 | CN47: 0 | CO47: 0 | CP47: 0 | CQ47: 0
A48: 2 | B48: Kingsbury | C48: =10000/$A$16 -> 51.8134715 | D48: 0 | E48: =SUMIFS(AutumnProvRep!$K:$K,AutumnProvRep!$A:$A,Data!$A$22,AutumnProvRep!$P:$P,"Coventry",AutumnProvRep!$U:$U,Data!E$17)/$BA$46*$A$46 -> 0 | F48: =SUMIFS(AutumnProvRep!$K:$K,AutumnProvRep!$A:$A,Data!$A$22,AutumnProvRep!$P:$P,"Coventry",AutumnProvRep!$U:$U,Data!F$17)/$BA$46*$A$46 -> 0 | G48: =SUMIFS(AutumnProvRep!$K:$K,AutumnProvRep!$A:$A,Data!$A$22,AutumnProvRep!$P:$P,"Coventry",AutumnProvRep!$U:$U,Data!G$17)/$BA$46*$A$46 -> 0 | H48: =SUMIFS(AutumnProvRep!$K:$K,AutumnProvRep!$A:$A,Data!$A$22,AutumnProvRep!$P:$P,"Coventry",AutumnProvRep!$U:$U,Data!H$17)/$BA$46*$A$46 -> 0 | I48: =SUMIFS(AutumnProvRep!$K:$K,AutumnProvRep!$A:$A,Data!$A$22,AutumnProvRep!$P:$P,"Coventry",AutumnProvRep!$U:$U,Data!I$17)/$BA$46*$A$46 -> 0 | J48: =SUMIFS(AutumnProvRep!$K:$K,AutumnProvRep!$A:$A,Data!$A$22,AutumnProvRep!$P:$P,"Coventry",AutumnProvRep!$U:$U,Data!J$17)/$BA$46*$A$46 -> 0 | K48: =SUMIFS(AutumnProvRep!$K:$K,AutumnProvRep!$A:$A,Data!$A$22,AutumnProvRep!$P:$P,"Coventry",AutumnProvRep!$U:$U,Data!K$17)/$BA$46*$A$46 -> 4184.453333 | L48: =SUMIFS(AutumnProvRep!$K:$K,AutumnProvRep!$A:$A,Data!$A$22,AutumnProvRep!$P:$P,"Coventry",AutumnProvRep!$U:$U,Data!L$17)/$BA$46*$A$46 -> 148 | M48: =SUMIFS(AutumnProvRep!$K:$K,AutumnProvRep!$A:$A,Data!$A$22,AutumnProvRep!$P:$P,"Coventry",AutumnProvRep!$U:$U,Data!M$17)/$BA$46*$A$46 -> 0 | N48: =SUMIFS(AutumnProvRep!$K:$K,AutumnProvRep!$A:$A,Data!$A$22,AutumnProvRep!$P:$P,"Coventry",AutumnProvRep!$U:$U,Data!N$17)/$BA$46*$A$46 -> 0 | O48: =SUMIFS(AutumnProvRep!$K:$K,AutumnProvRep!$A:$A,Data!$A$22,AutumnProvRep!$P:$P,"Coventry",AutumnProvRep!$U:$U,Data!O$17)/$BA$46*$A$46 -> 1216.56 | P48: =SUMIFS(AutumnProvRep!$K:$K,AutumnProvRep!$A:$A,Data!$A$22,AutumnProvRep!$P:$P,"Coventry",AutumnProvRep!$U:$U,Data!P$17)/$BA$46*$A$46 -> 0 | Q48: =SUMIFS(AutumnProvRep!$K:$K,AutumnProvRep!$A:$A,Data!$A$22,AutumnProvRep!$P:$P,"Coventry",AutumnProvRep!$U:$U,Data!Q$17)/$BA$46*$A$46 -> 2033.52 | R48: =SUMIFS(AutumnProvRep!$K:$K,AutumnProvRep!$A:$A,Data!$A$22,AutumnProvRep!$P:$P,"Coventry",AutumnProvRep!$U:$U,Data!R$17)/$BA$46*$A$46 -> 0 | S48: =SUMIFS(AutumnProvRep!$K:$K,AutumnProvRep!$A:$A,Data!$A$22,AutumnProvRep!$P:$P,"Coventry",AutumnProvRep!$U:$U,Data!S$17)/$BA$46*$A$46 -> 0 | T48: =SUMIFS(AutumnProvRep!$K:$K,AutumnProvRep!$A:$A,Data!$A$22,AutumnProvRep!$P:$P,"Coventry",AutumnProvRep!$U:$U,Data!T$17)/$BA$46*$A$46 -> 0 | U48: =SUMIFS(AutumnProvRep!$K:$K,AutumnProvRep!$A:$A,Data!$A$22,AutumnProvRep!$P:$P,"Coventry",AutumnProvRep!$U:$U,Data!U$17)/$BA$46*$A$46 -> 0 | V48: =SUMIFS(AutumnProvRep!$K:$K,AutumnProvRep!$A:$A,Data!$A$22,AutumnProvRep!$P:$P,"Coventry",AutumnProvRep!$U:$U,Data!V$17)/$BA$46*$A$46 -> 0 | W48: 102.4666667 | X48: 587292.7575 | Y48: 0 | Z48: =SUMIFS(AutumnProvRep!$K:$K,AutumnProvRep!$A:$A,Data!$A$22,AutumnProvRep!$P:$P,"<>Coventry",AutumnProvRep!$U:$U,Data!Z$17)/$BA$46*$A$46 -> 0 | AA48: =SUMIFS(AutumnProvRep!$K:$K,AutumnProvRep!$A:$A,Data!$A$22,AutumnProvRep!$P:$P,"<>Coventry",AutumnProvRep!$U:$U,Data!AA$17)/$BA$46*$A$46 -> 0 | AB48: =SUMIFS(AutumnProvRep!$K:$K,AutumnProvRep!$A:$A,Data!$A$22,AutumnProvRep!$P:$P,"<>Coventry",AutumnProvRep!$U:$U,Data!AB$17)/$BA$46*$A$46 -> 0 | AC48: =SUMIFS(AutumnProvRep!$K:$K,AutumnProvRep!$A:$A,Data!$A$22,AutumnProvRep!$P:$P,"<>Coventry",AutumnProvRep!$U:$U,Data!AC$17)/$BA$46*$A$46 -> 0 | AD48: =SUMIFS(AutumnProvRep!$K:$K,AutumnProvRep!$A:$A,Data!$A$22,AutumnProvRep!$P:$P,"<>Coventry",AutumnProvRep!$U:$U,Data!AD$17)/$BA$46*$A$46 -> 0 | AE48: =SUMIFS(AutumnProvRep!$K:$K,AutumnProvRep!$A:$A,Data!$A$22,AutumnProvRep!$P:$P,"<>Coventry",AutumnProvRep!$U:$U,Data!AE$17)/$BA$46*$A$46 -> 0 | AF48: =SUMIFS(AutumnProvRep!$K:$K,AutumnProvRep!$A:$A,Data!$A$22,AutumnProvRep!$P:$P,"<>Coventry",AutumnProvRep!$U:$U,Data!AF$17)/$BA$46*$A$46 -> 74 | AG48: =SUMIFS(AutumnProvRep!$K:$K,AutumnProvRep!$A:$A,Data!$A$22,AutumnProvRep!$P:$P,"<>Coventry",AutumnProvRep!$U:$U,Data!AG$17)/$BA$46*$A$46 -> 74 | AH48: =SUMIFS(AutumnProvRep!$K:$K,AutumnProvRep!$A:$A,Data!$A$22,AutumnProvRep!$P:$P,"<>Coventry",AutumnProvRep!$U:$U,Data!AH$17)/$BA$46*$A$46 -> 0 | AI48: =SUMIFS(AutumnProvRep!$K:$K,AutumnProvRep!$A:$A,Data!$A$22,AutumnProvRep!$P:$P,"<>Coventry",AutumnProvRep!$U:$U,Data!AI$17)/$BA$46*$A$46 -> 0 | AJ48: =SUMIFS(AutumnProvRep!$K:$K,AutumnProvRep!$A:$A,Data!$A$22,AutumnProvRep!$P:$P,"<>Coventry",AutumnProvRep!$U:$U,Data!AJ$17)/$BA$46*$A$46 -> 0 | AK48: =SUMIFS(AutumnProvRep!$K:$K,AutumnProvRep!$A:$A,Data!$A$22,AutumnProvRep!$P:$P,"<>Coventry",AutumnProvRep!$U:$U,Data!AK$17)/$BA$46*$A$46 -> 0 | AL48: =SUMIFS(AutumnProvRep!$K:$K,AutumnProvRep!$A:$A,Data!$A$22,AutumnProvRep!$P:$P,"<>Coventry",AutumnProvRep!$U:$U,Data!AL$17)/$BA$46*$A$46 -> 74 | AM48: =SUMIFS(AutumnProvRep!$K:$K,AutumnProvRep!$A:$A,Data!$A$22,AutumnProvRep!$P:$P,"<>Coventry",AutumnProvRep!$U:$U,Data!AM$17)/$BA$46*$A$46 -> 0 | AN48: =SUMIFS(AutumnProvRep!$K:$K,AutumnProvRep!$A:$A,Data!$A$22,AutumnProvRep!$P:$P,"<>Coventry",AutumnProvRep!$U:$U,Data!AN$17)/$BA$46*$A$46 -> 0 | AO48: =SUMIFS(AutumnProvRep!$K:$K,AutumnProvRep!$A:$A,Data!$A$22,AutumnProvRep!$P:$P,"<>Coventry",AutumnProvRep!$U:$U,Data!AO$17)/$BA$46*$A$46 -> 0 | AP48: =SUMIFS(AutumnProvRep!$K:$K,AutumnProvRep!$A:$A,Data!$A$22,AutumnProvRep!$P:$P,"<>Coventry",AutumnProvRep!$U:$U,Data!AP$17)/$BA$46*$A$46 -> 0 | AQ48: =SUMIFS(AutumnProvRep!$K:$K,AutumnProvRep!$A:$A,Data!$A$22,AutumnProvRep!$P:$P,"<>Coventry",AutumnProvRep!$U:$U,Data!AQ$17)/$BA$46*$A$46 -> 0 | AR48: =SUM(Y48:AQ48)/$A$46 -> 3 | AS48: 14565.55688 | AT48: 601858.3144 | AU48: =AR48+W48 -> 105.4666667 | AV48: -0.5333333333 | AW48: =+O5 -> 106 | AX48: =[13]Data!$AU60 -> 105.4666667 | AY48: =E5 -> 106 | BB48: =($O$5-$AU$48)*$A$46 -> 39.46666667 | BD48: =AU48*$A$46 -> 7804.533333 | BE48: =$BB$48/$BD$48*D48 -> 0 | BF48: 0 | BG48: 0 | BH48: 0 | BI48: 0 | BJ48: 0 | BK48: 0 | BL48: 21.16032027 | BM48: 0.7484197219 | BN48: 0 | BO48: 0 | BP48: 6.152010114 | BQ48: 0 | BR48: 10.28328698 | BS48: 0 | BT48: 0 | BU48: 0 | BV48: 0 | BW48: 0 | BY48: =$BB$48/$BD$48*Y48 -> 0 | BZ48: 0 | CA48: 0 | CB48: 0 | CC48: 0 | CD48: 0 | CE48: 0 | CF48: 0.3742098609 | CG48: 0.3742098609 | CH48: 0 | CI48: 0 | CJ48: 0 | CK48: 0 | CL48: 0.3742098609 | CM48: 0 | CN48: 0 | CO48: 0 | CP48: 0 | CQ48: 0
A49: 3 | B49: RiverBank | C49: 51.8134715 | D49: 0 | E49: =SUMIFS(AutumnProvRep!$K:$K,AutumnProvRep!$A:$A,Data!$A$23,AutumnProvRep!$P:$P,"Coventry",AutumnProvRep!$U:$U,Data!E$17)/$BA$46*$A$46 -> 0 | F49: =SUMIFS(AutumnProvRep!$K:$K,AutumnProvRep!$A:$A,Data!$A$23,AutumnProvRep!$P:$P,"Coventry",AutumnProvRep!$U:$U,Data!F$17)/$BA$46*$A$46 -> 0 | G49: =SUMIFS(AutumnProvRep!$K:$K,AutumnProvRep!$A:$A,Data!$A$23,AutumnProvRep!$P:$P,"Coventry",AutumnProvRep!$U:$U,Data!G$17)/$BA$46*$A$46 -> 148 | H49: =SUMIFS(AutumnProvRep!$K:$K,AutumnProvRep!$A:$A,Data!$A$23,AutumnProvRep!$P:$P,"Coventry",AutumnProvRep!$U:$U,Data!H$17)/$BA$46*$A$46 -> 222 | I49: =SUMIFS(AutumnProvRep!$K:$K,AutumnProvRep!$A:$A,Data!$A$23,AutumnProvRep!$P:$P,"Coventry",AutumnProvRep!$U:$U,Data!I$17)/$BA$46*$A$46 -> 0 | J49: =SUMIFS(AutumnProvRep!$K:$K,AutumnProvRep!$A:$A,Data!$A$23,AutumnProvRep!$P:$P,"Coventry",AutumnProvRep!$U:$U,Data!J$17)/$BA$46*$A$46 -> 0 | K49: =SUMIFS(AutumnProvRep!$K:$K,AutumnProvRep!$A:$A,Data!$A$23,AutumnProvRep!$P:$P,"Coventry",AutumnProvRep!$U:$U,Data!K$17)/$BA$46*$A$46 -> 6802.08 | L49: =SUMIFS(AutumnProvRep!$K:$K,AutumnProvRep!$A:$A,Data!$A$23,AutumnProvRep!$P:$P,"Coventry",AutumnProvRep!$U:$U,Data!L$17)/$BA$46*$A$46 -> 3623.04 | M49: =SUMIFS(AutumnProvRep!$K:$K,AutumnProvRep!$A:$A,Data!$A$23,AutumnProvRep!$P:$P,"Coventry",AutumnProvRep!$U:$U,Data!M$17)/$BA$46*$A$46 -> 74 | N49: =SUMIFS(AutumnProvRep!$K:$K,AutumnProvRep!$A:$A,Data!$A$23,AutumnProvRep!$P:$P,"Coventry",AutumnProvRep!$U:$U,Data!N$17)/$BA$46*$A$46 -> 592 | O49: =SUMIFS(AutumnProvRep!$K:$K,AutumnProvRep!$A:$A,Data!$A$23,AutumnProvRep!$P:$P,"Coventry",AutumnProvRep!$U:$U,Data!O$17)/$BA$46*$A$46 -> 671.92 | P49: =SUMIFS(AutumnProvRep!$K:$K,AutumnProvRep!$A:$A,Data!$A$23,AutumnProvRep!$P:$P,"Coventry",AutumnProvRep!$U:$U,Data!P$17)/$BA$46*$A$46 -> 222 | Q49: =SUMIFS(AutumnProvRep!$K:$K,AutumnProvRep!$A:$A,Data!$A$23,AutumnProvRep!$P:$P,"Coventry",AutumnProvRep!$U:$U,Data!Q$17)/$BA$46*$A$46 -> 2514.026667 | R49: =SUMIFS(AutumnProvRep!$K:$K,AutumnProvRep!$A:$A,Data!$A$23,AutumnProvRep!$P:$P,"Coventry",AutumnProvRep!$U:$U,Data!R$17)/$BA$46*$A$46 -> 592 | S49: =SUMIFS(AutumnProvRep!$K:$K,AutumnProvRep!$A:$A,Data!$A$23,AutumnProvRep!$P:$P,"Coventry",AutumnProvRep!$U:$U,Data!S$17)/$BA$46*$A$46 -> 0 | T49: =SUMIFS(AutumnProvRep!$K:$K,AutumnProvRep!$A:$A,Data!$A$23,AutumnProvRep!$P:$P,"Coventry",AutumnProvRep!$U:$U,Data!T$17)/$BA$46*$A$46 -> 222 | U49: =SUMIFS(AutumnProvRep!$K:$K,AutumnProvRep!$A:$A,Data!$A$23,AutumnProvRep!$P:$P,"Coventry",AutumnProvRep!$U:$U,Data!U$17)/$BA$46*$A$46 -> 0 | V49: =SUMIFS(AutumnProvRep!$K:$K,AutumnProvRep!$A:$A,Data!$A$23,AutumnProvRep!$P:$P,"Coventry",AutumnProvRep!$U:$U,Data!V$17)/$BA$46*$A$46 -> 0 | W49: 211.9333333 | X49: 1044722.858 | Y49: 0 | Z49: =SUMIFS(AutumnProvRep!$K:$K,AutumnProvRep!$A:$A,Data!$A$23,AutumnProvRep!$P:$P,"<>Coventry",AutumnProvRep!$U:$U,Data!Z$17)/$BA$46*$A$46 -> 0 | AA49: =SUMIFS(AutumnProvRep!$K:$K,AutumnProvRep!$A:$A,Data!$A$23,AutumnProvRep!$P:$P,"<>Coventry",AutumnProvRep!$U:$U,Data!AA$17)/$BA$46*$A$46 -> 0 | AB49: =SUMIFS(AutumnProvRep!$K:$K,AutumnProvRep!$A:$A,Data!$A$23,AutumnProvRep!$P:$P,"<>Coventry",AutumnProvRep!$U:$U,Data!AB$17)/$BA$46*$A$46 -> 0 | AC49: =SUMIFS(AutumnProvRep!$K:$K,AutumnProvRep!$A:$A,Data!$A$23,AutumnProvRep!$P:$P,"<>Coventry",AutumnProvRep!$U:$U,Data!AC$17)/$BA$46*$A$46 -> 0 | AD49: =SUMIFS(AutumnProvRep!$K:$K,AutumnProvRep!$A:$A,Data!$A$23,AutumnProvRep!$P:$P,"<>Coventry",AutumnProvRep!$U:$U,Data!AD$17)/$BA$46*$A$46 -> 0 | AE49: =SUMIFS(AutumnProvRep!$K:$K,AutumnProvRep!$A:$A,Data!$A$23,AutumnProvRep!$P:$P,"<>Coventry",AutumnProvRep!$U:$U,Data!AE$17)/$BA$46*$A$46 -> 0 | AF49: =SUMIFS(AutumnProvRep!$K:$K,AutumnProvRep!$A:$A,Data!$A$23,AutumnProvRep!$P:$P,"<>Coventry",AutumnProvRep!$U:$U,Data!AF$17)/$BA$46*$A$46 -> 0 | AG49: =SUMIFS(AutumnProvRep!$K:$K,AutumnProvRep!$A:$A,Data!$A$23,AutumnProvRep!$P:$P,"<>Coventry",AutumnProvRep!$U:$U,Data!AG$17)/$BA$46*$A$46 -> 74 | AH49: =SUMIFS(AutumnProvRep!$K:$K,AutumnProvRep!$A:$A,Data!$A$23,AutumnProvRep!$P:$P,"<>Coventry",AutumnProvRep!$U:$U,Data!AH$17)/$BA$46*$A$46 -> 0 | AI49: =SUMIFS(AutumnProvRep!$K:$K,AutumnProvRep!$A:$A,Data!$A$23,AutumnProvRep!$P:$P,"<>Coventry",AutumnProvRep!$U:$U,Data!AI$17)/$BA$46*$A$46 -> 0 | AJ49: =SUMIFS(AutumnProvRep!$K:$K,AutumnProvRep!$A:$A,Data!$A$23,AutumnProvRep!$P:$P,"<>Coventry",AutumnProvRep!$U:$U,Data!AJ$17)/$BA$46*$A$46 -> 0 | AK49: =SUMIFS(AutumnProvRep!$K:$K,AutumnProvRep!$A:$A,Data!$A$23,AutumnProvRep!$P:$P,"<>Coventry",AutumnProvRep!$U:$U,Data!AK$17)/$BA$46*$A$46 -> 0 | AL49: =SUMIFS(AutumnProvRep!$K:$K,AutumnProvRep!$A:$A,Data!$A$23,AutumnProvRep!$P:$P,"<>Coventry",AutumnProvRep!$U:$U,Data!AL$17)/$BA$46*$A$46 -> 74 | AM49: =SUMIFS(AutumnProvRep!$K:$K,AutumnProvRep!$A:$A,Data!$A$23,AutumnProvRep!$P:$P,"<>Coventry",AutumnProvRep!$U:$U,Data!AM$17)/$BA$46*$A$46 -> 0 | AN49: =SUMIFS(AutumnProvRep!$K:$K,AutumnProvRep!$A:$A,Data!$A$23,AutumnProvRep!$P:$P,"<>Coventry",AutumnProvRep!$U:$U,Data!AN$17)/$BA$46*$A$46 -> 0 | AO49: =SUMIFS(AutumnProvRep!$K:$K,AutumnProvRep!$A:$A,Data!$A$23,AutumnProvRep!$P:$P,"<>Coventry",AutumnProvRep!$U:$U,Data!AO$17)/$BA$46*$A$46 -> 0 | AP49: =SUMIFS(AutumnProvRep!$K:$K,AutumnProvRep!$A:$A,Data!$A$23,AutumnProvRep!$P:$P,"<>Coventry",AutumnProvRep!$U:$U,Data!AP$17)/$BA$46*$A$46 -> 0 | AQ49: =SUMIFS(AutumnProvRep!$K:$K,AutumnProvRep!$A:$A,Data!$A$23,AutumnProvRep!$P:$P,"<>Coventry",AutumnProvRep!$U:$U,Data!AQ$17)/$BA$46*$A$46 -> 0 | AR49: 2 | AS49: 10462.58417 | AT49: 1055185.442 | AU49: 213.9333333 | AV49: -31.06666667 | AW49: 245 | AX49: =[13]Data!$AU61 -> 213.9333333 | AY49: 220 | BB49: =($O$6-$AU$49)*$A$46 -> 2298.933333 | BD49: 15831.06667 | BE49: =$BB$49/$BD$49*D49 -> 0 | BF49: 0 | BG49: 0 | BH49: 21.4920536 | BI49: 32.2380804 | BJ49: 0 | BK49: 0 | BL49: 987.7747834 | BM49: 526.1254721 | BN49: 10.7460268 | BO49: 85.9682144 | BP49: 97.57392334 | BQ49: 32.2380804 | BR49: 365.0783505 | BS49: 85.9682144 | BT49: 0 | BU49: 32.2380804 | BV49: 0 | BW49: 0 | BY49: =$BB$49/$BD$49*Y49 -> 0 | BZ49: 0 | CA49: 0 | CB49: 0 | CC49: 0 | CD49: 0 | CE49: 0 | CF49: 0 | CG49: 10.7460268 | CH49: 0 | CI49: 0 | CJ49: 0 | CK49: 0 | CL49: 10.7460268 | CM49: 0 | CN49: 0 | CO49: 0 | CP49: 0 | CQ49: 0
A50: 4 | B50: Corley | C50: 51.8134715 | D50: 0 | E50: =SUMIFS(AutumnProvRep!$K:$K,AutumnProvRep!$A:$A,Data!$A$24,AutumnProvRep!$P:$P,"Coventry",AutumnProvRep!$U:$U,Data!E$17)/$BA$46*$A$46 -> 0 | F50: =SUMIFS(AutumnProvRep!$K:$K,AutumnProvRep!$A:$A,Data!$A$24,AutumnProvRep!$P:$P,"Coventry",AutumnProvRep!$U:$U,Data!F$17)/$BA$46*$A$46 -> 0 | G50: =SUMIFS(AutumnProvRep!$K:$K,AutumnProvRep!$A:$A,Data!$A$24,AutumnProvRep!$P:$P,"Coventry",AutumnProvRep!$U:$U,Data!G$17)/$BA$46*$A$46 -> 296 | H50: =SUMIFS(AutumnProvRep!$K:$K,AutumnProvRep!$A:$A,Data!$A$24,AutumnProvRep!$P:$P,"Coventry",AutumnProvRep!$U:$U,Data!H$17)/$BA$46*$A$46 -> 222 | I50: =SUMIFS(AutumnProvRep!$K:$K,AutumnProvRep!$A:$A,Data!$A$24,AutumnProvRep!$P:$P,"Coventry",AutumnProvRep!$U:$U,Data!I$17)/$BA$46*$A$46 -> 0 | J50: =SUMIFS(AutumnProvRep!$K:$K,AutumnProvRep!$A:$A,Data!$A$24,AutumnProvRep!$P:$P,"Coventry",AutumnProvRep!$U:$U,Data!J$17)/$BA$46*$A$46 -> 0 | K50: =SUMIFS(AutumnProvRep!$K:$K,AutumnProvRep!$A:$A,Data!$A$24,AutumnProvRep!$P:$P,"Coventry",AutumnProvRep!$U:$U,Data!K$17)/$BA$46*$A$46 -> 9312.16 | L50: =SUMIFS(AutumnProvRep!$K:$K,AutumnProvRep!$A:$A,Data!$A$24,AutumnProvRep!$P:$P,"Coventry",AutumnProvRep!$U:$U,Data!L$17)/$BA$46*$A$46 -> 0 | M50: =SUMIFS(AutumnProvRep!$K:$K,AutumnProvRep!$A:$A,Data!$A$24,AutumnProvRep!$P:$P,"Coventry",AutumnProvRep!$U:$U,Data!M$17)/$BA$46*$A$46 -> 444 | N50: =SUMIFS(AutumnProvRep!$K:$K,AutumnProvRep!$A:$A,Data!$A$24,AutumnProvRep!$P:$P,"Coventry",AutumnProvRep!$U:$U,Data!N$17)/$BA$46*$A$46 -> 0 | O50: =SUMIFS(AutumnProvRep!$K:$K,AutumnProvRep!$A:$A,Data!$A$24,AutumnProvRep!$P:$P,"Coventry",AutumnProvRep!$U:$U,Data!O$17)/$BA$46*$A$46 -> 591.0133333 | P50: =SUMIFS(AutumnProvRep!$K:$K,AutumnProvRep!$A:$A,Data!$A$24,AutumnProvRep!$P:$P,"Coventry",AutumnProvRep!$U:$U,Data!P$17)/$BA$46*$A$46 -> 0 | Q50: =SUMIFS(AutumnProvRep!$K:$K,AutumnProvRep!$A:$A,Data!$A$24,AutumnProvRep!$P:$P,"Coventry",AutumnProvRep!$U:$U,Data!Q$17)/$BA$46*$A$46 -> 1184 | R50: =SUMIFS(AutumnProvRep!$K:$K,AutumnProvRep!$A:$A,Data!$A$24,AutumnProvRep!$P:$P,"Coventry",AutumnProvRep!$U:$U,Data!R$17)/$BA$46*$A$46 -> 0 | S50: =SUMIFS(AutumnProvRep!$K:$K,AutumnProvRep!$A:$A,Data!$A$24,AutumnProvRep!$P:$P,"Coventry",AutumnProvRep!$U:$U,Data!S$17)/$BA$46*$A$46 -> 0 | T50: =SUMIFS(AutumnProvRep!$K:$K,AutumnProvRep!$A:$A,Data!$A$24,AutumnProvRep!$P:$P,"Coventry",AutumnProvRep!$U:$U,Data!T$17)/$BA$46*$A$46 -> 0 | U50: =SUMIFS(AutumnProvRep!$K:$K,AutumnProvRep!$A:$A,Data!$A$24,AutumnProvRep!$P:$P,"Coventry",AutumnProvRep!$U:$U,Data!U$17)/$BA$46*$A$46 -> 0 | V50: =SUMIFS(AutumnProvRep!$K:$K,AutumnProvRep!$A:$A,Data!$A$24,AutumnProvRep!$P:$P,"Coventry",AutumnProvRep!$U:$U,Data!V$17)/$BA$46*$A$46 -> 0 | W50: 162.8266667 | X50: 744748.5887 | Y50: 0 | Z50: =SUMIFS(AutumnProvRep!$K:$K,AutumnProvRep!$A:$A,Data!$A$24,AutumnProvRep!$P:$P,"<>Coventry",AutumnProvRep!$U:$U,Data!Z$17)/$BA$46*$A$46 -> 0 | AA50: =SUMIFS(AutumnProvRep!$K:$K,AutumnProvRep!$A:$A,Data!$A$24,AutumnProvRep!$P:$P,"<>Coventry",AutumnProvRep!$U:$U,Data!AA$17)/$BA$46*$A$46 -> 0 | AB50: =SUMIFS(AutumnProvRep!$K:$K,AutumnProvRep!$A:$A,Data!$A$24,AutumnProvRep!$P:$P,"<>Coventry",AutumnProvRep!$U:$U,Data!AB$17)/$BA$46*$A$46 -> 0 | AC50: =SUMIFS(AutumnProvRep!$K:$K,AutumnProvRep!$A:$A,Data!$A$24,AutumnProvRep!$P:$P,"<>Coventry",AutumnProvRep!$U:$U,Data!AC$17)/$BA$46*$A$46 -> 0 | AD50: =SUMIFS(AutumnProvRep!$K:$K,AutumnProvRep!$A:$A,Data!$A$24,AutumnProvRep!$P:$P,"<>Coventry",AutumnProvRep!$U:$U,Data!AD$17)/$BA$46*$A$46 -> 0 | AE50: =SUMIFS(AutumnProvRep!$K:$K,AutumnProvRep!$A:$A,Data!$A$24,AutumnProvRep!$P:$P,"<>Coventry",AutumnProvRep!$U:$U,Data!AE$17)/$BA$46*$A$46 -> 0 | AF50: =SUMIFS(AutumnProvRep!$K:$K,AutumnProvRep!$A:$A,Data!$A$24,AutumnProvRep!$P:$P,"<>Coventry",AutumnProvRep!$U:$U,Data!AF$17)/$BA$46*$A$46 -> 148 | AG50: =SUMIFS(AutumnProvRep!$K:$K,AutumnProvRep!$A:$A,Data!$A$24,AutumnProvRep!$P:$P,"<>Coventry",AutumnProvRep!$U:$U,Data!AG$17)/$BA$46*$A$46 -> 0 | AH50: =SUMIFS(AutumnProvRep!$K:$K,AutumnProvRep!$A:$A,Data!$A$24,AutumnProvRep!$P:$P,"<>Coventry",AutumnProvRep!$U:$U,Data!AH$17)/$BA$46*$A$46 -> 0 | AI50: =SUMIFS(AutumnProvRep!$K:$K,AutumnProvRep!$A:$A,Data!$A$24,AutumnProvRep!$P:$P,"<>Coventry",AutumnProvRep!$U:$U,Data!AI$17)/$BA$46*$A$46 -> 0 | AJ50: =SUMIFS(AutumnProvRep!$K:$K,AutumnProvRep!$A:$A,Data!$A$24,AutumnProvRep!$P:$P,"<>Coventry",AutumnProvRep!$U:$U,Data!AJ$17)/$BA$46*$A$46 -> 0 | AK50: =SUMIFS(AutumnProvRep!$K:$K,AutumnProvRep!$A:$A,Data!$A$24,AutumnProvRep!$P:$P,"<>Coventry",AutumnProvRep!$U:$U,Data!AK$17)/$BA$46*$A$46 -> 0 | AL50: =SUMIFS(AutumnProvRep!$K:$K,AutumnProvRep!$A:$A,Data!$A$24,AutumnProvRep!$P:$P,"<>Coventry",AutumnProvRep!$U:$U,Data!AL$17)/$BA$46*$A$46 -> 0 | AM50: =SUMIFS(AutumnProvRep!$K:$K,AutumnProvRep!$A:$A,Data!$A$24,AutumnProvRep!$P:$P,"<>Coventry",AutumnProvRep!$U:$U,Data!AM$17)/$BA$46*$A$46 -> 0 | AN50: =SUMIFS(AutumnProvRep!$K:$K,AutumnProvRep!$A:$A,Data!$A$24,AutumnProvRep!$P:$P,"<>Coventry",AutumnProvRep!$U:$U,Data!AN$17)/$BA$46*$A$46 -> 0 | AO50: =SUMIFS(AutumnProvRep!$K:$K,AutumnProvRep!$A:$A,Data!$A$24,AutumnProvRep!$P:$P,"<>Coventry",AutumnProvRep!$U:$U,Data!AO$17)/$BA$46*$A$46 -> 0 | AP50: =SUMIFS(AutumnProvRep!$K:$K,AutumnProvRep!$A:$A,Data!$A$24,AutumnProvRep!$P:$P,"<>Coventry",AutumnProvRep!$U:$U,Data!AP$17)/$BA$46*$A$46 -> 0 | AQ50: =SUMIFS(AutumnProvRep!$K:$K,AutumnProvRep!$A:$A,Data!$A$24,AutumnProvRep!$P:$P,"<>Coventry",AutumnProvRep!$U:$U,Data!AQ$17)/$BA$46*$A$46 -> 0 | AR50: 2 | AS50: 8205.945438 | AT50: 752954.5341 | AU50: 164.8266667 | AV50: -5.173333333 | AW50: 170 | AX50: =[13]Data!$AU62 -> 164.8266667 | AY50: 165 | BB50: =($O$7-$AU$50)*$A$46 -> 382.8266667 | BD50: 12197.17333 | BE50: =$BB$50/$BD$50*D50 -> 0 | BF50: 0 | BG50: 0 | BH50: 9.290406083 | BI50: 6.967804562 | BJ50: 0 | BK50: 0 | BL50: 292.2761754 | BM50: 0 | BN50: 13.93560912 | BO50: 0 | BP50: 18.54984415 | BQ50: 0 | BR50: 37.16162433 | BS50: 0 | BT50: 0 | BU50: 0 | BV50: 0 | BW50: 0 | BY50: =$BB$50/$BD$50*Y50 -> 0 | BZ50: 0 | CA50: 0 | CB50: 0 | CC50: 0 | CD50: 0 | CE50: 0 | CF50: 4.645203042 | CG50: 0 | CH50: 0 | CI50: 0 | CJ50: 0 | CK50: 0 | CL50: 0 | CM50: 0 | CN50: 0 | CO50: 0 | CP50: 0 | CQ50: 0
A51: 5 | B51: Tiverton | C51: 51.8134715 | D51: 0 | E51: =SUMIFS(AutumnProvRep!$K:$K,AutumnProvRep!$A:$A,Data!$A$25,AutumnProvRep!$P:$P,"Coventry",AutumnProvRep!$U:$U,Data!E$17)/$BA$46*$A$46 -> 0 | F51: =SUMIFS(AutumnProvRep!$K:$K,AutumnProvRep!$A:$A,Data!$A$25,AutumnProvRep!$P:$P,"Coventry",AutumnProvRep!$U:$U,Data!F$17)/$BA$46*$A$46 -> 0 | G51: =SUMIFS(AutumnProvRep!$K:$K,AutumnProvRep!$A:$A,Data!$A$25,AutumnProvRep!$P:$P,"Coventry",AutumnProvRep!$U:$U,Data!G$17)/$BA$46*$A$46 -> 0 | H51: =SUMIFS(AutumnProvRep!$K:$K,AutumnProvRep!$A:$A,Data!$A$25,AutumnProvRep!$P:$P,"Coventry",AutumnProvRep!$U:$U,Data!H$17)/$BA$46*$A$46 -> 0 | I51: =SUMIFS(AutumnProvRep!$K:$K,AutumnProvRep!$A:$A,Data!$A$25,AutumnProvRep!$P:$P,"Coventry",AutumnProvRep!$U:$U,Data!I$17)/$BA$46*$A$46 -> 0 | J51: =SUMIFS(AutumnProvRep!$K:$K,AutumnProvRep!$A:$A,Data!$A$25,AutumnProvRep!$P:$P,"Coventry",AutumnProvRep!$U:$U,Data!J$17)/$BA$46*$A$46 -> 0 | K51: =SUMIFS(AutumnProvRep!$K:$K,AutumnProvRep!$A:$A,Data!$A$25,AutumnProvRep!$P:$P,"Coventry",AutumnProvRep!$U:$U,Data!K$17)/$BA$46*$A$46 -> 6118.32 | L51: =SUMIFS(AutumnProvRep!$K:$K,AutumnProvRep!$A:$A,Data!$A$25,AutumnProvRep!$P:$P,"Coventry",AutumnProvRep!$U:$U,Data!L$17)/$BA$46*$A$46 -> 592 | M51: =SUMIFS(AutumnProvRep!$K:$K,AutumnProvRep!$A:$A,Data!$A$25,AutumnProvRep!$P:$P,"Coventry",AutumnProvRep!$U:$U,Data!M$17)/$BA$46*$A$46 -> 0 | N51: =SUMIFS(AutumnProvRep!$K:$K,AutumnProvRep!$A:$A,Data!$A$25,AutumnProvRep!$P:$P,"Coventry",AutumnProvRep!$U:$U,Data!N$17)/$BA$46*$A$46 -> 296 | O51: =SUMIFS(AutumnProvRep!$K:$K,AutumnProvRep!$A:$A,Data!$A$25,AutumnProvRep!$P:$P,"Coventry",AutumnProvRep!$U:$U,Data!O$17)/$BA$46*$A$46 -> 370 | P51: =SUMIFS(AutumnProvRep!$K:$K,AutumnProvRep!$A:$A,Data!$A$25,AutumnProvRep!$P:$P,"Coventry",AutumnProvRep!$U:$U,Data!P$17)/$BA$46*$A$46 -> 0 | Q51: =SUMIFS(AutumnProvRep!$K:$K,AutumnProvRep!$A:$A,Data!$A$25,AutumnProvRep!$P:$P,"Coventry",AutumnProvRep!$U:$U,Data!Q$17)/$BA$46*$A$46 -> 1314.24 | R51: =SUMIFS(AutumnProvRep!$K:$K,AutumnProvRep!$A:$A,Data!$A$25,AutumnProvRep!$P:$P,"Coventry",AutumnProvRep!$U:$U,Data!R$17)/$BA$46*$A$46 -> 444 | S51: =SUMIFS(AutumnProvRep!$K:$K,AutumnProvRep!$A:$A,Data!$A$25,AutumnProvRep!$P:$P,"Coventry",AutumnProvRep!$U:$U,Data!S$17)/$BA$46*$A$46 -> 0 | T51: =SUMIFS(AutumnProvRep!$K:$K,AutumnProvRep!$A:$A,Data!$A$25,AutumnProvRep!$P:$P,"Coventry",AutumnProvRep!$U:$U,Data!T$17)/$BA$46*$A$46 -> 427.2266667 | U51: =SUMIFS(AutumnProvRep!$K:$K,AutumnProvRep!$A:$A,Data!$A$25,AutumnProvRep!$P:$P,"Coventry",AutumnProvRep!$U:$U,Data!U$17)/$BA$46*$A$46 -> 74 | V51: =SUMIFS(AutumnProvRep!$K:$K,AutumnProvRep!$A:$A,Data!$A$25,AutumnProvRep!$P:$P,"Coventry",AutumnProvRep!$U:$U,Data!V$17)/$BA$46*$A$46 -> 0 | W51: 130.2133333 | X51: 651012.6873 | Y51: 0 | Z51: =SUMIFS(AutumnProvRep!$K:$K,AutumnProvRep!$A:$A,Data!$A$25,AutumnProvRep!$P:$P,"<>Coventry",AutumnProvRep!$U:$U,Data!Z$17)/$BA$46*$A$46 -> 0 | AA51: =SUMIFS(AutumnProvRep!$K:$K,AutumnProvRep!$A:$A,Data!$A$25,AutumnProvRep!$P:$P,"<>Coventry",AutumnProvRep!$U:$U,Data!AA$17)/$BA$46*$A$46 -> 0 | AB51: =SUMIFS(AutumnProvRep!$K:$K,AutumnProvRep!$A:$A,Data!$A$25,AutumnProvRep!$P:$P,"<>Coventry",AutumnProvRep!$U:$U,Data!AB$17)/$BA$46*$A$46 -> 0 | AC51: =SUMIFS(AutumnProvRep!$K:$K,AutumnProvRep!$A:$A,Data!$A$25,AutumnProvRep!$P:$P,"<>Coventry",AutumnProvRep!$U:$U,Data!AC$17)/$BA$46*$A$46 -> 0 | AD51: =SUMIFS(AutumnProvRep!$K:$K,AutumnProvRep!$A:$A,Data!$A$25,AutumnProvRep!$P:$P,"<>Coventry",AutumnProvRep!$U:$U,Data!AD$17)/$BA$46*$A$46 -> 0 | AE51: =SUMIFS(AutumnProvRep!$K:$K,AutumnProvRep!$A:$A,Data!$A$25,AutumnProvRep!$P:$P,"<>Coventry",AutumnProvRep!$U:$U,Data!AE$17)/$BA$46*$A$46 -> 0 | AF51: =SUMIFS(AutumnProvRep!$K:$K,AutumnProvRep!$A:$A,Data!$A$25,AutumnProvRep!$P:$P,"<>Coventry",AutumnProvRep!$U:$U,Data!AF$17)/$BA$46*$A$46 -> 0 | AG51: =SUMIFS(AutumnProvRep!$K:$K,AutumnProvRep!$A:$A,Data!$A$25,AutumnProvRep!$P:$P,"<>Coventry",AutumnProvRep!$U:$U,Data!AG$17)/$BA$46*$A$46 -> 0 | AH51: =SUMIFS(AutumnProvRep!$K:$K,AutumnProvRep!$A:$A,Data!$A$25,AutumnProvRep!$P:$P,"<>Coventry",AutumnProvRep!$U:$U,Data!AH$17)/$BA$46*$A$46 -> 0 | AI51: =SUMIFS(AutumnProvRep!$K:$K,AutumnProvRep!$A:$A,Data!$A$25,AutumnProvRep!$P:$P,"<>Coventry",AutumnProvRep!$U:$U,Data!AI$17)/$BA$46*$A$46 -> 0 | AJ51: =SUMIFS(AutumnProvRep!$K:$K,AutumnProvRep!$A:$A,Data!$A$25,AutumnProvRep!$P:$P,"<>Coventry",AutumnProvRep!$U:$U,Data!AJ$17)/$BA$46*$A$46 -> 0 | AK51: =SUMIFS(AutumnProvRep!$K:$K,AutumnProvRep!$A:$A,Data!$A$25,AutumnProvRep!$P:$P,"<>Coventry",AutumnProvRep!$U:$U,Data!AK$17)/$BA$46*$A$46 -> 0 | AL51: =SUMIFS(AutumnProvRep!$K:$K,AutumnProvRep!$A:$A,Data!$A$25,AutumnProvRep!$P:$P,"<>Coventry",AutumnProvRep!$U:$U,Data!AL$17)/$BA$46*$A$46 -> 74 | AM51: =SUMIFS(AutumnProvRep!$K:$K,AutumnProvRep!$A:$A,Data!$A$25,AutumnProvRep!$P:$P,"<>Coventry",AutumnProvRep!$U:$U,Data!AM$17)/$BA$46*$A$46 -> 0 | AN51: =SUMIFS(AutumnProvRep!$K:$K,AutumnProvRep!$A:$A,Data!$A$25,AutumnProvRep!$P:$P,"<>Coventry",AutumnProvRep!$U:$U,Data!AN$17)/$BA$46*$A$46 -> 0 | AO51: =SUMIFS(AutumnProvRep!$K:$K,AutumnProvRep!$A:$A,Data!$A$25,AutumnProvRep!$P:$P,"<>Coventry",AutumnProvRep!$U:$U,Data!AO$17)/$BA$46*$A$46 -> 0 | AP51: =SUMIFS(AutumnProvRep!$K:$K,AutumnProvRep!$A:$A,Data!$A$25,AutumnProvRep!$P:$P,"<>Coventry",AutumnProvRep!$U:$U,Data!AP$17)/$BA$46*$A$46 -> 0 | AQ51: =SUMIFS(AutumnProvRep!$K:$K,AutumnProvRep!$A:$A,Data!$A$25,AutumnProvRep!$P:$P,"<>Coventry",AutumnProvRep!$U:$U,Data!AQ$17)/$BA$46*$A$46 -> 0 | AR51: 1 | AS51: 6667.332315 | AT51: 657680.0197 | AU51: 131.2133333 | AV51: -4.786666667 | AW51: 136 | AX51: =[13]Data!$AU63 -> 131.2133333 | AY51: 133 | BB51: =($O$8-$AU$51)*$A$46 -> 354.2133333 | BD51: 9709.786667 | BE51: =$BB$51/$BD$51*D51 -> 0 | BF51: 0 | BG51: 0 | BH51: 0 | BI51: 0 | BJ51: 0 | BK51: 0 | BL51: 223.1965125 | BM51: 21.59617925 | BN51: 0 | BO51: 10.79808963 | BP51: 13.49761203 | BQ51: 0 | BR51: 47.94351794 | BS51: 16.19713444 | BT51: 0 | BU51: 15.58524269 | BV51: 2.699522406 | BW51: 0 | BY51: =$BB$51/$BD$51*Y51 -> 0 | BZ51: 0 | CA51: 0 | CB51: 0 | CC51: 0 | CD51: 0 | CE51: 0 | CF51: 0 | CG51: 0 | CH51: 0 | CI51: 0 | CJ51: 0 | CK51: 0 | CL51: 2.699522406 | CM51: 0 | CN51: 0 | CO51: 0 | CP51: 0 | CQ51: 0
A52: 6 | B52: Baginton Fields | C52: 51.8134715 | D52: 0 | E52: =SUMIFS(AutumnProvRep!$K:$K,AutumnProvRep!$A:$A,Data!$A$26,AutumnProvRep!$P:$P,"Coventry",AutumnProvRep!$U:$U,Data!E$17)/$BA$46*$A$46 -> 0 | F52: =SUMIFS(AutumnProvRep!$K:$K,AutumnProvRep!$A:$A,Data!$A$26,AutumnProvRep!$P:$P,"Coventry",AutumnProvRep!$U:$U,Data!F$17)/$BA$46*$A$46 -> 0 | G52: =SUMIFS(AutumnProvRep!$K:$K,AutumnProvRep!$A:$A,Data!$A$26,AutumnProvRep!$P:$P,"Coventry",AutumnProvRep!$U:$U,Data!G$17)/$BA$46*$A$46 -> 0 | H52: =SUMIFS(AutumnProvRep!$K:$K,AutumnProvRep!$A:$A,Data!$A$26,AutumnProvRep!$P:$P,"Coventry",AutumnProvRep!$U:$U,Data!H$17)/$BA$46*$A$46 -> 0 | I52: =SUMIFS(AutumnProvRep!$K:$K,AutumnProvRep!$A:$A,Data!$A$26,AutumnProvRep!$P:$P,"Coventry",AutumnProvRep!$U:$U,Data!I$17)/$BA$46*$A$46 -> 0 | J52: =SUMIFS(AutumnProvRep!$K:$K,AutumnProvRep!$A:$A,Data!$A$26,AutumnProvRep!$P:$P,"Coventry",AutumnProvRep!$U:$U,Data!J$17)/$BA$46*$A$46 -> 0 | K52: =SUMIFS(AutumnProvRep!$K:$K,AutumnProvRep!$A:$A,Data!$A$26,AutumnProvRep!$P:$P,"Coventry",AutumnProvRep!$U:$U,Data!K$17)/$BA$46*$A$46 -> 2623.546667 | L52: =SUMIFS(AutumnProvRep!$K:$K,AutumnProvRep!$A:$A,Data!$A$26,AutumnProvRep!$P:$P,"Coventry",AutumnProvRep!$U:$U,Data!L$17)/$BA$46*$A$46 -> 2394.64 | M52: =SUMIFS(AutumnProvRep!$K:$K,AutumnProvRep!$A:$A,Data!$A$26,AutumnProvRep!$P:$P,"Coventry",AutumnProvRep!$U:$U,Data!M$17)/$BA$46*$A$46 -> 0 | N52: =SUMIFS(AutumnProvRep!$K:$K,AutumnProvRep!$A:$A,Data!$A$26,AutumnProvRep!$P:$P,"Coventry",AutumnProvRep!$U:$U,Data!N$17)/$BA$46*$A$46 -> 296 | O52: =SUMIFS(AutumnProvRep!$K:$K,AutumnProvRep!$A:$A,Data!$A$26,AutumnProvRep!$P:$P,"Coventry",AutumnProvRep!$U:$U,Data!O$17)/$BA$46*$A$46 -> 814 | P52: =SUMIFS(AutumnProvRep!$K:$K,AutumnProvRep!$A:$A,Data!$A$26,AutumnProvRep!$P:$P,"Coventry",AutumnProvRep!$U:$U,Data!P$17)/$BA$46*$A$46 -> 0 | Q52: =SUMIFS(AutumnProvRep!$K:$K,AutumnProvRep!$A:$A,Data!$A$26,AutumnProvRep!$P:$P,"Coventry",AutumnProvRep!$U:$U,Data!Q$17)/$BA$46*$A$46 -> 1984.186667 | R52: =SUMIFS(AutumnProvRep!$K:$K,AutumnProvRep!$A:$A,Data!$A$26,AutumnProvRep!$P:$P,"Coventry",AutumnProvRep!$U:$U,Data!R$17)/$BA$46*$A$46 -> 740 | S52: =SUMIFS(AutumnProvRep!$K:$K,AutumnProvRep!$A:$A,Data!$A$26,AutumnProvRep!$P:$P,"Coventry",AutumnProvRep!$U:$U,Data!S$17)/$BA$46*$A$46 -> 0 | T52: =SUMIFS(AutumnProvRep!$K:$K,AutumnProvRep!$A:$A,Data!$A$26,AutumnProvRep!$P:$P,"Coventry",AutumnProvRep!$U:$U,Data!T$17)/$BA$46*$A$46 -> 296 | U52: =SUMIFS(AutumnProvRep!$K:$K,AutumnProvRep!$A:$A,Data!$A$26,AutumnProvRep!$P:$P,"Coventry",AutumnProvRep!$U:$U,Data!U$17)/$BA$46*$A$46 -> 0 | V52: =SUMIFS(AutumnProvRep!$K:$K,AutumnProvRep!$A:$A,Data!$A$26,AutumnProvRep!$P:$P,"Coventry",AutumnProvRep!$U:$U,Data!V$17)/$BA$46*$A$46 -> 0 | W52: 123.6266667 | X52: 663778.9375 | Y52: 0 | Z52: =SUMIFS(AutumnProvRep!$K:$K,AutumnProvRep!$A:$A,Data!$A$26,AutumnProvRep!$P:$P,"<>Coventry",AutumnProvRep!$U:$U,Data!Z$17)/$BA$46*$A$46 -> 0 | AA52: =SUMIFS(AutumnProvRep!$K:$K,AutumnProvRep!$A:$A,Data!$A$26,AutumnProvRep!$P:$P,"<>Coventry",AutumnProvRep!$U:$U,Data!AA$17)/$BA$46*$A$46 -> 0 | AB52: =SUMIFS(AutumnProvRep!$K:$K,AutumnProvRep!$A:$A,Data!$A$26,AutumnProvRep!$P:$P,"<>Coventry",AutumnProvRep!$U:$U,Data!AB$17)/$BA$46*$A$46 -> 0 | AC52: =SUMIFS(AutumnProvRep!$K:$K,AutumnProvRep!$A:$A,Data!$A$26,AutumnProvRep!$P:$P,"<>Coventry",AutumnProvRep!$U:$U,Data!AC$17)/$BA$46*$A$46 -> 0 | AD52: =SUMIFS(AutumnProvRep!$K:$K,AutumnProvRep!$A:$A,Data!$A$26,AutumnProvRep!$P:$P,"<>Coventry",AutumnProvRep!$U:$U,Data!AD$17)/$BA$46*$A$46 -> 0 | AE52: =SUMIFS(AutumnProvRep!$K:$K,AutumnProvRep!$A:$A,Data!$A$26,AutumnProvRep!$P:$P,"<>Coventry",AutumnProvRep!$U:$U,Data!AE$17)/$BA$46*$A$46 -> 0 | AF52: =SUMIFS(AutumnProvRep!$K:$K,AutumnProvRep!$A:$A,Data!$A$26,AutumnProvRep!$P:$P,"<>Coventry",AutumnProvRep!$U:$U,Data!AF$17)/$BA$46*$A$46 -> 0 | AG52: =SUMIFS(AutumnProvRep!$K:$K,AutumnProvRep!$A:$A,Data!$A$26,AutumnProvRep!$P:$P,"<>Coventry",AutumnProvRep!$U:$U,Data!AG$17)/$BA$46*$A$46 -> 74 | AH52: =SUMIFS(AutumnProvRep!$K:$K,AutumnProvRep!$A:$A,Data!$A$26,AutumnProvRep!$P:$P,"<>Coventry",AutumnProvRep!$U:$U,Data!AH$17)/$BA$46*$A$46 -> 0 | AI52: =SUMIFS(AutumnProvRep!$K:$K,AutumnProvRep!$A:$A,Data!$A$26,AutumnProvRep!$P:$P,"<>Coventry",AutumnProvRep!$U:$U,Data!AI$17)/$BA$46*$A$46 -> 0 | AJ52: =SUMIFS(AutumnProvRep!$K:$K,AutumnProvRep!$A:$A,Data!$A$26,AutumnProvRep!$P:$P,"<>Coventry",AutumnProvRep!$U:$U,Data!AJ$17)/$BA$46*$A$46 -> 0 | AK52: =SUMIFS(AutumnProvRep!$K:$K,AutumnProvRep!$A:$A,Data!$A$26,AutumnProvRep!$P:$P,"<>Coventry",AutumnProvRep!$U:$U,Data!AK$17)/$BA$46*$A$46 -> 0 | AL52: =SUMIFS(AutumnProvRep!$K:$K,AutumnProvRep!$A:$A,Data!$A$26,AutumnProvRep!$P:$P,"<>Coventry",AutumnProvRep!$U:$U,Data!AL$17)/$BA$46*$A$46 -> 0 | AM52: =SUMIFS(AutumnProvRep!$K:$K,AutumnProvRep!$A:$A,Data!$A$26,AutumnProvRep!$P:$P,"<>Coventry",AutumnProvRep!$U:$U,Data!AM$17)/$BA$46*$A$46 -> 0 | AN52: =SUMIFS(AutumnProvRep!$K:$K,AutumnProvRep!$A:$A,Data!$A$26,AutumnProvRep!$P:$P,"<>Coventry",AutumnProvRep!$U:$U,Data!AN$17)/$BA$46*$A$46 -> 0 | AO52: =SUMIFS(AutumnProvRep!$K:$K,AutumnProvRep!$A:$A,Data!$A$26,AutumnProvRep!$P:$P,"<>Coventry",AutumnProvRep!$U:$U,Data!AO$17)/$BA$46*$A$46 -> 0 | AP52: =SUMIFS(AutumnProvRep!$K:$K,AutumnProvRep!$A:$A,Data!$A$26,AutumnProvRep!$P:$P,"<>Coventry",AutumnProvRep!$U:$U,Data!AP$17)/$BA$46*$A$46 -> 0 | AQ52: =SUMIFS(AutumnProvRep!$K:$K,AutumnProvRep!$A:$A,Data!$A$26,AutumnProvRep!$P:$P,"<>Coventry",AutumnProvRep!$U:$U,Data!AQ$17)/$BA$46*$A$46 -> 0 | AR52: 1 | AS52: 3795.251851 | AT52: 667574.1893 | AU52: 124.6266667 | AV52: -1.373333333 | AW52: 126 | AX52: =[13]Data!$AU64 -> 124.6266667 | AY52: 126 | BB52: =($O$9-$AU$52)*$A$46 -> 101.6266667 | BD52: 9222.373333 | BE52: =$BB$52/$BD$52*D52 -> 0 | BF52: 0 | BG52: 0 | BH52: 0 | BI52: 0 | BJ52: 0 | BK52: 0 | BL52: 28.91037837 | BM52: 26.3879234 | BN52: 0 | BO52: 3.261795228 | BP52: 8.969936878 | BQ52: 0 | BR52: 21.86490068 | BS52: 8.154488071 | BT52: 0 | BU52: 3.261795228 | BV52: 0 | BW52: 0 | BY52: =$BB$52/$BD$52*Y52 -> 0 | BZ52: 0 | CA52: 0 | CB52: 0 | CC52: 0 | CD52: 0 | CE52: 0 | CF52: 0 | CG52: 0.8154488071 | CH52: 0 | CI52: 0 | CJ52: 0 | CK52: 0 | CL52: 0 | CM52: 0 | CN52: 0 | CO52: 0 | CP52: 0 | CQ52: 0
A53: 7 | B53: Sherbourne Fields | C53: 51.8134715 | D53: 0 | E53: =SUMIFS(AutumnProvRep!$K:$K,AutumnProvRep!$A:$A,Data!$A$27,AutumnProvRep!$P:$P,"Coventry",AutumnProvRep!$U:$U,Data!E$17)/$BA$46*$A$46 -> 0 | F53: =SUMIFS(AutumnProvRep!$K:$K,AutumnProvRep!$A:$A,Data!$A$27,AutumnProvRep!$P:$P,"Coventry",AutumnProvRep!$U:$U,Data!F$17)/$BA$46*$A$46 -> 0 | G53: =SUMIFS(AutumnProvRep!$K:$K,AutumnProvRep!$A:$A,Data!$A$27,AutumnProvRep!$P:$P,"Coventry",AutumnProvRep!$U:$U,Data!G$17)/$BA$46*$A$46 -> 0 | H53: =SUMIFS(AutumnProvRep!$K:$K,AutumnProvRep!$A:$A,Data!$A$27,AutumnProvRep!$P:$P,"Coventry",AutumnProvRep!$U:$U,Data!H$17)/$BA$46*$A$46 -> 74 | I53: =SUMIFS(AutumnProvRep!$K:$K,AutumnProvRep!$A:$A,Data!$A$27,AutumnProvRep!$P:$P,"Coventry",AutumnProvRep!$U:$U,Data!I$17)/$BA$46*$A$46 -> 0 | J53: =SUMIFS(AutumnProvRep!$K:$K,AutumnProvRep!$A:$A,Data!$A$27,AutumnProvRep!$P:$P,"Coventry",AutumnProvRep!$U:$U,Data!J$17)/$BA$46*$A$46 -> 0 | K53: =SUMIFS(AutumnProvRep!$K:$K,AutumnProvRep!$A:$A,Data!$A$27,AutumnProvRep!$P:$P,"Coventry",AutumnProvRep!$U:$U,Data!K$17)/$BA$46*$A$46 -> 6915.546667 | L53: =SUMIFS(AutumnProvRep!$K:$K,AutumnProvRep!$A:$A,Data!$A$27,AutumnProvRep!$P:$P,"Coventry",AutumnProvRep!$U:$U,Data!L$17)/$BA$46*$A$46 -> 4142.026667 | M53: =SUMIFS(AutumnProvRep!$K:$K,AutumnProvRep!$A:$A,Data!$A$27,AutumnProvRep!$P:$P,"Coventry",AutumnProvRep!$U:$U,Data!M$17)/$BA$46*$A$46 -> 74 | N53: =SUMIFS(AutumnProvRep!$K:$K,AutumnProvRep!$A:$A,Data!$A$27,AutumnProvRep!$P:$P,"Coventry",AutumnProvRep!$U:$U,Data!N$17)/$BA$46*$A$46 -> 1956.56 | O53: =SUMIFS(AutumnProvRep!$K:$K,AutumnProvRep!$A:$A,Data!$A$27,AutumnProvRep!$P:$P,"Coventry",AutumnProvRep!$U:$U,Data!O$17)/$BA$46*$A$46 -> 222 | P53: =SUMIFS(AutumnProvRep!$K:$K,AutumnProvRep!$A:$A,Data!$A$27,AutumnProvRep!$P:$P,"Coventry",AutumnProvRep!$U:$U,Data!P$17)/$BA$46*$A$46 -> 0 | Q53: =SUMIFS(AutumnProvRep!$K:$K,AutumnProvRep!$A:$A,Data!$A$27,AutumnProvRep!$P:$P,"Coventry",AutumnProvRep!$U:$U,Data!Q$17)/$BA$46*$A$46 -> 1994.053333 | R53: =SUMIFS(AutumnProvRep!$K:$K,AutumnProvRep!$A:$A,Data!$A$27,AutumnProvRep!$P:$P,"Coventry",AutumnProvRep!$U:$U,Data!R$17)/$BA$46*$A$46 -> 1737.52 | S53: =SUMIFS(AutumnProvRep!$K:$K,AutumnProvRep!$A:$A,Data!$A$27,AutumnProvRep!$P:$P,"Coventry",AutumnProvRep!$U:$U,Data!S$17)/$BA$46*$A$46 -> 0 | T53: =SUMIFS(AutumnProvRep!$K:$K,AutumnProvRep!$A:$A,Data!$A$27,AutumnProvRep!$P:$P,"Coventry",AutumnProvRep!$U:$U,Data!T$17)/$BA$46*$A$46 -> 1589.52 | U53: =SUMIFS(AutumnProvRep!$K:$K,AutumnProvRep!$A:$A,Data!$A$27,AutumnProvRep!$P:$P,"Coventry",AutumnProvRep!$U:$U,Data!U$17)/$BA$46*$A$46 -> 0 | V53: =SUMIFS(AutumnProvRep!$K:$K,AutumnProvRep!$A:$A,Data!$A$27,AutumnProvRep!$P:$P,"Coventry",AutumnProvRep!$U:$U,Data!V$17)/$BA$46*$A$46 -> 0 | W53: 252.7733333 | X53: 1225033.156 | Y53: 0 | Z53: =SUMIFS(AutumnProvRep!$K:$K,AutumnProvRep!$A:$A,Data!$A$27,AutumnProvRep!$P:$P,"<>Coventry",AutumnProvRep!$U:$U,Data!Z$17)/$BA$46*$A$46 -> 0 | AA53: =SUMIFS(AutumnProvRep!$K:$K,AutumnProvRep!$A:$A,Data!$A$27,AutumnProvRep!$P:$P,"<>Coventry",AutumnProvRep!$U:$U,Data!AA$17)/$BA$46*$A$46 -> 0 | AB53: =SUMIFS(AutumnProvRep!$K:$K,AutumnProvRep!$A:$A,Data!$A$27,AutumnProvRep!$P:$P,"<>Coventry",AutumnProvRep!$U:$U,Data!AB$17)/$BA$46*$A$46 -> 0 | AC53: =SUMIFS(AutumnProvRep!$K:$K,AutumnProvRep!$A:$A,Data!$A$27,AutumnProvRep!$P:$P,"<>Coventry",AutumnProvRep!$U:$U,Data!AC$17)/$BA$46*$A$46 -> 0 | AD53: =SUMIFS(AutumnProvRep!$K:$K,AutumnProvRep!$A:$A,Data!$A$27,AutumnProvRep!$P:$P,"<>Coventry",AutumnProvRep!$U:$U,Data!AD$17)/$BA$46*$A$46 -> 0 | AE53: =SUMIFS(AutumnProvRep!$K:$K,AutumnProvRep!$A:$A,Data!$A$27,AutumnProvRep!$P:$P,"<>Coventry",AutumnProvRep!$U:$U,Data!AE$17)/$BA$46*$A$46 -> 0 | AF53: =SUMIFS(AutumnProvRep!$K:$K,AutumnProvRep!$A:$A,Data!$A$27,AutumnProvRep!$P:$P,"<>Coventry",AutumnProvRep!$U:$U,Data!AF$17)/$BA$46*$A$46 -> 148 | AG53: =SUMIFS(AutumnProvRep!$K:$K,AutumnProvRep!$A:$A,Data!$A$27,AutumnProvRep!$P:$P,"<>Coventry",AutumnProvRep!$U:$U,Data!AG$17)/$BA$46*$A$46 -> 0 | AH53: =SUMIFS(AutumnProvRep!$K:$K,AutumnProvRep!$A:$A,Data!$A$27,AutumnProvRep!$P:$P,"<>Coventry",AutumnProvRep!$U:$U,Data!AH$17)/$BA$46*$A$46 -> 0 | AI53: =SUMIFS(AutumnProvRep!$K:$K,AutumnProvRep!$A:$A,Data!$A$27,AutumnProvRep!$P:$P,"<>Coventry",AutumnProvRep!$U:$U,Data!AI$17)/$BA$46*$A$46 -> 74 | AJ53: =SUMIFS(AutumnProvRep!$K:$K,AutumnProvRep!$A:$A,Data!$A$27,AutumnProvRep!$P:$P,"<>Coventry",AutumnProvRep!$U:$U,Data!AJ$17)/$BA$46*$A$46 -> 0 | AK53: =SUMIFS(AutumnProvRep!$K:$K,AutumnProvRep!$A:$A,Data!$A$27,AutumnProvRep!$P:$P,"<>Coventry",AutumnProvRep!$U:$U,Data!AK$17)/$BA$46*$A$46 -> 0 | AL53: =SUMIFS(AutumnProvRep!$K:$K,AutumnProvRep!$A:$A,Data!$A$27,AutumnProvRep!$P:$P,"<>Coventry",AutumnProvRep!$U:$U,Data!AL$17)/$BA$46*$A$46 -> 0 | AM53: =SUMIFS(AutumnProvRep!$K:$K,AutumnProvRep!$A:$A,Data!$A$27,AutumnProvRep!$P:$P,"<>Coventry",AutumnProvRep!$U:$U,Data!AM$17)/$BA$46*$A$46 -> 0 | AN53: =SUMIFS(AutumnProvRep!$K:$K,AutumnProvRep!$A:$A,Data!$A$27,AutumnProvRep!$P:$P,"<>Coventry",AutumnProvRep!$U:$U,Data!AN$17)/$BA$46*$A$46 -> 0 | AO53: =SUMIFS(AutumnProvRep!$K:$K,AutumnProvRep!$A:$A,Data!$A$27,AutumnProvRep!$P:$P,"<>Coventry",AutumnProvRep!$U:$U,Data!AO$17)/$BA$46*$A$46 -> 148 | AP53: =SUMIFS(AutumnProvRep!$K:$K,AutumnProvRep!$A:$A,Data!$A$27,AutumnProvRep!$P:$P,"<>Coventry",AutumnProvRep!$U:$U,Data!AP$17)/$BA$46*$A$46 -> 0 | AQ53: =SUMIFS(AutumnProvRep!$K:$K,AutumnProvRep!$A:$A,Data!$A$27,AutumnProvRep!$P:$P,"<>Coventry",AutumnProvRep!$U:$U,Data!AQ$17)/$BA$46*$A$46 -> 0 | AR53: 5 | AS53: 25643.574 | AT53: 1250676.73 | AU53: 257.7733333 | AV53: -0.2266666667 | AW53: 258 | AX53: =[13]Data!$AU65 -> 257.7733333 | AY53: 258 | BB53: =($O$10-$AU$53)*$A$46 -> 16.77333333 | BD53: 19075.22667 | BE53: =$BB$53/$BD$53*D53 -> 0 | BF53: 0 | BG53: 0 | BH53: 0 | BI53: 0.06507008742 | BJ53: 0 | BK53: 0 | BL53: 6.081016569 | BM53: 3.642189693 | BN53: 0.06507008742 | BO53: 1.720453111 | BP53: 0.1952102622 | BQ53: 0 | BR53: 1.753421956 | BS53: 1.527845653 | BT53: 0 | BU53: 1.397705478 | BV53: 0 | BW53: 0 | BY53: =$BB$53/$BD$53*Y53 -> 0 | BZ53: 0 | CA53: 0 | CB53: 0 | CC53: 0 | CD53: 0 | CE53: 0 | CF53: 0.1301401748 | CG53: 0 | CH53: 0 | CI53: 0.06507008742 | CJ53: 0 | CK53: 0 | CL53: 0 | CM53: 0 | CN53: 0 | CO53: 0.1301401748 | CP53: 0 | CQ53: 0
A54: 8 | B54: Woodfield | C54: =10000/$A$16 -> 51.8134715 | D54: 0 | E54: =SUMIFS(AutumnProvRep!$K:$K,AutumnProvRep!$A:$A,Data!$A$28,AutumnProvRep!$P:$P,"Coventry",AutumnProvRep!$U:$U,Data!E$17)/$BA$46*$A$46 -> 0 | F54: =SUMIFS(AutumnProvRep!$K:$K,AutumnProvRep!$A:$A,Data!$A$28,AutumnProvRep!$P:$P,"Coventry",AutumnProvRep!$U:$U,Data!F$17)/$BA$46*$A$46 -> 0 | G54: =SUMIFS(AutumnProvRep!$K:$K,AutumnProvRep!$A:$A,Data!$A$28,AutumnProvRep!$P:$P,"Coventry",AutumnProvRep!$U:$U,Data!G$17)/$BA$46*$A$46 -> 0 | H54: =SUMIFS(AutumnProvRep!$K:$K,AutumnProvRep!$A:$A,Data!$A$28,AutumnProvRep!$P:$P,"Coventry",AutumnProvRep!$U:$U,Data!H$17)/$BA$46*$A$46 -> 0 | I54: =SUMIFS(AutumnProvRep!$K:$K,AutumnProvRep!$A:$A,Data!$A$28,AutumnProvRep!$P:$P,"Coventry",AutumnProvRep!$U:$U,Data!I$17)/$BA$46*$A$46 -> 0 | J54: =SUMIFS(AutumnProvRep!$K:$K,AutumnProvRep!$A:$A,Data!$A$28,AutumnProvRep!$P:$P,"Coventry",AutumnProvRep!$U:$U,Data!J$17)/$BA$46*$A$46 -> 0 | K54: =SUMIFS(AutumnProvRep!$K:$K,AutumnProvRep!$A:$A,Data!$A$28,AutumnProvRep!$P:$P,"Coventry",AutumnProvRep!$U:$U,Data!K$17)/$BA$46*$A$46 -> 0 | L54: =SUMIFS(AutumnProvRep!$K:$K,AutumnProvRep!$A:$A,Data!$A$28,AutumnProvRep!$P:$P,"Coventry",AutumnProvRep!$U:$U,Data!L$17)/$BA$46*$A$46 -> 0 | M54: =SUMIFS(AutumnProvRep!$K:$K,AutumnProvRep!$A:$A,Data!$A$28,AutumnProvRep!$P:$P,"Coventry",AutumnProvRep!$U:$U,Data!M$17)/$BA$46*$A$46 -> 0 | N54: =SUMIFS(AutumnProvRep!$K:$K,AutumnProvRep!$A:$A,Data!$A$28,AutumnProvRep!$P:$P,"Coventry",AutumnProvRep!$U:$U,Data!N$17)/$BA$46*$A$46 -> 0 | O54: =SUMIFS(AutumnProvRep!$K:$K,AutumnProvRep!$A:$A,Data!$A$28,AutumnProvRep!$P:$P,"Coventry",AutumnProvRep!$U:$U,Data!O$17)/$BA$46*$A$46 -> 592 | P54: =SUMIFS(AutumnProvRep!$K:$K,AutumnProvRep!$A:$A,Data!$A$28,AutumnProvRep!$P:$P,"Coventry",AutumnProvRep!$U:$U,Data!P$17)/$BA$46*$A$46 -> 0 | Q54: =SUMIFS(AutumnProvRep!$K:$K,AutumnProvRep!$A:$A,Data!$A$28,AutumnProvRep!$P:$P,"Coventry",AutumnProvRep!$U:$U,Data!Q$17)/$BA$46*$A$46 -> 10984.56 | R54: =SUMIFS(AutumnProvRep!$K:$K,AutumnProvRep!$A:$A,Data!$A$28,AutumnProvRep!$P:$P,"Coventry",AutumnProvRep!$U:$U,Data!R$17)/$BA$46*$A$46 -> 0 | S54: =SUMIFS(AutumnProvRep!$K:$K,AutumnProvRep!$A:$A,Data!$A$28,AutumnProvRep!$P:$P,"Coventry",AutumnProvRep!$U:$U,Data!S$17)/$BA$46*$A$46 -> 148 | T54: =SUMIFS(AutumnProvRep!$K:$K,AutumnProvRep!$A:$A,Data!$A$28,AutumnProvRep!$P:$P,"Coventry",AutumnProvRep!$U:$U,Data!T$17)/$BA$46*$A$46 -> 0 | U54: =SUMIFS(AutumnProvRep!$K:$K,AutumnProvRep!$A:$A,Data!$A$28,AutumnProvRep!$P:$P,"Coventry",AutumnProvRep!$U:$U,Data!U$17)/$BA$46*$A$46 -> 148 | V54: =SUMIFS(AutumnProvRep!$K:$K,AutumnProvRep!$A:$A,Data!$A$28,AutumnProvRep!$P:$P,"Coventry",AutumnProvRep!$U:$U,Data!V$17)/$BA$46*$A$46 -> 0 | W54: =SUM(D54:V54)/$A$46 -> 160.44 | X54: 1123087.876 | Y54: 0 | Z54: =SUMIFS(AutumnProvRep!$K:$K,AutumnProvRep!$A:$A,Data!$A$28,AutumnProvRep!$P:$P,"<>Coventry",AutumnProvRep!$U:$U,Data!Z$17)/$BA$46*$A$46 -> 0 | AA54: =SUMIFS(AutumnProvRep!$K:$K,AutumnProvRep!$A:$A,Data!$A$28,AutumnProvRep!$P:$P,"<>Coventry",AutumnProvRep!$U:$U,Data!AA$17)/$BA$46*$A$46 -> 0 | AB54: =SUMIFS(AutumnProvRep!$K:$K,AutumnProvRep!$A:$A,Data!$A$28,AutumnProvRep!$P:$P,"<>Coventry",AutumnProvRep!$U:$U,Data!AB$17)/$BA$46*$A$46 -> 0 | AC54: =SUMIFS(AutumnProvRep!$K:$K,AutumnProvRep!$A:$A,Data!$A$28,AutumnProvRep!$P:$P,"<>Coventry",AutumnProvRep!$U:$U,Data!AC$17)/$BA$46*$A$46 -> 0 | AD54: =SUMIFS(AutumnProvRep!$K:$K,AutumnProvRep!$A:$A,Data!$A$28,AutumnProvRep!$P:$P,"<>Coventry",AutumnProvRep!$U:$U,Data!AD$17)/$BA$46*$A$46 -> 0 | AE54: =SUMIFS(AutumnProvRep!$K:$K,AutumnProvRep!$A:$A,Data!$A$28,AutumnProvRep!$P:$P,"<>Coventry",AutumnProvRep!$U:$U,Data!AE$17)/$BA$46*$A$46 -> 0 | AF54: =SUMIFS(AutumnProvRep!$K:$K,AutumnProvRep!$A:$A,Data!$A$28,AutumnProvRep!$P:$P,"<>Coventry",AutumnProvRep!$U:$U,Data!AF$17)/$BA$46*$A$46 -> 0 | AG54: =SUMIFS(AutumnProvRep!$K:$K,AutumnProvRep!$A:$A,Data!$A$28,AutumnProvRep!$P:$P,"<>Coventry",AutumnProvRep!$U:$U,Data!AG$17)/$BA$46*$A$46 -> 0 | AH54: =SUMIFS(AutumnProvRep!$K:$K,AutumnProvRep!$A:$A,Data!$A$28,AutumnProvRep!$P:$P,"<>Coventry",AutumnProvRep!$U:$U,Data!AH$17)/$BA$46*$A$46 -> 0 | AI54: =SUMIFS(AutumnProvRep!$K:$K,AutumnProvRep!$A:$A,Data!$A$28,AutumnProvRep!$P:$P,"<>Coventry",AutumnProvRep!$U:$U,Data!AI$17)/$BA$46*$A$46 -> 0 | AJ54: =SUMIFS(AutumnProvRep!$K:$K,AutumnProvRep!$A:$A,Data!$A$28,AutumnProvRep!$P:$P,"<>Coventry",AutumnProvRep!$U:$U,Data!AJ$17)/$BA$46*$A$46 -> 0 | AK54: =SUMIFS(AutumnProvRep!$K:$K,AutumnProvRep!$A:$A,Data!$A$28,AutumnProvRep!$P:$P,"<>Coventry",AutumnProvRep!$U:$U,Data!AK$17)/$BA$46*$A$46 -> 0 | AL54: =SUMIFS(AutumnProvRep!$K:$K,AutumnProvRep!$A:$A,Data!$A$28,AutumnProvRep!$P:$P,"<>Coventry",AutumnProvRep!$U:$U,Data!AL$17)/$BA$46*$A$46 -> 74 | AM54: =SUMIFS(AutumnProvRep!$K:$K,AutumnProvRep!$A:$A,Data!$A$28,AutumnProvRep!$P:$P,"<>Coventry",AutumnProvRep!$U:$U,Data!AM$17)/$BA$46*$A$46 -> 0 | AN54: =SUMIFS(AutumnProvRep!$K:$K,AutumnProvRep!$A:$A,Data!$A$28,AutumnProvRep!$P:$P,"<>Coventry",AutumnProvRep!$U:$U,Data!AN$17)/$BA$46*$A$46 -> 74 | AO54: =SUMIFS(AutumnProvRep!$K:$K,AutumnProvRep!$A:$A,Data!$A$28,AutumnProvRep!$P:$P,"<>Coventry",AutumnProvRep!$U:$U,Data!AO$17)/$BA$46*$A$46 -> 0 | AP54: =SUMIFS(AutumnProvRep!$K:$K,AutumnProvRep!$A:$A,Data!$A$28,AutumnProvRep!$P:$P,"<>Coventry",AutumnProvRep!$U:$U,Data!AP$17)/$BA$46*$A$46 -> 0 | AQ54: =SUMIFS(AutumnProvRep!$K:$K,AutumnProvRep!$A:$A,Data!$A$28,AutumnProvRep!$P:$P,"<>Coventry",AutumnProvRep!$U:$U,Data!AQ$17)/$BA$46*$A$46 -> 0 | AR54: 2 | AS54: 13334.66463 | AT54: 1136422.54 | AU54: 162.44 | AV54: -22.56 | AW54: 185 | AX54: =[13]Data!$AU66 -> 162.44 | AY54: 161 | BB54: =($O$11-$AU$54)*$A$46 -> 1669.44 | BD54: 12020.56 | BE54: =$BB$54/$BD$54*D54 -> 0 | BF54: 0 | BG54: 0 | BH54: 0 | BI54: 0 | BJ54: 0 | BK54: 0 | BL54: 0 | BM54: 0 | BN54: 0 | BO54: 0 | BP54: 82.21817286 | BQ54: 0 | BR54: 1525.558197 | BS54: 0 | BT54: 20.55454322 | BU54: 0 | BV54: 20.55454322 | BW54: 0 | BY54: =$BB$54/$BD$54*Y54 -> 0 | BZ54: 0 | CA54: 0 | CB54: 0 | CC54: 0 | CD54: 0 | CE54: 0 | CF54: 0 | CG54: 0 | CH54: 0 | CI54: 0 | CJ54: 0 | CK54: 0 | CL54: 10.27727161 | CM54: 0 | CN54: 10.27727161 | CO54: 0 | CP54: 0 | CQ54: 0
A55: 9 | B55: Coventry ELC | C55: =10000/$A$16 -> 51.8134715 | D55: =120*A46 -> 8880 | E55: 0 | F55: 0 | G55: 0 | H55: 0 | I55: 0 | J55: 0 | K55: 0 | L55: 0 | M55: 0 | N55: 0 | O55: 0 | P55: 0 | Q55: 0 | R55: 0 | S55: 0 | T55: 0 | U55: 0 | V55: 0 | W55: =SUM(D55:V55)/$A$46 -> 120 | X55: =SUMPRODUCT(D55:V55,$Z$12:$AR$12)/$A$16 -> 605873.3943 | Y55: =A46*0 -> 0 | Z55: 0 | AA55: 0 | AB55: 0 | AC55: 0 | AD55: 0 | AE55: 0 | AF55: 0 | AG55: 0 | AH55: 0 | AI55: 0 | AJ55: 0 | AK55: 0 | AL55: 0 | AM55: 0 | AN55: 0 | AO55: 0 | AP55: 0 | AQ55: 0 | AR55: 0 | AS55: =SUMPRODUCT(Y55:AQ55,$Z$12:$AR$12)/$A$16 -> 0 | AT55: 605873.3943 | AU55: 120 | AV55: =AU55-AW55 -> 0 | AW55: 120 | AX55: =[13]Data!$AU67 -> 120 | AY55: 120 | BB55: =($O$12-$AU$55)*$A$46 -> 0 | BD55: 8880 | BE55: =$BB$55/$BD$55*D55 -> 0 | BF55: 0 | BG55: 0 | BH55: 0 | BI55: 0 | BJ55: 0 | BK55: 0 | BL55: 0 | BM55: 0 | BN55: 0 | BO55: 0 | BP55: 0 | BQ55: 0 | BR55: 0 | BS55: 0 | BT55: 0 | BU55: 0 | BV55: 0 | BW55: 0 | BY55: =$BB$55/$BD$55*Y55 -> 0 | BZ55: 0 | CA55: 0 | CB55: 0 | CC55: 0 | CD55: 0 | CE55: 0 | CF55: 0 | CG55: 0 | CH55: 0 | CI55: 0 | CJ55: 0 | CK55: 0 | CL55: 0 | CM55: 0 | CN55: 0 | CO55: 0 | CP55: 0 | CQ55: 0
AS56: =SUM(AS47:AS55) -> 98867.97495 | AT56: =SUM(AT47:AT55) -> 7666696.461 | AU56: =SUM(AU47:AU55) -> 1465.373333
B57: Autumn Term 2026
A58: 74 | B58: School
A59: 1 | B59: Castle Wood | C59: =10000/$A$16 -> 51.8134715 | D59: =D47+BE47 -> 0 | E59: 0 | F59: 0 | G59: 73.93603227 | H59: 0 | I59: 0 | J59: 75.96167699 | K59: 8544.169428 | L59: 607.6934159 | M59: 0 | N59: 527.6804495 | O59: 771.7706382 | P59: 0 | Q59: =Q47+BR47 -> 2304.170869 | R59: 455.770062 | S59: 0 | T59: 303.846708 | U59: 95.20530183 | V59: 0 | W59: =SUM(D59:V59)/$A$46 -> 185.9487106 | X59: =SUMPRODUCT(D59:V59,$Z$6:$AR$6)/$A$16 -> 946727.0418 | Y59: =Y47+BY47 -> 0 | Z59: =Z47+BZ47 -> 0 | AA59: =AA47+CA47 -> 0 | AB59: =AB47+CB47 -> 0 | AC59: =AC47+CC47 -> 0 | AD59: =AD47+CD47 -> 0 | AE59: =AE47+CE47 -> 0 | AF59: =AF47+CF47 -> 299.7954185 | AG59: =AG47+CG47 -> 0 | AH59: =AH47+CH47 -> 0 | AI59: =AI47+CI47 -> 0 | AJ59: =AJ47+CJ47 -> 0 | AK59: =AK47+CK47 -> 0 | AL59: =AL47+CL47 -> 0 | AM59: =AM47+CM47 -> 0 | AN59: =AN47+CN47 -> 0 | AO59: =AO47+CO47 -> 0 | AP59: =AP47+CP47 -> 0 | AQ59: =AQ47+CQ47 -> 0 | AR59: =SUM(Y59:AQ59)/$A$46 -> 4.05128944 | AS59: =SUMPRODUCT(Y59:AQ59,$Z$6:$AR$6)/$A$16 -> 16622.33005 | AT59: =X59+AS59 -> 963349.3718 | AU59: =AR59+W59 -> 190 | AV59: =AU59-AW59 -> 0 | AW59: =+O4 -> 190 | AX59: =[13]Data!$AU59 -> 185.0933333 | AY59: =+E4 -> 190 | BA59: =(AT59/75*200)/AU59 -> 13520.69294 | BC59: =X59/W59 -> 5091.334266
A60: 2 | B60: Kingsbury | C60: =10000/$A$16 -> 51.8134715 | D60: =D48+BE48 -> 0 | E60: 0 | F60: 0 | G60: 0 | H60: 0 | I60: 0 | J60: 0 | K60: 4205.613654 | L60: 148.7484197 | M60: 0 | N60: 0 | O60: 1222.71201 | P60: 0 | Q60: 2043.803287 | R60: 0 | S60: 0 | T60: 0 | U60: 0 | V60: 0 | W60: 102.9848293 | X60: 590262.6324 | Y60: =Y48+BY48 -> 0 | Z60: 0 | AA60: 0 | AB60: 0 | AC60: 0 | AD60: 0 | AE60: 0 | AF60: 74.37420986 | AG60: 74.37420986 | AH60: 0 | AI60: 0 | AJ60: 0 | AK60: 0 | AL60: 74.37420986 | AM60: 0 | AN60: 0 | AO60: 0 | AP60: 0 | AQ60: 0 | AR60: =SUM(Y60:AQ60)/$A$46 -> 3.01517067 | AS60: 14639.2133 | AT60: 604901.8457 | AU60: 106 | AV60: 0 | AW60: =+O5 -> 106 | AX60: =[13]Data!$AU60 -> 105.4666667 | AY60: =+E5 -> 106 | BA60: =(AT60/75*200)/AU60 -> 15217.6565 | BC60: 5731.549358
A61: 3 | B61: RiverBank | C61: 51.8134715 | D61: 0 | E61: 0 | F61: 0 | G61: 169.4920536 | H61: 254.2380804 | I61: 0 | J61: 0 | K61: 7789.854783 | L61: 4149.165472 | M61: 84.7460268 | N61: 677.9682144 | O61: 769.4939233 | P61: 254.2380804 | Q61: 2879.105017 | R61: 677.9682144 | S61: 0 | T61: 254.2380804 | U61: 0 | V61: 0 | W61: 242.7095668 | X61: 1196433.937 | Y61: 0 | Z61: 0 | AA61: 0 | AB61: 0 | AC61: 0 | AD61: 0 | AE61: 0 | AF61: 0 | AG61: 84.7460268 | AH61: 0 | AI61: 0 | AJ61: 0 | AK61: 0 | AL61: 84.7460268 | AM61: 0 | AN61: 0 | AO61: 0 | AP61: 0 | AQ61: 0 | AR61: 2.290433157 | AS61: 11981.92484 | AT61: 1208415.861 | AU61: 245 | AV61: 0 | AW61: 245 | AX61: =[13]Data!$AU61 -> 213.9333333 | AY61: 220 | BA61: 13152.8257 | BC61: 4929.488162
A62: 4 | B62: Corley | C62: 51.8134715 | D62: 0 | E62: 0 | F62: 0 | G62: 305.2904061 | H62: 228.9678046 | I62: 0 | J62: 0 | K62: 9604.436175 | L62: 0 | M62: 457.9356091 | N62: 0 | O62: 609.5631775 | P62: 0 | Q62: 1221.161624 | R62: 0 | S62: 0 | T62: 0 | U62: 0 | V62: 0 | W62: 167.937227 | X62: 768123.6455 | Y62: 0 | Z62: 0 | AA62: 0 | AB62: 0 | AC62: 0 | AD62: 0 | AE62: 0 | AF62: 152.645203 | AG62: 0 | AH62: 0 | AI62: 0 | AJ62: 0 | AK62: 0 | AL62: 0 | AM62: 0 | AN62: 0 | AO62: 0 | AP62: 0 | AQ62: 0 | AR62: 2.062773014 | AS62: 8463.501402 | AT62: 776587.1469 | AU62: 170 | AV62: 0 | AW62: 170 | AX62: =[13]Data!$AU62 -> 164.8266667 | AY62: 165 | BA62: 12181.75917 | BC62: 4573.873579
A63: 5 | B63: Tiverton | C63: 51.8134715 | D63: 0 | E63: 0 | F63: 0 | G63: 0 | H63: 0 | I63: 0 | J63: 0 | K63: 6341.516513 | L63: 613.5961793 | M63: 0 | N63: 306.7980896 | O63: 383.497612 | P63: 0 | Q63: 1362.183518 | R63: 460.1971344 | S63: 0 | T63: 442.8119094 | U63: 76.69952241 | V63: 0 | W63: 134.96352 | X63: 674761.6513 | Y63: 0 | Z63: 0 | AA63: 0 | AB63: 0 | AC63: 0 | AD63: 0 | AE63: 0 | AF63: 0 | AG63: 0 | AH63: 0 | AI63: 0 | AJ63: 0 | AK63: 0 | AL63: 76.69952241 | AM63: 0 | AN63: 0 | AO63: 0 | AP63: 0 | AQ63: 0 | AR63: 1.036480033 | AS63: 6910.556815 | AT63: 681672.2082 | AU63: 136 | AV63: 0 | AW63: 136 | AX63: =[13]Data!$AU63 -> 131.2133333 | AY63: 133 | BA63: 13366.12173 | BC63: 4999.585455
A64: 6 | B64: Baginton Fields | C64: 51.8134715 | D64: 0 | E64: 0 | F64: 0 | G64: 0 | H64: 0 | I64: 0 | J64: 0 | K64: 2652.457045 | L64: 2421.027923 | M64: 0 | N64: 299.2617952 | O64: 822.9699369 | P64: 0 | Q64: 2006.051567 | R64: 748.1544881 | S64: 0 | T64: 299.2617952 | U64: 0 | V64: 0 | W64: =SUM(D64:V64)/$A$46 -> 124.9889804 | X64: 671093.5016 | Y64: 0 | Z64: 0 | AA64: 0 | AB64: 0 | AC64: 0 | AD64: 0 | AE64: 0 | AF64: 0 | AG64: 74.81544881 | AH64: 0 | AI64: 0 | AJ64: 0 | AK64: 0 | AL64: 0 | AM64: 0 | AN64: 0 | AO64: 0 | AP64: 0 | AQ64: 0 | AR64: 1.011019578 | AS64: 3837.073926 | AT64: 674930.5755 | AU64: 126 | AV64: 0 | AW64: 126 | AX64: =[13]Data!$AU64 -> 124.6266667 | AY64: 126 | BA64: 14284.24498 | BC64: 5369.221345
A65: 7 | B65: Sherbourne Fields | C65: 51.8134715 | D65: 0 | E65: 0 | F65: 0 | G65: 0 | H65: 74.06507009 | I65: 0 | J65: 0 | K65: 6921.627683 | L65: 4145.668856 | M65: 74.06507009 | N65: 1958.280453 | O65: 222.1952103 | P65: 0 | Q65: 1995.806755 | R65: 1739.047846 | S65: 0 | T65: 1590.917705 | U65: 0 | V65: 0 | W65: 252.9956034 | X65: 1226110.359 | Y65: 0 | Z65: 0 | AA65: 0 | AB65: 0 | AC65: 0 | AD65: 0 | AE65: 0 | AF65: 148.1301402 | AG65: 0 | AH65: 0 | AI65: 74.06507009 | AJ65: 0 | AK65: 0 | AL65: 0 | AM65: 0 | AN65: 0 | AO65: 148.1301402 | AP65: 0 | AQ65: 0 | AR65: 5.004396628 | AS65: 25666.12305 | AT65: 1251776.482 | AU65: 258 | AV65: 0 | AW65: 258 | AX65: =[13]Data!$AU65 -> 257.7733333 | AY65: 258 | BA65: 12938.25821 | BC65: 4846.370223
A66: 8 | B66: Woodfield | C66: =10000/$A$16 -> 51.8134715 | D66: 0 | E66: 0 | F66: 0 | G66: 0 | H66: 0 | I66: 0 | J66: 0 | K66: 0 | L66: 0 | M66: 0 | N66: 0 | O66: 674.2181729 | P66: 0 | Q66: 12510.1182 | R66: 0 | S66: 168.5545432 | T66: 0 | U66: 168.5545432 | V66: 0 | W66: =SUM(D66:V66)/$A$46 -> 182.7222359 | X66: 1279064.621 | Y66: 0 | Z66: 0 | AA66: 0 | AB66: 0 | AC66: 0 | AD66: 0 | AE66: 0 | AF66: 0 | AG66: 0 | AH66: 0 | AI66: 0 | AJ66: 0 | AK66: 0 | AL66: 84.27727161 | AM66: 0 | AN66: 84.27727161 | AO66: 0 | AP66: 0 | AQ66: 0 | AR66: 2.277764098 | AS66: 15186.61017 | AT66: 1294251.231 | AU66: 185 | AV66: 0 | AW66: 185 | AX66: =[13]Data!$AU66 -> 162.44 | AY66: 161 | BA66: 18655.8736 | BC66: 7000.049088
A67: 9 | B67: Coventry ELC | C67: =10000/$A$16 -> 51.8134715 | D67: 8880 | E67: 0 | F67: 0 | G67: 0 | H67: 0 | I67: 0 | J67: 0 | K67: 0 | L67: 0 | M67: 0 | N67: 0 | O67: 0 | P67: 0 | Q67: 0 | R67: 0 | S67: 0 | T67: 0 | U67: 0 | V67: 0 | W67: =SUM(D67:V67)/$A$46 -> 120 | X67: =SUMPRODUCT(D67:V67,$Z$12:$AR$12)/$A$16 -> 605873.3943 | Y67: 0 | Z67: 0 | AA67: 0 | AB67: 0 | AC67: 0 | AD67: 0 | AE67: 0 | AF67: 0 | AG67: 0 | AH67: 0 | AI67: 0 | AJ67: 0 | AK67: 0 | AL67: 0 | AM67: 0 | AN67: 0 | AO67: 0 | AP67: 0 | AQ67: 0 | AR67: 0 | AS67: =SUMPRODUCT(Y67:AQ67,$Z$12:$AR$12)/$A$16 -> 0 | AT67: 605873.3943 | AU67: 120 | AV67: =AU67-AW67 -> 0 | AW67: 120 | AX67: =[13]Data!$AU67 -> 120 | AY67: 120 | BA67: 13463.85321 | BC67: 5048.944953
AS68: =SUM(AS59:AS67) -> 103307.3336 | AT68: =SUM(AT59:AT67) -> 8061758.117 | AU68: =SUM(AU59:AU67) -> 1536
D71: Coventry pupils | Y71: Other LA Pupils
B72: Spring Term 2027
A73: 54 | B73: School | BA73: 55
A74: 1 | B74: Castle Wood | C74: =10000/$A$16 -> 51.8134715 | D74: 0 | E74: =SUMIFS(SpringProvRep!$K:$K,SpringProvRep!$A:$A,Data!$A$21,SpringProvRep!$P:$P,"Coventry",SpringProvRep!$U:$U,Data!E$17)/$BA$73*$A$73 -> 0 | F74: =SUMIFS(SpringProvRep!$K:$K,SpringProvRep!$A:$A,Data!$A$21,SpringProvRep!$P:$P,"Coventry",SpringProvRep!$U:$U,Data!F$17)/$BA$73*$A$73 -> 0 | G74: =SUMIFS(SpringProvRep!$K:$K,SpringProvRep!$A:$A,Data!$A$21,SpringProvRep!$P:$P,"Coventry",SpringProvRep!$U:$U,Data!G$17)/$BA$73*$A$73 -> 54 | H74: =SUMIFS(SpringProvRep!$K:$K,SpringProvRep!$A:$A,Data!$A$21,SpringProvRep!$P:$P,"Coventry",SpringProvRep!$U:$U,Data!H$17)/$BA$73*$A$73 -> 0 | I74: =SUMIFS(SpringProvRep!$K:$K,SpringProvRep!$A:$A,Data!$A$21,SpringProvRep!$P:$P,"Coventry",SpringProvRep!$U:$U,Data!I$17)/$BA$73*$A$73 -> 0 | J74: =SUMIFS(SpringProvRep!$K:$K,SpringProvRep!$A:$A,Data!$A$21,SpringProvRep!$P:$P,"Coventry",SpringProvRep!$U:$U,Data!J$17)/$BA$73*$A$73 -> 54 | K74: =SUMIFS(SpringProvRep!$K:$K,SpringProvRep!$A:$A,Data!$A$21,SpringProvRep!$P:$P,"Coventry",SpringProvRep!$U:$U,Data!K$17)/$BA$73*$A$73 -> 6415.2 | L74: =SUMIFS(SpringProvRep!$K:$K,SpringProvRep!$A:$A,Data!$A$21,SpringProvRep!$P:$P,"Coventry",SpringProvRep!$U:$U,Data!L$17)/$BA$73*$A$73 -> 432 | M74: =SUMIFS(SpringProvRep!$K:$K,SpringProvRep!$A:$A,Data!$A$21,SpringProvRep!$P:$P,"Coventry",SpringProvRep!$U:$U,Data!M$17)/$BA$73*$A$73 -> 0 | N74: =SUMIFS(SpringProvRep!$K:$K,SpringProvRep!$A:$A,Data!$A$21,SpringProvRep!$P:$P,"Coventry",SpringProvRep!$U:$U,Data!N$17)/$BA$73*$A$73 -> 397.6363636 | O74: =SUMIFS(SpringProvRep!$K:$K,SpringProvRep!$A:$A,Data!$A$21,SpringProvRep!$P:$P,"Coventry",SpringProvRep!$U:$U,Data!O$17)/$BA$73*$A$73 -> 544.9090909 | P74: =SUMIFS(SpringProvRep!$K:$K,SpringProvRep!$A:$A,Data!$A$21,SpringProvRep!$P:$P,"Coventry",SpringProvRep!$U:$U,Data!P$17)/$BA$73*$A$73 -> 0 | Q74: =SUMIFS(SpringProvRep!$K:$K,SpringProvRep!$A:$A,Data!$A$21,SpringProvRep!$P:$P,"Coventry",SpringProvRep!$U:$U,Data!Q$17)/$BA$73*$A$73 -> 1713.272727 | R74: =SUMIFS(SpringProvRep!$K:$K,SpringProvRep!$A:$A,Data!$A$21,SpringProvRep!$P:$P,"Coventry",SpringProvRep!$U:$U,Data!R$17)/$BA$73*$A$73 -> 324 | S74: =SUMIFS(SpringProvRep!$K:$K,SpringProvRep!$A:$A,Data!$A$21,SpringProvRep!$P:$P,"Coventry",SpringProvRep!$U:$U,Data!S$17)/$BA$73*$A$73 -> 0 | T74: =SUMIFS(SpringProvRep!$K:$K,SpringProvRep!$A:$A,Data!$A$21,SpringProvRep!$P:$P,"Coventry",SpringProvRep!$U:$U,Data!T$17)/$BA$73*$A$73 -> 184.5818182 | U74: =SUMIFS(SpringProvRep!$K:$K,SpringProvRep!$A:$A,Data!$A$21,SpringProvRep!$P:$P,"Coventry",SpringProvRep!$U:$U,Data!U$17)/$BA$73*$A$73 -> 108 | V74: =SUMIFS(SpringProvRep!$K:$K,SpringProvRep!$A:$A,Data!$A$21,SpringProvRep!$P:$P,"Coventry",SpringProvRep!$U:$U,Data!V$17)/$BA$73*$A$73 -> 0 | W74: =SUM(D74:V74)/$A$73 -> 189.4 | X74: =SUMPRODUCT(E74:V74,$AA$6:$AR$6)/$A$16 -> 708087.6422 | Y74: 0 | Z74: =SUMIFS(SpringProvRep!$K:$K,SpringProvRep!$A:$A,Data!$A$21,SpringProvRep!$P:$P,"<>Coventry",SpringProvRep!$U:$U,Data!Z$17)/$BA$73*$A$73 -> 0 | AA74: =SUMIFS(SpringProvRep!$K:$K,SpringProvRep!$A:$A,Data!$A$21,SpringProvRep!$P:$P,"<>Coventry",SpringProvRep!$U:$U,Data!AA$17)/$BA$73*$A$73 -> 0 | AB74: =SUMIFS(SpringProvRep!$K:$K,SpringProvRep!$A:$A,Data!$A$21,SpringProvRep!$P:$P,"<>Coventry",SpringProvRep!$U:$U,Data!AB$17)/$BA$73*$A$73 -> 0 | AC74: =SUMIFS(SpringProvRep!$K:$K,SpringProvRep!$A:$A,Data!$A$21,SpringProvRep!$P:$P,"<>Coventry",SpringProvRep!$U:$U,Data!AC$17)/$BA$73*$A$73 -> 0 | AD74: =SUMIFS(SpringProvRep!$K:$K,SpringProvRep!$A:$A,Data!$A$21,SpringProvRep!$P:$P,"<>Coventry",SpringProvRep!$U:$U,Data!AD$17)/$BA$73*$A$73 -> 0 | AE74: =SUMIFS(SpringProvRep!$K:$K,SpringProvRep!$A:$A,Data!$A$21,SpringProvRep!$P:$P,"<>Coventry",SpringProvRep!$U:$U,Data!AE$17)/$BA$73*$A$73 -> 0 | AF74: =SUMIFS(SpringProvRep!$K:$K,SpringProvRep!$A:$A,Data!$A$21,SpringProvRep!$P:$P,"<>Coventry",SpringProvRep!$U:$U,Data!AF$17)/$BA$73*$A$73 -> 240.5454545 | AG74: =SUMIFS(SpringProvRep!$K:$K,SpringProvRep!$A:$A,Data!$A$21,SpringProvRep!$P:$P,"<>Coventry",SpringProvRep!$U:$U,Data!AG$17)/$BA$73*$A$73 -> 0 | AH74: =SUMIFS(SpringProvRep!$K:$K,SpringProvRep!$A:$A,Data!$A$21,SpringProvRep!$P:$P,"<>Coventry",SpringProvRep!$U:$U,Data!AH$17)/$BA$73*$A$73 -> 0 | AI74: =SUMIFS(SpringProvRep!$K:$K,SpringProvRep!$A:$A,Data!$A$21,SpringProvRep!$P:$P,"<>Coventry",SpringProvRep!$U:$U,Data!AI$17)/$BA$73*$A$73 -> 0 | AJ74: =SUMIFS(SpringProvRep!$K:$K,SpringProvRep!$A:$A,Data!$A$21,SpringProvRep!$P:$P,"<>Coventry",SpringProvRep!$U:$U,Data!AJ$17)/$BA$73*$A$73 -> 0 | AK74: =SUMIFS(SpringProvRep!$K:$K,SpringProvRep!$A:$A,Data!$A$21,SpringProvRep!$P:$P,"<>Coventry",SpringProvRep!$U:$U,Data!AK$17)/$BA$73*$A$73 -> 0 | AL74: =SUMIFS(SpringProvRep!$K:$K,SpringProvRep!$A:$A,Data!$A$21,SpringProvRep!$P:$P,"<>Coventry",SpringProvRep!$U:$U,Data!AL$17)/$BA$73*$A$73 -> 0 | AM74: =SUMIFS(SpringProvRep!$K:$K,SpringProvRep!$A:$A,Data!$A$21,SpringProvRep!$P:$P,"<>Coventry",SpringProvRep!$U:$U,Data!AM$17)/$BA$73*$A$73 -> 0 | AN74: =SUMIFS(SpringProvRep!$K:$K,SpringProvRep!$A:$A,Data!$A$21,SpringProvRep!$P:$P,"<>Coventry",SpringProvRep!$U:$U,Data!AN$17)/$BA$73*$A$73 -> 0 | AO74: =SUMIFS(SpringProvRep!$K:$K,SpringProvRep!$A:$A,Data!$A$21,SpringProvRep!$P:$P,"<>Coventry",SpringProvRep!$U:$U,Data!AO$17)/$BA$73*$A$73 -> 0 | AP74: =SUMIFS(SpringProvRep!$K:$K,SpringProvRep!$A:$A,Data!$A$22,SpringProvRep!$P:$P,"<>Coventry",SpringProvRep!$U:$U,Data!AP$17)/$BA$73*$A$73 -> 0 | AQ74: =SUMIFS(SpringProvRep!$K:$K,SpringProvRep!$A:$A,Data!$A$21,SpringProvRep!$P:$P,"<>Coventry",SpringProvRep!$U:$U,Data!AQ$17)/$BA$73*$A$73 -> 0 | AR74: =SUM(Z74:AQ74)/$A$73 -> 4.454545455 | AS74: =SUMPRODUCT(Z74:AQ74,$AA$4:$AR$4)/$A$16 -> 13337.18159 | AT74: =X74+AS74 -> 721424.8238 | AU74: =AR74+W74 -> 193.8545455 | AV74: =AU74-AW74 -> 3.854545455 | AW74: =+P4 -> 190 | AX74: =[13]Data!$AU86 -> 193.8545455 | AY74: =F4 -> 190 | BB74: =($P$4-$AU$74)*$A$73 -> -208.1454545 | BD74: =AU74*$A$73 -> 10468.14545 | BE74: =$BB$74/$BD$74*D74 -> 0 | BF74: =$BB$74/$BD$74*E74 -> 0 | BG74: 0 | BH74: -1.073719752 | BI74: 0 | BJ74: 0 | BK74: -1.073719752 | BL74: -127.5579066 | BM74: -8.589758019 | BN74: 0 | BO74: -7.906481813 | BP74: -10.83480841 | BQ74: 0 | BR74: -34.06619942 | BS74: -6.442318514 | BT74: 0 | BU74: -3.670169335 | BV74: -2.147439505 | BW74: 0 | BY74: =$BB$74/$BD$74*Y74 -> 0 | BZ74: 0 | CA74: 0 | CB74: 0 | CC74: 0 | CD74: 0 | CE74: 0 | CF74: -4.782933442 | CG74: 0 | CH74: 0 | CI74: 0 | CJ74: 0 | CK74: 0 | CL74: 0 | CM74: 0 | CN74: 0 | CO74: 0 | CP74: 0 | CQ74: 0
A75: 2 | B75: Kingsbury | C75: =10000/$A$16 -> 51.8134715 | D75: 0 | E75: =SUMIFS(SpringProvRep!$K:$K,SpringProvRep!$A:$A,Data!$A$22,SpringProvRep!$P:$P,"Coventry",SpringProvRep!$U:$U,Data!E$17)/$BA$73*$A$73 -> 0 | F75: =SUMIFS(SpringProvRep!$K:$K,SpringProvRep!$A:$A,Data!$A$22,SpringProvRep!$P:$P,"Coventry",SpringProvRep!$U:$U,Data!F$17)/$BA$73*$A$73 -> 0 | G75: =SUMIFS(SpringProvRep!$K:$K,SpringProvRep!$A:$A,Data!$A$22,SpringProvRep!$P:$P,"Coventry",SpringProvRep!$U:$U,Data!G$17)/$BA$73*$A$73 -> 0 | H75: =SUMIFS(SpringProvRep!$K:$K,SpringProvRep!$A:$A,Data!$A$22,SpringProvRep!$P:$P,"Coventry",SpringProvRep!$U:$U,Data!H$17)/$BA$73*$A$73 -> 0 | I75: =SUMIFS(SpringProvRep!$K:$K,SpringProvRep!$A:$A,Data!$A$22,SpringProvRep!$P:$P,"Coventry",SpringProvRep!$U:$U,Data!I$17)/$BA$73*$A$73 -> 0 | J75: =SUMIFS(SpringProvRep!$K:$K,SpringProvRep!$A:$A,Data!$A$22,SpringProvRep!$P:$P,"Coventry",SpringProvRep!$U:$U,Data!J$17)/$BA$73*$A$73 -> 0 | K75: =SUMIFS(SpringProvRep!$K:$K,SpringProvRep!$A:$A,Data!$A$22,SpringProvRep!$P:$P,"Coventry",SpringProvRep!$U:$U,Data!K$17)/$BA$73*$A$73 -> 2974.909091 | L75: =SUMIFS(SpringProvRep!$K:$K,SpringProvRep!$A:$A,Data!$A$22,SpringProvRep!$P:$P,"Coventry",SpringProvRep!$U:$U,Data!L$17)/$BA$73*$A$73 -> 108 | M75: =SUMIFS(SpringProvRep!$K:$K,SpringProvRep!$A:$A,Data!$A$22,SpringProvRep!$P:$P,"Coventry",SpringProvRep!$U:$U,Data!M$17)/$BA$73*$A$73 -> 0 | N75: =SUMIFS(SpringProvRep!$K:$K,SpringProvRep!$A:$A,Data!$A$22,SpringProvRep!$P:$P,"Coventry",SpringProvRep!$U:$U,Data!N$17)/$BA$73*$A$73 -> 0 | O75: =SUMIFS(SpringProvRep!$K:$K,SpringProvRep!$A:$A,Data!$A$22,SpringProvRep!$P:$P,"Coventry",SpringProvRep!$U:$U,Data!O$17)/$BA$73*$A$73 -> 982.8 | P75: =SUMIFS(SpringProvRep!$K:$K,SpringProvRep!$A:$A,Data!$A$22,SpringProvRep!$P:$P,"Coventry",SpringProvRep!$U:$U,Data!P$17)/$BA$73*$A$73 -> 0 | Q75: =SUMIFS(SpringProvRep!$K:$K,SpringProvRep!$A:$A,Data!$A$22,SpringProvRep!$P:$P,"Coventry",SpringProvRep!$U:$U,Data!Q$17)/$BA$73*$A$73 -> 1368.654545 | R75: =SUMIFS(SpringProvRep!$K:$K,SpringProvRep!$A:$A,Data!$A$22,SpringProvRep!$P:$P,"Coventry",SpringProvRep!$U:$U,Data!R$17)/$BA$73*$A$73 -> 0 | S75: =SUMIFS(SpringProvRep!$K:$K,SpringProvRep!$A:$A,Data!$A$22,SpringProvRep!$P:$P,"Coventry",SpringProvRep!$U:$U,Data!S$17)/$BA$73*$A$73 -> 0 | T75: =SUMIFS(SpringProvRep!$K:$K,SpringProvRep!$A:$A,Data!$A$22,SpringProvRep!$P:$P,"Coventry",SpringProvRep!$U:$U,Data!T$17)/$BA$73*$A$73 -> 0 | U75: =SUMIFS(SpringProvRep!$K:$K,SpringProvRep!$A:$A,Data!$A$22,SpringProvRep!$P:$P,"Coventry",SpringProvRep!$U:$U,Data!U$17)/$BA$73*$A$73 -> 43.2 | V75: =SUMIFS(SpringProvRep!$K:$K,SpringProvRep!$A:$A,Data!$A$22,SpringProvRep!$P:$P,"Coventry",SpringProvRep!$U:$U,Data!V$17)/$BA$73*$A$73 -> 0 | W75: =SUM(D75:V75)/$A$73 -> 101.4363636 | X75: 438351.0806 | Y75: 0 | Z75: =SUMIFS(SpringProvRep!$K:$K,SpringProvRep!$A:$A,Data!$A$22,SpringProvRep!$P:$P,"<>Coventry",SpringProvRep!$U:$U,Data!Z$17)/$BA$73*$A$73 -> 0 | AA75: =SUMIFS(SpringProvRep!$K:$K,SpringProvRep!$A:$A,Data!$A$22,SpringProvRep!$P:$P,"<>Coventry",SpringProvRep!$U:$U,Data!AA$17)/$BA$73*$A$73 -> 0 | AB75: =SUMIFS(SpringProvRep!$K:$K,SpringProvRep!$A:$A,Data!$A$22,SpringProvRep!$P:$P,"<>Coventry",SpringProvRep!$U:$U,Data!AB$17)/$BA$73*$A$73 -> 0 | AC75: =SUMIFS(SpringProvRep!$K:$K,SpringProvRep!$A:$A,Data!$A$22,SpringProvRep!$P:$P,"<>Coventry",SpringProvRep!$U:$U,Data!AC$17)/$BA$73*$A$73 -> 0 | AD75: =SUMIFS(SpringProvRep!$K:$K,SpringProvRep!$A:$A,Data!$A$22,SpringProvRep!$P:$P,"<>Coventry",SpringProvRep!$U:$U,Data!AD$17)/$BA$73*$A$73 -> 0 | AE75: =SUMIFS(SpringProvRep!$K:$K,SpringProvRep!$A:$A,Data!$A$22,SpringProvRep!$P:$P,"<>Coventry",SpringProvRep!$U:$U,Data!AE$17)/$BA$73*$A$73 -> 0 | AF75: =SUMIFS(SpringProvRep!$K:$K,SpringProvRep!$A:$A,Data!$A$22,SpringProvRep!$P:$P,"<>Coventry",SpringProvRep!$U:$U,Data!AF$17)/$BA$73*$A$73 -> 54 | AG75: =SUMIFS(SpringProvRep!$K:$K,SpringProvRep!$A:$A,Data!$A$22,SpringProvRep!$P:$P,"<>Coventry",SpringProvRep!$U:$U,Data!AG$17)/$BA$73*$A$73 -> 54 | AH75: =SUMIFS(SpringProvRep!$K:$K,SpringProvRep!$A:$A,Data!$A$22,SpringProvRep!$P:$P,"<>Coventry",SpringProvRep!$U:$U,Data!AH$17)/$BA$73*$A$73 -> 0 | AI75: =SUMIFS(SpringProvRep!$K:$K,SpringProvRep!$A:$A,Data!$A$22,SpringProvRep!$P:$P,"<>Coventry",SpringProvRep!$U:$U,Data!AI$17)/$BA$73*$A$73 -> 0 | AJ75: =SUMIFS(SpringProvRep!$K:$K,SpringProvRep!$A:$A,Data!$A$22,SpringProvRep!$P:$P,"<>Coventry",SpringProvRep!$U:$U,Data!AJ$17)/$BA$73*$A$73 -> 0 | AK75: =SUMIFS(SpringProvRep!$K:$K,SpringProvRep!$A:$A,Data!$A$22,SpringProvRep!$P:$P,"<>Coventry",SpringProvRep!$U:$U,Data!AK$17)/$BA$73*$A$73 -> 0 | AL75: =SUMIFS(SpringProvRep!$K:$K,SpringProvRep!$A:$A,Data!$A$22,SpringProvRep!$P:$P,"<>Coventry",SpringProvRep!$U:$U,Data!AL$17)/$BA$73*$A$73 -> 54 | AM75: =SUMIFS(SpringProvRep!$K:$K,SpringProvRep!$A:$A,Data!$A$22,SpringProvRep!$P:$P,"<>Coventry",SpringProvRep!$U:$U,Data!AM$17)/$BA$73*$A$73 -> 0 | AN75: =SUMIFS(SpringProvRep!$K:$K,SpringProvRep!$A:$A,Data!$A$22,SpringProvRep!$P:$P,"<>Coventry",SpringProvRep!$U:$U,Data!AN$17)/$BA$73*$A$73 -> 0 | AO75: =SUMIFS(SpringProvRep!$K:$K,SpringProvRep!$A:$A,Data!$A$22,SpringProvRep!$P:$P,"<>Coventry",SpringProvRep!$U:$U,Data!AO$17)/$BA$73*$A$73 -> 0 | AP75: =SUMIFS(SpringProvRep!$K:$K,SpringProvRep!$A:$A,Data!$A$22,SpringProvRep!$P:$P,"<>Coventry",SpringProvRep!$U:$U,Data!AP$17)/$BA$73*$A$73 -> 0 | AQ75: =SUMIFS(SpringProvRep!$K:$K,SpringProvRep!$A:$A,Data!$A$22,SpringProvRep!$P:$P,"<>Coventry",SpringProvRep!$U:$U,Data!AQ$17)/$BA$73*$A$73 -> 0 | AR75: =SUM(Z75:AQ75)/$A$73 -> 3 | AS75: 10628.91989 | AT75: 448980.0005 | AU75: =AR75+W75 -> 104.4363636 | AV75: =AU75-AW75 -> -1.563636364 | AW75: =+P5 -> 106 | AX75: =[13]Data!$AU87 -> 104.4363636 | AY75: 106 | BB75: =($P$5-$AU$75)*$A$73 -> 84.43636364 | BD75: 5639.563636 | BE75: =$BB$75/$BD$75*D75 -> 0 | BF75: 0 | BG75: 0 | BH75: 0 | BI75: 0 | BJ75: 0 | BK75: 0 | BL75: 44.54076982 | BM75: 1.616991643 | BN75: 0 | BO75: 0 | BP75: 14.71462396 | BQ75: 0 | BR75: 20.4916941 | BS75: 0 | BT75: 0 | BU75: 0 | BV75: 0.6467966574 | BW75: 0 | BY75: =$BB$75/$BD$75*Y75 -> 0 | BZ75: 0 | CA75: 0 | CB75: 0 | CC75: 0 | CD75: 0 | CE75: 0 | CF75: 0.8084958217 | CG75: 0.8084958217 | CH75: 0 | CI75: 0 | CJ75: 0 | CK75: 0 | CL75: 0.8084958217 | CM75: 0 | CN75: 0 | CO75: 0 | CP75: 0 | CQ75: 0
A76: 3 | B76: RiverBank | C76: 51.8134715 | D76: 0 | E76: =SUMIFS(SpringProvRep!$K:$K,SpringProvRep!$A:$A,Data!$A$23,SpringProvRep!$P:$P,"Coventry",SpringProvRep!$U:$U,Data!E$17)/$BA$73*$A$73 -> 0 | F76: =SUMIFS(SpringProvRep!$K:$K,SpringProvRep!$A:$A,Data!$A$23,SpringProvRep!$P:$P,"Coventry",SpringProvRep!$U:$U,Data!F$17)/$BA$73*$A$73 -> 0 | G76: =SUMIFS(SpringProvRep!$K:$K,SpringProvRep!$A:$A,Data!$A$23,SpringProvRep!$P:$P,"Coventry",SpringProvRep!$U:$U,Data!G$17)/$BA$73*$A$73 -> 137.4545455 | H76: =SUMIFS(SpringProvRep!$K:$K,SpringProvRep!$A:$A,Data!$A$23,SpringProvRep!$P:$P,"Coventry",SpringProvRep!$U:$U,Data!H$17)/$BA$73*$A$73 -> 162 | I76: =SUMIFS(SpringProvRep!$K:$K,SpringProvRep!$A:$A,Data!$A$23,SpringProvRep!$P:$P,"Coventry",SpringProvRep!$U:$U,Data!I$17)/$BA$73*$A$73 -> 0 | J76: =SUMIFS(SpringProvRep!$K:$K,SpringProvRep!$A:$A,Data!$A$23,SpringProvRep!$P:$P,"Coventry",SpringProvRep!$U:$U,Data!J$17)/$BA$73*$A$73 -> 0 | K76: =SUMIFS(SpringProvRep!$K:$K,SpringProvRep!$A:$A,Data!$A$23,SpringProvRep!$P:$P,"Coventry",SpringProvRep!$U:$U,Data!K$17)/$BA$73*$A$73 -> 4879.636364 | L76: =SUMIFS(SpringProvRep!$K:$K,SpringProvRep!$A:$A,Data!$A$23,SpringProvRep!$P:$P,"Coventry",SpringProvRep!$U:$U,Data!L$17)/$BA$73*$A$73 -> 2592 | M76: =SUMIFS(SpringProvRep!$K:$K,SpringProvRep!$A:$A,Data!$A$23,SpringProvRep!$P:$P,"Coventry",SpringProvRep!$U:$U,Data!M$17)/$BA$73*$A$73 -> 54 | N76: =SUMIFS(SpringProvRep!$K:$K,SpringProvRep!$A:$A,Data!$A$23,SpringProvRep!$P:$P,"Coventry",SpringProvRep!$U:$U,Data!N$17)/$BA$73*$A$73 -> 432 | O76: =SUMIFS(SpringProvRep!$K:$K,SpringProvRep!$A:$A,Data!$A$23,SpringProvRep!$P:$P,"Coventry",SpringProvRep!$U:$U,Data!O$17)/$BA$73*$A$73 -> 540 | P76: =SUMIFS(SpringProvRep!$K:$K,SpringProvRep!$A:$A,Data!$A$23,SpringProvRep!$P:$P,"Coventry",SpringProvRep!$U:$U,Data!P$17)/$BA$73*$A$73 -> 162 | Q76: =SUMIFS(SpringProvRep!$K:$K,SpringProvRep!$A:$A,Data!$A$23,SpringProvRep!$P:$P,"Coventry",SpringProvRep!$U:$U,Data!Q$17)/$BA$73*$A$73 -> 1890 | R76: =SUMIFS(SpringProvRep!$K:$K,SpringProvRep!$A:$A,Data!$A$23,SpringProvRep!$P:$P,"Coventry",SpringProvRep!$U:$U,Data!R$17)/$BA$73*$A$73 -> 432 | S76: =SUMIFS(SpringProvRep!$K:$K,SpringProvRep!$A:$A,Data!$A$23,SpringProvRep!$P:$P,"Coventry",SpringProvRep!$U:$U,Data!S$17)/$BA$73*$A$73 -> 0 | T76: =SUMIFS(SpringProvRep!$K:$K,SpringProvRep!$A:$A,Data!$A$23,SpringProvRep!$P:$P,"Coventry",SpringProvRep!$U:$U,Data!T$17)/$BA$73*$A$73 -> 162 | U76: =SUMIFS(SpringProvRep!$K:$K,SpringProvRep!$A:$A,Data!$A$23,SpringProvRep!$P:$P,"Coventry",SpringProvRep!$U:$U,Data!U$17)/$BA$73*$A$73 -> 0 | V76: =SUMIFS(SpringProvRep!$K:$K,SpringProvRep!$A:$A,Data!$A$23,SpringProvRep!$P:$P,"Coventry",SpringProvRep!$U:$U,Data!V$17)/$BA$73*$A$73 -> 0 | W76: 211.9090909 | X76: 767248.3408 | Y76: 0 | Z76: =SUMIFS(SpringProvRep!$K:$K,SpringProvRep!$A:$A,Data!$A$23,SpringProvRep!$P:$P,"<>Coventry",SpringProvRep!$U:$U,Data!Z$17)/$BA$73*$A$73 -> 0 | AA76: =SUMIFS(SpringProvRep!$K:$K,SpringProvRep!$A:$A,Data!$A$23,SpringProvRep!$P:$P,"<>Coventry",SpringProvRep!$U:$U,Data!AA$17)/$BA$73*$A$73 -> 0 | AB76: =SUMIFS(SpringProvRep!$K:$K,SpringProvRep!$A:$A,Data!$A$23,SpringProvRep!$P:$P,"<>Coventry",SpringProvRep!$U:$U,Data!AB$17)/$BA$73*$A$73 -> 0 | AC76: =SUMIFS(SpringProvRep!$K:$K,SpringProvRep!$A:$A,Data!$A$23,SpringProvRep!$P:$P,"<>Coventry",SpringProvRep!$U:$U,Data!AC$17)/$BA$73*$A$73 -> 0 | AD76: =SUMIFS(SpringProvRep!$K:$K,SpringProvRep!$A:$A,Data!$A$23,SpringProvRep!$P:$P,"<>Coventry",SpringProvRep!$U:$U,Data!AD$17)/$BA$73*$A$73 -> 0 | AE76: =SUMIFS(SpringProvRep!$K:$K,SpringProvRep!$A:$A,Data!$A$23,SpringProvRep!$P:$P,"<>Coventry",SpringProvRep!$U:$U,Data!AE$17)/$BA$73*$A$73 -> 0 | AF76: =SUMIFS(SpringProvRep!$K:$K,SpringProvRep!$A:$A,Data!$A$23,SpringProvRep!$P:$P,"<>Coventry",SpringProvRep!$U:$U,Data!AF$17)/$BA$73*$A$73 -> 0 | AG76: =SUMIFS(SpringProvRep!$K:$K,SpringProvRep!$A:$A,Data!$A$23,SpringProvRep!$P:$P,"<>Coventry",SpringProvRep!$U:$U,Data!AG$17)/$BA$73*$A$73 -> 54 | AH76: =SUMIFS(SpringProvRep!$K:$K,SpringProvRep!$A:$A,Data!$A$23,SpringProvRep!$P:$P,"<>Coventry",SpringProvRep!$U:$U,Data!AH$17)/$BA$73*$A$73 -> 0 | AI76: =SUMIFS(SpringProvRep!$K:$K,SpringProvRep!$A:$A,Data!$A$23,SpringProvRep!$P:$P,"<>Coventry",SpringProvRep!$U:$U,Data!AI$17)/$BA$73*$A$73 -> 0 | AJ76: =SUMIFS(SpringProvRep!$K:$K,SpringProvRep!$A:$A,Data!$A$23,SpringProvRep!$P:$P,"<>Coventry",SpringProvRep!$U:$U,Data!AJ$17)/$BA$73*$A$73 -> 0 | AK76: =SUMIFS(SpringProvRep!$K:$K,SpringProvRep!$A:$A,Data!$A$23,SpringProvRep!$P:$P,"<>Coventry",SpringProvRep!$U:$U,Data!AK$17)/$BA$73*$A$73 -> 0 | AL76: =SUMIFS(SpringProvRep!$K:$K,SpringProvRep!$A:$A,Data!$A$23,SpringProvRep!$P:$P,"<>Coventry",SpringProvRep!$U:$U,Data!AL$17)/$BA$73*$A$73 -> 54 | AM76: =SUMIFS(SpringProvRep!$K:$K,SpringProvRep!$A:$A,Data!$A$23,SpringProvRep!$P:$P,"<>Coventry",SpringProvRep!$U:$U,Data!AM$17)/$BA$73*$A$73 -> 0 | AN76: =SUMIFS(SpringProvRep!$K:$K,SpringProvRep!$A:$A,Data!$A$23,SpringProvRep!$P:$P,"<>Coventry",SpringProvRep!$U:$U,Data!AN$17)/$BA$73*$A$73 -> 0 | AO76: =SUMIFS(SpringProvRep!$K:$K,SpringProvRep!$A:$A,Data!$A$23,SpringProvRep!$P:$P,"<>Coventry",SpringProvRep!$U:$U,Data!AO$17)/$BA$73*$A$73 -> 0 | AP76: =SUMIFS(SpringProvRep!$K:$K,SpringProvRep!$A:$A,Data!$A$23,SpringProvRep!$P:$P,"<>Coventry",SpringProvRep!$U:$U,Data!AP$17)/$BA$73*$A$73 -> 0 | AQ76: =SUMIFS(SpringProvRep!$K:$K,SpringProvRep!$A:$A,Data!$A$23,SpringProvRep!$P:$P,"<>Coventry",SpringProvRep!$U:$U,Data!AQ$17)/$BA$73*$A$73 -> 0 | AR76: 2 | AS76: 7634.858716 | AT76: 774883.1995 | AU76: 213.9090909 | AV76: -31.09090909 | AW76: 245 | AX76: =[13]Data!$AU88 -> 213.9090909 | AY76: 220 | BB76: =($P$6-$AU$76)*$A$73 -> 1678.909091 | BD76: 11551.09091 | BE76: =$BB$76/$BD$76*D76 -> 0 | BF76: 0 | BG76: 0 | BH76: 19.97851872 | BI76: 23.54611135 | BJ76: 0 | BK76: 0 | BL76: 709.2374145 | BM76: 376.7377816 | BN76: 7.848703782 | BO76: 62.78963026 | BP76: 78.48703782 | BQ76: 23.54611135 | BR76: 274.7046324 | BS76: 62.78963026 | BT76: 0 | BU76: 23.54611135 | BV76: 0 | BW76: 0 | BY76: =$BB$76/$BD$76*Y76 -> 0 | BZ76: 0 | CA76: 0 | CB76: 0 | CC76: 0 | CD76: 0 | CE76: 0 | CF76: 0 | CG76: 7.848703782 | CH76: 0 | CI76: 0 | CJ76: 0 | CK76: 0 | CL76: 7.848703782 | CM76: 0 | CN76: 0 | CO76: 0 | CP76: 0 | CQ76: 0
A77: 4 | B77: Corley | C77: 51.8134715 | D77: 0 | E77: =SUMIFS(SpringProvRep!$K:$K,SpringProvRep!$A:$A,Data!$A$24,SpringProvRep!$P:$P,"Coventry",SpringProvRep!$U:$U,Data!E$17)/$BA$73*$A$73 -> 0 | F77: =SUMIFS(SpringProvRep!$K:$K,SpringProvRep!$A:$A,Data!$A$24,SpringProvRep!$P:$P,"Coventry",SpringProvRep!$U:$U,Data!F$17)/$BA$73*$A$73 -> 0 | G77: =SUMIFS(SpringProvRep!$K:$K,SpringProvRep!$A:$A,Data!$A$24,SpringProvRep!$P:$P,"Coventry",SpringProvRep!$U:$U,Data!G$17)/$BA$73*$A$73 -> 0 | H77: =SUMIFS(SpringProvRep!$K:$K,SpringProvRep!$A:$A,Data!$A$24,SpringProvRep!$P:$P,"Coventry",SpringProvRep!$U:$U,Data!H$17)/$BA$73*$A$73 -> 0 | I77: =SUMIFS(SpringProvRep!$K:$K,SpringProvRep!$A:$A,Data!$A$24,SpringProvRep!$P:$P,"Coventry",SpringProvRep!$U:$U,Data!I$17)/$BA$73*$A$73 -> 0 | J77: =SUMIFS(SpringProvRep!$K:$K,SpringProvRep!$A:$A,Data!$A$24,SpringProvRep!$P:$P,"Coventry",SpringProvRep!$U:$U,Data!J$17)/$BA$73*$A$73 -> 0 | K77: =SUMIFS(SpringProvRep!$K:$K,SpringProvRep!$A:$A,Data!$A$24,SpringProvRep!$P:$P,"Coventry",SpringProvRep!$U:$U,Data!K$17)/$BA$73*$A$73 -> 7176.109091 | L77: =SUMIFS(SpringProvRep!$K:$K,SpringProvRep!$A:$A,Data!$A$24,SpringProvRep!$P:$P,"Coventry",SpringProvRep!$U:$U,Data!L$17)/$BA$73*$A$73 -> 0 | M77: =SUMIFS(SpringProvRep!$K:$K,SpringProvRep!$A:$A,Data!$A$24,SpringProvRep!$P:$P,"Coventry",SpringProvRep!$U:$U,Data!M$17)/$BA$73*$A$73 -> 324 | N77: =SUMIFS(SpringProvRep!$K:$K,SpringProvRep!$A:$A,Data!$A$24,SpringProvRep!$P:$P,"Coventry",SpringProvRep!$U:$U,Data!N$17)/$BA$73*$A$73 -> 0 | O77: =SUMIFS(SpringProvRep!$K:$K,SpringProvRep!$A:$A,Data!$A$24,SpringProvRep!$P:$P,"Coventry",SpringProvRep!$U:$U,Data!O$17)/$BA$73*$A$73 -> 409.4181818 | P77: =SUMIFS(SpringProvRep!$K:$K,SpringProvRep!$A:$A,Data!$A$24,SpringProvRep!$P:$P,"Coventry",SpringProvRep!$U:$U,Data!P$17)/$BA$73*$A$73 -> 0 | Q77: =SUMIFS(SpringProvRep!$K:$K,SpringProvRep!$A:$A,Data!$A$24,SpringProvRep!$P:$P,"Coventry",SpringProvRep!$U:$U,Data!Q$17)/$BA$73*$A$73 -> 864 | R77: =SUMIFS(SpringProvRep!$K:$K,SpringProvRep!$A:$A,Data!$A$24,SpringProvRep!$P:$P,"Coventry",SpringProvRep!$U:$U,Data!R$17)/$BA$73*$A$73 -> 0 | S77: =SUMIFS(SpringProvRep!$K:$K,SpringProvRep!$A:$A,Data!$A$24,SpringProvRep!$P:$P,"Coventry",SpringProvRep!$U:$U,Data!S$17)/$BA$73*$A$73 -> 0 | T77: =SUMIFS(SpringProvRep!$K:$K,SpringProvRep!$A:$A,Data!$A$24,SpringProvRep!$P:$P,"Coventry",SpringProvRep!$U:$U,Data!T$17)/$BA$73*$A$73 -> 0 | U77: =SUMIFS(SpringProvRep!$K:$K,SpringProvRep!$A:$A,Data!$A$24,SpringProvRep!$P:$P,"Coventry",SpringProvRep!$U:$U,Data!U$17)/$BA$73*$A$73 -> 0 | V77: =SUMIFS(SpringProvRep!$K:$K,SpringProvRep!$A:$A,Data!$A$24,SpringProvRep!$P:$P,"Coventry",SpringProvRep!$U:$U,Data!V$17)/$BA$73*$A$73 -> 0 | W77: 162.4727273 | X77: 553536.4388 | Y77: 0 | Z77: =SUMIFS(SpringProvRep!$K:$K,SpringProvRep!$A:$A,Data!$A$24,SpringProvRep!$P:$P,"<>Coventry",SpringProvRep!$U:$U,Data!Z$17)/$BA$73*$A$73 -> 0 | AA77: =SUMIFS(SpringProvRep!$K:$K,SpringProvRep!$A:$A,Data!$A$24,SpringProvRep!$P:$P,"<>Coventry",SpringProvRep!$U:$U,Data!AA$17)/$BA$73*$A$73 -> 0 | AB77: =SUMIFS(SpringProvRep!$K:$K,SpringProvRep!$A:$A,Data!$A$24,SpringProvRep!$P:$P,"<>Coventry",SpringProvRep!$U:$U,Data!AB$17)/$BA$73*$A$73 -> 0 | AC77: =SUMIFS(SpringProvRep!$K:$K,SpringProvRep!$A:$A,Data!$A$24,SpringProvRep!$P:$P,"<>Coventry",SpringProvRep!$U:$U,Data!AC$17)/$BA$73*$A$73 -> 0 | AD77: =SUMIFS(SpringProvRep!$K:$K,SpringProvRep!$A:$A,Data!$A$24,SpringProvRep!$P:$P,"<>Coventry",SpringProvRep!$U:$U,Data!AD$17)/$BA$73*$A$73 -> 0 | AE77: =SUMIFS(SpringProvRep!$K:$K,SpringProvRep!$A:$A,Data!$A$24,SpringProvRep!$P:$P,"<>Coventry",SpringProvRep!$U:$U,Data!AE$17)/$BA$73*$A$73 -> 0 | AF77: =SUMIFS(SpringProvRep!$K:$K,SpringProvRep!$A:$A,Data!$A$24,SpringProvRep!$P:$P,"<>Coventry",SpringProvRep!$U:$U,Data!AF$17)/$BA$73*$A$73 -> 108 | AG77: =SUMIFS(SpringProvRep!$K:$K,SpringProvRep!$A:$A,Data!$A$24,SpringProvRep!$P:$P,"<>Coventry",SpringProvRep!$U:$U,Data!AG$17)/$BA$73*$A$73 -> 0 | AH77: =SUMIFS(SpringProvRep!$K:$K,SpringProvRep!$A:$A,Data!$A$24,SpringProvRep!$P:$P,"<>Coventry",SpringProvRep!$U:$U,Data!AH$17)/$BA$73*$A$73 -> 0 | AI77: =SUMIFS(SpringProvRep!$K:$K,SpringProvRep!$A:$A,Data!$A$24,SpringProvRep!$P:$P,"<>Coventry",SpringProvRep!$U:$U,Data!AI$17)/$BA$73*$A$73 -> 0 | AJ77: =SUMIFS(SpringProvRep!$K:$K,SpringProvRep!$A:$A,Data!$A$24,SpringProvRep!$P:$P,"<>Coventry",SpringProvRep!$U:$U,Data!AJ$17)/$BA$73*$A$73 -> 0 | AK77: =SUMIFS(SpringProvRep!$K:$K,SpringProvRep!$A:$A,Data!$A$24,SpringProvRep!$P:$P,"<>Coventry",SpringProvRep!$U:$U,Data!AK$17)/$BA$73*$A$73 -> 0 | AL77: =SUMIFS(SpringProvRep!$K:$K,SpringProvRep!$A:$A,Data!$A$24,SpringProvRep!$P:$P,"<>Coventry",SpringProvRep!$U:$U,Data!AL$17)/$BA$73*$A$73 -> 0 | AM77: =SUMIFS(SpringProvRep!$K:$K,SpringProvRep!$A:$A,Data!$A$24,SpringProvRep!$P:$P,"<>Coventry",SpringProvRep!$U:$U,Data!AM$17)/$BA$73*$A$73 -> 0 | AN77: =SUMIFS(SpringProvRep!$K:$K,SpringProvRep!$A:$A,Data!$A$24,SpringProvRep!$P:$P,"<>Coventry",SpringProvRep!$U:$U,Data!AN$17)/$BA$73*$A$73 -> 0 | AO77: =SUMIFS(SpringProvRep!$K:$K,SpringProvRep!$A:$A,Data!$A$24,SpringProvRep!$P:$P,"<>Coventry",SpringProvRep!$U:$U,Data!AO$17)/$BA$73*$A$73 -> 0 | AP77: =SUMIFS(SpringProvRep!$K:$K,SpringProvRep!$A:$A,Data!$A$24,SpringProvRep!$P:$P,"<>Coventry",SpringProvRep!$U:$U,Data!AP$17)/$BA$73*$A$73 -> 0 | AQ77: =SUMIFS(SpringProvRep!$K:$K,SpringProvRep!$A:$A,Data!$A$24,SpringProvRep!$P:$P,"<>Coventry",SpringProvRep!$U:$U,Data!AQ$17)/$BA$73*$A$73 -> 0 | AR77: 2 | AS77: 5988.122346 | AT77: 559524.5611 | AU77: 164.4727273 | AV77: -5.527272727 | AW77: 170 | AX77: =[13]Data!$AU89 -> 164.4727273 | AY77: 165 | BB77: =($P$7-$AU$77)*$A$73 -> 298.4727273 | BD77: 8881.527273 | BE77: =$BB$77/$BD$77*D77 -> 0 | BF77: 0 | BG77: 0 | BH77: 0 | BI77: 0 | BJ77: 0 | BK77: 0 | BL77: 241.1604205 | BM77: 0 | BN77: 10.88834844 | BO77: 0 | BP77: 13.75891303 | BQ77: 0 | BR77: 29.03559584 | BS77: 0 | BT77: 0 | BU77: 0 | BV77: 0 | BW77: 0 | BY77: =$BB$77/$BD$77*Y77 -> 0 | BZ77: 0 | CA77: 0 | CB77: 0 | CC77: 0 | CD77: 0 | CE77: 0 | CF77: 3.62944948 | CG77: 0 | CH77: 0 | CI77: 0 | CJ77: 0 | CK77: 0 | CL77: 0 | CM77: 0 | CN77: 0 | CO77: 0 | CP77: 0 | CQ77: 0
A78: 5 | B78: Tiverton | C78: 51.8134715 | D78: 0 | E78: =SUMIFS(SpringProvRep!$K:$K,SpringProvRep!$A:$A,Data!$A$25,SpringProvRep!$P:$P,"Coventry",SpringProvRep!$U:$U,Data!E$17)/$BA$73*$A$73 -> 0 | F78: =SUMIFS(SpringProvRep!$K:$K,SpringProvRep!$A:$A,Data!$A$25,SpringProvRep!$P:$P,"Coventry",SpringProvRep!$U:$U,Data!F$17)/$BA$73*$A$73 -> 0 | G78: =SUMIFS(SpringProvRep!$K:$K,SpringProvRep!$A:$A,Data!$A$25,SpringProvRep!$P:$P,"Coventry",SpringProvRep!$U:$U,Data!G$17)/$BA$73*$A$73 -> 0 | H78: =SUMIFS(SpringProvRep!$K:$K,SpringProvRep!$A:$A,Data!$A$25,SpringProvRep!$P:$P,"Coventry",SpringProvRep!$U:$U,Data!H$17)/$BA$73*$A$73 -> 0 | I78: =SUMIFS(SpringProvRep!$K:$K,SpringProvRep!$A:$A,Data!$A$25,SpringProvRep!$P:$P,"Coventry",SpringProvRep!$U:$U,Data!I$17)/$BA$73*$A$73 -> 0 | J78: =SUMIFS(SpringProvRep!$K:$K,SpringProvRep!$A:$A,Data!$A$25,SpringProvRep!$P:$P,"Coventry",SpringProvRep!$U:$U,Data!J$17)/$BA$73*$A$73 -> 0 | K78: =SUMIFS(SpringProvRep!$K:$K,SpringProvRep!$A:$A,Data!$A$25,SpringProvRep!$P:$P,"Coventry",SpringProvRep!$U:$U,Data!K$17)/$BA$73*$A$73 -> 4482 | L78: =SUMIFS(SpringProvRep!$K:$K,SpringProvRep!$A:$A,Data!$A$25,SpringProvRep!$P:$P,"Coventry",SpringProvRep!$U:$U,Data!L$17)/$BA$73*$A$73 -> 432 | M78: =SUMIFS(SpringProvRep!$K:$K,SpringProvRep!$A:$A,Data!$A$25,SpringProvRep!$P:$P,"Coventry",SpringProvRep!$U:$U,Data!M$17)/$BA$73*$A$73 -> 0 | N78: =SUMIFS(SpringProvRep!$K:$K,SpringProvRep!$A:$A,Data!$A$25,SpringProvRep!$P:$P,"Coventry",SpringProvRep!$U:$U,Data!N$17)/$BA$73*$A$73 -> 216 | O78: =SUMIFS(SpringProvRep!$K:$K,SpringProvRep!$A:$A,Data!$A$25,SpringProvRep!$P:$P,"Coventry",SpringProvRep!$U:$U,Data!O$17)/$BA$73*$A$73 -> 378 | P78: =SUMIFS(SpringProvRep!$K:$K,SpringProvRep!$A:$A,Data!$A$25,SpringProvRep!$P:$P,"Coventry",SpringProvRep!$U:$U,Data!P$17)/$BA$73*$A$73 -> 0 | Q78: =SUMIFS(SpringProvRep!$K:$K,SpringProvRep!$A:$A,Data!$A$25,SpringProvRep!$P:$P,"Coventry",SpringProvRep!$U:$U,Data!Q$17)/$BA$73*$A$73 -> 918 | R78: =SUMIFS(SpringProvRep!$K:$K,SpringProvRep!$A:$A,Data!$A$25,SpringProvRep!$P:$P,"Coventry",SpringProvRep!$U:$U,Data!R$17)/$BA$73*$A$73 -> 324 | S78: =SUMIFS(SpringProvRep!$K:$K,SpringProvRep!$A:$A,Data!$A$25,SpringProvRep!$P:$P,"Coventry",SpringProvRep!$U:$U,Data!S$17)/$BA$73*$A$73 -> 0 | T78: =SUMIFS(SpringProvRep!$K:$K,SpringProvRep!$A:$A,Data!$A$25,SpringProvRep!$P:$P,"Coventry",SpringProvRep!$U:$U,Data!T$17)/$BA$73*$A$73 -> 324 | U78: =SUMIFS(SpringProvRep!$K:$K,SpringProvRep!$A:$A,Data!$A$25,SpringProvRep!$P:$P,"Coventry",SpringProvRep!$U:$U,Data!U$17)/$BA$73*$A$73 -> 54 | V78: =SUMIFS(SpringProvRep!$K:$K,SpringProvRep!$A:$A,Data!$A$25,SpringProvRep!$P:$P,"Coventry",SpringProvRep!$U:$U,Data!V$17)/$BA$73*$A$73 -> 0 | W78: 132 | X78: 487942.937 | Y78: 0 | Z78: =SUMIFS(SpringProvRep!$K:$K,SpringProvRep!$A:$A,Data!$A$25,SpringProvRep!$P:$P,"<>Coventry",SpringProvRep!$U:$U,Data!Z$17)/$BA$73*$A$73 -> 0 | AA78: =SUMIFS(SpringProvRep!$K:$K,SpringProvRep!$A:$A,Data!$A$25,SpringProvRep!$P:$P,"<>Coventry",SpringProvRep!$U:$U,Data!AA$17)/$BA$73*$A$73 -> 0 | AB78: =SUMIFS(SpringProvRep!$K:$K,SpringProvRep!$A:$A,Data!$A$25,SpringProvRep!$P:$P,"<>Coventry",SpringProvRep!$U:$U,Data!AB$17)/$BA$73*$A$73 -> 0 | AC78: =SUMIFS(SpringProvRep!$K:$K,SpringProvRep!$A:$A,Data!$A$25,SpringProvRep!$P:$P,"<>Coventry",SpringProvRep!$U:$U,Data!AC$17)/$BA$73*$A$73 -> 0 | AD78: =SUMIFS(SpringProvRep!$K:$K,SpringProvRep!$A:$A,Data!$A$25,SpringProvRep!$P:$P,"<>Coventry",SpringProvRep!$U:$U,Data!AD$17)/$BA$73*$A$73 -> 0 | AE78: =SUMIFS(SpringProvRep!$K:$K,SpringProvRep!$A:$A,Data!$A$25,SpringProvRep!$P:$P,"<>Coventry",SpringProvRep!$U:$U,Data!AE$17)/$BA$73*$A$73 -> 0 | AF78: =SUMIFS(SpringProvRep!$K:$K,SpringProvRep!$A:$A,Data!$A$25,SpringProvRep!$P:$P,"<>Coventry",SpringProvRep!$U:$U,Data!AF$17)/$BA$73*$A$73 -> 0 | AG78: =SUMIFS(SpringProvRep!$K:$K,SpringProvRep!$A:$A,Data!$A$25,SpringProvRep!$P:$P,"<>Coventry",SpringProvRep!$U:$U,Data!AG$17)/$BA$73*$A$73 -> 0 | AH78: =SUMIFS(SpringProvRep!$K:$K,SpringProvRep!$A:$A,Data!$A$25,SpringProvRep!$P:$P,"<>Coventry",SpringProvRep!$U:$U,Data!AH$17)/$BA$73*$A$73 -> 0 | AI78: =SUMIFS(SpringProvRep!$K:$K,SpringProvRep!$A:$A,Data!$A$25,SpringProvRep!$P:$P,"<>Coventry",SpringProvRep!$U:$U,Data!AI$17)/$BA$73*$A$73 -> 0 | AJ78: =SUMIFS(SpringProvRep!$K:$K,SpringProvRep!$A:$A,Data!$A$25,SpringProvRep!$P:$P,"<>Coventry",SpringProvRep!$U:$U,Data!AJ$17)/$BA$73*$A$73 -> 0 | AK78: =SUMIFS(SpringProvRep!$K:$K,SpringProvRep!$A:$A,Data!$A$25,SpringProvRep!$P:$P,"<>Coventry",SpringProvRep!$U:$U,Data!AK$17)/$BA$73*$A$73 -> 0 | AL78: =SUMIFS(SpringProvRep!$K:$K,SpringProvRep!$A:$A,Data!$A$25,SpringProvRep!$P:$P,"<>Coventry",SpringProvRep!$U:$U,Data!AL$17)/$BA$73*$A$73 -> 54 | AM78: =SUMIFS(SpringProvRep!$K:$K,SpringProvRep!$A:$A,Data!$A$25,SpringProvRep!$P:$P,"<>Coventry",SpringProvRep!$U:$U,Data!AM$17)/$BA$73*$A$73 -> 0 | AN78: =SUMIFS(SpringProvRep!$K:$K,SpringProvRep!$A:$A,Data!$A$25,SpringProvRep!$P:$P,"<>Coventry",SpringProvRep!$U:$U,Data!AN$17)/$BA$73*$A$73 -> 0 | AO78: =SUMIFS(SpringProvRep!$K:$K,SpringProvRep!$A:$A,Data!$A$25,SpringProvRep!$P:$P,"<>Coventry",SpringProvRep!$U:$U,Data!AO$17)/$BA$73*$A$73 -> 0 | AP78: =SUMIFS(SpringProvRep!$K:$K,SpringProvRep!$A:$A,Data!$A$25,SpringProvRep!$P:$P,"<>Coventry",SpringProvRep!$U:$U,Data!AP$17)/$BA$73*$A$73 -> 0 | AQ78: =SUMIFS(SpringProvRep!$K:$K,SpringProvRep!$A:$A,Data!$A$25,SpringProvRep!$P:$P,"<>Coventry",SpringProvRep!$U:$U,Data!AQ$17)/$BA$73*$A$73 -> 0 | AR78: 1 | AS78: 4865.350608 | AT78: 492808.2876 | AU78: 133 | AV78: -3 | AW78: 136 | AX78: =[13]Data!$AU90 -> 133 | AY78: 136 | BB78: =($P$8-$AU$78)*$A$73 -> 162 | BD78: 7182 | BE78: =$BB$78/$BD$78*D78 -> 0 | BF78: 0 | BG78: 0 | BH78: 0 | BI78: 0 | BJ78: 0 | BK78: 0 | BL78: 101.0977444 | BM78: 9.744360902 | BN78: 0 | BO78: 4.872180451 | BP78: 8.526315789 | BQ78: 0 | BR78: 20.70676692 | BS78: 7.308270677 | BT78: 0 | BU78: 7.308270677 | BV78: 1.218045113 | BW78: 0 | BY78: =$BB$78/$BD$78*Y78 -> 0 | BZ78: 0 | CA78: 0 | CB78: 0 | CC78: 0 | CD78: 0 | CE78: 0 | CF78: 0 | CG78: 0 | CH78: 0 | CI78: 0 | CJ78: 0 | CK78: 0 | CL78: 1.218045113 | CM78: 0 | CN78: 0 | CO78: 0 | CP78: 0 | CQ78: 0
A79: 6 | B79: Baginton Fields | C79: 51.8134715 | D79: 0 | E79: =SUMIFS(SpringProvRep!$K:$K,SpringProvRep!$A:$A,Data!$A$26,SpringProvRep!$P:$P,"Coventry",SpringProvRep!$U:$U,Data!E$17)/$BA$73*$A$73 -> 0 | F79: =SUMIFS(SpringProvRep!$K:$K,SpringProvRep!$A:$A,Data!$A$26,SpringProvRep!$P:$P,"Coventry",SpringProvRep!$U:$U,Data!F$17)/$BA$73*$A$73 -> 0 | G79: =SUMIFS(SpringProvRep!$K:$K,SpringProvRep!$A:$A,Data!$A$26,SpringProvRep!$P:$P,"Coventry",SpringProvRep!$U:$U,Data!G$17)/$BA$73*$A$73 -> 0 | H79: =SUMIFS(SpringProvRep!$K:$K,SpringProvRep!$A:$A,Data!$A$26,SpringProvRep!$P:$P,"Coventry",SpringProvRep!$U:$U,Data!H$17)/$BA$73*$A$73 -> 0 | I79: =SUMIFS(SpringProvRep!$K:$K,SpringProvRep!$A:$A,Data!$A$26,SpringProvRep!$P:$P,"Coventry",SpringProvRep!$U:$U,Data!I$17)/$BA$73*$A$73 -> 0 | J79: =SUMIFS(SpringProvRep!$K:$K,SpringProvRep!$A:$A,Data!$A$26,SpringProvRep!$P:$P,"Coventry",SpringProvRep!$U:$U,Data!J$17)/$BA$73*$A$73 -> 0 | K79: =SUMIFS(SpringProvRep!$K:$K,SpringProvRep!$A:$A,Data!$A$26,SpringProvRep!$P:$P,"Coventry",SpringProvRep!$U:$U,Data!K$17)/$BA$73*$A$73 -> 1864.472727 | L79: =SUMIFS(SpringProvRep!$K:$K,SpringProvRep!$A:$A,Data!$A$26,SpringProvRep!$P:$P,"Coventry",SpringProvRep!$U:$U,Data!L$17)/$BA$73*$A$73 -> 1728 | M79: =SUMIFS(SpringProvRep!$K:$K,SpringProvRep!$A:$A,Data!$A$26,SpringProvRep!$P:$P,"Coventry",SpringProvRep!$U:$U,Data!M$17)/$BA$73*$A$73 -> 0 | N79: =SUMIFS(SpringProvRep!$K:$K,SpringProvRep!$A:$A,Data!$A$26,SpringProvRep!$P:$P,"Coventry",SpringProvRep!$U:$U,Data!N$17)/$BA$73*$A$73 -> 216 | O79: =SUMIFS(SpringProvRep!$K:$K,SpringProvRep!$A:$A,Data!$A$26,SpringProvRep!$P:$P,"Coventry",SpringProvRep!$U:$U,Data!O$17)/$BA$73*$A$73 -> 663.7090909 | P79: =SUMIFS(SpringProvRep!$K:$K,SpringProvRep!$A:$A,Data!$A$26,SpringProvRep!$P:$P,"Coventry",SpringProvRep!$U:$U,Data!P$17)/$BA$73*$A$73 -> 0 | Q79: =SUMIFS(SpringProvRep!$K:$K,SpringProvRep!$A:$A,Data!$A$26,SpringProvRep!$P:$P,"Coventry",SpringProvRep!$U:$U,Data!Q$17)/$BA$73*$A$73 -> 1360.8 | R79: =SUMIFS(SpringProvRep!$K:$K,SpringProvRep!$A:$A,Data!$A$26,SpringProvRep!$P:$P,"Coventry",SpringProvRep!$U:$U,Data!R$17)/$BA$73*$A$73 -> 540 | S79: =SUMIFS(SpringProvRep!$K:$K,SpringProvRep!$A:$A,Data!$A$26,SpringProvRep!$P:$P,"Coventry",SpringProvRep!$U:$U,Data!S$17)/$BA$73*$A$73 -> 0 | T79: =SUMIFS(SpringProvRep!$K:$K,SpringProvRep!$A:$A,Data!$A$26,SpringProvRep!$P:$P,"Coventry",SpringProvRep!$U:$U,Data!T$17)/$BA$73*$A$73 -> 216 | U79: =SUMIFS(SpringProvRep!$K:$K,SpringProvRep!$A:$A,Data!$A$26,SpringProvRep!$P:$P,"Coventry",SpringProvRep!$U:$U,Data!U$17)/$BA$73*$A$73 -> 0 | V79: =SUMIFS(SpringProvRep!$K:$K,SpringProvRep!$A:$A,Data!$A$26,SpringProvRep!$P:$P,"Coventry",SpringProvRep!$U:$U,Data!V$17)/$BA$73*$A$73 -> 0 | W79: 122.0181818 | X79: 482184.5054 | Y79: 0 | Z79: =SUMIFS(SpringProvRep!$K:$K,SpringProvRep!$A:$A,Data!$A$26,SpringProvRep!$P:$P,"<>Coventry",SpringProvRep!$U:$U,Data!Z$17)/$BA$73*$A$73 -> 0 | AA79: =SUMIFS(SpringProvRep!$K:$K,SpringProvRep!$A:$A,Data!$A$26,SpringProvRep!$P:$P,"<>Coventry",SpringProvRep!$U:$U,Data!AA$17)/$BA$73*$A$73 -> 0 | AB79: =SUMIFS(SpringProvRep!$K:$K,SpringProvRep!$A:$A,Data!$A$26,SpringProvRep!$P:$P,"<>Coventry",SpringProvRep!$U:$U,Data!AB$17)/$BA$73*$A$73 -> 0 | AC79: =SUMIFS(SpringProvRep!$K:$K,SpringProvRep!$A:$A,Data!$A$26,SpringProvRep!$P:$P,"<>Coventry",SpringProvRep!$U:$U,Data!AC$17)/$BA$73*$A$73 -> 0 | AD79: =SUMIFS(SpringProvRep!$K:$K,SpringProvRep!$A:$A,Data!$A$26,SpringProvRep!$P:$P,"<>Coventry",SpringProvRep!$U:$U,Data!AD$17)/$BA$73*$A$73 -> 0 | AE79: =SUMIFS(SpringProvRep!$K:$K,SpringProvRep!$A:$A,Data!$A$26,SpringProvRep!$P:$P,"<>Coventry",SpringProvRep!$U:$U,Data!AE$17)/$BA$73*$A$73 -> 0 | AF79: =SUMIFS(SpringProvRep!$K:$K,SpringProvRep!$A:$A,Data!$A$26,SpringProvRep!$P:$P,"<>Coventry",SpringProvRep!$U:$U,Data!AF$17)/$BA$73*$A$73 -> 0 | AG79: =SUMIFS(SpringProvRep!$K:$K,SpringProvRep!$A:$A,Data!$A$26,SpringProvRep!$P:$P,"<>Coventry",SpringProvRep!$U:$U,Data!AG$17)/$BA$73*$A$73 -> 54 | AH79: =SUMIFS(SpringProvRep!$K:$K,SpringProvRep!$A:$A,Data!$A$26,SpringProvRep!$P:$P,"<>Coventry",SpringProvRep!$U:$U,Data!AH$17)/$BA$73*$A$73 -> 0 | AI79: =SUMIFS(SpringProvRep!$K:$K,SpringProvRep!$A:$A,Data!$A$26,SpringProvRep!$P:$P,"<>Coventry",SpringProvRep!$U:$U,Data!AI$17)/$BA$73*$A$73 -> 0 | AJ79: =SUMIFS(SpringProvRep!$K:$K,SpringProvRep!$A:$A,Data!$A$26,SpringProvRep!$P:$P,"<>Coventry",SpringProvRep!$U:$U,Data!AJ$17)/$BA$73*$A$73 -> 0 | AK79: =SUMIFS(SpringProvRep!$K:$K,SpringProvRep!$A:$A,Data!$A$26,SpringProvRep!$P:$P,"<>Coventry",SpringProvRep!$U:$U,Data!AK$17)/$BA$73*$A$73 -> 0 | AL79: =SUMIFS(SpringProvRep!$K:$K,SpringProvRep!$A:$A,Data!$A$26,SpringProvRep!$P:$P,"<>Coventry",SpringProvRep!$U:$U,Data!AL$17)/$BA$73*$A$73 -> 0 | AM79: =SUMIFS(SpringProvRep!$K:$K,SpringProvRep!$A:$A,Data!$A$26,SpringProvRep!$P:$P,"<>Coventry",SpringProvRep!$U:$U,Data!AM$17)/$BA$73*$A$73 -> 0 | AN79: =SUMIFS(SpringProvRep!$K:$K,SpringProvRep!$A:$A,Data!$A$26,SpringProvRep!$P:$P,"<>Coventry",SpringProvRep!$U:$U,Data!AN$17)/$BA$73*$A$73 -> 0 | AO79: =SUMIFS(SpringProvRep!$K:$K,SpringProvRep!$A:$A,Data!$A$26,SpringProvRep!$P:$P,"<>Coventry",SpringProvRep!$U:$U,Data!AO$17)/$BA$73*$A$73 -> 0 | AP79: =SUMIFS(SpringProvRep!$K:$K,SpringProvRep!$A:$A,Data!$A$26,SpringProvRep!$P:$P,"<>Coventry",SpringProvRep!$U:$U,Data!AP$17)/$BA$73*$A$73 -> 0 | AQ79: =SUMIFS(SpringProvRep!$K:$K,SpringProvRep!$A:$A,Data!$A$26,SpringProvRep!$P:$P,"<>Coventry",SpringProvRep!$U:$U,Data!AQ$17)/$BA$73*$A$73 -> 0 | AR79: 1 | AS79: 2769.508107 | AT79: 484954.0135 | AU79: 123.0181818 | AV79: -2.981818182 | AW79: 126 | AX79: =[13]Data!$AU91 -> 123.0181818 | AY79: 126 | BB79: =($P$9-$AU$79)*$A$73 -> 161.0181818 | BD79: 6642.981818 | BE79: =$BB$79/$BD$79*D79 -> 0 | BF79: 0 | BG79: 0 | BH79: 0 | BI79: 0 | BJ79: 0 | BK79: 0 | BL79: 45.19265848 | BM79: 41.88471771 | BN79: 0 | BO79: 5.235589713 | BP79: 16.0875393 | BQ79: 0 | BR79: 32.98421519 | BS79: 13.08897428 | BT79: 0 | BU79: 5.235589713 | BV79: 0 | BW79: 0 | BY79: =$BB$79/$BD$79*Y79 -> 0 | BZ79: 0 | CA79: 0 | CB79: 0 | CC79: 0 | CD79: 0 | CE79: 0 | CF79: 0 | CG79: 1.308897428 | CH79: 0 | CI79: 0 | CJ79: 0 | CK79: 0 | CL79: 0 | CM79: 0 | CN79: 0 | CO79: 0 | CP79: 0 | CQ79: 0
A80: 7 | B80: Sherbourne Fields | C80: 51.8134715 | D80: 0 | E80: =SUMIFS(SpringProvRep!$K:$K,SpringProvRep!$A:$A,Data!$A$27,SpringProvRep!$P:$P,"Coventry",SpringProvRep!$U:$U,Data!E$17)/$BA$73*$A$73 -> 0 | F80: =SUMIFS(SpringProvRep!$K:$K,SpringProvRep!$A:$A,Data!$A$27,SpringProvRep!$P:$P,"Coventry",SpringProvRep!$U:$U,Data!F$17)/$BA$73*$A$73 -> 0 | G80: =SUMIFS(SpringProvRep!$K:$K,SpringProvRep!$A:$A,Data!$A$27,SpringProvRep!$P:$P,"Coventry",SpringProvRep!$U:$U,Data!G$17)/$BA$73*$A$73 -> 0 | H80: =SUMIFS(SpringProvRep!$K:$K,SpringProvRep!$A:$A,Data!$A$27,SpringProvRep!$P:$P,"Coventry",SpringProvRep!$U:$U,Data!H$17)/$BA$73*$A$73 -> 54 | I80: =SUMIFS(SpringProvRep!$K:$K,SpringProvRep!$A:$A,Data!$A$27,SpringProvRep!$P:$P,"Coventry",SpringProvRep!$U:$U,Data!I$17)/$BA$73*$A$73 -> 0 | J80: =SUMIFS(SpringProvRep!$K:$K,SpringProvRep!$A:$A,Data!$A$27,SpringProvRep!$P:$P,"Coventry",SpringProvRep!$U:$U,Data!J$17)/$BA$73*$A$73 -> 0 | K80: =SUMIFS(SpringProvRep!$K:$K,SpringProvRep!$A:$A,Data!$A$27,SpringProvRep!$P:$P,"Coventry",SpringProvRep!$U:$U,Data!K$17)/$BA$73*$A$73 -> 5130 | L80: =SUMIFS(SpringProvRep!$K:$K,SpringProvRep!$A:$A,Data!$A$27,SpringProvRep!$P:$P,"Coventry",SpringProvRep!$U:$U,Data!L$17)/$BA$73*$A$73 -> 3024 | M80: =SUMIFS(SpringProvRep!$K:$K,SpringProvRep!$A:$A,Data!$A$27,SpringProvRep!$P:$P,"Coventry",SpringProvRep!$U:$U,Data!M$17)/$BA$73*$A$73 -> 54 | N80: =SUMIFS(SpringProvRep!$K:$K,SpringProvRep!$A:$A,Data!$A$27,SpringProvRep!$P:$P,"Coventry",SpringProvRep!$U:$U,Data!N$17)/$BA$73*$A$73 -> 1404 | O80: =SUMIFS(SpringProvRep!$K:$K,SpringProvRep!$A:$A,Data!$A$27,SpringProvRep!$P:$P,"Coventry",SpringProvRep!$U:$U,Data!O$17)/$BA$73*$A$73 -> 162 | P80: =SUMIFS(SpringProvRep!$K:$K,SpringProvRep!$A:$A,Data!$A$27,SpringProvRep!$P:$P,"Coventry",SpringProvRep!$U:$U,Data!P$17)/$BA$73*$A$73 -> 0 | Q80: =SUMIFS(SpringProvRep!$K:$K,SpringProvRep!$A:$A,Data!$A$27,SpringProvRep!$P:$P,"Coventry",SpringProvRep!$U:$U,Data!Q$17)/$BA$73*$A$73 -> 1458 | R80: =SUMIFS(SpringProvRep!$K:$K,SpringProvRep!$A:$A,Data!$A$27,SpringProvRep!$P:$P,"Coventry",SpringProvRep!$U:$U,Data!R$17)/$BA$73*$A$73 -> 1295.018182 | S80: =SUMIFS(SpringProvRep!$K:$K,SpringProvRep!$A:$A,Data!$A$27,SpringProvRep!$P:$P,"Coventry",SpringProvRep!$U:$U,Data!S$17)/$BA$73*$A$73 -> 0 | T80: =SUMIFS(SpringProvRep!$K:$K,SpringProvRep!$A:$A,Data!$A$27,SpringProvRep!$P:$P,"Coventry",SpringProvRep!$U:$U,Data!T$17)/$BA$73*$A$73 -> 1134 | U80: =SUMIFS(SpringProvRep!$K:$K,SpringProvRep!$A:$A,Data!$A$27,SpringProvRep!$P:$P,"Coventry",SpringProvRep!$U:$U,Data!U$17)/$BA$73*$A$73 -> 0 | V80: =SUMIFS(SpringProvRep!$K:$K,SpringProvRep!$A:$A,Data!$A$27,SpringProvRep!$P:$P,"Coventry",SpringProvRep!$U:$U,Data!V$17)/$BA$73*$A$73 -> 0 | W80: 253.9818182 | X80: 897358.5214 | Y80: 0 | Z80: =SUMIFS(SpringProvRep!$K:$K,SpringProvRep!$A:$A,Data!$A$27,SpringProvRep!$P:$P,"<>Coventry",SpringProvRep!$U:$U,Data!Z$17)/$BA$73*$A$73 -> 0 | AA80: =SUMIFS(SpringProvRep!$K:$K,SpringProvRep!$A:$A,Data!$A$27,SpringProvRep!$P:$P,"<>Coventry",SpringProvRep!$U:$U,Data!AA$17)/$BA$73*$A$73 -> 0 | AB80: =SUMIFS(SpringProvRep!$K:$K,SpringProvRep!$A:$A,Data!$A$27,SpringProvRep!$P:$P,"<>Coventry",SpringProvRep!$U:$U,Data!AB$17)/$BA$73*$A$73 -> 0 | AC80: =SUMIFS(SpringProvRep!$K:$K,SpringProvRep!$A:$A,Data!$A$27,SpringProvRep!$P:$P,"<>Coventry",SpringProvRep!$U:$U,Data!AC$17)/$BA$73*$A$73 -> 0 | AD80: =SUMIFS(SpringProvRep!$K:$K,SpringProvRep!$A:$A,Data!$A$27,SpringProvRep!$P:$P,"<>Coventry",SpringProvRep!$U:$U,Data!AD$17)/$BA$73*$A$73 -> 0 | AE80: =SUMIFS(SpringProvRep!$K:$K,SpringProvRep!$A:$A,Data!$A$27,SpringProvRep!$P:$P,"<>Coventry",SpringProvRep!$U:$U,Data!AE$17)/$BA$73*$A$73 -> 0 | AF80: =SUMIFS(SpringProvRep!$K:$K,SpringProvRep!$A:$A,Data!$A$27,SpringProvRep!$P:$P,"<>Coventry",SpringProvRep!$U:$U,Data!AF$17)/$BA$73*$A$73 -> 108 | AG80: =SUMIFS(SpringProvRep!$K:$K,SpringProvRep!$A:$A,Data!$A$27,SpringProvRep!$P:$P,"<>Coventry",SpringProvRep!$U:$U,Data!AG$17)/$BA$73*$A$73 -> 0 | AH80: =SUMIFS(SpringProvRep!$K:$K,SpringProvRep!$A:$A,Data!$A$27,SpringProvRep!$P:$P,"<>Coventry",SpringProvRep!$U:$U,Data!AH$17)/$BA$73*$A$73 -> 0 | AI80: =SUMIFS(SpringProvRep!$K:$K,SpringProvRep!$A:$A,Data!$A$27,SpringProvRep!$P:$P,"<>Coventry",SpringProvRep!$U:$U,Data!AI$17)/$BA$73*$A$73 -> 54 | AJ80: =SUMIFS(SpringProvRep!$K:$K,SpringProvRep!$A:$A,Data!$A$27,SpringProvRep!$P:$P,"<>Coventry",SpringProvRep!$U:$U,Data!AJ$17)/$BA$73*$A$73 -> 0 | AK80: =SUMIFS(SpringProvRep!$K:$K,SpringProvRep!$A:$A,Data!$A$27,SpringProvRep!$P:$P,"<>Coventry",SpringProvRep!$U:$U,Data!AK$17)/$BA$73*$A$73 -> 0 | AL80: =SUMIFS(SpringProvRep!$K:$K,SpringProvRep!$A:$A,Data!$A$27,SpringProvRep!$P:$P,"<>Coventry",SpringProvRep!$U:$U,Data!AL$17)/$BA$73*$A$73 -> 0 | AM80: =SUMIFS(SpringProvRep!$K:$K,SpringProvRep!$A:$A,Data!$A$27,SpringProvRep!$P:$P,"<>Coventry",SpringProvRep!$U:$U,Data!AM$17)/$BA$73*$A$73 -> 0 | AN80: =SUMIFS(SpringProvRep!$K:$K,SpringProvRep!$A:$A,Data!$A$27,SpringProvRep!$P:$P,"<>Coventry",SpringProvRep!$U:$U,Data!AN$17)/$BA$73*$A$73 -> 0 | AO80: =SUMIFS(SpringProvRep!$K:$K,SpringProvRep!$A:$A,Data!$A$27,SpringProvRep!$P:$P,"<>Coventry",SpringProvRep!$U:$U,Data!AO$17)/$BA$73*$A$73 -> 108 | AP80: =SUMIFS(SpringProvRep!$K:$K,SpringProvRep!$A:$A,Data!$A$27,SpringProvRep!$P:$P,"<>Coventry",SpringProvRep!$U:$U,Data!AP$17)/$BA$73*$A$73 -> 0 | AQ80: =SUMIFS(SpringProvRep!$K:$K,SpringProvRep!$A:$A,Data!$A$27,SpringProvRep!$P:$P,"<>Coventry",SpringProvRep!$U:$U,Data!AQ$17)/$BA$73*$A$73 -> 0 | AR80: 5 | AS80: 18712.87833 | AT80: 916071.3997 | AU80: 258.9818182 | AV80: 0.9818181818 | AW80: 258 | AX80: =[13]Data!$AU92 -> 258.9818182 | AY80: 258 | BB80: =($P$10-$AU$80)*$A$73 -> -53.01818182 | BD80: 13985.01818 | BE80: =$BB$80/$BD$80*D80 -> 0 | BF80: 0 | BG80: 0 | BH80: 0 | BI80: -0.2047177759 | BJ80: 0 | BK80: 0 | BL80: -19.44818871 | BM80: -11.46419545 | BN80: -0.2047177759 | BO80: -5.322662174 | BP80: -0.6141533277 | BQ80: 0 | BR80: -5.527379949 | BS80: -4.90950448 | BT80: 0 | BU80: -4.299073294 | BV80: 0 | BW80: 0 | BY80: =$BB$80/$BD$80*Y80 -> 0 | BZ80: 0 | CA80: 0 | CB80: 0 | CC80: 0 | CD80: 0 | CE80: 0 | CF80: -0.4094355518 | CG80: 0 | CH80: 0 | CI80: -0.2047177759 | CJ80: 0 | CK80: 0 | CL80: 0 | CM80: 0 | CN80: 0 | CO80: -0.4094355518 | CP80: 0 | CQ80: 0
A81: 8 | B81: Woodfield | C81: =10000/$A$16 -> 51.8134715 | D81: 0 | E81: =SUMIFS(SpringProvRep!$K:$K,SpringProvRep!$A:$A,Data!$A$28,SpringProvRep!$P:$P,"Coventry",SpringProvRep!$U:$U,Data!E$17)/$BA$73*$A$73 -> 0 | F81: =SUMIFS(SpringProvRep!$K:$K,SpringProvRep!$A:$A,Data!$A$28,SpringProvRep!$P:$P,"Coventry",SpringProvRep!$U:$U,Data!F$17)/$BA$73*$A$73 -> 0 | G81: =SUMIFS(SpringProvRep!$K:$K,SpringProvRep!$A:$A,Data!$A$28,SpringProvRep!$P:$P,"Coventry",SpringProvRep!$U:$U,Data!G$17)/$BA$73*$A$73 -> 0 | H81: =SUMIFS(SpringProvRep!$K:$K,SpringProvRep!$A:$A,Data!$A$28,SpringProvRep!$P:$P,"Coventry",SpringProvRep!$U:$U,Data!H$17)/$BA$73*$A$73 -> 0 | I81: =SUMIFS(SpringProvRep!$K:$K,SpringProvRep!$A:$A,Data!$A$28,SpringProvRep!$P:$P,"Coventry",SpringProvRep!$U:$U,Data!I$17)/$BA$73*$A$73 -> 0 | J81: =SUMIFS(SpringProvRep!$K:$K,SpringProvRep!$A:$A,Data!$A$28,SpringProvRep!$P:$P,"Coventry",SpringProvRep!$U:$U,Data!J$17)/$BA$73*$A$73 -> 0 | K81: =SUMIFS(SpringProvRep!$K:$K,SpringProvRep!$A:$A,Data!$A$28,SpringProvRep!$P:$P,"Coventry",SpringProvRep!$U:$U,Data!K$17)/$BA$73*$A$73 -> 0 | L81: =SUMIFS(SpringProvRep!$K:$K,SpringProvRep!$A:$A,Data!$A$28,SpringProvRep!$P:$P,"Coventry",SpringProvRep!$U:$U,Data!L$17)/$BA$73*$A$73 -> 0 | M81: =SUMIFS(SpringProvRep!$K:$K,SpringProvRep!$A:$A,Data!$A$28,SpringProvRep!$P:$P,"Coventry",SpringProvRep!$U:$U,Data!M$17)/$BA$73*$A$73 -> 0 | N81: =SUMIFS(SpringProvRep!$K:$K,SpringProvRep!$A:$A,Data!$A$28,SpringProvRep!$P:$P,"Coventry",SpringProvRep!$U:$U,Data!N$17)/$BA$73*$A$73 -> 0 | O81: =SUMIFS(SpringProvRep!$K:$K,SpringProvRep!$A:$A,Data!$A$28,SpringProvRep!$P:$P,"Coventry",SpringProvRep!$U:$U,Data!O$17)/$BA$73*$A$73 -> 432 | P81: =SUMIFS(SpringProvRep!$K:$K,SpringProvRep!$A:$A,Data!$A$28,SpringProvRep!$P:$P,"Coventry",SpringProvRep!$U:$U,Data!P$17)/$BA$73*$A$73 -> 0 | Q81: =SUMIFS(SpringProvRep!$K:$K,SpringProvRep!$A:$A,Data!$A$28,SpringProvRep!$P:$P,"Coventry",SpringProvRep!$U:$U,Data!Q$17)/$BA$73*$A$73 -> 8019.490909 | R81: =SUMIFS(SpringProvRep!$K:$K,SpringProvRep!$A:$A,Data!$A$28,SpringProvRep!$P:$P,"Coventry",SpringProvRep!$U:$U,Data!R$17)/$BA$73*$A$73 -> 0 | S81: =SUMIFS(SpringProvRep!$K:$K,SpringProvRep!$A:$A,Data!$A$28,SpringProvRep!$P:$P,"Coventry",SpringProvRep!$U:$U,Data!S$17)/$BA$73*$A$73 -> 108 | T81: =SUMIFS(SpringProvRep!$K:$K,SpringProvRep!$A:$A,Data!$A$28,SpringProvRep!$P:$P,"Coventry",SpringProvRep!$U:$U,Data!T$17)/$BA$73*$A$73 -> 0 | U81: =SUMIFS(SpringProvRep!$K:$K,SpringProvRep!$A:$A,Data!$A$28,SpringProvRep!$P:$P,"Coventry",SpringProvRep!$U:$U,Data!U$17)/$BA$73*$A$73 -> 108 | V81: =SUMIFS(SpringProvRep!$K:$K,SpringProvRep!$A:$A,Data!$A$28,SpringProvRep!$P:$P,"Coventry",SpringProvRep!$U:$U,Data!V$17)/$BA$73*$A$73 -> 0 | W81: =SUM(D81:V81)/$A$73 -> 160.5090909 | X81: 819886.7635 | Y81: 0 | Z81: =SUMIFS(SpringProvRep!$K:$K,SpringProvRep!$A:$A,Data!$A$28,SpringProvRep!$P:$P,"<>Coventry",SpringProvRep!$U:$U,Data!Z$17)/$BA$73*$A$73 -> 0 | AA81: =SUMIFS(SpringProvRep!$K:$K,SpringProvRep!$A:$A,Data!$A$28,SpringProvRep!$P:$P,"<>Coventry",SpringProvRep!$U:$U,Data!AA$17)/$BA$73*$A$73 -> 0 | AB81: =SUMIFS(SpringProvRep!$K:$K,SpringProvRep!$A:$A,Data!$A$28,SpringProvRep!$P:$P,"<>Coventry",SpringProvRep!$U:$U,Data!AB$17)/$BA$73*$A$73 -> 0 | AC81: =SUMIFS(SpringProvRep!$K:$K,SpringProvRep!$A:$A,Data!$A$28,SpringProvRep!$P:$P,"<>Coventry",SpringProvRep!$U:$U,Data!AC$17)/$BA$73*$A$73 -> 0 | AD81: =SUMIFS(SpringProvRep!$K:$K,SpringProvRep!$A:$A,Data!$A$28,SpringProvRep!$P:$P,"<>Coventry",SpringProvRep!$U:$U,Data!AD$17)/$BA$73*$A$73 -> 0 | AE81: =SUMIFS(SpringProvRep!$K:$K,SpringProvRep!$A:$A,Data!$A$28,SpringProvRep!$P:$P,"<>Coventry",SpringProvRep!$U:$U,Data!AE$17)/$BA$73*$A$73 -> 0 | AF81: =SUMIFS(SpringProvRep!$K:$K,SpringProvRep!$A:$A,Data!$A$28,SpringProvRep!$P:$P,"<>Coventry",SpringProvRep!$U:$U,Data!AF$17)/$BA$73*$A$73 -> 0 | AG81: =SUMIFS(SpringProvRep!$K:$K,SpringProvRep!$A:$A,Data!$A$28,SpringProvRep!$P:$P,"<>Coventry",SpringProvRep!$U:$U,Data!AG$17)/$BA$73*$A$73 -> 0 | AH81: =SUMIFS(SpringProvRep!$K:$K,SpringProvRep!$A:$A,Data!$A$28,SpringProvRep!$P:$P,"<>Coventry",SpringProvRep!$U:$U,Data!AH$17)/$BA$73*$A$73 -> 0 | AI81: =SUMIFS(SpringProvRep!$K:$K,SpringProvRep!$A:$A,Data!$A$28,SpringProvRep!$P:$P,"<>Coventry",SpringProvRep!$U:$U,Data!AI$17)/$BA$73*$A$73 -> 0 | AJ81: =SUMIFS(SpringProvRep!$K:$K,SpringProvRep!$A:$A,Data!$A$28,SpringProvRep!$P:$P,"<>Coventry",SpringProvRep!$U:$U,Data!AJ$17)/$BA$73*$A$73 -> 0 | AK81: =SUMIFS(SpringProvRep!$K:$K,SpringProvRep!$A:$A,Data!$A$28,SpringProvRep!$P:$P,"<>Coventry",SpringProvRep!$U:$U,Data!AK$17)/$BA$73*$A$73 -> 0 | AL81: =SUMIFS(SpringProvRep!$K:$K,SpringProvRep!$A:$A,Data!$A$28,SpringProvRep!$P:$P,"<>Coventry",SpringProvRep!$U:$U,Data!AL$17)/$BA$73*$A$73 -> 54 | AM81: =SUMIFS(SpringProvRep!$K:$K,SpringProvRep!$A:$A,Data!$A$28,SpringProvRep!$P:$P,"<>Coventry",SpringProvRep!$U:$U,Data!AM$17)/$BA$73*$A$73 -> 0 | AN81: =SUMIFS(SpringProvRep!$K:$K,SpringProvRep!$A:$A,Data!$A$28,SpringProvRep!$P:$P,"<>Coventry",SpringProvRep!$U:$U,Data!AN$17)/$BA$73*$A$73 -> 54 | AO81: =SUMIFS(SpringProvRep!$K:$K,SpringProvRep!$A:$A,Data!$A$28,SpringProvRep!$P:$P,"<>Coventry",SpringProvRep!$U:$U,Data!AO$17)/$BA$73*$A$73 -> 0 | AP81: =SUMIFS(SpringProvRep!$K:$K,SpringProvRep!$A:$A,Data!$A$28,SpringProvRep!$P:$P,"<>Coventry",SpringProvRep!$U:$U,Data!AP$17)/$BA$73*$A$73 -> 0 | AQ81: =SUMIFS(SpringProvRep!$K:$K,SpringProvRep!$A:$A,Data!$A$28,SpringProvRep!$P:$P,"<>Coventry",SpringProvRep!$U:$U,Data!AQ$17)/$BA$73*$A$73 -> 0 | AR81: 2 | AS81: 9730.701216 | AT81: 829617.4647 | AU81: =AR81+W81 -> 162.5090909 | AV81: -22.49090909 | AW81: 185 | AX81: =[13]Data!$AU93 -> 162.5090909 | AY81: 161 | BB81: =($P$11-$AU$81)*$A$73 -> 1214.509091 | BD81: 8775.490909 | BE81: =$BB$81/$BD$81*D81 -> 0 | BF81: 0 | BG81: 0 | BH81: 0 | BI81: 0 | BJ81: 0 | BK81: 0 | BL81: 0 | BM81: 0 | BN81: 0 | BO81: 0 | BP81: 59.78787201 | BQ81: 0 | BR81: 1109.880315 | BS81: 0 | BT81: 14.946968 | BU81: 0 | BV81: 14.946968 | BW81: 0 | BY81: =$BB$81/$BD$81*Y81 -> 0 | BZ81: 0 | CA81: 0 | CB81: 0 | CC81: 0 | CD81: 0 | CE81: 0 | CF81: 0 | CG81: 0 | CH81: 0 | CI81: 0 | CJ81: 0 | CK81: 0 | CL81: 7.473484001 | CM81: 0 | CN81: 7.473484001 | CO81: 0 | CP81: 0 | CQ81: 0
A82: 9 | B82: Coventry ELC | C82: =10000/$A$16 -> 51.8134715 | D82: =120*A73 -> 6480 | E82: 0 | F82: 0 | G82: 0 | H82: 0 | I82: 0 | J82: 0 | K82: 0 | L82: 0 | M82: 0 | N82: 0 | O82: 0 | P82: 0 | Q82: 0 | R82: 0 | S82: 0 | T82: 0 | U82: 0 | V82: 0 | W82: =SUM(D82:V82)/$A$73 -> 120 | X82: =SUMPRODUCT(D82:V82,$Z$12:$AR$12)/$A$16 -> 442123.8283 | Y82: =A73*0 -> 0 | Z82: 0 | AA82: 0 | AB82: 0 | AC82: 0 | AD82: 0 | AE82: 0 | AF82: 0 | AG82: 0 | AH82: 0 | AI82: 0 | AJ82: 0 | AK82: 0 | AL82: 0 | AM82: 0 | AN82: 0 | AO82: 0 | AP82: 0 | AQ82: 0 | AR82: 0 | AS82: 0 | AT82: 442123.8283 | AU82: 120 | AV82: 0 | AW82: 120 | AX82: =[13]Data!$AU94 -> 120 | AY82: 120 | BB82: =($P$12-$AU$82)*$A$74 -> 0 | BD82: 6480 | BE82: =$BB$82/$BD$82*D82 -> 0 | BF82: 0 | BG82: 0 | BH82: 0 | BI82: 0 | BJ82: 0 | BK82: 0 | BL82: 0 | BM82: 0 | BN82: 0 | BO82: 0 | BP82: 0 | BQ82: 0 | BR82: 0 | BS82: 0 | BT82: 0 | BU82: 0 | BV82: 0 | BW82: 0 | BY82: =$BB$82/$BD$82*Y82 -> 0 | BZ82: 0 | CA82: 0 | CB82: 0 | CC82: 0 | CD82: 0 | CE82: 0 | CF82: 0 | CG82: 0 | CH82: 0 | CI82: 0 | CJ82: 0 | CK82: 0 | CL82: 0 | CM82: 0 | CN82: 0 | CO82: 0 | CP82: 0 | CQ82: 0
AS83: =SUM(AS74:AS82) -> 73667.5208 | AT83: =SUM(AT74:AT82) -> 5670387.579 | AU83: =SUM(AU74:AU82) -> 1474.181818
B84: Spring Term 2027
A85: 54 | B85: School
A86: 1 | B86: Castle Wood | C86: =10000/$A$16 -> 51.8134715 | D86: =D74+BE74 -> 0 | E86: =E74+BF74 -> 0 | F86: =F74+BG74 -> 0 | G86: =G74+BH74 -> 52.92628025 | H86: =H74+BI74 -> 0 | I86: =I74+BJ74 -> 0 | J86: =J74+BK74 -> 52.92628025 | K86: =K74+BL74 -> 6287.642093 | L86: =L74+BM74 -> 423.410242 | M86: =M74+BN74 -> 0 | N86: =N74+BO74 -> 389.7298818 | O86: =O74+BP74 -> 534.0742825 | P86: =P74+BQ74 -> 0 | Q86: =Q74+BR74 -> 1679.206528 | R86: =R74+BS74 -> 317.5576815 | S86: =S74+BT74 -> 0 | T86: =T74+BU74 -> 180.9116488 | U86: =U74+BV74 -> 105.8525605 | V86: =V74+BW74 -> 0 | W86: =SUM(D86:V86)/$A$73 -> 185.6340274 | X86: =SUMPRODUCT(D86:V86,$Z$6:$AR$6)/$A$16 -> 694008.2406 | Y86: =Y74+BY74 -> 0 | Z86: =Z74+BZ74 -> 0 | AA86: =AA74+CA74 -> 0 | AB86: =AB74+CB74 -> 0 | AC86: =AC74+CC74 -> 0 | AD86: =AD74+CD74 -> 0 | AE86: =AE74+CE74 -> 0 | AF86: =AF74+CF74 -> 235.7625211 | AG86: =AG74+CG74 -> 0 | AH86: =AH74+CH74 -> 0 | AI86: =AI74+CI74 -> 0 | AJ86: =AJ74+CJ74 -> 0 | AK86: =AK74+CK74 -> 0 | AL86: =AL74+CL74 -> 0 | AM86: =AM74+CM74 -> 0 | AN86: =AN74+CN74 -> 0 | AO86: =AO74+CO74 -> 0 | AP86: =AP74+CP74 -> 0 | AQ86: =AQ74+CQ74 -> 0 | AR86: =SUM(Y86:AQ86)/$A$73 -> 4.365972613 | AS86: =SUMPRODUCT(Y86:AQ86,$Z$6:$AR$6)/$A$16 -> 13071.98908 | AT86: =X86+AS86 -> 707080.2297 | AU86: =AR86+W86 -> 190 | AV86: =AU86-AW86 -> 0 | AW86: =P4 -> 190 | AX86: =[13]Data!$AU86 -> 193.8545455 | AY86: =F4 -> 190 | BA86: =(AT86/56*200)/AU86 -> 13290.98176 | BC86: =X86/W86 -> 3738.583116
A87: 2 | B87: Kingsbury | C87: =10000/$A$16 -> 51.8134715 | D87: =D75+BE75 -> 0 | E87: 0 | F87: 0 | G87: 0 | H87: 0 | I87: 0 | J87: 0 | K87: =K75+BL75 -> 3019.449861 | L87: 109.6169916 | M87: 0 | N87: 0 | O87: 997.514624 | P87: 0 | Q87: =Q75+BR75 -> 1389.14624 | R87: 0 | S87: 0 | T87: 0 | U87: 43.84679666 | V87: 0 | W87: =SUM(D87:V87)/$A$73 -> 102.9550836 | X87: 444914.1364 | Y87: =Y75+BY75 -> 0 | Z87: 0 | AA87: 0 | AB87: 0 | AC87: 0 | AD87: 0 | AE87: 0 | AF87: 54.80849582 | AG87: 54.80849582 | AH87: 0 | AI87: 0 | AJ87: 0 | AK87: 0 | AL87: 54.80849582 | AM87: 0 | AN87: 0 | AO87: 0 | AP87: 0 | AQ87: 0 | AR87: =SUM(Y87:AQ87)/$A$73 -> 3.044916435 | AS87: 10788.05762 | AT87: 455702.1941 | AU87: 106 | AV87: 0 | AW87: 106 | AX87: =[13]Data!$AU87 -> 104.4363636 | AY87: 106 | BA87: =(AT87/56*200)/AU87 -> 15353.84751 | BC87: 4321.439224
A88: 3 | B88: RiverBank | C88: 51.8134715 | D88: 0 | E88: 0 | F88: 0 | G88: 157.4330642 | H88: 185.5461113 | I88: 0 | J88: 0 | K88: 5588.873778 | L88: 2968.737782 | M88: 61.84870378 | N88: 494.7896303 | O88: 618.4870378 | P88: 185.5461113 | Q88: 2164.704632 | R88: 494.7896303 | S88: 0 | T88: 185.5461113 | U88: 0 | V88: 0 | W88: 242.7093073 | X88: 878765.0992 | Y88: 0 | Z88: 0 | AA88: 0 | AB88: 0 | AC88: 0 | AD88: 0 | AE88: 0 | AF88: 0 | AG88: 61.84870378 | AH88: 0 | AI88: 0 | AJ88: 0 | AK88: 0 | AL88: 61.84870378 | AM88: 0 | AN88: 0 | AO88: 0 | AP88: 0 | AQ88: 0 | AR88: 2.290692733 | AS88: 8744.557687 | AT88: 887509.6569 | AU88: 245 | AV88: 0 | AW88: 245 | AX88: =[13]Data!$AU88 -> 213.9090909 | AY88: 220 | BA88: 12937.45856 | BC88: 3620.648541
A89: 4 | B89: Corley | C89: 51.8134715 | D89: 0 | E89: 0 | F89: 0 | G89: 0 | H89: 0 | I89: 0 | J89: 0 | K89: 7417.269511 | L89: 0 | M89: 334.8883484 | N89: 0 | O89: 423.1770948 | P89: 0 | Q89: 893.0355958 | R89: 0 | S89: 0 | T89: 0 | U89: 0 | V89: 0 | W89: 167.932788 | X89: 572138.5919 | Y89: 0 | Z89: 0 | AA89: 0 | AB89: 0 | AC89: 0 | AD89: 0 | AE89: 0 | AF89: 111.6294495 | AG89: 0 | AH89: 0 | AI89: 0 | AJ89: 0 | AK89: 0 | AL89: 0 | AM89: 0 | AN89: 0 | AO89: 0 | AP89: 0 | AQ89: 0 | AR89: 2.067212027 | AS89: 6189.359268 | AT89: 578327.9512 | AU89: 170 | AV89: 0 | AW89: 170 | AX89: =[13]Data!$AU89 -> 164.4727273 | AY89: 165 | BA89: 12149.74687 | BC89: 3406.94988
A90: 5 | B90: Tiverton | C90: 51.8134715 | D90: 0 | E90: 0 | F90: 0 | G90: 0 | H90: 0 | I90: 0 | J90: 0 | K90: 4583.097744 | L90: 441.7443609 | M90: 0 | N90: 220.8721805 | O90: 386.5263158 | P90: 0 | Q90: 938.7067669 | R90: 331.3082707 | S90: 0 | T90: 331.3082707 | U90: 55.21804511 | V90: 0 | W90: 134.9774436 | X90: 498949.1687 | Y90: 0 | Z90: 0 | AA90: 0 | AB90: 0 | AC90: 0 | AD90: 0 | AE90: 0 | AF90: 0 | AG90: 0 | AH90: 0 | AI90: 0 | AJ90: 0 | AK90: 0 | AL90: 55.21804511 | AM90: 0 | AN90: 0 | AO90: 0 | AP90: 0 | AQ90: 0 | AR90: 1.022556391 | AS90: 4975.095359 | AT90: 503924.264 | AU90: 136 | AV90: 0 | AW90: 136 | AX90: =[13]Data!$AU90 -> 133 | AY90: 136 | BA90: 13233.30525 | BC90: 3696.537402
A91: 6 | B91: Baginton Fields | C91: 51.8134715 | D91: 0 | E91: 0 | F91: 0 | G91: 0 | H91: 0 | I91: 0 | J91: 0 | K91: 1909.665386 | L91: 1769.884718 | M91: 0 | N91: 221.2355897 | O91: 679.7966302 | P91: 0 | Q91: 1393.784215 | R91: 553.0889743 | S91: 0 | T91: 221.2355897 | U91: 0 | V91: 0 | W91: 124.9757612 | X91: 493872.099 | Y91: 0 | Z91: 0 | AA91: 0 | AB91: 0 | AC91: 0 | AD91: 0 | AE91: 0 | AF91: 0 | AG91: 55.30889743 | AH91: 0 | AI91: 0 | AJ91: 0 | AK91: 0 | AL91: 0 | AM91: 0 | AN91: 0 | AO91: 0 | AP91: 0 | AQ91: 0 | AR91: 1.024238841 | AS91: 2836.637775 | AT91: 496708.7368 | AU91: 126 | AV91: 0 | AW91: 126 | AX91: =[13]Data!$AU91 -> 123.0181818 | AY91: 126 | BA91: 14079.04583 | BC91: 3951.743078
A92: 7 | B92: Sherbourne Fields | C92: 51.8134715 | D92: 0 | E92: 0 | F92: 0 | G92: 0 | H92: 53.79528222 | I92: 0 | J92: 0 | K92: 5110.551811 | L92: 3012.535805 | M92: 53.79528222 | N92: 1398.677338 | O92: 161.3858467 | P92: 0 | Q92: 1452.47262 | R92: 1290.108677 | S92: 0 | T92: 1129.700927 | U92: 0 | V92: 0 | W92: 253.0189553 | X92: 893956.5725 | Y92: 0 | Z92: 0 | AA92: 0 | AB92: 0 | AC92: 0 | AD92: 0 | AE92: 0 | AF92: 107.5905644 | AG92: 0 | AH92: 0 | AI92: 53.79528222 | AJ92: 0 | AK92: 0 | AL92: 0 | AM92: 0 | AN92: 0 | AO92: 107.5905644 | AP92: 0 | AQ92: 0 | AR92: 4.98104465 | AS92: 18641.9365 | AT92: 912598.509 | AU92: 258 | AV92: 0 | AW92: 258 | AX92: =[13]Data!$AU92 -> 258.9818182 | AY92: 258 | BA92: 12632.86973 | BC92: 3533.160475
A93: 8 | B93: Woodfield | C93: =10000/$A$16 -> 51.8134715 | D93: 0 | E93: 0 | F93: 0 | G93: 0 | H93: 0 | I93: 0 | J93: 0 | K93: 0 | L93: 0 | M93: 0 | N93: 0 | O93: 491.787872 | P93: 0 | Q93: 9129.371224 | R93: 0 | S93: 122.946968 | T93: 0 | U93: 122.946968 | V93: 0 | W93: =SUM(D93:V93)/$A$73 -> 182.7232043 | X93: 933357.3304 | Y93: 0 | Z93: 0 | AA93: 0 | AB93: 0 | AC93: 0 | AD93: 0 | AE93: 0 | AF93: 0 | AG93: 0 | AH93: 0 | AI93: 0 | AJ93: 0 | AK93: 0 | AL93: 61.473484 | AM93: 0 | AN93: 61.473484 | AO93: 0 | AP93: 0 | AQ93: 0 | AR93: 2.276795704 | AS93: 11077.40936 | AT93: 944434.7397 | AU93: =AR93+W93 -> 185 | AV93: =AU93-AW93 -> 0 | AW93: 185 | AX93: =[13]Data!$AU93 -> 162.5090909 | AY93: 161 | BA93: 18232.33088 | BC93: 5108.039419
A94: 9 | B94: Coventry ELC | C94: =10000/$A$16 -> 51.8134715 | D94: =D82+BE82 -> 6480 | E94: 0 | F94: 0 | G94: 0 | H94: 0 | I94: 0 | J94: 0 | K94: 0 | L94: 0 | M94: 0 | N94: 0 | O94: 0 | P94: 0 | Q94: 0 | R94: 0 | S94: 0 | T94: 0 | U94: 0 | V94: 0 | W94: 120 | X94: =SUMPRODUCT(D94:V94,$Z$12:$AR$12)/$A$16 -> 442123.8283 | Y94: 0 | Z94: 0 | AA94: 0 | AB94: 0 | AC94: 0 | AD94: 0 | AE94: 0 | AF94: 0 | AG94: 0 | AH94: 0 | AI94: 0 | AJ94: 0 | AK94: 0 | AL94: 0 | AM94: 0 | AN94: 0 | AO94: 0 | AP94: 0 | AQ94: 0 | AR94: 0 | AS94: =SUMPRODUCT(Y94:AQ94,$Z$12:$AR$12)/$A$16 -> 0 | AT94: 442123.8283 | AU94: 120 | AV94: =AU94-AW94 -> 0 | AW94: 120 | AX94: =[13]Data!$AU94 -> 120 | AY94: 120 | BA94: 13158.44727 | BC94: 3684.365236
D96: Coventry pupils | Y96: Other LA Pupils
B97: Full Year 2026/27
A99: 1 | B99: Castle Wood | C99: =10000/$A$16 -> 51.8134715 | D99: =D33+D59+D86 -> 0 | E99: =E33+E59+E86 -> 0 | F99: 0 | G99: 126.8623125 | H99: 0 | I99: 0 | J99: 203.4680667 | K99: 21400.68772 | L99: 1702.324643 | M99: 0 | N99: 1439.471098 | O99: 2051.646015 | P99: 0 | Q99: 6369.940899 | R99: 1295.38851 | S99: 0 | T99: 932.2390135 | U99: 388.6734502 | V99: 0 | W99: =SUM(D99:V99)/$A$16 -> 186.0658121 | X99: =X33+X59+X86 -> 2525881.111 | Y99: 0 | Z99: 0 | AA99: 0 | AB99: 0 | AC99: 0 | AD99: 0 | AE99: 0 | AF99: 684.7181585 | AG99: 0 | AH99: 0 | AI99: 0 | AJ99: 0 | AK99: 0 | AL99: 74.58010945 | AM99: 0 | AN99: 0 | AO99: 0 | AP99: 0 | AQ99: 0 | AR99: =SUM(Y99:AQ99)/$A$16 -> 3.934187917 | AS99: =AS33+AS59+AS86 -> 44684.19322 | AT99: 2570565.304 | AU99: =AR99+W99 -> 190 | AV99: =AT99/AU99 -> 13529.29107 | BA99: =AVERAGE(BA33,BA59,BA86) -> 13514.57401 | BB99: =BA99-AV99 -> -14.717064 | BC99: =BC33+BC59+BC86 -> 13574.53612
A100: 2 | B100: Kingsbury | C100: =10000/$A$16 -> 51.8134715 | D100: =D34+D60+D87 -> 0 | E100: 0 | F100: 0 | G100: 0 | H100: 0 | I100: 0 | J100: 0 | K100: 11340.76195 | L100: 396.1654114 | M100: 0 | N100: 0 | O100: 2902.767259 | P100: 0 | Q100: 5111.310464 | R100: 0 | S100: 0 | T100: 0 | U100: 43.84679666 | V100: 0 | W100: 102.5639994 | X100: =X34+X60+X87 -> 1513937.239 | Y100: 0 | Z100: 0 | AA100: 0 | AB100: 0 | AC100: 0 | AD100: 0 | AE100: 0 | AF100: 198.0827057 | AG100: 198.0827057 | AH100: 0 | AI100: 0 | AJ100: 0 | AK100: 0 | AL100: 266.9827057 | AM100: 0 | AN100: 0 | AO100: 0 | AP100: 0 | AQ100: 0 | AR100: =SUM(Y100:AQ100)/$A$16 -> 3.436000606 | AS100: 45196.81235 | AT100: 1559134.051 | AU100: =AR100+W100 -> 106 | AV100: =AT100/AU100 -> 14708.8118 | BA100: 14734.57217 | BB100: =BA100-AV100 -> 25.76036718 | BC100: =BC34+BC60+BC87 -> 14757.7888
A101: 3 | B101: RiverBank | C101: 51.8134715 | D101: =D35+D61+D88 -> 0 | E101: 0 | F101: 0 | G101: 723.065496 | H101: 913.8173409 | I101: 0 | J101: 0 | K101: 18758.89353 | L101: 11136.05748 | M101: 227.8257632 | N101: 1742.487827 | O101: 2047.844007 | P101: 723.5364289 | Q101: 6768.57815 | R101: 1600.055331 | S101: 0 | T101: 653.432935 | U101: 0 | V101: 0 | W101: 234.6921984 | X101: =X35+X61+X88 -> 2995950.41 | Y101: 0 | Z101: 0 | AA101: 0 | AB101: 0 | AC101: 0 | AD101: 0 | AE101: 0 | AF101: 0 | AG101: 217.8109783 | AH101: 0 | AI101: 0 | AJ101: 0 | AK101: 0 | AL101: 146.5947306 | AM101: 0 | AN101: 0 | AO101: 0 | AP101: 0 | AQ101: 0 | AR101: 1.888112481 | AS101: 24378.96356 | AT101: 3020329.373 | AU101: 236.5803109 | AV101: 12766.61343 | BA101: 12756.50606 | BB101: -10.10736504 | BC101: 12756.31766
A102: 4 | B102: Corley | C102: 51.8134715 | D102: =D36+D62+D89 -> 0 | E102: 0 | F102: 0 | G102: 515.3485515 | H102: 439.02595 | I102: 0 | J102: 0 | K102: 25440.4423 | L102: 0 | M102: 1220.598618 | N102: 0 | O102: 1514.123522 | P102: 0 | Q102: 2951.147644 | R102: 0 | S102: 0 | T102: 0 | U102: 0 | V102: 0 | W102: 166.221174 | X102: =X36+X62+X89 -> 1986498.889 | Y102: 0 | Z102: 0 | AA102: 0 | AB102: 0 | AC102: 0 | AD102: 0 | AE102: 0 | AF102: 404.3134162 | AG102: 0 | AH102: 0 | AI102: 0 | AJ102: 0 | AK102: 0 | AL102: 0 | AM102: 0 | AN102: 0 | AO102: 0 | AP102: 0 | AQ102: 0 | AR102: 2.094888167 | AS102: 22417.39076 | AT102: 2008916.28 | AU102: 168.3160622 | AV102: 11935.3807 | BA102: 11940.10929 | BB102: 4.728585738 | BC102: 11949.22556
A103: 5 | B103: Tiverton | C103: 51.8134715 | D103: =D37+D63+D90 -> 0 | E103: 0 | F103: 0 | G103: 0 | H103: 0 | I103: 0 | J103: 0 | K103: 16083.74117 | L103: 1797.630616 | M103: 0 | N103: 865.0748502 | O103: 1183.344539 | P103: 0 | Q103: 3483.915094 | R103: 1263.871817 | S103: 0 | T103: 1179.005676 | U103: 192.0177584 | V103: 0 | W103: 134.9668472 | X103: =X37+X63+X90 -> 1772895.196 | Y103: 0 | Z103: 0 | AA103: 0 | AB103: 0 | AC103: 0 | AD103: 0 | AE103: 0 | AF103: 0 | AG103: 0 | AH103: 0 | AI103: 0 | AJ103: 0 | AK103: 0 | AL103: 199.3984835 | AM103: 0 | AN103: 0 | AO103: 0 | AP103: 0 | AQ103: 0 | AR103: 1.033152765 | AS103: 17965.62099 | AT103: 1790860.817 | AU103: 136 | AV103: 13168.09424 | BA103: 13166.4497 | BB103: -1.644549735 | BC103: 13135.78085
A104: 6 | B104: Baginton Fields | C104: 51.8134715 | D104: =D38+D64+D91 -> 0 | E104: 0 | F104: 0 | G104: 0 | H104: 0 | I104: 0 | J104: 0 | K104: 6367.495565 | L104: 6662.85294 | M104: 0 | N104: 654.2287282 | O104: 2315.602388 | P104: 0 | Q104: 5302.373096 | R104: 2103.631522 | S104: 0 | T104: 654.2287282 | U104: 60.59701493 | V104: 0 | W104: 124.9793263 | X104: =X38+X64+X91 -> 1776662.771 | Y104: 0 | Z104: 0 | AA104: 0 | AB104: 0 | AC104: 0 | AD104: 0 | AE104: 0 | AF104: 0 | AG104: 196.9900179 | AH104: 0 | AI104: 0 | AJ104: 0 | AK104: 0 | AL104: 0 | AM104: 0 | AN104: 0 | AO104: 0 | AP104: 0 | AQ104: 0 | AR104: 1.020673668 | AS104: 10103.06392 | AT104: 1786765.835 | AU104: 126 | AV104: 14180.68123 | BA104: 14171.29648 | BB104: -9.38474749 | BC104: 14215.66571
A105: 7 | B105: Sherbourne Fields | C105: 51.8134715 | D105: =D39+D65+D92 -> 0 | E105: 0 | F105: 0 | G105: 0 | H105: 192.3681056 | I105: 0 | J105: 0 | K105: 17644.35403 | L105: 11028.66986 | M105: 192.3681056 | N105: 5227.682638 | O105: 577.1043169 | P105: 0 | Q105: 5254.496469 | R105: 4704.342242 | S105: 0 | T105: 4010.773699 | U105: 0 | V105: 0 | W105: 253.0163703 | X105: =X39+X65+X92 -> 3201180.492 | Y105: 0 | Z105: 0 | AA105: 0 | AB105: 0 | AC105: 0 | AD105: 0 | AE105: 0 | AF105: 384.7362113 | AG105: 0 | AH105: 0 | AI105: 192.3681056 | AJ105: 0 | AK105: 0 | AL105: 0 | AM105: 0 | AN105: 0 | AO105: 384.7362113 | AP105: 0 | AQ105: 0 | AR105: 4.98362968 | AS105: 66662.23991 | AT105: 3267842.732 | AU105: 258 | AV105: 12666.0571 | BA105: 12656.08298 | BB105: -9.974118514 | BC105: 12652.06738
A106: 8 | B106: Woodfield | C106: =10000/$A$16 -> 51.8134715 | D106: =D40+D66+D93 -> 0 | E106: 0 | F106: 0 | G106: 0 | H106: 0 | I106: 0 | J106: 0 | K106: 0 | L106: 0 | M106: 0 | N106: 0 | O106: 1761.230692 | P106: 0 | Q106: 31215.78596 | R106: 0 | S106: 318.3692904 | T106: 0 | U106: 425.8404072 | V106: 0 | W106: 174.72138 | X106: =X40+X66+X93 -> 3194454.771 | Y106: 0 | Z106: 0 | AA106: 0 | AB106: 0 | AC106: 0 | AD106: 0 | AE106: 0 | AF106: 0 | AG106: 0 | AH106: 0 | AI106: 0 | AJ106: 0 | AK106: 0 | AL106: 278.0228994 | AM106: 0 | AN106: 145.7507556 | AO106: 0 | AP106: 0 | AQ106: 0 | AR106: =SUM(Y106:AQ106)/$A$16 -> 2.19571842 | AS106: 38181.6187 | AT106: 3232636.39 | AU106: 176.9170984 | AV106: 18272.04051 | BA106: 18260.90399 | BB106: -11.13651641 | BC106: 18285.75371
A107: 9 | B107: Coventry ELC | C107: =10000/$A$16 -> 51.8134715 | D107: =D41+D67+D94 -> 23160 | E107: 0 | F107: 0 | G107: 0 | H107: 0 | I107: 0 | J107: 0 | K107: 0 | L107: 0 | M107: 0 | N107: 0 | O107: 0 | P107: 0 | Q107: 0 | R107: 0 | S107: 0 | T107: 0 | U107: 0 | V107: 0 | W107: =SUM(D107:V107)/$A$16 -> 120 | X107: =X41+X67+X94 -> 1580183.312 | Y107: 0 | Z107: 0 | AA107: 0 | AB107: 0 | AC107: 0 | AD107: 0 | AE107: 0 | AF107: 0 | AG107: 0 | AH107: 0 | AI107: 0 | AJ107: 0 | AK107: 0 | AL107: 0 | AM107: 0 | AN107: 0 | AO107: 0 | AP107: 0 | AQ107: 0 | AR107: =SUM(Y107:AQ107)/$A$16 -> 0 | AS107: 0 | AT107: 1580183.312 | AU107: 120 | AV107: 13168.19427 | BA107: 13159.01231 | BB107: -9.181954617 | BC107: 13168.19427
B111: TOTALS | C111: Place Led | D111: Coventry | E111: Other LA | F111: Other | G111: Total | H111: Total | J111: Average Top-up costs for Coventry pupils
B112: School | C112: Funding | D112: Top-up | E112: Top-up | F112: Funding | G112: Funding | H112: Top-up
A113: 1 | B113: Castle Wood | C113: =(M4*4/12+N4*1/12+O4*4/12+P4*3/12)*10000 -> 1900000 | D113: =X99 -> 2525881.111 | E113: =AS99 -> 44684.19322 | F113: =+AU4+AV4 -> 810257.3704 | G113: =SUM(C113:F113) -> 5280822.674 | J113: =D113/W99 -> 13575.20268
A114: 2 | B114: Kingsbury | C114: 1060000 | D114: =X100 -> 1513937.239 | E114: 45196.81235 | F114: 459409.8331 | G114: =SUM(C114:F114) -> 3078543.884 | J114: 14760.90293
A115: 3 | B115: RiverBank | C115: 2345833.333 | D115: 2995950.41 | E115: 24378.96356 | F115: 1005643.142 | G115: 6371805.848 | J115: 12765.44525
A116: 4 | B116: Corley | C116: =(M7*4/12+N7*1/12+O7*4/12+P7*3/12)*10000 -> 1679166.667 | D116: 1986498.889 | E116: 22417.39076 | F116: 723887.4801 | G116: 4411970.427 | J116: 11950.93767
A117: 5 | B117: Tiverton | C117: 1360000 | D117: 1772895.196 | E117: 17965.62099 | F117: 591028.4177 | G117: 3741889.235 | J117: 13135.78284
A118: 6 | B118: Baginton Fields | C118: 1260000 | D118: 1776662.771 | E118: 10103.06392 | F118: 552304.3 | G118: 3599070.135 | J118: 14215.65328
A119: 7 | B119: Sherbourne Fields | C119: 2580000 | D119: 3201180.492 | E119: 66662.23991 | F119: 1119643.933 | G119: 6967486.665 | J119: 12652.06867
A120: 8 | B120: Woodfield | C120: 1750000 | D120: 3194454.771 | E120: =AS106 -> 38181.6187 | F120: 863598.8062 | G120: 5846235.196 | J120: 18283.1361
C121: =SUM(C113:C120) -> 13935000 | D121: =SUM(D113:D120) -> 18967460.88 | E121: =SUM(E113:E120) -> 269589.9034 | F121: =SUM(F113:F120) -> 6125773.282 | G121: =SUM(G113:G120) -> 39297824.06 | H121: =D121+E121 -> 19237050.78 | L121: 16905477.14 | M121: Special School Top Up Value before Goal Seek
A122: 9 | B122: Coventry ELC | C122: =(M12*4/12+N12*1/12+O12*4/12+P12*3/12)*10000 -> 1200000 | D122: =X107 -> 1580183.312 | E122: =AS107 -> 0 | F122: =+AU12+AV12 -> 506218.71 | G122: =SUM(C122:F122) -> 3286402.022 | J122: =D122/W107 -> 13168.19427
C123: =C122 -> 1200000 | D123: =D122 -> 1580183.312 | E123: =E122 -> 0 | F123: =F122 -> 506218.71 | G123: =G122 -> 3286402.022 | H123: =D123+E123 -> 1580183.312
C125: =C121+C123 -> 15135000 | D125: =D121+D123 -> 20547644.19 | E125: =E121+E123 -> 269589.9034 | F125: =F121+F123 -> 6631991.992 | G125: =G121+G123 -> 42584226.09 | H125: =SUM(D125:E125) -> 20817234.09
C127: Value removed from Tops for TPAG | D127: =[14]Data!$D$125-D125 -> -729469.5595
C128: Value added for TPAG | D128: =#REF! -> 
C129: Increase in expenditure | D129: =D128-D127 -> 

Sheet SummerProvRep (hidden)
B1: SEND Finance - Special Schools 01/04/2025 and 31/07/2025
A2: =IF(LEFT(O2,2)="BF",6,IF(LEFT(O2,2)="CW",1,IF(LEFT(O2,2)="CO",4,IF(LEFT(O2,2)="TS",2,IF(LEFT(O2,2)="RB",3,IF(LEFT(O2,2)="SF",7,IF(LEFT(O2,2)="TV",5,IF(LEFT(O2,2)="WF",8,"")))))))) ->  | B2: School | C2: Capita ID | D2: NCY | E2: Surname | F2: Forename | G2: # Days in year | H2: Provision start | I2: Provision end | J2: Unit cost | K2: # Term Days | L2: Funding | M2: Funded FTE (Based on days at provision) | N2: FTE (Full or Part-time) | O2: Band | P2: Funding LA | Q2: Previous School | R2: Next School | U2: =IF(ISBLANK(A2),"",CONCATENATE($O$2," ",RIGHT(O2,2))) -> Band nd
A3: 6 | B3: Baginton Fields Academy | C3: 343228 | D3: 8 | E3: Abass | F3: Adedunni | G3: 194 | H3: 2025-04-01 | I3: 2025-07-31 | J3: 15721.34074 | K3: 64 | L3: 5186.422 | M3: =K3/64 -> 1 | N3: 1 | O3: BF2F | P3: Coventry | U3: Band 2F
A4: 6 | B4: Baginton Fields Academy | C4: 427012 | D4: 9 | E4: Abdulahi | F4: Abdirahman | G4: 194 | H4: 2025-04-01 | I4: 2025-07-31 | J4: 10480.89757 | K4: 64 | L4: 3457.616 | M4: =K4/64 -> 1 | N4: 1 | O4: BF1E | P4: Coventry | U4: Band 1E
A5: 6 | B5: Baginton Fields Academy | C5: 243036 | D5: 13 | E5: Abu Baker | F5: Daniel | G5: 194 | H5: 2025-04-01 | I5: 2025-07-31 | J5: 26685.25108 | K5: 64 | L5: 8803.382 | M5: 1 | N5: 1 | O5: BF5E | P5: Coventry | U5: Band 5E
A6: 6 | B6: Baginton Fields Academy | C6: 241973 | D6: 14 | E6: Ademakinwa | F6: Kikiola | G6: 194 | H6: 2025-04-01 | I6: 2025-07-31 | J6: 17031.46275 | K6: 64 | L6: 5618.627 | M6: 1 | N6: 1 | O6: BF1F | P6: Coventry | U6: Band 1F
A7: 6 | B7: Baginton Fields Academy | C7: 292158 | D7: 11 | E7: Ahmed | F7: Hana | G7: 194 | H7: 2025-04-01 | I7: 2025-07-31 | J7: 10480.89757 | K7: 64 | L7: 3457.616 | M7: 1 | N7: 1 | O7: BF1E | P7: Coventry | U7: Band 1E
A8: 6 | B8: Baginton Fields Academy | C8: 318946 | D8: 8 | E8: Ahmed | F8: Varen | G8: 194 | H8: 2025-04-01 | I8: 2025-07-31 | J8: 17031.46275 | K8: 64 | L8: 5618.627 | M8: 1 | N8: 1 | O8: BF1F | P8: Coventry | U8: Band 1F
A9: 6 | B9: Baginton Fields Academy | C9: 288451 | D9: 12 | E9: Akhtar | F9: Shumena | G9: 194 | H9: 2025-04-01 | I9: 2025-07-31 | J9: 10480.89757 | K9: 64 | L9: 3457.616 | M9: 1 | N9: 1 | O9: BF1E | P9: Coventry | U9: Band 1E
A10: 6 | B10: Baginton Fields Academy | C10: 418473 | D10: 10 | E10: Al Sabban | F10: Bissan | G10: 194 | H10: 2025-04-01 | I10: 2025-07-31 | J10: 9694.83558 | K10: 64 | L10: 3198.296 | M10: 1 | N10: 1 | O10: BF2E | P10: Coventry | R10: Baginton Fields Academy | U10: Band 2E
B11: Baginton Fields Academy | C11: 418473 | D11: 10 | E11: Al Sabban | F11: Bissan | G11: 194 | H11: 2025-04-01 | I11: 2025-07-31 | J11: 0.001 | K11: 64 | L11: 0.0009896907 | M11: 0 | N11: 3 | O11: SLTNHS | P11: Coventry | Q11: Baginton Fields Academy | R11: Baginton Fields Academy | U11: Band HS
A12: 6 | B12: Baginton Fields Academy | C12: 293742 | D12: 11 | E12: Ali | F12: Azhar | G12: 194 | H12: 2025-04-01 | I12: 2025-07-31 | J12: 17031.46275 | K12: 64 | L12: 5618.627 | M12: 1 | N12: 1 | O12: BF1F | P12: Coventry | U12: Band 1F
A13: 6 | B13: Baginton Fields Academy | C13: 235739 | D13: 14 | E13: Ali | F13: Ifza | G13: 194 | H13: 2025-04-01 | I13: 2025-07-31 | J13: 9694.83558 | K13: 64 | L13: 3198.296 | M13: 1 | N13: 1 | O13: BF2E | P13: Coventry | U13: Band 2E
A14: 6 | B14: Baginton Fields Academy | C14: 314806 | D14: 9 | E14: Bailey | F14: Joshua | G14: 194 | H14: 2025-04-01 | I14: 2025-07-31 | J14: 10480.89757 | K14: 64 | L14: 3457.616 | M14: 1 | N14: 1 | O14: BF1E | P14: Coventry | U14: Band 1E
A15: 6 | B15: Baginton Fields Academy | C15: 311105 | D15: 10 | E15: Barrowman | F15: Lee | G15: 194 | H15: 2025-04-01 | I15: 2025-04-11 | J15: 26685.25108 | K15: 9 | L15: 1237.976 | M15: 0.140625 | N15: 1 | O15: BF5E | P15: Coventry | U15: Band 5E
A16: 6 | B16: Baginton Fields Academy | C16: 279153 | D16: 13 | E16: Beauchamp | F16: Morgan | G16: 194 | H16: 2025-04-01 | I16: 2025-07-31 | J16: 9694.83558 | K16: 64 | L16: 3198.296 | M16: 1 | N16: 1 | O16: BF2E | P16: Coventry | U16: Band 2E
A17: 6 | B17: Baginton Fields Academy | C17: 235466 | D17: 15 | E17: Bhatti | F17: Aman | G17: 194 | H17: 2025-04-01 | I17: 2025-07-31 | J17: 15721.34074 | K17: 64 | L17: 5186.422 | M17: 1 | N17: 1 | O17: BF2F | P17: Coventry | U17: Band 2F
A18: 6 | B18: Baginton Fields Academy | C18: 396080 | D18: 14 | E18: Biyasi | F18: Hala | G18: 194 | H18: 2025-04-01 | I18: 2025-07-31 | J18: 9694.83558 | K18: 64 | L18: 3198.296 | M18: 1 | N18: 1 | O18: BF2E | P18: Coventry | U18: Band 2E
A19: 6 | B19: Baginton Fields Academy | C19: 282041 | D19: 11 | E19: Braithwaite | F19: Lacey | G19: 194 | H19: 2025-04-01 | I19: 2025-07-31 | J19: 26685.25108 | K19: 64 | L19: 8803.382 | M19: 1 | N19: 1 | O19: BF5E | P19: Coventry | U19: Band 5E
A20: 6 | B20: Baginton Fields Academy | C20: 281810 | D20: 12 | E20: Bush | F20: Matthew | G20: 194 | H20: 2025-04-01 | I20: 2025-07-31 | J20: 9694.83558 | K20: 64 | L20: 3198.296 | M20: 1 | N20: 1 | O20: BF2E | P20: Coventry | U20: Band 2E
A21: 6 | B21: Baginton Fields Academy | C21: 269933 | D21: 14 | E21: Cain | F21: Chanel | G21: 194 | H21: 2025-04-01 | I21: 2025-07-31 | J21: 9694.83558 | K21: 64 | L21: 3198.296 | M21: 1 | N21: 1 | O21: BF2E | P21: Coventry | U21: Band 2E
A22: 6 | B22: Baginton Fields Academy | C22: 334045 | D22: 9 | E22: Cain | F22: Ryan | G22: 194 | H22: 2025-04-01 | I22: 2025-07-31 | J22: 9694.83558 | K22: 64 | L22: 3198.296 | M22: 1 | N22: 1 | O22: BF2E | P22: Coventry | U22: Band 2E
A23: 6 | B23: Baginton Fields Academy | C23: 284471 | D23: 9 | E23: Caraian | F23: Sara | G23: 194 | H23: 2025-04-01 | I23: 2025-07-31 | J23: 9694.83558 | K23: 64 | L23: 3198.296 | M23: 1 | N23: 1 | O23: BF2E | P23: Coventry | U23: Band 2E
A24: 6 | B24: Baginton Fields Academy | C24: 257028 | D24: 12 | E24: Carty | F24: Loveonhe | G24: 194 | H24: 2025-04-01 | I24: 2025-07-31 | J24: 9694.83558 | K24: 64 | L24: 3198.296 | M24: 1 | N24: 1 | O24: BF2E | P24: Coventry | U24: Band 2E
A25: 6 | B25: Baginton Fields Academy | C25: 252823 | D25: 12 | E25: Chidube | F25: Maurice | G25: 194 | H25: 2025-04-01 | I25: 2025-07-31 | J25: 9694.83558 | K25: 64 | L25: 3198.296 | M25: 1 | N25: 1 | O25: BF2E | P25: Coventry | U25: Band 2E
A26: 6 | B26: Baginton Fields Academy | C26: 311820 | D26: 9 | E26: Choudhury | F26: Rishi | G26: 194 | H26: 2025-04-01 | I26: 2025-07-31 | J26: 10480.89757 | K26: 64 | L26: 3457.616 | M26: 1 | N26: 1 | O26: BF1E | P26: Coventry | U26: Band 1E
A27: 6 | B27: Baginton Fields Academy | C27: 256582 | D27: 15 | E27: Christian | F27: Riquelme | G27: 194 | H27: 2025-04-01 | I27: 2025-07-25 | J27: 10480.89757 | K27: 64 | L27: 3457.616 | M27: 1 | N27: 1 | O27: BF1E | P27: Coventry | U27: Band 1E
A28: 6 | B28: Baginton Fields Academy | C28: 243724 | D28: 12 | E28: Cooney | F28: Charlotte | G28: 194 | H28: 2025-04-01 | I28: 2025-07-31 | J28: 15721.34074 | K28: 64 | L28: 5186.422 | M28: 1 | N28: 1 | O28: BF2F | P28: Coventry | U28: Band 2F
A29: 6 | B29: Baginton Fields Academy | C29: 310848 | D29: 9 | E29: Cooper | F29: Liam | G29: 194 | H29: 2025-04-01 | I29: 2025-07-31 | J29: 10480.89757 | K29: 64 | L29: 3457.616 | M29: 1 | N29: 1 | O29: BF1E | P29: Coventry | U29: Band 1E
A30: 6 | B30: Baginton Fields Academy | C30: 319811 | D30: 10 | E30: Crowley | F30: Macey | G30: 194 | H30: 2025-04-01 | I30: 2025-07-31 | J30: 9694.83558 | K30: 64 | L30: 3198.296 | M30: 1 | N30: 1 | O30: BF2E | P30: Coventry | U30: Band 2E
A31: 6 | B31: Baginton Fields Academy | C31: 315071 | D31: 9 | E31: Dyari | F31: Muhammad | G31: 194 | H31: 2025-04-01 | I31: 2025-07-31 | J31: 17031.46275 | K31: 64 | L31: 5618.627 | M31: 1 | N31: 1 | O31: BF1F | P31: Coventry | U31: Band 1F
A32: 6 | B32: Baginton Fields Academy | C32: 268244 | D32: 15 | E32: Efrem Tekle | F32: Feelmona | G32: 194 | H32: 2025-04-01 | I32: 2025-05-23 | J32: 9694.83558 | K32: 28 | L32: 1399.255 | M32: 0.4375 | N32: 1 | O32: BF2E | P32: Coventry | U32: Band 2E
A33: 6 | B33: Baginton Fields Academy | C33: 260010 | D33: 14 | E33: Ekalakala | F33: Eliezer | G33: 194 | H33: 2025-04-01 | I33: 2025-07-31 | J33: 9694.83558 | K33: 64 | L33: 3198.296 | M33: 1 | N33: 1 | O33: BF2E | P33: Coventry | U33: Band 2E
A34: 6 | B34: Baginton Fields Academy | C34: 416200 | D34: 15 | E34: Esseku-Otoo | F34: Nadia | G34: 194 | H34: 2025-04-01 | I34: 2025-07-31 | J34: 10480.89757 | K34: 64 | L34: 3457.616 | M34: 1 | N34: 1 | O34: BF1E | P34: Coventry | U34: Band 1E
A35: 6 | B35: Baginton Fields Academy | C35: 339829 | D35: 8 | E35: Fenton | F35: Alfie | G35: 194 | H35: 2025-04-01 | I35: 2025-07-31 | J35: 10480.89757 | K35: 64 | L35: 3457.616 | M35: 1 | N35: 1 | O35: BF1E | P35: Coventry | U35: Band 1E
A36: 6 | B36: Baginton Fields Academy | C36: 310536 | D36: 9 | E36: Forshew | F36: Sophie | G36: 194 | H36: 2025-04-01 | I36: 2025-07-31 | J36: 9694.83558 | K36: 64 | L36: 3198.296 | M36: 1 | N36: 1 | O36: BF2E | P36: Coventry | U36: Band 2E
A37: 6 | B37: Baginton Fields Academy | C37: 279401 | D37: 11 | E37: Gibson | F37: Libby | G37: 194 | H37: 2025-04-01 | I37: 2025-07-31 | J37: 17031.46275 | K37: 64 | L37: 5618.627 | M37: 1 | N37: 1 | O37: BF1F | P37: Coventry | U37: Band 1F
A38: 6 | B38: Baginton Fields Academy | C38: 224832 | D38: 15 | E38: Ginova-Pearson | F38: Denisa | G38: 194 | H38: 2025-04-01 | I38: 2025-07-25 | J38: 9694.83558 | K38: 64 | L38: 3198.296 | M38: 1 | N38: 1 | O38: BF2E | P38: Coventry | U38: Band 2E
A39: 6 | B39: Baginton Fields Academy | C39: 292034 | D39: 11 | E39: Gleeson | F39: Reece | G39: 194 | H39: 2025-04-01 | I39: 2025-07-31 | J39: 10480.89757 | K39: 64 | L39: 3457.616 | M39: 1 | N39: 1 | O39: BF1E | P39: Coventry | R39: Baginton Fields Academy | U39: Band 1E
B40: Baginton Fields Academy | C40: 292034 | D40: 11 | E40: Gleeson | F40: Reece | G40: 194 | H40: 2025-04-01 | I40: 2025-07-31 | J40: 0.001 | K40: 64 | L40: 0.0006597938 | M40: 0 | N40: 2 | O40: SLTNHS | P40: Coventry | Q40: Baginton Fields Academy | U40: Band HS
A41: 6 | B41: Baginton Fields Academy | C41: 280153 | D41: 12 | E41: Gryszkienas | F41: Santiago | G41: 194 | H41: 2025-04-01 | I41: 2025-07-31 | J41: 10480.89757 | K41: 64 | L41: 3457.616 | M41: 1 | N41: 1 | O41: BF1E | P41: Coventry | U41: Band 1E
A42: 6 | B42: Baginton Fields Academy | C42: 274311 | D42: 11 | E42: Gul | F42: Annum | G42: 194 | H42: 2025-04-01 | I42: 2025-07-31 | J42: 15721.34074 | K42: 64 | L42: 5186.422 | M42: 1 | N42: 1 | O42: BF2F | P42: Coventry | U42: Band 2F
A43: 6 | B43: Baginton Fields Academy | C43: 385928 | D43: 14 | E43: Hatem | F43: Ahmed | G43: 194 | H43: 2025-04-01 | I43: 2025-07-31 | J43: 26685.25108 | K43: 64 | L43: 8803.382 | M43: 1 | N43: 1 | O43: BF5E | P43: Coventry | U43: Band 5E
A44: 6 | B44: Baginton Fields Academy | C44: 385927 | D44: 15 | E44: Hatem | F44: Ibraheem | G44: 194 | H44: 2025-04-01 | I44: 2025-07-31 | J44: 26685.25108 | K44: 64 | L44: 8803.382 | M44: 1 | N44: 1 | O44: BF5E | P44: Coventry | U44: Band 5E
A45: 6 | B45: Baginton Fields Academy | C45: 354197 | D45: 8 | E45: Head | F45: Keira | G45: 194 | H45: 2025-04-01 | I45: 2025-07-31 | J45: 15721.34074 | K45: 64 | L45: 5186.422 | M45: 1 | N45: 1 | O45: BF2F | P45: Coventry | R45: Baginton Fields Academy | U45: Band 2F
B46: Baginton Fields Academy | C46: 354197 | D46: 8 | E46: Head | F46: Keira | G46: 194 | H46: 2025-04-01 | I46: 2025-07-31 | J46: 0 | K46: 64 | L46: 0 | M46: 0 | N46: 1 | O46: PB | P46: Coventry | Q46: Baginton Fields Academy | U46: Band PB
A47: 6 | B47: Baginton Fields Academy | C47: 235853 | D47: 13 | E47: Hudson | F47: Elise | G47: 194 | H47: 2025-04-01 | I47: 2025-07-31 | J47: 9694.83558 | K47: 64 | L47: 3198.296 | M47: 1 | N47: 1 | O47: BF2E | P47: Coventry | U47: Band 2E
A48: 6 | B48: Baginton Fields Academy | C48: 236415 | D48: 15 | E48: Hughes | F48: Dylan | G48: 194 | H48: 2025-04-01 | I48: 2025-07-25 | J48: 9694.83558 | K48: 64 | L48: 3198.296 | M48: 1 | N48: 1 | O48: BF2E | P48: Coventry | U48: Band 2E
A49: 6 | B49: Baginton Fields Academy | C49: 309026 | D49: 9 | E49: Hussain | F49: Faizaan | G49: 194 | H49: 2025-04-01 | I49: 2025-07-31 | J49: 9694.83558 | K49: 64 | L49: 3198.296 | M49: 1 | N49: 1 | O49: BF2E | P49: Coventry | U49: Band 2E
A50: 6 | B50: Baginton Fields Academy | C50: 308818 | D50: 9 | E50: Hussain | F50: Sufyaan | G50: 194 | H50: 2025-04-01 | I50: 2025-07-31 | J50: 9694.83558 | K50: 64 | L50: 3198.296 | M50: 1 | N50: 1 | O50: BF2E | P50: Coventry | U50: Band 2E
A51: 6 | B51: Baginton Fields Academy | C51: 314210 | D51: 8 | E51: Hutchinson | F51: Jace | G51: 194 | H51: 2025-04-01 | I51: 2025-07-31 | J51: 26685.25108 | K51: 64 | L51: 8803.382 | M51: 1 | N51: 1 | O51: BF5E | P51: Coventry | U51: Band 5E
A52: 6 | B52: Baginton Fields Academy | C52: 297365 | D52: 11 | E52: Hyde | F52: Brody | G52: 194 | H52: 2025-04-01 | I52: 2025-07-31 | J52: 10480.89757 | K52: 64 | L52: 3457.616 | M52: 1 | N52: 1 | O52: BF1E | P52: Coventry | U52: Band 1E
A53: 6 | B53: Baginton Fields Academy | C53: 424886 | D53: 11 | E53: Igbokwe | F53: Francis | G53: 194 | H53: 2025-04-01 | I53: 2025-07-31 | J53: 15721.34074 | K53: 64 | L53: 5186.422 | M53: 1 | N53: 1 | O53: BF2F | P53: Coventry | U53: Band 2F
A54: 6 | B54: Baginton Fields Academy | C54: 293989 | D54: 10 | E54: Imran | F54: Isa | G54: 194 | H54: 2025-04-01 | I54: 2025-07-31 | J54: 9694.83558 | K54: 64 | L54: 3198.296 | M54: 1 | N54: 1 | O54: BF2E | P54: Coventry | U54: Band 2E
A55: 6 | B55: Baginton Fields Academy | C55: 274087 | D55: 11 | E55: Islam | F55: Mohammed sami | G55: 194 | H55: 2025-04-01 | I55: 2025-07-31 | J55: 17031.46275 | K55: 64 | L55: 5618.627 | M55: 1 | N55: 1 | O55: BF1F | P55: Coventry | U55: Band 1F
A56: 6 | B56: Baginton Fields Academy | C56: 380274 | D56: 15 | E56: Jadeszko | F56: Gabriel | G56: 194 | H56: 2025-04-01 | I56: 2025-07-25 | J56: 9694.83558 | K56: 64 | L56: 3198.296 | M56: 1 | N56: 1 | O56: BF2E | P56: Coventry | U56: Band 2E
A57: 6 | B57: Baginton Fields Academy | C57: 295189 | D57: 9 | E57: Janjua | F57: Muhammed | G57: 194 | H57: 2025-04-01 | I57: 2025-07-31 | J57: 15721.34074 | K57: 64 | L57: 5186.422 | M57: 1 | N57: 1 | O57: BF2F | P57: Coventry | U57: Band 2F
A58: 6 | B58: Baginton Fields Academy | C58: 261963 | D58: 13 | E58: Jones | F58: Ellis | G58: 194 | H58: 2025-04-01 | I58: 2025-07-31 | J58: 10480.89757 | K58: 64 | L58: 3457.616 | M58: 1 | N58: 1 | O58: BF1E | P58: Coventry | U58: Band 1E
A59: 6 | B59: Baginton Fields Academy | C59: 372048 | D59: 13 | E59: Jose | F59: Aannet | G59: 194 | H59: 2025-04-01 | I59: 2025-07-31 | J59: 17031.46275 | K59: 64 | L59: 5618.627 | M59: 1 | N59: 1 | O59: BF1F | P59: Coventry | U59: Band 1F
A60: 6 | B60: Baginton Fields Academy | C60: 264675 | D60: 12 | E60: Karamat | F60: Safiullah | G60: 194 | H60: 2025-04-01 | I60: 2025-07-11 | J60: 53370.50216 | K60: 58 | L60: 15956.13 | M60: 0.90625 | N60: 1 | O60: BF5F | P60: Coventry | U60: Band 5F
A61: 6 | B61: Baginton Fields Academy | C61: 244102 | D61: 14 | E61: KASONGO | F61: Tony | G61: 194 | H61: 2025-04-01 | I61: 2025-07-31 | J61: 17031.46275 | K61: 64 | L61: 5618.627 | M61: 1 | N61: 1 | O61: BF1F | P61: Coventry | U61: Band 1F
A62: 6 | B62: Baginton Fields Academy | C62: 258687 | D62: 14 | E62: Kunasingam | F62: Harryshan | G62: 194 | H62: 2025-04-01 | I62: 2025-07-31 | J62: 17031.46275 | K62: 64 | L62: 5618.627 | M62: 1 | N62: 1 | O62: BF1F | P62: Coventry | U62: Band 1F
A63: 6 | B63: Baginton Fields Academy | C63: 445015 | D63: 14 | E63: Kurashvili | F63: Daniil | G63: 194 | H63: 2025-04-01 | I63: 2025-07-31 | J63: 26685.25108 | K63: 64 | L63: 8803.382 | M63: 1 | N63: 1 | O63: BF5E | P63: Coventry | U63: Band 5E
A64: 6 | B64: Baginton Fields Academy | C64: 341807 | D64: 8 | E64: Lane | F64: Roxana | G64: 194 | H64: 2025-04-01 | I64: 2025-07-31 | J64: 17031.46275 | K64: 64 | L64: 5618.627 | M64: 1 | N64: 1 | O64: BF1F | P64: Coventry | U64: Band 1F
A65: 6 | B65: Baginton Fields Academy | C65: 235762 | D65: 15 | E65: Leese | F65: Noah | G65: 194 | H65: 2025-04-01 | I65: 2025-07-25 | J65: 17031.46275 | K65: 64 | L65: 5618.627 | M65: 1 | N65: 1 | O65: BF1F | P65: Coventry | U65: Band 1F
A66: =IF(LEFT(O66,2)="BF",6,IF(LEFT(O66,2)="CW",1,IF(LEFT(O66,2)="CO",4,IF(LEFT(O66,2)="TS",2,IF(LEFT(O66,2)="RB",3,IF(LEFT(O66,2)="SF",7,IF(LEFT(O66,2)="TV",5,IF(LEFT(O66,2)="WF",8,"")))))))) -> 6 | B66: Baginton Fields Academy | C66: 283055 | D66: 12 | E66: Mack | F66: Paige | G66: 194 | H66: 2025-06-10 | I66: 2025-07-31 | J66: 26685.25108 | K66: 30 | L66: 4126.585 | M66: 0.46875 | N66: 1 | O66: BF5E | P66: Coventry | Q66: Baginton Fields Academy | U66: =IF(ISBLANK(A66),"",CONCATENATE($O$2," ",RIGHT(O66,2))) -> Band 5E
A67: 6 | B67: Baginton Fields Academy | C67: 283055 | D67: 12 | E67: Mack | F67: Paige | G67: 194 | H67: 2025-04-01 | I67: 2025-06-09 | J67: 9694.83558 | K67: 34 | L67: 1699.095 | M67: 0.53125 | N67: 1 | O67: BF2E | P67: Coventry | R67: Baginton Fields Academy | U67: Band 2E
A68: 6 | B68: Baginton Fields Academy | C68: 387240 | D68: 11 | E68: Madu | F68: Great | G68: 194 | H68: 2025-04-01 | I68: 2025-07-31 | J68: 15721.34074 | K68: 64 | L68: 5186.422 | M68: =K68/64 -> 1 | N68: 1 | O68: BF4F | P68: Coventry | U68: Band 4F
A69: 6 | B69: Baginton Fields Academy | C69: 248534 | D69: 14 | E69: MALANGU | F69: Sharon | G69: 194 | H69: 2025-04-01 | I69: 2025-07-31 | J69: 17031.46275 | K69: 64 | L69: 5618.627 | M69: 1 | N69: 1 | O69: BF1F | P69: Coventry | U69: Band 1F
A70: 6 | B70: Baginton Fields Academy | C70: 337203 | D70: 8 | E70: Malula | F70: Romeo | G70: 194 | H70: 2025-04-01 | I70: 2025-07-31 | J70: 17031.46275 | K70: 64 | L70: 5618.627 | M70: 1 | N70: 1 | O70: BF1F | P70: Coventry | U70: Band 1F
A71: 6 | B71: Baginton Fields Academy | C71: 300198 | D71: 10 | E71: Mburichen | F71: Onyekachukwu Ki | G71: 194 | H71: 2025-06-11 | I71: 2025-07-31 | J71: 17031.46275 | K71: 29 | L71: 2545.94 | M71: 0.453125 | N71: 1 | O71: BF1F | P71: Coventry | Q71: Baginton Fields Academy | U71: Band 1F
A72: 6 | B72: Baginton Fields Academy | C72: 300198 | D72: 10 | E72: Mburichen | F72: Onyekachukwu Ki | G72: 194 | H72: 2025-04-01 | I72: 2025-06-10 | J72: 26685.25108 | K72: 35 | L72: 4814.35 | M72: 0.546875 | N72: 1 | O72: BF5E | P72: Coventry | R72: Baginton Fields Academy | U72: Band 5E
A73: 6 | B73: Baginton Fields Academy | C73: 397316 | D73: 9 | E73: McDuke | F73: Jaedon | G73: 194 | H73: 2025-04-01 | I73: 2025-07-31 | J73: 17031.46275 | K73: 64 | L73: 5618.627 | M73: 1 | N73: 1 | O73: BF1F | P73: Coventry | U73: Band 1F
A74: 6 | B74: Baginton Fields Academy | C74: 280194 | D74: 11 | E74: McGowan | F74: Lucas | G74: 194 | H74: 2025-04-01 | I74: 2025-07-31 | J74: 9694.83558 | K74: 64 | L74: 3198.296 | M74: 1 | N74: 1 | O74: BF2E | P74: Coventry | U74: Band 2E
A75: 6 | B75: Baginton Fields Academy | C75: 283863 | D75: 12 | E75: McKinlay | F75: Maddox | G75: 194 | H75: 2025-04-01 | I75: 2025-07-25 | J75: 17031.46275 | K75: 64 | L75: 5618.627 | M75: 1 | N75: 1 | O75: BF1F | P75: Coventry | U75: Band 1F
A76: 6 | B76: Baginton Fields Academy | C76: 328417 | D76: 9 | E76: McKirdle | F76: Matthew | G76: 194 | H76: 2025-04-01 | I76: 2025-07-31 | J76: 17031.46275 | K76: 64 | L76: 5618.627 | M76: 1 | N76: 1 | O76: BF1F | P76: Coventry | U76: Band 1F
A77: 6 | B77: Baginton Fields Academy | C77: 312973 | D77: 10 | E77: McSheffrey | F77: Kayden | G77: 194 | H77: 2025-04-01 | I77: 2025-07-31 | J77: 10480.89757 | K77: 64 | L77: 3457.616 | M77: 1 | N77: 1 | O77: BF1E | P77: Coventry | U77: Band 1E
A78: 6 | B78: Baginton Fields Academy | C78: 303244 | D78: 9 | E78: Mitchell | F78: Angel | G78: 194 | H78: 2025-04-01 | I78: 2025-07-31 | J78: 10480.89757 | K78: 64 | L78: 3457.616 | M78: 1 | N78: 1 | O78: BF1E | P78: Coventry | U78: Band 1E
A79: 6 | B79: Baginton Fields Academy | C79: 404237 | D79: 14 | E79: Mohammed-Said | F79: Dia-Adin | G79: 194 | H79: 2025-04-01 | I79: 2025-07-31 | J79: 15721.34074 | K79: 64 | L79: 5186.422 | M79: 1 | N79: 1 | O79: BF2F | P79: Coventry | U79: Band 2F
A80: 6 | B80: Baginton Fields Academy | C80: 273338 | D80: 11 | E80: Molad | F80: Marwan | G80: 194 | H80: 2025-04-01 | I80: 2025-07-31 | J80: 9694.83558 | K80: 64 | L80: 3198.296 | M80: 1 | N80: 1 | O80: BF2E | P80: Coventry | U80: Band 2E
A81: 6 | B81: Baginton Fields Academy | C81: 287629 | D81: 12 | E81: Molad | F81: MOHAMAD | G81: 194 | H81: 2025-04-01 | I81: 2025-07-31 | J81: 9694.83558 | K81: 64 | L81: 3198.296 | M81: 1 | N81: 1 | O81: BF2E | P81: Coventry | U81: Band 2E
A82: 6 | B82: Baginton Fields Academy | C82: 238330 | D82: 13 | E82: Moseley | F82: Holly | G82: 194 | H82: 2025-04-01 | I82: 2025-07-31 | J82: 15721.34074 | K82: 64 | L82: 5186.422 | M82: 1 | N82: 1 | O82: BF2F | P82: Coventry | U82: Band 2F
A83: 6 | B83: Baginton Fields Academy | C83: 243547 | D83: 15 | E83: Moseley | F83: Thomas | G83: 194 | H83: 2025-04-01 | I83: 2025-07-25 | J83: 10480.89757 | K83: 64 | L83: 3457.616 | M83: 1 | N83: 1 | O83: BF1E | P83: Coventry | U83: Band 1E
A84: 6 | B84: Baginton Fields Academy | C84: 329917 | D84: 10 | E84: Moubeke | F84: Jayden | G84: 194 | H84: 2025-04-01 | I84: 2025-07-31 | J84: 10480.89757 | K84: 64 | L84: 3457.616 | M84: 1 | N84: 1 | O84: BF1E | P84: Coventry | U84: Band 1E
A85: 6 | B85: Baginton Fields Academy | C85: 289506 | D85: 9 | E85: Muhammad | F85: Awais | G85: 194 | H85: 2025-04-01 | I85: 2025-07-31 | J85: 9694.83558 | K85: 64 | L85: 3198.296 | M85: 1 | N85: 1 | O85: BF2E | P85: Coventry | U85: Band 2E
A86: 6 | B86: Baginton Fields Academy | C86: 284022 | D86: 12 | E86: Mula | F86: Elliot | G86: 194 | H86: 2025-04-01 | I86: 2025-07-31 | J86: 26685.25108 | K86: 64 | L86: 8803.382 | M86: 1 | N86: 1 | O86: BF5E | P86: Coventry | U86: Band 5E
A87: 6 | B87: Baginton Fields Academy | C87: 278584 | D87: 13 | E87: Mullin | F87: Harley | G87: 194 | H87: 2025-04-01 | I87: 2025-07-31 | J87: 26685.25108 | K87: 64 | L87: 8803.382 | M87: 1 | N87: 1 | O87: BF5E | P87: Coventry | U87: Band 5E
A88: 6 | B88: Baginton Fields Academy | C88: 226432 | D88: 15 | E88: Munir | F88: Aisha | G88: 194 | H88: 2025-04-01 | I88: 2025-07-31 | J88: 15721.34074 | K88: 64 | L88: 5186.422 | M88: 1 | N88: 1 | O88: BF2F | P88: Coventry | U88: Band 2F
A89: 6 | B89: Baginton Fields Academy | C89: 456536 | D89: 9 | E89: Muyyappally | F89: Richerd | G89: 194 | H89: 2025-04-01 | I89: 2025-07-31 | J89: 15721.34074 | K89: 64 | L89: 5186.422 | M89: 1 | N89: 1 | O89: BF2F | P89: Coventry | U89: Band 2F
A90: 6 | B90: Baginton Fields Academy | C90: 305707 | D90: 10 | E90: Mwangi | F90: Asher | G90: 194 | H90: 2025-04-01 | I90: 2025-07-31 | J90: 17031.46275 | K90: 64 | L90: 5618.627 | M90: 1 | N90: 1 | O90: BF1F | P90: Coventry | U90: Band 1F
A91: 6 | B91: Baginton Fields Academy | C91: 280586 | D91: 10 | E91: Navsarka | F91: Esa | G91: 194 | H91: 2025-04-01 | I91: 2025-07-31 | J91: 9694.83558 | K91: 64 | L91: 3198.296 | M91: 1 | N91: 1 | O91: BF2E | P91: Coventry | U91: Band 2E
A92: 6 | B92: Baginton Fields Academy | C92: 339545 | D92: 10 | E92: Ngemegwai | F92: Leonardo | G92: 194 | H92: 2025-04-01 | I92: 2025-07-31 | J92: 13101.11915 | K92: 64 | L92: 4322.019 | M92: 1 | N92: 1 | O92: BF4E | P92: Coventry | U92: Band 4E
A93: 6 | B93: Baginton Fields Academy | C93: 300090 | D93: 10 | E93: Nimpaye | F93: Don | G93: 194 | H93: 2025-04-01 | I93: 2025-07-31 | J93: 17031.46275 | K93: 64 | L93: 5618.627 | M93: 1 | N93: 1 | O93: BF1F | P93: Coventry | U93: Band 1F
A94: 6 | B94: Baginton Fields Academy | C94: 303271 | D94: 10 | E94: Njunga | F94: Trevelle | G94: 194 | H94: 2025-04-01 | I94: 2025-07-31 | J94: 17031.46275 | K94: 64 | L94: 5618.627 | M94: 1 | N94: 1 | O94: BF1F | P94: Coventry | U94: Band 1F
A95: 6 | B95: Baginton Fields Academy | C95: 368315 | D95: 13 | E95: Norman | F95: William | G95: 194 | H95: 2025-04-01 | I95: 2025-07-31 | J95: 17031.46275 | K95: 64 | L95: 5618.627 | M95: 1 | N95: 1 | O95: BF1F | P95: Coventry | U95: Band 1F
A96: 6 | B96: Baginton Fields Academy | C96: 292148 | D96: 10 | E96: Ntare | F96: Christopher | G96: 194 | H96: 2025-04-01 | I96: 2025-07-31 | J96: 10480.89757 | K96: 64 | L96: 3457.616 | M96: 1 | N96: 1 | O96: BF1E | P96: Coventry | U96: Band 1E
A97: 6 | B97: Baginton Fields Academy | C97: 386445 | D97: 15 | E97: Okorie | F97: Michael | G97: 194 | H97: 2025-04-01 | I97: 2025-07-31 | J97: 9694.83558 | K97: 64 | L97: 3198.296 | M97: 1 | N97: 1 | O97: BF2E | P97: Coventry | U97: Band 2E
A98: 6 | B98: Baginton Fields Academy | C98: 302911 | D98: 10 | E98: Omar | F98: Shano | G98: 194 | H98: 2025-04-01 | I98: 2025-07-31 | J98: 10480.89757 | K98: 64 | L98: 3457.616 | M98: 1 | N98: 1 | O98: BF1E | P98: Coventry | U98: Band 1E
A99: 6 | B99: Baginton Fields Academy | C99: 328478 | D99: 8 | E99: Osborne | F99: Billy | G99: 194 | H99: 2025-04-01 | I99: 2025-07-31 | J99: 17031.46275 | K99: 64 | L99: 5618.627 | M99: 1 | N99: 1 | O99: BF1F | P99: Coventry | U99: Band 1F
A100: 6 | B100: Baginton Fields Academy | C100: 249608 | D100: 13 | E100: Padan | F100: Rohan | G100: 194 | H100: 2025-04-01 | I100: 2025-07-31 | J100: 9694.83558 | K100: 64 | L100: 3198.296 | M100: 1 | N100: 1 | O100: BF2E | P100: Coventry | U100: Band 2E
A101: 6 | B101: Baginton Fields Academy | C101: 338886 | D101: 8 | E101: Parsons | F101: Sean | G101: 194 | H101: 2025-04-01 | I101: 2025-07-31 | J101: 10480.89757 | K101: 64 | L101: 3457.616 | M101: 1 | N101: 1 | O101: BF1E | P101: Coventry | R101: Baginton Fields Academy | U101: Band 1E
B102: Baginton Fields Academy | C102: 338886 | D102: 8 | E102: Parsons | F102: Sean | G102: 194 | H102: 2025-05-16 | I102: 2025-07-31 | J102: 0.001 | K102: 42 | L102: 0.0002164948 | M102: 0 | N102: 1 | O102: SLTNHS | P102: Coventry | Q102: Baginton Fields Academy | U102: Band HS
A103: 6 | B103: Baginton Fields Academy | C103: 289401 | D103: 10 | E103: Powers | F103: Jesse-James | G103: 194 | H103: 2025-04-01 | I103: 2025-07-31 | J103: 15721.34074 | K103: 64 | L103: 5186.422 | M103: 1 | N103: 1 | O103: BF4F | P103: Coventry | U103: Band 4F
A104: 6 | B104: Baginton Fields Academy | C104: 356183 | D104: 9 | E104: Rajarajan | F104: Arin | G104: 194 | H104: 2025-04-01 | I104: 2025-07-31 | J104: 9694.83558 | K104: 64 | L104: 3198.296 | M104: 1 | N104: 1 | O104: BF2E | P104: Coventry | U104: Band 2E
A105: 6 | B105: Baginton Fields Academy | C105: 276584 | D105: 13 | E105: Ray | F105: Jasmine | G105: 194 | H105: 2025-04-01 | I105: 2025-07-31 | J105: 9694.83558 | K105: 64 | L105: 3198.296 | M105: 1 | N105: 1 | O105: BF2E | P105: Coventry | U105: Band 2E
A106: 6 | B106: Baginton Fields Academy | C106: 334191 | D106: 9 | E106: Ricardo | F106: Emma | G106: 194 | H106: 2025-04-01 | I106: 2025-07-31 | J106: 17031.46275 | K106: 64 | L106: 5618.627 | M106: 1 | N106: 1 | O106: BF1F | P106: Coventry | U106: Band 1F
A107: 6 | B107: Baginton Fields Academy | C107: 277862 | D107: 13 | E107: Sahota | F107: Joydeep | G107: 194 | H107: 2025-04-01 | I107: 2025-07-31 | J107: 10480.89757 | K107: 64 | L107: 3457.616 | M107: 1 | N107: 1 | O107: BF1E | P107: Coventry | U107: Band 1E
A108: 6 | B108: Baginton Fields Academy | C108: 293411 | D108: 8 | E108: Sangi | F108: Setayesh | G108: 194 | H108: 2025-04-01 | I108: 2025-07-31 | J108: 9694.83558 | K108: 64 | L108: 3198.296 | M108: 1 | N108: 1 | O108: BF2E | P108: Coventry | U108: Band 2E
A109: 6 | B109: Baginton Fields Academy | C109: 304277 | D109: 8 | E109: Sardra | F109: Dylan | G109: 194 | H109: 2025-04-01 | I109: 2025-07-31 | J109: 10480.89757 | K109: 64 | L109: 3457.616 | M109: 1 | N109: 1 | O109: BF1E | P109: Coventry | U109: Band 1E
A110: 6 | B110: Baginton Fields Academy | C110: 285583 | D110: 9 | E110: Sarosh | F110: Usman | G110: 194 | H110: 2025-04-01 | I110: 2025-07-31 | J110: 9694.83558 | K110: 64 | L110: 3198.296 | M110: 1 | N110: 1 | O110: BF2E | P110: Warwickshire | U110: Band 2E
A111: 6 | B111: Baginton Fields Academy | C111: 299264 | D111: 10 | E111: Shahrjerdi | F111: Dara | G111: 194 | H111: 2025-04-01 | I111: 2025-07-31 | J111: 26685.25108 | K111: 64 | L111: 8803.382 | M111: 1 | N111: 1 | O111: BF5E | P111: Coventry | U111: Band 5E
B112: Baginton Fields Academy | C112: 422169 | D112: 7 | E112: Sidhu | F112: Harserit | G112: 194 | H112: 2025-04-01 | I112: 2025-07-31 | J112: 0 | K112: 64 | L112: 0 | M112: 0 | N112: 1 | O112: PB | P112: Coventry | R112: Baginton Fields Academy | U112: Band PB
A113: 6 | B113: Baginton Fields Academy | C113: 382154 | D113: 14 | E113: Singh | F113: Navbir | G113: 194 | H113: 2025-04-01 | I113: 2025-07-31 | J113: 17031.46275 | K113: 64 | L113: 5618.627 | M113: 1 | N113: 1 | O113: BF1F | P113: Coventry | U113: Band 1F
A114: 6 | B114: Baginton Fields Academy | C114: 268634 | D114: 11 | E114: Skvortsov-Kirsteine | F114: Jessica | G114: 194 | H114: 2025-04-01 | I114: 2025-07-31 | J114: 9694.83558 | K114: 64 | L114: 3198.296 | M114: 1 | N114: 1 | O114: BF2E | P114: Coventry | U114: Band 2E
A115: 6 | B115: Baginton Fields Academy | C115: 312250 | D115: 15 | E115: Smith | F115: Katie-Jayne | G115: 194 | H115: 2025-04-01 | I115: 2025-07-31 | J115: 17031.46275 | K115: 64 | L115: 5618.627 | M115: 1 | N115: 1 | O115: BF1F | P115: Coventry | U115: Band 1F
A116: 6 | B116: Baginton Fields Academy | C116: 384427 | D116: 14 | E116: Stokes | F116: Bradley | G116: 194 | H116: 2025-04-01 | I116: 2025-07-31 | J116: 9694.83558 | K116: 64 | L116: 3198.296 | M116: 1 | N116: 1 | O116: BF2E | P116: Coventry | U116: Band 2E
A117: 6 | B117: Baginton Fields Academy | C117: 343721 | D117: 14 | E117: Suleiman | F117: Mohammad | G117: 194 | H117: 2025-04-01 | I117: 2025-07-31 | J117: 17031.46275 | K117: 64 | L117: 5618.627 | M117: 1 | N117: 1 | O117: BF1F | P117: Coventry | U117: Band 1F
A118: 6 | B118: Baginton Fields Academy | C118: 253985 | D118: 12 | E118: Teensa | F118: Raul | G118: 194 | H118: 2025-04-01 | I118: 2025-07-31 | J118: 9694.83558 | K118: 64 | L118: 3198.296 | M118: 1 | N118: 1 | O118: BF2E | P118: Coventry | U118: Band 2E
A119: 6 | B119: Baginton Fields Academy | C119: 272537 | D119: 10 | E119: Thompson | F119: Lili-Mai | G119: 194 | H119: 2025-04-01 | I119: 2025-07-31 | J119: 13101.11915 | K119: 64 | L119: 4322.019 | M119: 1 | N119: 1 | O119: BF4E | P119: Coventry | U119: Band 4E
A120: 6 | B120: Baginton Fields Academy | C120: 308200 | D120: 9 | E120: Tubman | F120: Wesley | G120: 194 | H120: 2025-04-01 | I120: 2025-07-31 | J120: 10480.89757 | K120: 64 | L120: 3457.616 | M120: 1 | N120: 1 | O120: BF1E | P120: Coventry | U120: Band 1E
A121: 6 | B121: Baginton Fields Academy | C121: 291455 | D121: 11 | E121: Urch | F121: Sophia | G121: 194 | H121: 2025-04-01 | I121: 2025-07-31 | J121: 9694.83558 | K121: 64 | L121: 3198.296 | M121: 1 | N121: 1 | O121: BF2E | P121: Coventry | U121: Band 2E
A122: 6 | B122: Baginton Fields Academy | C122: 346809 | D122: 15 | E122: Voicu | F122: Alexandru | G122: 194 | H122: 2025-04-01 | I122: 2025-07-31 | J122: 26685.25108 | K122: 64 | L122: 8803.382 | M122: 1 | N122: 1 | O122: BF5E | P122: Coventry | U122: Band 5E
A123: 6 | B123: Baginton Fields Academy | C123: 298639 | D123: 10 | E123: Wakahiu | F123: Yvonne | G123: 194 | H123: 2025-04-01 | I123: 2025-07-31 | J123: 17031.46275 | K123: 64 | L123: 5618.627 | M123: 1 | N123: 1 | O123: BF1F | P123: Coventry | U123: Band 1F
A124: 6 | B124: Baginton Fields Academy | C124: 269084 | D124: 14 | E124: Walters | F124: Casadie-Rae | G124: 194 | H124: 2025-04-01 | I124: 2025-07-31 | J124: 10480.89757 | K124: 64 | L124: 3457.616 | M124: 1 | N124: 1 | O124: BF1E | P124: Coventry | U124: Band 1E
A125: 6 | B125: Baginton Fields Academy | C125: 310829 | D125: 10 | E125: Walters | F125: Leyton | G125: 194 | H125: 2025-04-01 | I125: 2025-07-31 | J125: 10480.89757 | K125: 64 | L125: 3457.616 | M125: 1 | N125: 1 | O125: BF1E | P125: Coventry | U125: Band 1E
A126: 6 | B126: Baginton Fields Academy | C126: 447465 | D126: 13 | E126: Welch | F126: Shania | G126: 194 | H126: 2025-04-01 | I126: 2025-07-31 | J126: 9694.83558 | K126: 64 | L126: 3198.296 | M126: 1 | N126: 1 | O126: BF2E | P126: Coventry | U126: Band 2E
A127: 6 | B127: Baginton Fields Academy | C127: 304571 | D127: 9 | E127: White | F127: Daniel | G127: 194 | H127: 2025-04-01 | I127: 2025-07-31 | J127: 10480.89757 | K127: 64 | L127: 3457.616 | M127: 1 | N127: 1 | O127: BF1E | P127: Coventry | U127: Band 1E
A128: 6 | B128: Baginton Fields Academy | C128: 351717 | D128: 8 | E128: Wilson | F128: Darson | G128: 194 | H128: 2025-04-01 | I128: 2025-07-31 | J128: 26685.25108 | K128: 64 | L128: 8803.382 | M128: 1 | N128: 1 | O128: BF5E | P128: Coventry | U128: Band 5E
B129: Baginton Fields Academy | C129: 418558 | D129: 7 | E129: Wong | F129: Tsz | G129: 194 | H129: 2025-06-04 | I129: 2025-07-31 | J129: 0.001 | K129: 34 | L129: 0.002103093 | M129: 0 | N129: 12 | O129: SLTNHS | P129: Coventry | Q129: Kingsbury Academy | U129: Band HS
A130: =IF(LEFT(O130,2)="BF",6,IF(LEFT(O130,2)="CW",1,IF(LEFT(O130,2)="CO",4,IF(LEFT(O130,2)="TS",2,IF(LEFT(O130,2)="RB",3,IF(LEFT(O130,2)="SF",7,IF(LEFT(O130,2)="TV",5,IF(LEFT(O130,2)="WF",8,"")))))))) -> 6 | B130: Baginton Fields Academy | C130: 290022 | D130: 11 | E130: Woodward | F130: Cody | G130: 194 | H130: 2025-04-01 | I130: 2025-07-31 | J130: 9694.83558 | K130: 64 | L130: 3198.296 | M130: 1 | N130: 1 | O130: BF2E | P130: Coventry | U130: =IF(ISBLANK(A130),"",CONCATENATE($O$2," ",RIGHT(O130,2))) -> Band 2E
A131: 6 | B131: Baginton Fields Academy | C131: 237226 | D131: 15 | E131: Younis | F131: Mohammed | G131: 194 | H131: 2025-04-01 | I131: 2025-07-31 | J131: 17031.46275 | K131: 64 | L131: 5618.627 | M131: 1 | N131: 1 | O131: BF1F | P131: Coventry | U131: Band 1F
A132: 6 | B132: Baginton Fields Academy | C132: 325036 | D132: 10 | E132: Zanfir | F132: Leonard | G132: 194 | H132: 2025-04-01 | I132: 2025-07-31 | J132: 10480.89757 | K132: 64 | L132: 3457.616 | M132: =K132/64 -> 1 | N132: 1 | O132: BF1E | P132: Coventry | U132: Band 1E
A133: 6 | B133: Baginton Fields Academy | C133: 256189 | D133: 12 | E133: Zeno | F133: Eryk | G133: 194 | H133: 2025-04-01 | I133: 2025-07-31 | J133: 17031.46275 | K133: 64 | L133: 5618.627 | M133: 1 | N133: 1 | O133: BF1F | P133: Coventry | U133: Band 1F
A134: 6 | B134: Baginton Fields Academy | C134: 285411 | D134: 9 | E134: Zibneva | F134: Victoria | G134: 194 | H134: 2025-04-01 | I134: 2025-07-31 | J134: 15721.34074 | K134: 64 | L134: 5186.422 | M134: 1 | N134: 1 | O134: BF2F | P134: Coventry | U134: Band 2F
A135: 1 | B135: Castle Wood School | C135: 329865 | D135: 7 | E135: Abdalla | F135: Ajmal | G135: 194 | H135: 2025-04-01 | I135: 2025-07-31 | J135: 15721.34074 | K135: 64 | L135: 5186.422 | M135: 1 | N135: 1 | O135: CW4F | P135: Coventry | U135: Band 4F
A136: 1 | B136: Castle Wood School | C136: 358149 | D136: 6 | E136: Abdulla | F136: Muadh | G136: 194 | H136: 2025-04-01 | I136: 2025-07-31 | J136: 13101.11915 | K136: 64 | L136: 4322.019 | M136: 1 | N136: 1 | O136: CW4E | P136: Coventry | R136: Castle Wood School | U136: Band 4E
B137: Castle Wood School | C137: 358149 | D137: 6 | E137: Abdulla | F137: Muadh | G137: 194 | H137: 2025-04-01 | I137: 2025-07-31 | J137: 0 | K137: 64 | L137: 0 | M137: 0 | N137: 1 | O137: PB | P137: Coventry | Q137: Castle Wood School | U137: Band PB
A138: 1 | B138: Castle Wood School | C138: 371046 | D138: 4 | E138: Adam | F138: Amina | G138: 194 | H138: 2025-04-01 | I138: 2025-07-31 | J138: 10480.89757 | K138: 64 | L138: 3457.616 | M138: 1 | N138: 1 | O138: CW1E | P138: Coventry | U138: Band 1E
A139: 1 | B139: Castle Wood School | C139: 349687 | D139: 5 | E139: Ahmed | F139: George | G139: 194 | H139: 2025-04-01 | I139: 2025-07-31 | J139: 10480.89757 | K139: 64 | L139: 3457.616 | M139: 1 | N139: 1 | O139: CW1E | P139: Coventry | U139: Band 1E
A140: 1 | B140: Castle Wood School | C140: 424087 | D140: 2 | E140: Ahmed | F140: Mahir | G140: 194 | H140: 2025-04-01 | I140: 2025-07-31 | J140: 17031.46275 | K140: 64 | L140: 5618.627 | M140: 1 | N140: 1 | O140: CW1F | P140: Coventry | U140: Band 1F
A141: 1 | B141: Castle Wood School | C141: 428689 | D141: 2 | E141: Ajilo | F141: Glorious | G141: 194 | H141: 2025-04-01 | I141: 2025-07-31 | J141: 10480.89757 | K141: 64 | L141: 3457.616 | M141: 1 | N141: 1 | O141: CW1E | P141: Coventry | U141: Band 1E
B142: Castle Wood School | C142: 395101 | D142: 4 | E142: Akhtar | F142: Ayana | G142: 194 | H142: 2025-06-23 | I142: 2025-07-31 | J142: 0.001 | K142: 21 | L142: 0.0001082474 | M142: 0 | N142: 1 | O142: SLTNHS | P142: Coventry | U142: Band HS
A143: 1 | B143: Castle Wood School | C143: 399752 | D143: 4 | E143: Akinmolusun | F143: Amy | G143: 194 | H143: 2025-04-01 | I143: 2025-07-31 | J143: 10480.89757 | K143: 64 | L143: 3457.616 | M143: 1 | N143: 1 | O143: CW1E | P143: Coventry | U143: Band 1E
A144: 1 | B144: Castle Wood School | C144: 344609 | D144: 5 | E144: Akinwale | F144: Abdullah | G144: 194 | H144: 2025-04-01 | I144: 2025-07-31 | J144: 9694.83558 | K144: 64 | L144: 3198.296 | M144: 1 | N144: 1 | O144: CW2E | P144: Coventry | U144: Band 2E
A145: 1 | B145: Castle Wood School | C145: 382954 | D145: 5 | E145: Al Yousef | F145: Diyaa | G145: 194 | H145: 2025-04-01 | I145: 2025-07-31 | J145: 26685.25108 | K145: 64 | L145: 8803.382 | M145: 1 | N145: 1 | O145: CW5E | P145: Coventry | U145: Band 5E
A146: 1 | B146: Castle Wood School | C146: 412737 | D146: 1 | E146: Ali | F146: Mohammed | G146: 194 | H146: 2025-04-01 | I146: 2025-07-31 | J146: 10480.89757 | K146: 64 | L146: 3457.616 | M146: 1 | N146: 1 | O146: CW1E | P146: Coventry | U146: Band 1E
A147: 1 | B147: Castle Wood School | C147: 344581 | D147: 5 | E147: Ali | F147: Muhammad Abu-Ba | G147: 194 | H147: 2025-04-01 | I147: 2025-07-31 | J147: 17031.46275 | K147: 64 | L147: 5618.627 | M147: 1 | N147: 1 | O147: CW1F | P147: Coventry | U147: Band 1F
A148: 1 | B148: Castle Wood School | C148: 346423 | D148: 5 | E148: Amad | F148: Mohammad | G148: 194 | H148: 2025-04-01 | I148: 2025-07-31 | J148: 17031.46275 | K148: 64 | L148: 5618.627 | M148: 1 | N148: 1 | O148: CW1F | P148: Coventry | U148: Band 1F
A149: 1 | B149: Castle Wood School | C149: 424436 | D149: 2 | E149: Amadin-Omorogbe | F149: Ronnie | G149: 194 | H149: 2025-04-01 | I149: 2025-07-31 | J149: 9694.83558 | K149: 64 | L149: 3198.296 | M149: 1 | N149: 1 | O149: CW2E | P149: Coventry | U149: Band 2E
A150: 1 | B150: Castle Wood School | C150: 420021 | D150: 3 | E150: Angus | F150: Jaxon | G150: 194 | H150: 2025-04-01 | I150: 2025-07-31 | J150: 10480.89757 | K150: 64 | L150: 3457.616 | M150: 1 | N150: 1 | O150: CW1E | P150: Coventry | U150: Band 1E
A151: 1 | B151: Castle Wood School | C151: 419259 | D151: 2 | E151: Aubignac | F151: Alfie | G151: 194 | H151: 2025-04-01 | I151: 2025-07-31 | J151: 10480.89757 | K151: 64 | L151: 3457.616 | M151: 1 | N151: 1 | O151: CW1E | P151: Coventry | U151: Band 1E
A152: 1 | B152: Castle Wood School | C152: 440467 | D152: 2 | E152: Augusto | F152: Matilde | G152: 194 | H152: 2025-04-01 | I152: 2025-07-31 | J152: 17031.46275 | K152: 64 | L152: 5618.627 | M152: 1 | N152: 1 | O152: CW1F | P152: Coventry | U152: Band 1F
A153: 1 | B153: Castle Wood School | C153: 326506 | D153: 7 | E153: Awofolaji | F153: Lincoln-Jubril | G153: 194 | H153: 2025-04-01 | I153: 2025-07-31 | J153: 10480.89757 | K153: 64 | L153: 3457.616 | M153: 1 | N153: 1 | O153: CW1E | P153: Coventry | U153: Band 1E
A154: 1 | B154: Castle Wood School | C154: 406625 | D154: 2 | E154: Ba | F154: Hope Ayesha | G154: 194 | H154: 2025-04-01 | I154: 2025-07-31 | J154: 9694.83558 | K154: 64 | L154: 3198.296 | M154: 1 | N154: 1 | O154: CW2E | P154: Coventry | U154: Band 2E
A155: 1 | B155: Castle Wood School | C155: 400238 | D155: 1 | E155: Banham | F155: Marty | G155: 194 | H155: 2025-04-01 | I155: 2025-07-31 | J155: 15721.34074 | K155: 64 | L155: 5186.422 | M155: 1 | N155: 1 | O155: CW2F | P155: Coventry | U155: Band 2F
A156: 1 | B156: Castle Wood School | C156: 404078 | D156: 3 | E156: Barmooz | F156: Rose | G156: 194 | H156: 2025-04-01 | I156: 2025-07-31 | J156: 10480.89757 | K156: 64 | L156: 3457.616 | M156: 1 | N156: 1 | O156: CW1E | P156: Coventry | U156: Band 1E
A157: 1 | B157: Castle Wood School | C157: 335690 | D157: 5 | E157: Bedford | F157: Elle-Leigh | G157: 194 | H157: 2025-04-01 | I157: 2025-07-31 | J157: 10480.89757 | K157: 64 | L157: 3457.616 | M157: 1 | N157: 1 | O157: CW1E | P157: Coventry | U157: Band 1E
A158: 1 | B158: Castle Wood School | C158: 389345 | D158: 5 | E158: Bhardwaj | F158: Reyansh | G158: 194 | H158: 2025-04-01 | I158: 2025-07-31 | J158: 10480.89757 | K158: 64 | L158: 3457.616 | M158: 1 | N158: 1 | O158: CW1E | P158: Coventry | U158: Band 1E
A159: 1 | B159: Castle Wood School | C159: 401657 | D159: 3 | E159: Binga | F159: Jayden | G159: 194 | H159: 2025-04-01 | I159: 2025-07-31 | J159: 10480.89757 | K159: 64 | L159: 3457.616 | M159: 1 | N159: 1 | O159: CW1E | P159: Coventry | U159: Band 1E
A160: 1 | B160: Castle Wood School | C160: 364613 | D160: 4 | E160: Binning | F160: Blake | G160: 194 | H160: 2025-04-01 | I160: 2025-07-21 | J160: 10480.89757 | K160: 64 | L160: 3457.616 | M160: 1 | N160: 1 | O160: CW1E | P160: Coventry | U160: Band 1E
A161: 1 | B161: Castle Wood School | C161: 373489 | D161: 3 | E161: Bodinnar | F161: Ava | G161: 194 | H161: 2025-04-01 | I161: 2025-07-31 | J161: 17031.46275 | K161: 64 | L161: 5618.627 | M161: 1 | N161: 1 | O161: CW1F | P161: Coventry | U161: Band 1F
A162: 1 | B162: Castle Wood School | C162: 385623 | D162: 2 | E162: Bodinnar | F162: Lexeigh | G162: 194 | H162: 2025-04-01 | I162: 2025-07-31 | J162: 10480.89757 | K162: 64 | L162: 3457.616 | M162: 1 | N162: 1 | O162: CW1E | P162: Coventry | U162: Band 1E
A163: 1 | B163: Castle Wood School | C163: 435964 | D163: 1 | E163: Chander | F163: Aryan | G163: 194 | H163: 2025-04-01 | I163: 2025-07-31 | J163: 10480.89757 | K163: 64 | L163: 3457.616 | M163: 1 | N163: 1 | O163: CW1E | P163: Coventry | U163: Band 1E
A164: 1 | B164: Castle Wood School | C164: 440669 | D164: 6 | E164: Chinn | F164: Theodore | G164: 194 | H164: 2025-04-01 | I164: 2025-07-31 | J164: 10480.89757 | K164: 64 | L164: 3457.616 | M164: 1 | N164: 1 | O164: CW1E | P164: Coventry | U164: Band 1E
A165: 1 | B165: Castle Wood School | C165: 320808 | D165: 7 | E165: Choudhary | F165: Sufyaan | G165: 194 | H165: 2025-04-01 | I165: 2025-07-31 | J165: 53370.50216 | K165: 64 | L165: 17606.76 | M165: 1 | N165: 1 | O165: CW5F | P165: Coventry | U165: Band 5F
A166: 1 | B166: Castle Wood School | C166: 428938 | D166: 2 | E166: Christopher | F166: Joshua | G166: 194 | H166: 2025-04-01 | I166: 2025-07-31 | J166: 10480.89757 | K166: 64 | L166: 3457.616 | M166: 1 | N166: 1 | O166: CW1E | P166: Coventry | U166: Band 1E
A167: 1 | B167: Castle Wood School | C167: 387941 | D167: 3 | E167: Ciobanu | F167: Fabian | G167: 194 | H167: 2025-04-01 | I167: 2025-07-31 | J167: 13101.11915 | K167: 64 | L167: 4322.019 | M167: 1 | N167: 1 | O167: CW4E | P167: Coventry | U167: Band 4E
A168: 1 | B168: Castle Wood School | C168: 392860 | D168: 2 | E168: Cleaver | F168: Harley | G168: 194 | H168: 2025-04-01 | I168: 2025-07-31 | J168: 10480.89757 | K168: 64 | L168: 3457.616 | M168: 1 | N168: 1 | O168: CW1E | U168: Band 1E
A169: 1 | B169: Castle Wood School | C169: 403790 | D169: 3 | E169: Coleman | F169: Alfie | G169: 194 | H169: 2025-04-01 | I169: 2025-07-31 | J169: 10480.89757 | K169: 64 | L169: 3457.616 | M169: 1 | N169: 1 | O169: CW1E | P169: Coventry | U169: Band 1E
A170: 1 | B170: Castle Wood School | C170: 416453 | D170: 1 | E170: Costello | F170: Thomas | G170: 194 | H170: 2025-04-01 | I170: 2025-07-31 | J170: 17031.46275 | K170: 64 | L170: 5618.627 | M170: 1 | N170: 1 | O170: CW1F | P170: Coventry | U170: Band 1F
A171: 1 | B171: Castle Wood School | C171: 402001 | D171: 2 | E171: Cresswell | F171: Mason | G171: 194 | H171: 2025-04-01 | I171: 2025-07-31 | J171: 10480.89757 | K171: 64 | L171: 3457.616 | M171: 1 | N171: 1 | O171: CW1E | P171: Coventry | U171: Band 1E
A172: 1 | B172: Castle Wood School | C172: 348437 | D172: 7 | E172: Crosdale | F172: Eli | G172: 194 | H172: 2025-04-01 | I172: 2025-07-31 | J172: 10480.89757 | K172: 64 | L172: 3457.616 | M172: 1 | N172: 1 | O172: CW1E | P172: Coventry | U172: Band 1E
A173: 1 | B173: Castle Wood School | C173: 353911 | D173: 7 | E173: Cummings | F173: Benjamin | G173: 194 | H173: 2025-04-01 | I173: 2025-07-31 | J173: 10480.89757 | K173: 64 | L173: 3457.616 | M173: 1 | N173: 1 | O173: CW1E | P173: Coventry | U173: Band 1E
A174: 1 | B174: Castle Wood School | C174: 334768 | D174: 5 | E174: Damon | F174: Eva | G174: 194 | H174: 2025-04-01 | I174: 2025-07-31 | J174: 10480.89757 | K174: 64 | L174: 3457.616 | M174: 1 | N174: 1 | O174: CW1E | P174: Coventry | U174: Band 1E
A175: 1 | B175: Castle Wood School | C175: 411308 | D175: 1 | E175: De Mulder | F175: Theo | G175: 194 | H175: 2025-04-01 | I175: 2025-07-31 | J175: 10480.89757 | K175: 64 | L175: 3457.616 | M175: 1 | N175: 1 | O175: CW1E | P175: Coventry | U175: Band 1E
A176: 1 | B176: Castle Wood School | C176: 388993 | D176: 3 | E176: Dima | F176: Gabriel | G176: 194 | H176: 2025-04-01 | I176: 2025-07-31 | J176: 10480.89757 | K176: 64 | L176: 3457.616 | M176: 1 | N176: 1 | O176: CW1E | P176: Coventry | U176: Band 1E
A177: 1 | B177: Castle Wood School | C177: 390516 | D177: 2 | E177: Doughty | F177: Reggie | G177: 194 | H177: 2025-04-01 | I177: 2025-07-31 | J177: 17031.46275 | K177: 64 | L177: 5618.627 | M177: 1 | N177: 1 | O177: CW1F | P177: Coventry | U177: Band 1F
A178: 1 | B178: Castle Wood School | C178: 394701 | D178: 1 | E178: Edrees | F178: Buruj | G178: 194 | H178: 2025-04-01 | I178: 2025-04-07 | J178: 10480.89757 | K178: 5 | L178: 270.1262 | M178: 0.078125 | N178: 1 | O178: CW1E | P178: Coventry | U178: Band 1E
A179: 1 | B179: Castle Wood School | C179: 387626 | D179: 2 | E179: Enueze | F179: Ryan | G179: 194 | H179: 2025-04-01 | I179: 2025-07-31 | J179: 10480.89757 | K179: 64 | L179: 3457.616 | M179: 1 | N179: 1 | O179: CW1E | P179: Coventry | U179: Band 1E
A180: 1 | B180: Castle Wood School | C180: 396089 | D180: 2 | E180: Evans | F180: Cameron | G180: 194 | H180: 2025-04-01 | I180: 2025-07-31 | J180: 13101.11915 | K180: 64 | L180: 4322.019 | M180: 1 | N180: 1 | O180: CW4E | P180: Coventry | U180: Band 4E
A181: 1 | B181: Castle Wood School | C181: 348749 | D181: 5 | E181: Fakir | F181: Mohamed | G181: 194 | H181: 2025-04-01 | I181: 2025-07-31 | J181: 17031.46275 | K181: 64 | L181: 5618.627 | M181: 1 | N181: 1 | O181: CW1F | P181: Coventry | U181: Band 1F
A182: 1 | B182: Castle Wood School | C182: 362201 | D182: 4 | E182: Festus | F182: Joctan | G182: 194 | H182: 2025-04-01 | I182: 2025-07-31 | J182: 10480.89757 | K182: 64 | L182: 3457.616 | M182: 1 | N182: 1 | O182: CW1E | P182: Coventry | R182: Castle Wood School | U182: Band 1E
B183: Castle Wood School | C183: 362201 | D183: 4 | E183: Festus | F183: Joctan | G183: 194 | H183: 2025-04-01 | I183: 2025-07-31 | J183: 0 | K183: 64 | L183: 0 | M183: 0 | N183: 1 | O183: PB | P183: Coventry | Q183: Castle Wood School | R183: Castle Wood School | U183: Band PB
A184: 1 | B184: Castle Wood School | C184: 359138 | D184: 4 | E184: Feum | F184: Prosper | G184: 194 | H184: 2025-04-01 | I184: 2025-07-31 | J184: 17031.46275 | K184: 64 | L184: 5618.627 | M184: 1 | N184: 1 | O184: CW1F | P184: Coventry | U184: Band 1F
A185: 1 | B185: Castle Wood School | C185: 392909 | D185: 3 | E185: Forkuoh | F185: George | G185: 194 | H185: 2025-04-01 | I185: 2025-07-31 | J185: 17031.46275 | K185: 64 | L185: 5618.627 | M185: 1 | N185: 1 | O185: CW1F | P185: Coventry | R185: Castle Wood School | U185: Band 1F
B186: Castle Wood School | C186: 392909 | D186: 3 | E186: Forkuoh | F186: George | G186: 194 | H186: 2025-04-01 | I186: 2025-07-31 | J186: 0.001 | K186: 64 | L186: 0.0003298969 | M186: 0 | N186: 1 | O186: SLTNHS | P186: Coventry | Q186: Castle Wood School | R186: Castle Wood School | U186: Band HS
A187: 1 | B187: Castle Wood School | C187: 347166 | D187: 6 | E187: Friswell | F187: Matilda | G187: 194 | H187: 2025-04-01 | I187: 2025-07-31 | J187: 17031.46275 | K187: 64 | L187: 5618.627 | M187: 1 | N187: 1 | O187: CW1F | P187: Coventry | U187: Band 1F
A188: 1 | B188: Castle Wood School | C188: 367552 | D188: 4 | E188: Fundi | F188: Wisdom | G188: 194 | H188: 2025-04-01 | I188: 2025-07-31 | J188: 10480.89757 | K188: 64 | L188: 3457.616 | M188: 1 | N188: 1 | O188: CW1E | P188: Coventry | U188: Band 1E
A189: 1 | B189: Castle Wood School | C189: 324247 | D189: 6 | E189: Gallagher | F189: Charlie | G189: 194 | H189: 2025-04-01 | I189: 2025-07-31 | J189: 26685.25108 | K189: 64 | L189: 8803.382 | M189: 1 | N189: 1 | O189: CW5E | P189: Coventry | U189: Band 5E
A190: 1 | B190: Castle Wood School | C190: 361083 | D190: 4 | E190: Gallagher | F190: Harry | G190: 194 | H190: 2025-04-01 | I190: 2025-07-31 | J190: 17031.46275 | K190: 64 | L190: 5618.627 | M190: 1 | N190: 1 | O190: CW1F | P190: Coventry | R190: Castle Wood School | U190: Band 1F
B191: Castle Wood School | C191: 361083 | D191: 4 | E191: Gallagher | F191: Harry | G191: 194 | H191: 2025-07-15 | I191: 2025-07-31 | J191: 0.001 | K191: 5 | L191: 2.57732e-05 | M191: 0 | N191: 1 | O191: SLTNHS | P191: Coventry | Q191: Castle Wood School | U191: Band HS
A192: 1 | B192: Castle Wood School | C192: 377896 | D192: 5 | E192: George | F192: Mason | G192: 194 | H192: 2025-04-01 | I192: 2025-07-31 | J192: 17031.46275 | K192: 64 | L192: 5618.627 | M192: 1 | N192: 1 | O192: CW1F | P192: Coventry | U192: Band 1F
A193: =IF(LEFT(O193,2)="BF",6,IF(LEFT(O193,2)="CW",1,IF(LEFT(O193,2)="CO",4,IF(LEFT(O193,2)="TS",2,IF(LEFT(O193,2)="RB",3,IF(LEFT(O193,2)="SF",7,IF(LEFT(O193,2)="TV",5,IF(LEFT(O193,2)="WF",8,"")))))))) -> 1 | B193: Castle Wood School | C193: 342871 | D193: 5 | E193: Grantham-Healy | F193: Caleb | G193: 194 | H193: 2025-04-01 | I193: 2025-07-31 | J193: 10480.89757 | K193: 64 | L193: 3457.616 | M193: 1 | N193: 1 | O193: CW1E | P193: Coventry | U193: =IF(ISBLANK(A193),"",CONCATENATE($O$2," ",RIGHT(O193,2))) -> Band 1E
A194: 1 | B194: Castle Wood School | C194: 361257 | D194: 4 | E194: Gray | F194: Leonardo | G194: 194 | H194: 2025-04-01 | I194: 2025-07-31 | J194: 10480.89757 | K194: 64 | L194: 3457.616 | M194: 1 | N194: 1 | O194: CW1E | P194: Coventry | U194: Band 1E
A195: 1 | B195: Castle Wood School | C195: 354146 | D195: 7 | E195: Gray | F195: Maddison | G195: 194 | H195: 2025-04-01 | I195: 2025-07-31 | J195: 10480.89757 | K195: 64 | L195: 3457.616 | M195: 1 | N195: 1 | O195: CW1E | P195: Coventry | U195: Band 1E
A196: 1 | B196: Castle Wood School | C196: 364413 | D196: 5 | E196: Hadid | F196: Mohammed | G196: 194 | H196: 2025-04-01 | I196: 2025-07-31 | J196: 9694.83558 | K196: 64 | L196: 3198.296 | M196: =K196/64 -> 1 | N196: 1 | O196: CW2E | P196: Coventry | U196: Band 2E
A197: 1 | B197: Castle Wood School | C197: 329642 | D197: 6 | E197: Hill | F197: Dylan-Joe | G197: 194 | H197: 2025-04-01 | I197: 2025-07-31 | J197: 17031.46275 | K197: 64 | L197: 5618.627 | M197: 1 | N197: 1 | O197: CW1F | P197: Coventry | R197: Castle Wood School | U197: Band 1F
B198: Castle Wood School | C198: 329642 | D198: 6 | E198: Hill | F198: Dylan-Joe | G198: 194 | H198: 2025-04-01 | I198: 2025-07-31 | J198: 0 | K198: 64 | L198: 0 | M198: 0 | N198: 1 | O198: PB | P198: Coventry | Q198: Castle Wood School | U198: Band PB
A199: 1 | B199: Castle Wood School | C199: 319551 | D199: 6 | E199: Hingley | F199: Sofia | G199: 194 | H199: 2025-04-01 | I199: 2025-07-31 | J199: 15721.34074 | K199: 64 | L199: 5186.422 | M199: 1 | N199: 1 | O199: CW2F | P199: Coventry | U199: Band 2F
A200: 1 | B200: Castle Wood School | C200: 388622 | D200: 4 | E200: Hundel | F200: Surjan | G200: 194 | H200: 2025-04-01 | I200: 2025-07-31 | J200: 10480.89757 | K200: 64 | L200: 3457.616 | M200: 1 | N200: 1 | O200: CW1E | P200: Coventry | U200: Band 1E
... 1476 more rows

Sheet AutumnProvRep (hidden)
B1: SEND Finance - Special Schools 01/09/2025 and 31/12/2025
B2: School | C2: Capita ID | D2: NCY | E2: Surname | F2: Forename | G2: # Days in year | H2: Provision start | I2: Provision end | J2: Unit cost | K2: # Term Days | L2: Funding | M2: Funded FTE (Based on days at provision) | N2: FTE (Full or Part-time) | O2: Band | P2: Funding LA | Q2: Previous School | R2: Next School
A3: =IF(LEFT(O3,2)="BF",6,IF(LEFT(O3,2)="CW",1,IF(LEFT(O3,2)="CO",4,IF(LEFT(O3,2)="TS",2,IF(LEFT(O3,2)="RB",3,IF(LEFT(O3,2)="SF",7,IF(LEFT(O3,2)="TV",5,IF(LEFT(O3,2)="WF",8,"")))))))) -> 6 | B3: Baginton Fields Academy | C3: 343228 | D3: 8 | E3: Abass | F3: Adedunni | G3: 194 | H3: 2025-09-01 | I3: 2025-12-31 | J3: 15721.34074 | K3: 75 | L3: 6077.838 | M3: 1 | N3: 1 | O3: BF2F | P3: Coventry | U3: =IF(ISBLANK(A3),"",CONCATENATE($O$2," ",RIGHT(O3,2))) -> Band 2F
A4: 6 | B4: Baginton Fields Academy | C4: 329865 | D4: 7 | E4: Abdalla | F4: Ajmal | G4: 194 | H4: 2025-09-01 | I4: 2025-12-31 | J4: 15721.34074 | K4: 75 | L4: 6077.837915 | M4: =K4/75 -> 1 | N4: 1 | O4: BF4F | P4: Coventry | U4: Band 4F
A5: 6 | B5: Baginton Fields Academy | C5: 427012 | D5: 9 | E5: Abdulahi | F5: Abdirahman | G5: 194 | H5: 2025-09-01 | I5: 2025-12-31 | J5: 10480.89757 | K5: 75 | L5: 4051.893 | M5: 1 | N5: 1 | O5: BF1E | P5: Coventry | U5: Band 1E
A6: 6 | B6: Baginton Fields Academy | C6: 417486 | D6: 7 | E6: Abedal Kader | F6: Ali | G6: 194 | H6: 2025-09-01 | I6: 2025-12-31 | J6: 17031.46275 | K6: 75 | L6: 6584.328383 | M6: =K6/75 -> 1 | N6: 1 | O6: BF1F | P6: Coventry | U6: Band 1F
A7: 6 | B7: Baginton Fields Academy | C7: 243036 | D7: 13 | E7: Abu Baker | F7: Daniel | G7: 194 | H7: 2025-09-01 | I7: 2025-12-31 | J7: 26685.25108 | K7: 75 | L7: 10316.46 | M7: 1 | N7: 1 | O7: BF5E | P7: Coventry | U7: Band 5E
A8: 6 | B8: Baginton Fields Academy | C8: 241973 | D8: 14 | E8: Ademakinwa | F8: Kikiola | G8: 194 | H8: 2025-09-01 | I8: 2025-12-31 | J8: 17031.46275 | K8: 75 | L8: 6584.329 | M8: 1 | N8: 1 | O8: BF1F | P8: Coventry | U8: Band 1F
A9: 6 | B9: Baginton Fields Academy | C9: 292158 | D9: 11 | E9: Ahmed | F9: Hana | G9: 194 | H9: 2025-09-01 | I9: 2025-12-31 | J9: 10480.89757 | K9: 75 | L9: 4051.893 | M9: 1 | N9: 1 | O9: BF1E | P9: Coventry | U9: Band 1E
A10: 6 | B10: Baginton Fields Academy | C10: 318946 | D10: 8 | E10: Ahmed | F10: Varen | G10: 194 | H10: 2025-09-01 | I10: 2025-12-31 | J10: 17031.46275 | K10: 75 | L10: 6584.329 | M10: 1 | N10: 1 | O10: BF1F | P10: Coventry | U10: Band 1F
A11: 6 | B11: Baginton Fields Academy | C11: 288451 | D11: 12 | E11: Akhtar | F11: Shumena | G11: 194 | H11: 2025-09-01 | I11: 2025-12-31 | J11: 10480.89757 | K11: 75 | L11: 4051.893 | M11: 1 | N11: 1 | O11: BF1E | P11: Coventry | U11: Band 1E
A12: 6 | B12: Baginton Fields Academy | C12: 418473 | D12: 10 | E12: Al Sabban | F12: Bissan | G12: 194 | H12: 2025-09-01 | I12: 2025-12-31 | J12: 9694.83558 | K12: 75 | L12: 3748.003 | M12: 1 | N12: 1 | O12: BF2E | P12: Coventry | R12: Baginton Fields Academy | U12: Band 2E
B13: Baginton Fields Academy | C13: 418473 | D13: 10 | E13: Al Sabban | F13: Bissan | G13: 194 | H13: 2025-09-01 | I13: 2025-12-31 | J13: 0.001 | K13: 75 | L13: 0.001159794 | M13: 0 | N13: 1 | O13: SLTNHS | P13: Coventry | Q13: Baginton Fields Academy | U13: Band HS
A14: 6 | B14: Baginton Fields Academy | C14: 293742 | D14: 11 | E14: Ali | F14: Azhar | G14: 194 | H14: 2025-09-01 | I14: 2025-12-31 | J14: 17031.46275 | K14: 75 | L14: 6584.329 | M14: 1 | N14: 3 | O14: BF1F | P14: Coventry | U14: Band 1F
A15: 6 | B15: Baginton Fields Academy | C15: 235739 | D15: 14 | E15: Ali | F15: Ifza | G15: 194 | H15: 2025-09-01 | I15: 2025-12-31 | J15: 9694.83558 | K15: 75 | L15: 3748.003 | M15: 1 | N15: 1 | O15: BF2E | P15: Coventry | U15: Band 2E
A16: 6 | B16: Baginton Fields Academy | C16: 314806 | D16: 9 | E16: Bailey | F16: Joshua | G16: 194 | H16: 2025-09-01 | I16: 2025-12-31 | J16: 10480.89757 | K16: 75 | L16: 4051.893 | M16: 1 | N16: 1 | O16: BF1E | P16: Coventry | U16: Band 1E
A17: 6 | B17: Baginton Fields Academy | C17: 315129 | D17: 7 | E17: Barker | F17: Owen | G17: 194 | H17: 2025-09-01 | I17: 2025-12-31 | J17: 10480.89757 | K17: 75 | L17: 4051.89339 | M17: 1 | N17: 1 | O17: BF1E | P17: Coventry | U17: Band 1E
A18: 6 | B18: Baginton Fields Academy | C18: 279153 | D18: 13 | E18: Beauchamp | F18: Morgan | G18: 194 | H18: 2025-09-01 | I18: 2025-12-31 | J18: 9694.83558 | K18: 75 | L18: 3748.003 | M18: 1 | N18: 1 | O18: BF2E | P18: Coventry | U18: Band 2E
A19: 6 | B19: Baginton Fields Academy | C19: 353119 | D19: 7 | E19: Begum | F19: Samara | G19: 194 | H19: 2025-09-01 | I19: 2025-12-31 | J19: 10480.89757 | K19: 75 | L19: 4051.89339 | M19: 1 | N19: 1 | O19: BF1E | P19: Coventry | U19: Band 1E
A20: 6 | B20: Baginton Fields Academy | C20: 396080 | D20: 14 | E20: Biyasi | F20: Hala | G20: 194 | H20: 2025-09-01 | I20: 2025-12-31 | J20: 9694.83558 | K20: 75 | L20: 3748.003 | M20: 1 | N20: 1 | O20: BF2E | P20: Coventry | U20: Band 2E
A21: 6 | B21: Baginton Fields Academy | C21: 282041 | D21: 11 | E21: Braithwaite | F21: Lacey | G21: 194 | H21: 2025-09-01 | I21: 2025-12-31 | J21: 26685.25108 | K21: 75 | L21: 10316.46 | M21: 1 | N21: 1 | O21: BF5E | P21: Coventry | U21: Band 5E
A22: 6 | B22: Baginton Fields Academy | C22: 281810 | D22: 12 | E22: Bush | F22: Matthew | G22: 194 | H22: 2025-09-01 | I22: 2025-12-31 | J22: 9694.83558 | K22: 75 | L22: 3748.003 | M22: 1 | N22: 1 | O22: BF2E | P22: Coventry | U22: Band 2E
A23: 6 | B23: Baginton Fields Academy | C23: 269933 | D23: 14 | E23: Cain | F23: Chanel | G23: 194 | H23: 2025-09-01 | I23: 2025-12-31 | J23: 9694.83558 | K23: 75 | L23: 3748.003 | M23: 1 | N23: 1 | O23: BF2E | P23: Coventry | U23: Band 2E
A24: 6 | B24: Baginton Fields Academy | C24: 334045 | D24: 9 | E24: Cain | F24: Ryan | G24: 194 | H24: 2025-09-01 | I24: 2025-12-31 | J24: 9694.83558 | K24: 75 | L24: 3748.003 | M24: 1 | N24: 1 | O24: BF2E | P24: Coventry | U24: Band 2E
A25: 6 | B25: Baginton Fields Academy | C25: 284471 | D25: 9 | E25: Caraian | F25: Sara | G25: 194 | H25: 2025-09-01 | I25: 2025-12-31 | J25: 9694.83558 | K25: 75 | L25: 3748.003 | M25: 1 | N25: 1 | O25: BF2E | P25: Coventry | U25: Band 2E
A26: 6 | B26: Baginton Fields Academy | C26: 257028 | D26: 12 | E26: Carty | F26: Loveonhe | G26: 194 | H26: 2025-09-01 | I26: 2025-12-31 | J26: 9694.83558 | K26: 75 | L26: 3748.003 | M26: 1 | N26: 1 | O26: BF2E | P26: Coventry | U26: Band 2E
A27: 6 | B27: Baginton Fields Academy | C27: 252823 | D27: 12 | E27: Chidube | F27: Maurice | G27: 194 | H27: 2025-09-01 | I27: 2025-12-31 | J27: 9694.83558 | K27: 75 | L27: 3748.003 | M27: 1 | N27: 1 | O27: BF2E | P27: Coventry | U27: Band 2E
A28: 6 | B28: Baginton Fields Academy | C28: 311820 | D28: 9 | E28: Choudhury | F28: Rishi | G28: 194 | H28: 2025-09-01 | I28: 2025-12-31 | J28: 10480.89757 | K28: 75 | L28: 4051.893 | M28: 1 | N28: 1 | O28: BF1E | P28: Coventry | U28: Band 1E
A29: 6 | B29: Baginton Fields Academy | C29: 243724 | D29: 12 | E29: Cooney | F29: Charlotte | G29: 194 | H29: 2025-09-01 | I29: 2025-12-31 | J29: 15721.34074 | K29: 75 | L29: 6077.838 | M29: 1 | N29: 1 | O29: BF2F | P29: Coventry | R29: Baginton Fields Academy | U29: Band 2F
